Workbook

Sheet SI_1
A1: x
A2: SSNA
C3: ='t1'!A1 -> SERVIZIO SANITARIO NAZIONALE - anno 2022
B6: INFORMAZIONI ISTITUZIONE
B8: PARTITA IVA DELL'ENTE | E8: =CONCATENATE(IN_SI_1!A2) -> 03510050127
A9: * | B9: CODICE FISCALE DELL'ENTE | E9: =CONCATENATE(IN_SI_1!B2) -> 03510050127 | K9: =IF(LEN(E9)=0,"E' NECESSARIO INSERIRE IL CODICE FISCALE DELL'ENTE","") -> 
A10: * | B10: TELEFONO | E10: =CONCATENATE(IN_SI_1!C2) -> 332278111 | K10: =IF(LEN(E10)=0,"E' NECESSARIO INSERIRE IL TELEFONO DELL'ENTE","") -> 
B11: FAX | E11: =CONCATENATE(IN_SI_1!D2) -> 332278643
A12: * | B12: E-MAIL | E12: =CONCATENATE(IN_SI_1!E2) -> direzione.generale@asst-settelaghi.it | K12: =IF(LEN(E12)=0,"E' NECESSARIO INSERIRE L'E-MAIL DELL'ENTE","") -> 
A13: * | B13: INDIRIZZO | C13: =CONCATENATE(IN_SI_1!F2) -> VIALE BORRI | D13: =CONCATENATE(IN_SI_1!G2) -> 57 | E13: =CONCATENATE(IN_SI_1!H2) -> 21100 | F13: =CONCATENATE(IN_SI_1!I2) -> VARESE | G13: =CONCATENATE(IN_SI_1!J2) -> VA | K13: =IF(AND(LEN(C13)>0,LEN(D13)>0,LEN(E13)>0,LEN(F13)>0,LEN(G13)>0),"","E' NECESSARIO COMPILARE TUTTI I DATI DELL'INDIRIZZO") -> 
C14: VIA | D14: N° Civico | E14: C.A.P. | F14: CITTA' PROV.
B15: INDIRIZZO PAGINA WEB DELL'ENTE | D15: =CONCATENATE(IN_SI_1!K2) -> www.asst-settelaghi.it
B16: COMPONENTI COLLEGIO DEI REVISORI (O ORGANO EQUIVALENTE)
B17: PRESIDENTE:
A18: * | B18: COGNOME | D18: NOME | F18: E-Mail
B19: =CONCATENATE(IN_SI_1!L2) -> ORSI | D19: =CONCATENATE(IN_SI_1!M2) -> SANDRO | F19: =CONCATENATE(IN_SI_1!N2) -> ecofinanziaria.segreteria@asst-settelaghi.it | K19: =IF(OR(AND(LEN(B19)>0,LEN(D19)>0,LEN(F19)>0), AND(LEN(B19)=0,LEN(D19)=0,LEN(F19)=0)), "","E' NECESSARIO COMPILARE TUTTI I CAMPI") -> 
B20: COMPONENTI:
B21: COGNOME | D21: NOME | F21: E-Mail
B22: =CONCATENATE(IN_SI_1!O2) -> MALNATI | D22: =CONCATENATE(IN_SI_1!P2) -> WILLIAM | F22: =CONCATENATE(IN_SI_1!Q2) -> ecofinanziaria.segreteria@asst-settelaghi.it | K22: =IF(OR(AND(LEN(B22)>0,LEN(D22)>0,LEN(F22)>0), AND(LEN(B22)=0,LEN(D22)=0,LEN(F22)=0)), "","E' NECESSARIO COMPILARE TUTTI I CAMPI") -> 
B23: =CONCATENATE(IN_SI_1!R2) -> SERRA | D23: =CONCATENATE(IN_SI_1!S2) -> STEFANO | F23: =CONCATENATE(IN_SI_1!T2) -> ecofinanziaria.segreteria@asst-settelaghi.it | K23: =IF(OR(AND(LEN(B23)>0,LEN(D23)>0,LEN(F23)>0), AND(LEN(B23)=0,LEN(D23)=0,LEN(F23)=0)), "","E' NECESSARIO COMPILARE TUTTI I CAMPI") -> 
B24: =CONCATENATE(IN_SI_1!U2) ->  | D24: =CONCATENATE(IN_SI_1!V2) ->  | F24: =CONCATENATE(IN_SI_1!W2) ->  | K24: =IF(OR(AND(LEN(B24)>0,LEN(D24)>0,LEN(F24)>0), AND(LEN(B24)=0,LEN(D24)=0,LEN(F24)=0)), "","E' NECESSARIO COMPILARE TUTTI I CAMPI") -> 
B25: =CONCATENATE(IN_SI_1!X2) ->  | D25: =CONCATENATE(IN_SI_1!Y2) ->  | F25: =CONCATENATE(IN_SI_1!Z2) ->  | K25: =IF(OR(AND(LEN(B25)>0,LEN(D25)>0,LEN(F25)>0), AND(LEN(B25)=0,LEN(D25)=0,LEN(F25)=0)), "","E' NECESSARIO COMPILARE TUTTI I CAMPI") -> 
B26: =CONCATENATE(IN_SI_1!AA2) ->  | D26: =CONCATENATE(IN_SI_1!AB2) ->  | F26: =CONCATENATE(IN_SI_1!AC2) ->  | K26: =IF(OR(AND(LEN(B26)>0,LEN(D26)>0,LEN(F26)>0), AND(LEN(B26)=0,LEN(D26)=0,LEN(F26)=0)), "","E' NECESSARIO COMPILARE TUTTI I CAMPI") -> 
B28: I modelli debbono essere sottoscritti dai revisori dei conti
B30: RESPONSABILE DEL PROCEDIMENTO AMMINISTRATIVO DI CUI ALLA LEGGE 7/8/90, N. 241 CAPO II°
B32: COGNOME | D32: NOME | E32: E-Mail | F32: TELEFONO
A33: * | B33: =CONCATENATE(IN_SI_1!AD2) -> REBORA | D33: =CONCATENATE(IN_SI_1!AE2) -> ELENA | E33: =CONCATENATE(IN_SI_1!AF2) -> elena.rebora@asst-settelaghi.it | F33: =CONCATENATE(IN_SI_1!AG2) -> 0332278058 | K33: =IF(AND(LEN(B33)>0,LEN(D33)>0,LEN(E33)>0,LEN(F33)>0),"","E' NECESSARIO COMPILARE TUTTI I DATI DEL RESPONSABILE") -> 
B34: =CONCATENATE(IN_SI_1!AI2) ->  | D34: =CONCATENATE(IN_SI_1!AJ2) ->  | E34: =CONCATENATE(IN_SI_1!AK2) ->  | F34: =CONCATENATE(IN_SI_1!AL2) ->  | G34: =CONCATENATE(IN_SI_1!AM2) -> 
B36: REFERENTE DA CONTATTARE
B38: COGNOME | D38: NOME | E38: E-Mail | F38: TELEFONO
B39: CORTELLARI | D39: LIVIA | E39: livia.cortellari@asst-settelaghi.it | F39: 0332278058
B41: DOMANDE PRESENTI IN CIRCOLARE
H43: TRUE | I43: FALSE
A44: 1 | B44: Non compilare
H45: FALSE | I45: FALSE
A46: 2 | B46: Non compilare
H47: FALSE | I47: FALSE
A48: 3 | B48: Non compilare
H49: FALSE | I49: FALSE
A50: 4 | B50: Non compilare | H50: =IF(H49=TRUE,1,0) -> 0 | I50: =IF(I49=TRUE,1,0) -> 0 | J50: =SUM(H50,I50) -> 0
A53: 5 | B53: Non compilare
G55: numero contratti
A56: *6 | B56: Indicare il numero dei contratti di collaborazione coordinata e continuativa | G56: 90 | K56: =IF(G56="","INSERIRE CAMPO OBBLIGATORIO",IF(G56=" ","INSERIRE NUMERO VALIDO",IF(AND(G56>0,G56<999999999999,COCOCO!$I$24=0),"COMPILARE LA SI_COCOCO",""))) -> 
G58: numero contratti
A59: *7 | B59: Indicare il numero degli incarichi libero professionale, studio, ricerca e consulenza | G59: 264 | K59: =IF(G59="","INSERIRE CAMPO OBBLIGATORIO",IF(G59=" ","INSERIRE NUMERO VALIDO","")) -> 
G61: numero contratti
A62: *8 | B62: Indicare il numero di contratti per prestazioni professionali consistenti nella resa di servizi o adempimenti obbligatori per legge | G62: 89 | K62: =IF(G62="","INSERIRE CAMPO OBBLIGATORIO",IF(G62=" ","INSERIRE NUMERO VALIDO","")) -> 
C65: 14 | F65: 0 | G65: =IF(SUM(F65:F79)<>SI_1!G62,"LA SOMMA DEI VALORI DEVE ESSERE UGUALE AL VALORE COMUNICATO ALLA DOMANDA 8 ( "& SI_1!G62 & ")","") -> LA SOMMA DEI VALORI DEVE ESSERE UGUALE AL VALORE COMUNICATO ALLA DOMANDA 8 ( 89)
C66: 15 | F66: 0
C67: 16 | F67: 0
C68: 17 | F68: 0
C69: 18 | F69: 0
C70: 19 | F70: 0
C71: 20 | F71: 0
C72: 21 | F72: 0
C73: 22 | F73: 0
C74: 23 | F74: 0
C75: 24 | F75: 0
C76: 25 | F76: 0
C77: 26 | F77: 0
C78: 27 | F78: 0
C79: 28 | F79: 0
G81: valore
A82: 9 | B82: Indicare il totale delle somme trattenute ai dipendenti nell'anno di rilevazione per le assenze per malattia in applicazione dell'art. 71 del D.L. n. 112 del 25/06/2008 convertito in L. 133/2008. | G82: 200317
A85: 10 | B85: Non compilare
A88: 11 | B88: Non compilare
G90: numero unità
A91: 12 | B91: Non compilare | G91: =IN_SI_1!AU2 -> 0
A94: 13 | B94: Non compilare
A97: 30 | B97: Non compilare
G99: numero unità
A100: 31 | B100: Quanti sono i dipendenti al 31.12 in aspettativa per dottorato di ricerca con retribuzione a carico dell'amministrazione ai sensi dell’articolo 2 della legge 476/1984 e s.m.? | G100: =IN_SI_1!AX2 -> 0
G102: numero unità
A103: 32 | B103: Quante persone sono state impiegate nell'anno (TEMPO DETER., CO.CO.CO., INCARICHI O ALTRI TIPI DI LAV. FLESSIBILE) il cui costo è totalmente sostenutocon finanziamenti esterni dellU.E. o di privati? | G103: =IN_SI_1!AY2 -> 0
G105: numero unità
A106: 33 | B106: Indicare il numero delle unità rilevate in tabella 1 tra i "presenti al 31.12" che risultavano titolari di permessi per Legge n. 104/92. | G106: 809
G108: numero unità
A109: 34 | B109: Indicare il numero delle unita rilevate in tabella 1 tra i "presenti al 31.12" che risultavano titolari di permessi ai sensi dell'art. 42, c.5 D.lgs.151/2001. | G109: 59
A112: 35 | B112: Non compilare
G114: numero unità
A115: 36 | B115: Indicare il numero dei medici convenzionati cui è stato conferito l'incarico di direttore di distretto ai sensi dell'art. 3-SEXIES, comma 3, del D.LGS. 502/92. | G115: 0
G117: valore
A118: 37 | B118: Indicare il costo dei medici convenzionati cui è stato conferito l'incarico di direttore di distretto ai sensi dell'art.3-SEXIES, comma 3, del D.LGS. 502/92. | G118: 0
G120: numero unità
A121: 38 | B121: Indicare il numero di personale religioso che sulla base di specifiche convenzioni presta servizio presso la struttura sanitaria | G121: 0
G123: valore
A124: 39 | B124: Indicare il costo del personale religioso che sulla base di specifiche convenzioni presta servizio presso la struttura sanitaria | G124: 0
A127: 40 | B127: Non compilare
G129: numero unità
A130: 41 | B130: Numero di convenzioni in vigore nel corso dell'anno per l'utilizzo di personale proveniente da altre amministrazioni pubbliche | G130: 4
A133: 42 | B133: Non compilare
G135: numero unità
A136: 43 | B136: Unità di pers. dirigente presenti in tabella 1 per le quali sussiste un giudizio di idoneità condizionata alla mansione ex art. 41,C.6, LETT.B) D.LGS. 81/2008 con solo riferimento alle limitazioni | G136: 28
G138: numero unità
A139: 44 | B139: Unità di pers. dirigente di cui alla precedente domanda per le quali il giudizio di idoneità condizionata ha determinato l’esclusione dalla turnazione sulle 24 ore e/o dalla pronta disponibilità | G139: 15
G141: numero unità
A142: 45 | B142: Unità di pers. non dirigente presenti in tabella 1 per le quali sussiste un giudizio di idoneità condizionata alla mansione ex art. 41,C.6, LETT.B) D.LGS. 81/2008 con solo riferimento alle limitazioni | G142: 610
G144: numero unità
A145: 46 | B145: Unità di pers. non dirigente di cui alla precedente domanda per le quali il giudizio di idoneità condizionata ha determinato l’esclusione dalla turnazione sulle 24 ore e/o dalla pronta disponibilità | G145: 143
G147: numero unità
A148: 47 | B148: UNITÀ DI PERSONALE DIRIGENTE COLLOCATE IN ASPETTATIVA SENZA ASSEGNI PER ASSUNZIONE A TEMPO DETERMINATO PRESSO LA STESSA O ALTRA AMMINISTRAZIONE | G148: 1
G150: numero unità
A151: 48 | B151: UNITÀ DI PERSONALE NON DIRIGENTE COLLOCATE IN ASPETTATIVA SENZA ASSEGNI PER ASSUNZIONE A TEMPO DETERMINATO PRESSO LA STESSA O ALTRA AMMINISTRAZIONE | G151: 2
G153: numero unità
A154: 49 | B154: Delle persone rilevate come unità uomo/anno a tempo determinato nella tabella 2, quante sono state reclutate con le risorse di cui all’art. 1, comma 401 ,della legge 28 dicembre 2015, n. 208? | G154: 0
G156: valore
A157: 50 | B157: Del costo sostenuto per il personale a tempo determinato rilevato in tabella 14 , quanto si riferisce alle unità reclutate con le risorse di cui all’art. 1, comma 401, della legge 208/2015? | G157: 0
A160: 51 | B160: Non compilare
G162: valore
A163: 52 | B163: Indicare le ore di servizio effettuate nel corso dell'anno di rilevazione dagli specialisti ambulatoriali interni | G163: 50732
G165: valore
A166: 53 | B166: Indicare il costo degli specialisti ambulatoriali interni | G166: 2377982
G168: valore
A169: 54 | B169: Indicare il costo dei medici addetti alle attività della medicina dei servizi territoriali | G169: 0
G171: numero unità
A172: 55 | B172: Indicare il numero di dioendenti posti in esenzione dal servizio per emergenza COVID-19 | G172: =IN_SI_1!CS2 -> 0
G174: numero giorni
A175: 56 | B175: Indicare il numero dei giorni concessi ai dipendenti posti in esenzione dal servizio per emergenza COVID-19 | G175: =IN_SI_1!CT2 -> 0
G177: numero unità
A178: 57 | B178: I contratti co.co.co e incarichi di lavoro autonomo di cui alle domande 6 e 7, a quante persone sono stati conferiti ai sensi dell’art. 2-bis del d.l. 18/2020? | G178: 128 | K178: Il valore comunicato deve essere inferiore o uguale alla sommartoria dei dati indicati nelle domande 6 e 7
G180: valore
A181: 58 | B181: Del costo sostenuto per co.co.co e incarichi di lavoro autonomo rilevato in tab. 14 quanto è riferito agli incarichi conferiti ai sensi dell’art. 2-bis del d.l. 18/2020? | G181: 875883 | K181: Il dato è un "di cui" del costo indicato nella T14 alle voci L108 e L109 e deve essere inferiore o uguale alla loro sommatoria
G183: numero unità
A184: 59 | B184: Indicare il numero delle persone tra quelle rilevate come unità uomo/anno a tempo determinato nella tabella 2 che sono state reclutate ai sensi dell’art. 2-ter del d.l. 18/2020 | G184: 57
G186: valore
A187: 60 | B187: Del costo sostenuto per il personale a tempo determinato rilevato in tabella 14 , quanto si riferisce alle unità reclutate ai sensi dell’art. 2-ter del d.l. 18/2020? | G187: 1962061 | K187: =IF(LEN(B212)>500,"IL NUMERO MASSIMO DI CARATTERI CONSENTITO E' 500","") -> 
G189: numero unità
A190: 61 | B190: Indicare quante unità di personale a tempo indeterminato rilevate in tabella 1 sono state reclutate ai sensi dell’art. 1, c.5, ultimo periodo del d.l. 34/2020 (infermieri di famiglia o di comunità) | G190: 72
G192: numero unità
A193: 62 | B193: Quante persone sono state assunte nell’anno a tempo determinato con le risorse del PNRR? | G193: =IN_SI_1!CY5 -> 0
G195: numero unità
A196: 63 | B196: Quante persone sono state assunte nell’anno con altre forme flessibili di lavoro (ex interinali, LSU, formazione lavoro) con le risorse del PNRR? | G196: =IN_SI_1!CY8 -> 0
G198: numero unità
A199: 64 | B199: Con quante persone sono stati sottoscritti contratti di co.co.co e incarichi nell’anno con le risorse del PNRR? | G199: =IN_SI_1!CY11 -> 0
G201: valore
A202: 65 | B202: Indicare quanto del costo di personale rilevato nelle tabelle del conto annuale si riferisce a quello sostenuto ai sensi dell’art. 1, commi 4 e 8, del d.l. 34/2020 | G202: =IN_SI_1!DC2 -> 0
G204: numero unità
A205: 66 | B205: Indicare quante tra le unità di personale rilevato nelle tabelle del conto annuale sono state reclutate ai sensi dell’art. 2, comma 5, secondo periodo del d.l. 34/2020 | G205: =IN_SI_1!DD2 -> 0
G207: valore
A208: 67 | B208: Indicare quanto del costo di personale rilevato nelle tabelle del conto annuale si riferisce al personale reclutato ai sensi dell’art. 2, comma 5, secondo periodo del d.l. 34/2020 | G208: =IN_SI_1!DE2 -> 0
B210: NOTE E CHIARIMENTI ALLA RILEVAZIONE (max 1500 caratteri)
B211: I dati inseriti nella tabella 13 sono da considerarsi provvisori
B216: TABELLE COMPILATE (attenzione: la seguente sezione verrà compilata in automatico; all'atto dell'inserimento dei dati nel kit verrà annerita la relativa casella)
B218: ANOMALIE RISCONTRATE (attenzione: la seguente sezione verrà compilata in automatico; all'atto dell'inserimento dei dati nel kit verranno evidenziate eventuali anomalie)
B221: * (asterisco): si intende campo obbligatorio
B222: CoCoCo | C222: =IF(COCOCO!$I$24>0,1,0) -> 1
B223: T1 | C223: =IF(('t1'!$K$164+'t1'!$L$164)>0,1,0) -> 1 | E223: SQ 1 | F223: =IF(COUNTIF('Squadratura 1'!J6:J162,"ERRORE")=0, 0,1) -> 0
B224: T1A | C224: =IF(SUM('1A'!E74:P74)>0,1,0) -> 1 | E224: SQ 2 | F224: =IF(OR('Squadratura 2'!G164="ERRORE",'Squadratura 2'!L164="ERRORE"),1,0) -> 0
B225: T1B | C225: =IF(OR(SUM('1B'!E51:L51)>0, SUM('1B'!E97:L97)>0, SUM('1B'!E143:L143)>0, SUM('1B'!E189:L189)>0, SUM('1B'!E235:L235)>0, SUM('1B'!E281:L281)>0, SUM('1B'!E327:L327)>0, SUM('1B'!E373:L373)>0, SUM('1B'!E419:L419)>0),1,0) -> 1 | E225: SQ 3 | F225: =IF(OR('Squadratura 3'!M165="ERRORE",'Squadratura 3'!N165="ERRORE",'Squadratura 3'!Y165="ERRORE",'Squadratura 3'!Z165="ERRORE"),1,0) -> 1
B226: T1C | C226: =IF((SUM('1C'!E56:P56))>0,1,0) -> 1 | E226: SQ4 | F226: =IF(COUNTIF('Squadratura 4'!I6:I162,"ERRORE")=0,0,1) -> 0
B227: T1D | C227: =IF((SUM('1D'!C19:J19))>0,1,0) -> 1 | E227: SQ 5 | F227: =IF(AND('SICI(1)'!$G$2="OK",'SICI(2)'!$G$2="OK",'SICI(3)'!$G$2="OK"),0,1) -> 0
B228: T1E | C228: =IF(('1E'!$Q$52+'1E'!$R$52)>0,1,0) -> 1 | E228: SQ 6 | F228: =IF('Squadratura 6'!$C$4="OK",0,1) -> 0
B229: T1F | C229: =IF((SUM('1F'!E61:L61))>0,1,0) -> 1 | E229: SQ 8 | F229: =IF(OR('t15(1)'!$H$29<>"OK",'t15(2)'!$H$24<>"OK",'t15(3)'!$H$24<>"OK"),1,0) -> 0
B230: T1G | C230: =IF((SUM('1G'!AA7:AA117))>0,1,0) -> 0 | E230: SQ 9 | F230: =IF(OR('t15(1)'!H6<>"OK",'t15(2)'!H4<>"OK",'t15(3)'!H4<>"OK"),1,0) -> 0
B231: T1SD | C231: =IF((SUM('1SD'!E18:L18))>0,1,0) -> 1 | E231: IN 1 | F231: =IF(COUNTIF('Incongruenze 1 e 11'!D5:D7,"OK")=3,0,1) -> 0
B232: T2 | C232: =IF((SUM('t2'!C27:J27,'t2'!C59:L59))>0,1,0) -> 1 | E232: IN 2 | F232: =IF(COUNTIF('Incongruenza 2'!I6:I162,"ERRORE")=0,0,1) -> 0
B233: T2A | C233: =IF(t2A!$T$31>0,1,0) -> 1 | E233: IN 3 | F233: =IF(AND('Incongruenza 3'!D10="OK",'Incongruenza 3'!E10="OK",'Incongruenza 3'!F10="OK"),0,1) -> 0
B234: T3 | C234: =IF((SUM('t3'!C164:P164))>0,1,0) -> 1 | E234: IN 4 | F234: =IF('t14'!G23=1,0,IF(OR(AND('Incongruenza 4 e controlli t14'!F21=" ",'Incongruenza 4 e controlli t14'!F23=" "),AND('Incongruenza 4 e controlli t14'!F21="OK",'Incongruenza 4 e controlli t14'!F23="OK")),0,1)) -> 0
B235: T4 | C235: =IF(('t4'!$FD$164)>0,1,0) -> 1 | E235: IN 5 | F235: =IF(COUNTIF('Incongruenza 5'!G6:G162,"ERRORE")=0,0,1) -> 0
B236: T5 | C236: =IF(('t5'!$U$165+'t5'!$V$165)>0,1,0) -> 1 | E236: IN 6 | F236: =IF(COUNTIF('Incongruenza 6'!E6:E162,"ERRORE")=0,0,1) -> 0
B237: T6 | C237: =IF(('t6'!$U$165+'t6'!$V$165)>0,1,0) -> 1 | E237: IN 7 | F237: =IF(COUNTIF('Incongruenza 7'!I6:I162,"ERRORE")=0,0,1) -> 0
B238: T7 | C238: =IF(('t7'!$W$164+'t7'!$X$164)>0,1,0) -> 1 | E238: IN 8 | F238: =IF(COUNTIF('Incongruenza 8'!J6:J162,"ERRORE")=0,0,1) -> 0
B239: T8 | C239: =IF(('t8'!$AA$164+'t8'!$AB$164)>0,1,0) -> 1 | E239: IN 9 | F239: =IF(OR('t15(1)'!$H$13<>"OK",'t15(2)'!$H$11<>"OK",'t15(3)'!$H$12<>"OK"),1,0) -> 1
B240: T9 | C240: =IF(('t9'!$O$164+'t9'!$P$164)>0,1,0) -> 1 | E240: IN 10 | F240: =IF(COUNTIF('Incongruenza 10'!K27:L27,"OK")=2,0,1) -> 0
B241: T10 | C241: =IF(('t10'!$AU$164+'t10'!$AV$164)>0,1,0) -> 0 | E241: IN 11 | F241: =IF(COUNTIF('Incongruenze 1 e 11'!D13:D21,"OK")=7,0,1) -> 0
B242: T11 | C242: =IF(('t11'!$Y$166+'t11'!$Z$166)>0,1,0) -> 1 | E242: IN 12 | F242: =IF(COUNTIF('Incongruenze 12 e 13'!D13:D14,"OK")=2,0,1) -> 0
B243: T12 | C243: =IF(('t12'!$I$164+'t12'!$C$164)>0,1,0) -> 1 | E243: IN 13 | F243: =IF(COUNTIF('Incongruenze 12 e 13'!D20,"OK")=1,0,1) -> 0
B244: T13 | C244: =IF(('t13'!$AF$164)>0,1,0) -> 1 | E244: IN 14 | F244: =IF(COUNTIF('Incongruenza 14'!G6:G162,"ERRORE")=0,0,1) -> 0
B245: T14 | C245: =IF(('Incongruenza 4 e controlli t14'!$C$36)>0,1,0) -> 1 | E245: IN 15 | F245: =IF(AND('Incongruenza 15'!$E$5="OK",'Incongruenza 15'!$F$5="OK",'Incongruenza 15'!$G$5="OK"),0,1) -> 1
B246: T15 | C246: =IF(('t15(1)'!$C$93+'t15(1)'!$G$93+'t15(2)'!$C$63+'t15(2)'!$G$63+'t15(3)'!$C$79+'t15(3)'!$G$79)>0,1,0) -> 1 | E246: IN 16 | F246: =IF(OR('SICI(1)'!$G$6<>"OK",'SICI(2)'!$G$6<>"OK",'SICI(3)'!$G$6<>"OK"),1,0) -> 0
B247: SICI | C247: =IF(('SICI(1)'!$O$9+'SICI(2)'!$O$9+'SICI(3)'!$O$9)>0,1,0) -> 1 | E247: IN 17 | F247: =IF(('t12'!$M$5)>0,1,0) -> 0
B248: TRC | C248: =IF(('Tabella Riconciliazione'!$F$35)>0,1,0) -> 1

Sheet COCOCO
D2: =IF(SI_1!G56>0,"LA COMPILAZIONE DI QUESTA APPENDICE E' OBBLIGATORIA","") -> LA COMPILAZIONE DI QUESTA APPENDICE E' OBBLIGATORIA
D3: ='t1'!A1 -> SERVIZIO SANITARIO NAZIONALE - anno 2022
G5: VALORE
A6: *1 | B6: Indicare il numero dei contratti co.co.co. attivi nel corso dell’anno secondo la tipologia:
D7: a) Tecnico | G7: =IN_COCOCO!A2 -> 0 | H7: =IF(SUM(G7:G9) <> SI_1!G56,"LA SOMMA DEI VALORI DEVE ESSERE UGUALE A "& SI_1!G56,"") -> 
D8: b) Giuridico-amministrativo | G8: =IN_COCOCO!B2 -> 0
D9: c) Sanitario | G9: 90
A11: *2 | B11: Quanti dei contratti co.co.co. attivi nel corso dell’anno hanno un compenso maggiore di € 20.000? | G11: 1 | H11: =IF(SI_1!G56=0,"",IF(AND(G11 <= SI_1!G56,G11 >= 0),"","IL VALORE INSERITO DEVE ESSERE <= " & SI_1!G56)) -> 
A13: *3 | B13: Suddividere i contratti co.co.co. attivi nel corso dell’anno secondo la loro durata:
D14: a) 1 - 3 mesi | G14: 63 | H14: =IF(SUM(G14:G17) <> SI_1!G56,"LA SOMMA DEI VALORI DEVE ESSERE UGUALE A "& SI_1!G56,"") -> 
D15: b) 4 - 6 mesi | G15: 26
D16: c) 7 - 12 mesi | G16: =IN_COCOCO!G2 -> 0
D17: d) oltre 12 mesi | G17: 1
A19: *4 | B19: I co.co.co. attivi nel corso dell’anno quante persone diverse hanno riguardato? (Poiché con una stessa persona possono essere stipulati più co.co.co. si chiede di specificare il n. delle persone che hanno avuto almeno un co.co.co. attivo nel corso dell’anno) | G19: 82 | H19: =IF(SI_1!G56=0,"",IF(AND(G19 <= SI_1!G56,G19 > 0),"","IL VALORE INSERITO DEVE ESSERE <= " & SI_1!G56 & " E MAGGIORE DI 0")) -> 
B21: Suddividere le persone con cui sono stati stipulati uno o più contratti co.co.co. in base ai titoli di studio:
D22: a) Laurea | G22: 82 | H22: =IF(SUM(G22:G24)<>G19,"LA SOMMA DEI VALORI DEVE ESSERE UGUALE A " & IF(G19<>0,G19,0),"") -> 
D23: b) Diploma superiore | G23: =IN_COCOCO!K2 -> 0
D24: c) Diploma inferiore | G24: =IN_COCOCO!L2 -> 0 | I24: =SUM(G22:G24,G19,G14:G17,G11,G7:G9) -> 345

Sheet IN_SI_1 (hidden)
A1: P_IVA | B1: COD_FISC | C1: TEL | D1: FAX | E1: EMAIL | F1: VIA | G1: NUM_CIV | H1: CAP | I1: CITY | J1: PV | K1: SITO | L1: PRES_COGNOME | M1: PRES_NOME | N1: PRES_EMAIL | O1: COM1_COGN | P1: COM1_NOME | Q1: COM1_EMAIL | R1: COM2_COGN | S1: COM2_NOME | T1: COM2_EMAIL | U1: COM3_COGN | V1: COM3_NOME | W1: COM3_EMAIL | X1: COM4_COGN | Y1: COM4_NOME | Z1: COM4_EMAIL | AA1: COM5_COGN | AB1: COM5_NOME | AC1: COM5_EMAIL | AD1: RESP_COGN | AE1: RESP_NOME | AF1: RESP_EMAIL | AG1: RESP_TEL | AH1: RESP_FAX | AI1: RESP_COGN1 | AJ1: RESP_NOME1 | AK1: RESP_EMAIL1 | AL1: RESP_TEL1 | AM1: RESP_FAX1 | AN1: INFO_5 | AO1: INFO_6 | AP1: INFO_7 | AQ1: INFO_8 | AR1: INFO_9 | AS1: INFO_10 | AT1: INFO_11 | AU1: INFO_12 | AV1: INFO_13 | AW1: INFO_30 | AX1: INFO_31 | AY1: INFO_32 | AZ1: INFO_33 | BA1: INFO_34 | BB1: INFO_35 | BC1: INFO_36 | BD1: INFO_37 | BE1: INFO_38 | BF1: NOTE | BG1: CHECK_CF | BH1: CHECK_TEL | BI1: CHECK_FAX | BJ1: CHECK_MAIL | BK1: CHECK_INDI | BL1: CHECK_PRES | BM1: CHECK_COM1 | BN1: CHECK_COM2 | BO1: CHECK_COM3 | BP1: CHECK_COM4 | BQ1: CHECK_COM5 | BR1: CHECK_RESP | BS1: CHECK_INFO5 | BT1: CHECK_INFO6 | BU1: CHECK_INFO7 | BV1: CHECK_INFO8 | BW1: ID_NUM | BX1: REFE_COGN | BY1: REFE_NOME | BZ1: REFE_EMAIL | CA1: REFE_TEL | CB1: REFE_FAX | CC1: INFO_39 | CD1: INFO_40 | CE1: INFO_41 | CF1: INFO_42 | CG1: INFO_43 | CH1: INFO_44 | CI1: INFO_45 | CJ1: INFO_46 | CK1: INFO_47 | CL1: INFO_48 | CM1: INFO_49 | CN1: INFO_50 | CO1: INFO_51 | CP1: INFO_52 | CQ1: INFO_53 | CR1: INFO_54 | CS1: INFO_55 | CT1: INFO_56 | CU1: INFO_57 | CV1: INFO_58 | CW1: INFO_59 | CX1: INFO_60 | CY1: INFO_61 | CZ1: INFO_62 | DA1: INFO_63 | DB1: INFO_64 | DC1: INFO_65 | DD1: INFO_66 | DE1: INFO_67
A2: 03510050127 | B2: 03510050127 | C2: 332278111 | D2: 332278643 | E2: direzione.generale@asst-settelaghi.it | F2: VIALE BORRI | G2: 57 | H2: 21100 | I2: VARESE | J2: VA | K2: www.asst-settelaghi.it | L2: ORSI | M2: SANDRO | N2: ecofinanziaria.segreteria@asst-settelaghi.it | O2: MALNATI | P2: WILLIAM | Q2: ecofinanziaria.segreteria@asst-settelaghi.it | R2: SERRA | S2: STEFANO | T2: ecofinanziaria.segreteria@asst-settelaghi.it | AD2: REBORA | AE2: ELENA | AF2: elena.rebora@asst-settelaghi.it | AG2: 0332278058 | BW2: 1

Sheet out_SI_1 (hidden)
A1: P_IVA | B1: COD_FISC | C1: TEL | D1: FAX | E1: EMAIL | F1: VIA | G1: NUM_CIV | H1: CAP | I1: CITY | J1: PV | K1: SITO | L1: PRES_COGNOME | M1: PRES_NOME | N1: PRES_EMAIL | O1: COM1_COGN | P1: COM1_NOME | Q1: COM1_EMAIL | R1: COM2_COGN | S1: COM2_NOME | T1: COM2_EMAIL | U1: COM3_COGN | V1: COM3_NOME | W1: COM3_EMAIL | X1: COM4_COGN | Y1: COM4_NOME | Z1: COM4_EMAIL | AA1: COM5_COGN | AB1: COM5_NOME | AC1: COM5_EMAIL | AD1: RESP_COGN | AE1: RESP_NOME | AF1: RESP_EMAIL | AG1: RESP_TEL | AH1: RESP_FAX | AI1: RESP_COGN1 | AJ1: RESP_NOME1 | AK1: RESP_EMAIL1 | AL1: RESP_TEL1 | AM1: RESP_FAX1 | AN1: INFO_5 | AO1: INFO_6 | AP1: INFO_7 | AQ1: INFO_8 | AR1: INFO_9 | AS1: INFO_10 | AT1: INFO_11 | AU1: INFO_12 | AV1: INFO_13 | AW1: INFO_30 | AX1: INFO_31 | AY1: INFO_32 | AZ1: INFO_33 | BA1: INFO_34 | BB1: INFO_35 | BC1: INFO_36 | BD1: INFO_37 | BE1: INFO_38 | BF1: NOTE | BG1: CHECK_CF | BH1: CHECK_TEL | BI1: CHECK_FAX | BJ1: CHECK_MAIL | BK1: CHECK_INDI | BL1: CHECK_PRES | BM1: CHECK_COM1 | BN1: CHECK_COM2 | BO1: CHECK_COM3 | BP1: CHECK_COM4 | BQ1: CHECK_COM5 | BR1: CHECK_RESP | BS1: CHECK_INFO5 | BT1: CHECK_INFO6 | BU1: CHECK_INFO7 | BV1: CHECK_INFO8 | BW1: REFE_COGN | BX1: REFE_NOME | BY1: REFE_EMAIL | BZ1: REFE_TEL | CA1: REFE_FAX | CB1: INFO_39 | CC1: INFO_40 | CD1: INFO_41 | CE1: INFO_42 | CF1: INFO_43 | CG1: INFO_44 | CH1: INFO_45 | CI1: INFO_46 | CJ1: INFO_47 | CK1: INFO_48 | CL1: INFO_49 | CM1: INFO_50 | CN1: INFO_51 | CO1: INFO_52 | CP1: INFO_53 | CQ1: INFO_54 | CR1: INFO_55 | CS1: INFO_56 | CT1: INFO_57 | CU1: INFO_58 | CV1: INFO_59 | CW1: INFO_60 | CX1: INFO_61 | CY1: INFO_62 | CZ1: INFO_63 | DA1: INFO_64 | DB1: INFO_65 | DC1: INFO_66 | DD1: INFO_67
A2: =CONCATENATE(SI_1!E8) -> 03510050127 | B2: =CONCATENATE(SI_1!E9) -> 03510050127 | C2: =CONCATENATE(SI_1!E10) -> 332278111 | D2: =CONCATENATE(SI_1!E11) -> 332278643 | E2: =CONCATENATE(SI_1!E12) -> direzione.generale@asst-settelaghi.it | F2: =CONCATENATE(SI_1!C13) -> VIALE BORRI | G2: =CONCATENATE(SI_1!D13) -> 57 | H2: =CONCATENATE(SI_1!E13) -> 21100 | I2: =CONCATENATE(SI_1!F13) -> VARESE | J2: =CONCATENATE(SI_1!G13) -> VA | K2: =CONCATENATE(SI_1!D15) -> www.asst-settelaghi.it | L2: =CONCATENATE(SI_1!B19) -> ORSI | M2: =CONCATENATE(SI_1!D19) -> SANDRO | N2: =CONCATENATE(SI_1!F19) -> ecofinanziaria.segreteria@asst-settelaghi.it | O2: =CONCATENATE(SI_1!B22) -> MALNATI | P2: =CONCATENATE(SI_1!D22) -> WILLIAM | Q2: =CONCATENATE(SI_1!F22) -> ecofinanziaria.segreteria@asst-settelaghi.it | R2: =CONCATENATE(SI_1!B23) -> SERRA | S2: =CONCATENATE(SI_1!D23) -> STEFANO | T2: =CONCATENATE(SI_1!F23) -> ecofinanziaria.segreteria@asst-settelaghi.it | U2: =CONCATENATE(SI_1!B24) ->  | V2: =CONCATENATE(SI_1!D24) ->  | W2: =CONCATENATE(SI_1!F24) ->  | X2: =CONCATENATE(SI_1!B25) ->  | Y2: =CONCATENATE(SI_1!D25) ->  | Z2: =CONCATENATE(SI_1!F25) ->  | AA2: =CONCATENATE(SI_1!B26) ->  | AB2: =CONCATENATE(SI_1!D26) ->  | AC2: =CONCATENATE(SI_1!F26) ->  | AD2: =CONCATENATE(SI_1!B33) -> REBORA | AE2: =CONCATENATE(SI_1!D33) -> ELENA | AF2: =CONCATENATE(SI_1!E33) -> elena.rebora@asst-settelaghi.it | AG2: =CONCATENATE(SI_1!F33) -> 0332278058 | AH2: =CONCATENATE(SI_1!G33) ->  | AI2: =CONCATENATE(SI_1!B34) ->  | AJ2: =CONCATENATE(SI_1!D34) ->  | AK2: =CONCATENATE(SI_1!E34) ->  | AL2: =CONCATENATE(SI_1!F34) ->  | AM2: =CONCATENATE(SI_1!G34) ->  | AN2: =SI_1!G53 -> 0 | AO2: =SI_1!G56 -> 90 | AP2: =SI_1!G59 -> 264 | AQ2: =SI_1!G62 -> 89 | AR2: =SI_1!G82 -> 200317 | AS2: =SI_1!G85 -> 0 | AT2: =SI_1!G88 -> 0 | AU2: =SI_1!G91 -> 0 | AV2: =SI_1!G94 -> 0 | AW2: =SI_1!G97 -> 0 | AX2: =SI_1!G100 -> 0 | AY2: =SI_1!G103 -> 0 | AZ2: =SI_1!G106 -> 809 | BA2: =SI_1!G109 -> 59 | BB2: =SI_1!G112 -> 0 | BC2: =SI_1!G115 -> 0 | BD2: =SI_1!G118 -> 0 | BE2: =SI_1!G121 -> 0 | BF2: =CONCATENATE(SI_1!B211) -> I dati inseriti nella tabella 13 sono da considerarsi provvisori | BG2: =CONCATENATE(SI_1!K9) ->  | BH2: =CONCATENATE(SI_1!K10) ->  | BI2: =CONCATENATE(SI_1!K11) ->  | BJ2: =CONCATENATE(SI_1!K12) ->  | BK2: =CONCATENATE(SI_1!K13) ->  | BL2: =CONCATENATE(SI_1!K19) ->  | BM2: =CONCATENATE(SI_1!K22) ->  | BN2: =CONCATENATE(SI_1!K23) ->  | BO2: =CONCATENATE(SI_1!K24) ->  | BP2: =CONCATENATE(SI_1!K25) ->  | BQ2: =CONCATENATE(SI_1!K26) ->  | BR2: =CONCATENATE(SI_1!K33) ->  | BS2: =CONCATENATE(SI_1!K53) ->  | BT2: =CONCATENATE(SI_1!K56) ->  | BU2: =CONCATENATE(SI_1!K59) ->  | BV2: =CONCATENATE(SI_1!K62) ->  | BW2: =CONCATENATE(SI_1!B39) -> CORTELLARI | BX2: =CONCATENATE(SI_1!D39) -> LIVIA | BY2: =CONCATENATE(SI_1!E39) -> livia.cortellari@asst-settelaghi.it | BZ2: =CONCATENATE(SI_1!F39) -> 0332278058 | CA2: =CONCATENATE(SI_1!G39) ->  | CB2: =SI_1!G124 -> 0 | CC2: =SI_1!G127 -> 0 | CD2: =SI_1!G130 -> 4 | CE2: =SI_1!G133 -> 0 | CF2: =SI_1!G136 -> 28 | CG2: =SI_1!G139 -> 15 | CH2: =SI_1!G142 -> 610 | CI2: =SI_1!G145 -> 143 | CJ2: =SI_1!G148 -> 1 | CK2: =SI_1!G151 -> 2 | CL2: =SI_1!G154 -> 0 | CM2: =SI_1!G157 -> 0 | CN2: =SI_1!G160 -> 0 | CO2: =SI_1!G163 -> 50732 | CP2: =SI_1!G166 -> 2377982 | CQ2: =SI_1!G169 -> 0 | CR2: =SI_1!G172 -> 0 | CS2: =SI_1!G175 -> 0 | CT2: =SI_1!G178 -> 128 | CU2: =SI_1!G181 -> 875883 | CV2: =SI_1!G184 -> 57 | CW2: =SI_1!G187 -> 1962061 | CX2: =SI_1!G190 -> 72 | CY2: =SI_1!G193 -> 0 | CZ2: =SI_1!G196 -> 0 | DA2: =SI_1!G199 -> 0 | DB2: =SI_1!G202 -> 0 | DC2: =SI_1!G205 -> 0 | DD2: =SI_1!G208 -> 0

Sheet t1
A1: ="SERVIZIO SANITARIO NAZIONALE"&" - anno "&$L$1 -> SERVIZIO SANITARIO NAZIONALE - anno 2022 | L1: 2022
C3: N U M E R O D I D I P E N D E N T I
A4: qualifica / posiz.economica/profilo | B4: Cod. | C4: ="Totale dipendenti al 31/12/"&L1-1&" (*)" -> Totale dipendenti al 31/12/2021 (*) | E4: A tempo pieno | G4: In part-time fino al 50% | I4: In part-time oltre il 50% | K4: ="Totale dipendenti al 31/12/"&L1&" (**)" -> Totale dipendenti al 31/12/2022 (**) | O4: CATEGORIA
A5: (sono evidenziate le qualifiche valorizzate per l'anno) | C5: Uomini | D5: Donne | E5: Uomini | F5: Donne | G5: Uomini | H5: Donne | I5: Uomini | J5: Donne | K5: Uomini | L5: Donne
C6: 0 | D6: 0 | E6: 0 | F6: 0 | G6: 0 | H6: 0 | I6: 0 | J6: 0 | K6: 0 | L6: 0
A7: Direttore generale | B7: 0D0097 | C7: =IF(ISERROR(VLOOKUP($B7,IN_T1!$B$2:$Y$3000,2,FALSE))=TRUE,"",VLOOKUP($B7,IN_T1!$B$2:$Y$3000,2,FALSE)) -> 1 | D7: =IF(ISERROR(VLOOKUP($B7,IN_T1!$B$2:$Y$3000,3,FALSE))=TRUE,"",VLOOKUP($B7,IN_T1!$B$2:$Y$3000,3,FALSE)) -> 0 | E7: 1 | F7: 0 | G7: 0 | H7: 0 | I7: 0 | J7: 0 | K7: =E7+G7+I7 -> 1 | L7: =F7+H7+J7 -> 0 | M7: =IF((K7+L7)>0,1,0) -> 1 | N7: AP | O7: DIRETTORI GENERALI
A8: Direttore sanitario | B8: 0D0482 | C8: =IF(ISERROR(VLOOKUP($B8,IN_T1!$B$2:$Y$3000,2,FALSE))=TRUE,"",VLOOKUP($B8,IN_T1!$B$2:$Y$3000,2,FALSE)) -> 1 | D8: =IF(ISERROR(VLOOKUP($B8,IN_T1!$B$2:$Y$3000,3,FALSE))=TRUE,"",VLOOKUP($B8,IN_T1!$B$2:$Y$3000,3,FALSE)) -> 0 | E8: 1 | F8: 0 | G8: 0 | H8: 0 | I8: 0 | J8: 0 | K8: =E8+G8+I8 -> 1 | L8: =F8+H8+J8 -> 0 | M8: 1 | N8: AP | O8: DIRETTORI GENERALI
A9: Direttore amministrativo | B9: 0D0163 | C9: =IF(ISERROR(VLOOKUP($B9,IN_T1!$B$2:$Y$3000,2,FALSE))=TRUE,"",VLOOKUP($B9,IN_T1!$B$2:$Y$3000,2,FALSE)) -> 1 | D9: =IF(ISERROR(VLOOKUP($B9,IN_T1!$B$2:$Y$3000,3,FALSE))=TRUE,"",VLOOKUP($B9,IN_T1!$B$2:$Y$3000,3,FALSE)) -> 0 | E9: 1 | F9: 0 | G9: 0 | H9: 0 | I9: 0 | J9: 0 | K9: 1 | L9: 0 | M9: 1 | N9: AP | O9: DIRETTORI GENERALI
A10: Direttore dei servizi sociali | B10: 0D0484 | C10: =IF(ISERROR(VLOOKUP($B10,IN_T1!$B$2:$Y$3000,2,FALSE))=TRUE,"",VLOOKUP($B10,IN_T1!$B$2:$Y$3000,2,FALSE)) -> 1 | D10: =IF(ISERROR(VLOOKUP($B10,IN_T1!$B$2:$Y$3000,3,FALSE))=TRUE,"",VLOOKUP($B10,IN_T1!$B$2:$Y$3000,3,FALSE)) -> 0 | E10: 0 | F10: 0 | G10: 0 | H10: 0 | I10: 0 | J10: 0 | K10: 0 | L10: 0 | M10: 0 | N10: AP | O10: DIRETTORI GENERALI
A11: Dir. Medico con inc. Struttura complessa (rapp. Esclusivo) | B11: SD0E33 | C11: =IF(ISERROR(VLOOKUP($B11,IN_T1!$B$2:$Y$3000,2,FALSE))=TRUE,"",VLOOKUP($B11,IN_T1!$B$2:$Y$3000,2,FALSE)) -> 17 | D11: =IF(ISERROR(VLOOKUP($B11,IN_T1!$B$2:$Y$3000,3,FALSE))=TRUE,"",VLOOKUP($B11,IN_T1!$B$2:$Y$3000,3,FALSE)) -> 7 | E11: 23 | F11: 7 | G11: 0 | H11: 0 | I11: 0 | J11: 0 | K11: 23 | L11: 7 | M11: 1 | N11: ME | O11: MEDICI
A12: Dir. Medico con inc. di struttura complessa (rapp. Non escl. | B12: SD0N33 | C12: =IF(ISERROR(VLOOKUP($B12,IN_T1!$B$2:$Y$3000,2,FALSE))=TRUE,"",VLOOKUP($B12,IN_T1!$B$2:$Y$3000,2,FALSE)) -> 4 | D12: =IF(ISERROR(VLOOKUP($B12,IN_T1!$B$2:$Y$3000,3,FALSE))=TRUE,"",VLOOKUP($B12,IN_T1!$B$2:$Y$3000,3,FALSE)) -> 0 | E12: 2 | F12: 0 | G12: 0 | H12: 0 | I12: 0 | J12: 0 | K12: 2 | L12: 0 | M12: 1 | N12: ME | O12: MEDICI
A13: Dir. Medico con incarico di struttura semplice (rapp. Esclus | B13: SD0E34 | C13: =IF(ISERROR(VLOOKUP($B13,IN_T1!$B$2:$Y$3000,2,FALSE))=TRUE,"",VLOOKUP($B13,IN_T1!$B$2:$Y$3000,2,FALSE)) -> 43 | D13: =IF(ISERROR(VLOOKUP($B13,IN_T1!$B$2:$Y$3000,3,FALSE))=TRUE,"",VLOOKUP($B13,IN_T1!$B$2:$Y$3000,3,FALSE)) -> 31 | E13: 28 | F13: 25 | G13: 0 | H13: 0 | I13: 0 | J13: 0 | K13: 28 | L13: 25 | M13: 1 | N13: ME | O13: MEDICI
A14: Dir. Medico con incarico struttura semplice (rapp. Non escl. | B14: SD0N34 | C14: =IF(ISERROR(VLOOKUP($B14,IN_T1!$B$2:$Y$3000,2,FALSE))=TRUE,"",VLOOKUP($B14,IN_T1!$B$2:$Y$3000,2,FALSE)) -> 6 | D14: =IF(ISERROR(VLOOKUP($B14,IN_T1!$B$2:$Y$3000,3,FALSE))=TRUE,"",VLOOKUP($B14,IN_T1!$B$2:$Y$3000,3,FALSE)) -> 1 | E14: 5 | F14: 1 | G14: 0 | H14: 0 | I14: 0 | J14: 0 | K14: 5 | L14: 1 | M14: 1 | N14: ME | O14: MEDICI
A15: Dirigenti medici con altri incar. Prof.li (rapp. Esclusivo) | B15: SD0035 | C15: =IF(ISERROR(VLOOKUP($B15,IN_T1!$B$2:$Y$3000,2,FALSE))=TRUE,"",VLOOKUP($B15,IN_T1!$B$2:$Y$3000,2,FALSE)) -> 235 | D15: =IF(ISERROR(VLOOKUP($B15,IN_T1!$B$2:$Y$3000,3,FALSE))=TRUE,"",VLOOKUP($B15,IN_T1!$B$2:$Y$3000,3,FALSE)) -> 398 | E15: 245 | F15: 417 | G15: 0 | H15: 3 | I15: 0 | J15: 9 | K15: 245 | L15: 429 | M15: 1 | N15: ME | O15: MEDICI
A16: Dirigenti medici con altri incar. Prof.li (rapp. Non escl.) | B16: SD0036 | C16: =IF(ISERROR(VLOOKUP($B16,IN_T1!$B$2:$Y$3000,2,FALSE))=TRUE,"",VLOOKUP($B16,IN_T1!$B$2:$Y$3000,2,FALSE)) -> 32 | D16: =IF(ISERROR(VLOOKUP($B16,IN_T1!$B$2:$Y$3000,3,FALSE))=TRUE,"",VLOOKUP($B16,IN_T1!$B$2:$Y$3000,3,FALSE)) -> 25 | E16: 37 | F16: 30 | G16: 0 | H16: 0 | I16: 1 | J16: 0 | K16: 38 | L16: 30 | M16: 1 | N16: ME | O16: MEDICI
A17: Dir. Medici a t. Determinato(art. 15-septies d.lgs. 502/92) | B17: SD0597 | C17: =IF(ISERROR(VLOOKUP($B17,IN_T1!$B$2:$Y$3000,2,FALSE))=TRUE,"",VLOOKUP($B17,IN_T1!$B$2:$Y$3000,2,FALSE)) -> 0 | D17: =IF(ISERROR(VLOOKUP($B17,IN_T1!$B$2:$Y$3000,3,FALSE))=TRUE,"",VLOOKUP($B17,IN_T1!$B$2:$Y$3000,3,FALSE)) -> 0 | E17: 0 | F17: 0 | G17: 0 | H17: 0 | I17: 0 | J17: 0 | K17: 0 | L17: 0 | M17: 0 | N17: ME | O17: MEDICI
A18: Veterinari con inc. di struttura complessa (rapp.esclusivo) | B18: SD0E74 | C18: =IF(ISERROR(VLOOKUP($B18,IN_T1!$B$2:$Y$3000,2,FALSE))=TRUE,"",VLOOKUP($B18,IN_T1!$B$2:$Y$3000,2,FALSE)) -> 0 | D18: =IF(ISERROR(VLOOKUP($B18,IN_T1!$B$2:$Y$3000,3,FALSE))=TRUE,"",VLOOKUP($B18,IN_T1!$B$2:$Y$3000,3,FALSE)) -> 0 | E18: 0 | F18: 0 | G18: 0 | H18: 0 | I18: 0 | J18: 0 | K18: 0 | L18: 0 | M18: 0 | N18: ME | O18: VETERINARI
A19: Veterinari con inc. di struttura complessa (rapp. Non escl.) | B19: SD0N74 | C19: =IF(ISERROR(VLOOKUP($B19,IN_T1!$B$2:$Y$3000,2,FALSE))=TRUE,"",VLOOKUP($B19,IN_T1!$B$2:$Y$3000,2,FALSE)) -> 0 | D19: =IF(ISERROR(VLOOKUP($B19,IN_T1!$B$2:$Y$3000,3,FALSE))=TRUE,"",VLOOKUP($B19,IN_T1!$B$2:$Y$3000,3,FALSE)) -> 0 | E19: 0 | F19: 0 | G19: 0 | H19: 0 | I19: 0 | J19: 0 | K19: 0 | L19: 0 | M19: 0 | N19: ME | O19: VETERINARI
A20: Veterinari con inc. di struttura semplice (rapp. Esclusivo) | B20: SD0E73 | C20: =IF(ISERROR(VLOOKUP($B20,IN_T1!$B$2:$Y$3000,2,FALSE))=TRUE,"",VLOOKUP($B20,IN_T1!$B$2:$Y$3000,2,FALSE)) -> 0 | D20: =IF(ISERROR(VLOOKUP($B20,IN_T1!$B$2:$Y$3000,3,FALSE))=TRUE,"",VLOOKUP($B20,IN_T1!$B$2:$Y$3000,3,FALSE)) -> 0 | E20: 0 | F20: 0 | G20: 0 | H20: 0 | I20: 0 | J20: 0 | K20: 0 | L20: 0 | M20: 0 | N20: ME | O20: VETERINARI
A21: Veterinari con inc. di struttura semplice (rapp. Non escl.) | B21: SD0N73 | C21: =IF(ISERROR(VLOOKUP($B21,IN_T1!$B$2:$Y$3000,2,FALSE))=TRUE,"",VLOOKUP($B21,IN_T1!$B$2:$Y$3000,2,FALSE)) -> 0 | D21: =IF(ISERROR(VLOOKUP($B21,IN_T1!$B$2:$Y$3000,3,FALSE))=TRUE,"",VLOOKUP($B21,IN_T1!$B$2:$Y$3000,3,FALSE)) -> 0 | E21: 0 | F21: 0 | G21: 0 | H21: 0 | I21: 0 | J21: 0 | K21: 0 | L21: 0 | M21: 0 | N21: ME | O21: VETERINARI
A22: Veterinari con altri incar. Prof.li (rapp. Esclusivo) | B22: SD0A73 | C22: =IF(ISERROR(VLOOKUP($B22,IN_T1!$B$2:$Y$3000,2,FALSE))=TRUE,"",VLOOKUP($B22,IN_T1!$B$2:$Y$3000,2,FALSE)) -> 0 | D22: =IF(ISERROR(VLOOKUP($B22,IN_T1!$B$2:$Y$3000,3,FALSE))=TRUE,"",VLOOKUP($B22,IN_T1!$B$2:$Y$3000,3,FALSE)) -> 0 | E22: 0 | F22: 0 | G22: 0 | H22: 0 | I22: 0 | J22: 0 | K22: 0 | L22: 0 | M22: 0 | N22: ME | O22: VETERINARI
A23: Veterinari con altri incar. Prof.li (rapp. Non escl.) | B23: SD0072 | C23: =IF(ISERROR(VLOOKUP($B23,IN_T1!$B$2:$Y$3000,2,FALSE))=TRUE,"",VLOOKUP($B23,IN_T1!$B$2:$Y$3000,2,FALSE)) -> 0 | D23: =IF(ISERROR(VLOOKUP($B23,IN_T1!$B$2:$Y$3000,3,FALSE))=TRUE,"",VLOOKUP($B23,IN_T1!$B$2:$Y$3000,3,FALSE)) -> 0 | E23: 0 | F23: 0 | G23: 0 | H23: 0 | I23: 0 | J23: 0 | K23: 0 | L23: 0 | M23: 0 | N23: ME | O23: VETERINARI
A24: Veterinari a t. determinato (art. 15-septies d.lgs. 502/92) | B24: SD0598 | C24: =IF(ISERROR(VLOOKUP($B24,IN_T1!$B$2:$Y$3000,2,FALSE))=TRUE,"",VLOOKUP($B24,IN_T1!$B$2:$Y$3000,2,FALSE)) -> 0 | D24: =IF(ISERROR(VLOOKUP($B24,IN_T1!$B$2:$Y$3000,3,FALSE))=TRUE,"",VLOOKUP($B24,IN_T1!$B$2:$Y$3000,3,FALSE)) -> 0 | E24: 0 | F24: 0 | G24: 0 | H24: 0 | I24: 0 | J24: 0 | K24: 0 | L24: 0 | M24: 0 | N24: ME | O24: VETERINARI
A25: Odontoiatri con inc. di struttura complessa (rapp. Escl.) | B25: SD0E49 | C25: =IF(ISERROR(VLOOKUP($B25,IN_T1!$B$2:$Y$3000,2,FALSE))=TRUE,"",VLOOKUP($B25,IN_T1!$B$2:$Y$3000,2,FALSE)) -> 0 | D25: =IF(ISERROR(VLOOKUP($B25,IN_T1!$B$2:$Y$3000,3,FALSE))=TRUE,"",VLOOKUP($B25,IN_T1!$B$2:$Y$3000,3,FALSE)) -> 0 | E25: 0 | F25: 0 | G25: 0 | H25: 0 | I25: 0 | J25: 0 | K25: 0 | L25: 0 | M25: 0 | N25: ME | O25: ODONTOIATRI
A26: Odontoiatri con inc. di struttura complessa (rapp. Non escl. | B26: SD0N49 | C26: =IF(ISERROR(VLOOKUP($B26,IN_T1!$B$2:$Y$3000,2,FALSE))=TRUE,"",VLOOKUP($B26,IN_T1!$B$2:$Y$3000,2,FALSE)) -> 0 | D26: =IF(ISERROR(VLOOKUP($B26,IN_T1!$B$2:$Y$3000,3,FALSE))=TRUE,"",VLOOKUP($B26,IN_T1!$B$2:$Y$3000,3,FALSE)) -> 0 | E26: 0 | F26: 0 | G26: 0 | H26: 0 | I26: 0 | J26: 0 | K26: 0 | L26: 0 | M26: 0 | N26: ME | O26: ODONTOIATRI
A27: Odontoiatri con inc. di struttura semplice (rapp. Esclusivo) | B27: SD0E48 | C27: =IF(ISERROR(VLOOKUP($B27,IN_T1!$B$2:$Y$3000,2,FALSE))=TRUE,"",VLOOKUP($B27,IN_T1!$B$2:$Y$3000,2,FALSE)) -> 0 | D27: =IF(ISERROR(VLOOKUP($B27,IN_T1!$B$2:$Y$3000,3,FALSE))=TRUE,"",VLOOKUP($B27,IN_T1!$B$2:$Y$3000,3,FALSE)) -> 0 | E27: 0 | F27: 0 | G27: 0 | H27: 0 | I27: 0 | J27: 0 | K27: 0 | L27: 0 | M27: 0 | N27: ME | O27: ODONTOIATRI
A28: Odontoiatri con inc. di struttura semplice (rapp. Non escl.) | B28: SD0N48 | C28: =IF(ISERROR(VLOOKUP($B28,IN_T1!$B$2:$Y$3000,2,FALSE))=TRUE,"",VLOOKUP($B28,IN_T1!$B$2:$Y$3000,2,FALSE)) -> 0 | D28: =IF(ISERROR(VLOOKUP($B28,IN_T1!$B$2:$Y$3000,3,FALSE))=TRUE,"",VLOOKUP($B28,IN_T1!$B$2:$Y$3000,3,FALSE)) -> 0 | E28: 0 | F28: 0 | G28: 0 | H28: 0 | I28: 0 | J28: 0 | K28: 0 | L28: 0 | M28: 0 | N28: ME | O28: ODONTOIATRI
A29: Odontoiatri con altri incar. Prof.li (rapp. Esclusivo) | B29: SD0A48 | C29: =IF(ISERROR(VLOOKUP($B29,IN_T1!$B$2:$Y$3000,2,FALSE))=TRUE,"",VLOOKUP($B29,IN_T1!$B$2:$Y$3000,2,FALSE)) -> 0 | D29: =IF(ISERROR(VLOOKUP($B29,IN_T1!$B$2:$Y$3000,3,FALSE))=TRUE,"",VLOOKUP($B29,IN_T1!$B$2:$Y$3000,3,FALSE)) -> 0 | E29: 0 | F29: 0 | G29: 0 | H29: 0 | I29: 0 | J29: 0 | K29: 0 | L29: 0 | M29: 0 | N29: ME | O29: ODONTOIATRI
A30: Odontoiatri con altri incar. Prof.li (rapp. Non escl.) | B30: SD0047 | C30: =IF(ISERROR(VLOOKUP($B30,IN_T1!$B$2:$Y$3000,2,FALSE))=TRUE,"",VLOOKUP($B30,IN_T1!$B$2:$Y$3000,2,FALSE)) -> 0 | D30: =IF(ISERROR(VLOOKUP($B30,IN_T1!$B$2:$Y$3000,3,FALSE))=TRUE,"",VLOOKUP($B30,IN_T1!$B$2:$Y$3000,3,FALSE)) -> 0 | E30: 0 | F30: 0 | G30: 0 | H30: 0 | I30: 0 | J30: 0 | K30: 0 | L30: 0 | M30: 0 | N30: ME | O30: ODONTOIATRI
A31: Odontoiatri a t. determinato (art. 15-septies d.lgs. 502/92) | B31: SD0599 | C31: =IF(ISERROR(VLOOKUP($B31,IN_T1!$B$2:$Y$3000,2,FALSE))=TRUE,"",VLOOKUP($B31,IN_T1!$B$2:$Y$3000,2,FALSE)) -> 0 | D31: =IF(ISERROR(VLOOKUP($B31,IN_T1!$B$2:$Y$3000,3,FALSE))=TRUE,"",VLOOKUP($B31,IN_T1!$B$2:$Y$3000,3,FALSE)) -> 0 | E31: 0 | F31: 0 | G31: 0 | H31: 0 | I31: 0 | J31: 0 | K31: 0 | L31: 0 | M31: 0 | N31: ME | O31: ODONTOIATRI
A32: Farmacisti con inc. di struttura complessa (rapp. Esclusivo) | B32: SD0E39 | C32: =IF(ISERROR(VLOOKUP($B32,IN_T1!$B$2:$Y$3000,2,FALSE))=TRUE,"",VLOOKUP($B32,IN_T1!$B$2:$Y$3000,2,FALSE)) -> 0 | D32: =IF(ISERROR(VLOOKUP($B32,IN_T1!$B$2:$Y$3000,3,FALSE))=TRUE,"",VLOOKUP($B32,IN_T1!$B$2:$Y$3000,3,FALSE)) -> 1 | E32: 0 | F32: 1 | G32: 0 | H32: 0 | I32: 0 | J32: 0 | K32: 0 | L32: 1 | M32: 1 | N32: NM | O32: DIRIG. SANITARI NON MEDICI
A33: Farmacisti con inc. di struttura complessa (rapp. Non escl.) | B33: SD0N39 | C33: =IF(ISERROR(VLOOKUP($B33,IN_T1!$B$2:$Y$3000,2,FALSE))=TRUE,"",VLOOKUP($B33,IN_T1!$B$2:$Y$3000,2,FALSE)) -> 0 | D33: =IF(ISERROR(VLOOKUP($B33,IN_T1!$B$2:$Y$3000,3,FALSE))=TRUE,"",VLOOKUP($B33,IN_T1!$B$2:$Y$3000,3,FALSE)) -> 0 | E33: 0 | F33: 0 | G33: 0 | H33: 0 | I33: 0 | J33: 0 | K33: 0 | L33: 0 | M33: 0 | N33: NM | O33: DIRIG. SANITARI NON MEDICI
A34: Farmacisti con inc. di struttura semplice (rapp. Esclusivo) | B34: SD0E38 | C34: =IF(ISERROR(VLOOKUP($B34,IN_T1!$B$2:$Y$3000,2,FALSE))=TRUE,"",VLOOKUP($B34,IN_T1!$B$2:$Y$3000,2,FALSE)) -> 1 | D34: =IF(ISERROR(VLOOKUP($B34,IN_T1!$B$2:$Y$3000,3,FALSE))=TRUE,"",VLOOKUP($B34,IN_T1!$B$2:$Y$3000,3,FALSE)) -> 3 | E34: 1 | F34: 2 | G34: 0 | H34: 0 | I34: 0 | J34: 0 | K34: 1 | L34: 2 | M34: 1 | N34: NM | O34: DIRIG. SANITARI NON MEDICI
A35: Farmacisti con inc. di struttura semplice (rapp. Non escl.) | B35: SD0N38 | C35: =IF(ISERROR(VLOOKUP($B35,IN_T1!$B$2:$Y$3000,2,FALSE))=TRUE,"",VLOOKUP($B35,IN_T1!$B$2:$Y$3000,2,FALSE)) -> 0 | D35: =IF(ISERROR(VLOOKUP($B35,IN_T1!$B$2:$Y$3000,3,FALSE))=TRUE,"",VLOOKUP($B35,IN_T1!$B$2:$Y$3000,3,FALSE)) -> 0 | E35: 0 | F35: 0 | G35: 0 | H35: 0 | I35: 0 | J35: 0 | K35: 0 | L35: 0 | M35: 0 | N35: NM | O35: DIRIG. SANITARI NON MEDICI
A36: Farmacisti con altri incar. Prof.li (rapp. Esclusivo) | B36: SD0A38 | C36: =IF(ISERROR(VLOOKUP($B36,IN_T1!$B$2:$Y$3000,2,FALSE))=TRUE,"",VLOOKUP($B36,IN_T1!$B$2:$Y$3000,2,FALSE)) -> 2 | D36: =IF(ISERROR(VLOOKUP($B36,IN_T1!$B$2:$Y$3000,3,FALSE))=TRUE,"",VLOOKUP($B36,IN_T1!$B$2:$Y$3000,3,FALSE)) -> 6 | E36: 1 | F36: 5 | G36: 0 | H36: 0 | I36: 0 | J36: 0 | K36: 1 | L36: 5 | M36: 1 | N36: NM | O36: DIRIG. SANITARI NON MEDICI
A37: Farmacisti con altri incar. Prof.li (rapp. Non escl.) | B37: SD0037 | C37: =IF(ISERROR(VLOOKUP($B37,IN_T1!$B$2:$Y$3000,2,FALSE))=TRUE,"",VLOOKUP($B37,IN_T1!$B$2:$Y$3000,2,FALSE)) -> 0 | D37: =IF(ISERROR(VLOOKUP($B37,IN_T1!$B$2:$Y$3000,3,FALSE))=TRUE,"",VLOOKUP($B37,IN_T1!$B$2:$Y$3000,3,FALSE)) -> 0 | E37: 0 | F37: 0 | G37: 0 | H37: 0 | I37: 0 | J37: 0 | K37: 0 | L37: 0 | M37: 0 | N37: NM | O37: DIRIG. SANITARI NON MEDICI
A38: Farmacisti a t. determinato (art. 15-septies d.lgs. 502/92) | B38: SD0600 | C38: =IF(ISERROR(VLOOKUP($B38,IN_T1!$B$2:$Y$3000,2,FALSE))=TRUE,"",VLOOKUP($B38,IN_T1!$B$2:$Y$3000,2,FALSE)) -> 0 | D38: =IF(ISERROR(VLOOKUP($B38,IN_T1!$B$2:$Y$3000,3,FALSE))=TRUE,"",VLOOKUP($B38,IN_T1!$B$2:$Y$3000,3,FALSE)) -> 0 | E38: 0 | F38: 0 | G38: 0 | H38: 0 | I38: 0 | J38: 0 | K38: 0 | L38: 0 | M38: 0 | N38: NM | O38: DIRIG. SANITARI NON MEDICI
A39: Biologi con inc. di struttura complessa (rapp. Esclusivo) | B39: SD0E13 | C39: =IF(ISERROR(VLOOKUP($B39,IN_T1!$B$2:$Y$3000,2,FALSE))=TRUE,"",VLOOKUP($B39,IN_T1!$B$2:$Y$3000,2,FALSE)) -> 0 | D39: =IF(ISERROR(VLOOKUP($B39,IN_T1!$B$2:$Y$3000,3,FALSE))=TRUE,"",VLOOKUP($B39,IN_T1!$B$2:$Y$3000,3,FALSE)) -> 0 | E39: 0 | F39: 0 | G39: 0 | H39: 0 | I39: 0 | J39: 0 | K39: 0 | L39: 0 | M39: =IF((K39+L39)>0,1,0) -> 0 | N39: NM | O39: DIRIG. SANITARI NON MEDICI
A40: Biologi con inc. di struttura complessa (rapp. Non escl.) | B40: SD0N13 | C40: =IF(ISERROR(VLOOKUP($B40,IN_T1!$B$2:$Y$3000,2,FALSE))=TRUE,"",VLOOKUP($B40,IN_T1!$B$2:$Y$3000,2,FALSE)) -> 0 | D40: =IF(ISERROR(VLOOKUP($B40,IN_T1!$B$2:$Y$3000,3,FALSE))=TRUE,"",VLOOKUP($B40,IN_T1!$B$2:$Y$3000,3,FALSE)) -> 0 | E40: 0 | F40: 0 | G40: 0 | H40: 0 | I40: 0 | J40: 0 | K40: 0 | L40: =F40+H40+J40 -> 0 | M40: 0 | N40: NM | O40: DIRIG. SANITARI NON MEDICI
A41: Biologi con inc. di struttura semplice (rapp. Esclusivo) | B41: SD0E12 | C41: =IF(ISERROR(VLOOKUP($B41,IN_T1!$B$2:$Y$3000,2,FALSE))=TRUE,"",VLOOKUP($B41,IN_T1!$B$2:$Y$3000,2,FALSE)) -> 0 | D41: =IF(ISERROR(VLOOKUP($B41,IN_T1!$B$2:$Y$3000,3,FALSE))=TRUE,"",VLOOKUP($B41,IN_T1!$B$2:$Y$3000,3,FALSE)) -> 1 | E41: 0 | F41: 0 | G41: 0 | H41: 0 | I41: 0 | J41: 0 | K41: 0 | L41: 0 | M41: 0 | N41: NM | O41: DIRIG. SANITARI NON MEDICI
A42: Biologi con inc. di struttura semplice (rapp. Non escl.) | B42: SD0N12 | C42: =IF(ISERROR(VLOOKUP($B42,IN_T1!$B$2:$Y$3000,2,FALSE))=TRUE,"",VLOOKUP($B42,IN_T1!$B$2:$Y$3000,2,FALSE)) -> 0 | D42: =IF(ISERROR(VLOOKUP($B42,IN_T1!$B$2:$Y$3000,3,FALSE))=TRUE,"",VLOOKUP($B42,IN_T1!$B$2:$Y$3000,3,FALSE)) -> 0 | E42: 0 | F42: 0 | G42: 0 | H42: 0 | I42: 0 | J42: 0 | K42: 0 | L42: 0 | M42: 0 | N42: NM | O42: DIRIG. SANITARI NON MEDICI
A43: Biologi con altri incar. Prof.li (rapp. Esclusivo) | B43: SD0A12 | C43: =IF(ISERROR(VLOOKUP($B43,IN_T1!$B$2:$Y$3000,2,FALSE))=TRUE,"",VLOOKUP($B43,IN_T1!$B$2:$Y$3000,2,FALSE)) -> 4 | D43: =IF(ISERROR(VLOOKUP($B43,IN_T1!$B$2:$Y$3000,3,FALSE))=TRUE,"",VLOOKUP($B43,IN_T1!$B$2:$Y$3000,3,FALSE)) -> 13 | E43: 5 | F43: 14 | G43: 0 | H43: 0 | I43: 0 | J43: 0 | K43: 5 | L43: 14 | M43: 1 | N43: NM | O43: DIRIG. SANITARI NON MEDICI
A44: Biologi con altri incar. Prof.li (rapp. Non escl.) | B44: SD0011 | C44: =IF(ISERROR(VLOOKUP($B44,IN_T1!$B$2:$Y$3000,2,FALSE))=TRUE,"",VLOOKUP($B44,IN_T1!$B$2:$Y$3000,2,FALSE)) -> 0 | D44: =IF(ISERROR(VLOOKUP($B44,IN_T1!$B$2:$Y$3000,3,FALSE))=TRUE,"",VLOOKUP($B44,IN_T1!$B$2:$Y$3000,3,FALSE)) -> 0 | E44: 0 | F44: 0 | G44: 0 | H44: 0 | I44: 0 | J44: 0 | K44: 0 | L44: 0 | M44: 0 | N44: NM | O44: DIRIG. SANITARI NON MEDICI
A45: Biologi a t. determinato (art. 15-septies d.lgs. 502/92) | B45: SD0601 | C45: =IF(ISERROR(VLOOKUP($B45,IN_T1!$B$2:$Y$3000,2,FALSE))=TRUE,"",VLOOKUP($B45,IN_T1!$B$2:$Y$3000,2,FALSE)) -> 0 | D45: =IF(ISERROR(VLOOKUP($B45,IN_T1!$B$2:$Y$3000,3,FALSE))=TRUE,"",VLOOKUP($B45,IN_T1!$B$2:$Y$3000,3,FALSE)) -> 0 | E45: 0 | F45: 0 | G45: 0 | H45: 0 | I45: 0 | J45: 0 | K45: 0 | L45: 0 | M45: 0 | N45: NM | O45: DIRIG. SANITARI NON MEDICI
A46: Chimici con inc. di struttura complessa (rapp. Esclusivo) | B46: SD0E16 | C46: =IF(ISERROR(VLOOKUP($B46,IN_T1!$B$2:$Y$3000,2,FALSE))=TRUE,"",VLOOKUP($B46,IN_T1!$B$2:$Y$3000,2,FALSE)) -> 0 | D46: =IF(ISERROR(VLOOKUP($B46,IN_T1!$B$2:$Y$3000,3,FALSE))=TRUE,"",VLOOKUP($B46,IN_T1!$B$2:$Y$3000,3,FALSE)) -> 0 | E46: 0 | F46: 0 | G46: 0 | H46: 0 | I46: 0 | J46: 0 | K46: 0 | L46: 0 | M46: 0 | N46: NM | O46: DIRIG. SANITARI NON MEDICI
A47: Chimici con inc. di struttura complessa (rapp.non escl.) | B47: SD0N16 | C47: =IF(ISERROR(VLOOKUP($B47,IN_T1!$B$2:$Y$3000,2,FALSE))=TRUE,"",VLOOKUP($B47,IN_T1!$B$2:$Y$3000,2,FALSE)) -> 0 | D47: =IF(ISERROR(VLOOKUP($B47,IN_T1!$B$2:$Y$3000,3,FALSE))=TRUE,"",VLOOKUP($B47,IN_T1!$B$2:$Y$3000,3,FALSE)) -> 0 | E47: 0 | F47: 0 | G47: 0 | H47: 0 | I47: 0 | J47: 0 | K47: 0 | L47: 0 | M47: 0 | N47: NM | O47: DIRIG. SANITARI NON MEDICI
A48: Chimici con inc. di struttura semplice (rapp. Esclusivo) | B48: SD0E15 | C48: =IF(ISERROR(VLOOKUP($B48,IN_T1!$B$2:$Y$3000,2,FALSE))=TRUE,"",VLOOKUP($B48,IN_T1!$B$2:$Y$3000,2,FALSE)) -> 0 | D48: =IF(ISERROR(VLOOKUP($B48,IN_T1!$B$2:$Y$3000,3,FALSE))=TRUE,"",VLOOKUP($B48,IN_T1!$B$2:$Y$3000,3,FALSE)) -> 0 | E48: 0 | F48: 0 | G48: 0 | H48: 0 | I48: 0 | J48: 0 | K48: 0 | L48: 0 | M48: 0 | N48: NM | O48: DIRIG. SANITARI NON MEDICI
A49: Chimici con inc. di struttura semplice (rapp. Non escl.) | B49: SD0N15 | C49: =IF(ISERROR(VLOOKUP($B49,IN_T1!$B$2:$Y$3000,2,FALSE))=TRUE,"",VLOOKUP($B49,IN_T1!$B$2:$Y$3000,2,FALSE)) -> 0 | D49: =IF(ISERROR(VLOOKUP($B49,IN_T1!$B$2:$Y$3000,3,FALSE))=TRUE,"",VLOOKUP($B49,IN_T1!$B$2:$Y$3000,3,FALSE)) -> 0 | E49: 0 | F49: 0 | G49: 0 | H49: 0 | I49: 0 | J49: 0 | K49: 0 | L49: 0 | M49: 0 | N49: NM | O49: DIRIG. SANITARI NON MEDICI
A50: Chimici con altri incar. Prof.li (rapp. Esclusivo) | B50: SD0A15 | C50: =IF(ISERROR(VLOOKUP($B50,IN_T1!$B$2:$Y$3000,2,FALSE))=TRUE,"",VLOOKUP($B50,IN_T1!$B$2:$Y$3000,2,FALSE)) -> 1 | D50: =IF(ISERROR(VLOOKUP($B50,IN_T1!$B$2:$Y$3000,3,FALSE))=TRUE,"",VLOOKUP($B50,IN_T1!$B$2:$Y$3000,3,FALSE)) -> 0 | E50: 1 | F50: 0 | G50: 0 | H50: 0 | I50: 0 | J50: 0 | K50: 1 | L50: 0 | M50: 1 | N50: NM | O50: DIRIG. SANITARI NON MEDICI
A51: Chimici con altri incar. Prof.li (rapp. Non escl.) | B51: SD0014 | C51: =IF(ISERROR(VLOOKUP($B51,IN_T1!$B$2:$Y$3000,2,FALSE))=TRUE,"",VLOOKUP($B51,IN_T1!$B$2:$Y$3000,2,FALSE)) -> 0 | D51: =IF(ISERROR(VLOOKUP($B51,IN_T1!$B$2:$Y$3000,3,FALSE))=TRUE,"",VLOOKUP($B51,IN_T1!$B$2:$Y$3000,3,FALSE)) -> 0 | E51: 0 | F51: 0 | G51: 0 | H51: 0 | I51: 0 | J51: 0 | K51: 0 | L51: 0 | M51: 0 | N51: NM | O51: DIRIG. SANITARI NON MEDICI
A52: Chimici a t. determinato (art. 15-septies d.lgs. 502/92) | B52: SD0602 | C52: =IF(ISERROR(VLOOKUP($B52,IN_T1!$B$2:$Y$3000,2,FALSE))=TRUE,"",VLOOKUP($B52,IN_T1!$B$2:$Y$3000,2,FALSE)) -> 0 | D52: =IF(ISERROR(VLOOKUP($B52,IN_T1!$B$2:$Y$3000,3,FALSE))=TRUE,"",VLOOKUP($B52,IN_T1!$B$2:$Y$3000,3,FALSE)) -> 0 | E52: 0 | F52: 0 | G52: 0 | H52: 0 | I52: 0 | J52: 0 | K52: 0 | L52: 0 | M52: 0 | N52: NM | O52: DIRIG. SANITARI NON MEDICI
A53: Fisici con inc. di struttura complessa (rapp. Esclusivo) | B53: SD0E42 | C53: =IF(ISERROR(VLOOKUP($B53,IN_T1!$B$2:$Y$3000,2,FALSE))=TRUE,"",VLOOKUP($B53,IN_T1!$B$2:$Y$3000,2,FALSE)) -> 0 | D53: =IF(ISERROR(VLOOKUP($B53,IN_T1!$B$2:$Y$3000,3,FALSE))=TRUE,"",VLOOKUP($B53,IN_T1!$B$2:$Y$3000,3,FALSE)) -> 0 | E53: 1 | F53: 0 | G53: 0 | H53: 0 | I53: 0 | J53: 0 | K53: 1 | L53: 0 | M53: 1 | N53: NM | O53: DIRIG. SANITARI NON MEDICI
A54: Fisici con inc. di struttura complessa (rapp. Non escl.) | B54: SD0N42 | C54: =IF(ISERROR(VLOOKUP($B54,IN_T1!$B$2:$Y$3000,2,FALSE))=TRUE,"",VLOOKUP($B54,IN_T1!$B$2:$Y$3000,2,FALSE)) -> 0 | D54: =IF(ISERROR(VLOOKUP($B54,IN_T1!$B$2:$Y$3000,3,FALSE))=TRUE,"",VLOOKUP($B54,IN_T1!$B$2:$Y$3000,3,FALSE)) -> 0 | E54: 0 | F54: 0 | G54: 0 | H54: 0 | I54: 0 | J54: 0 | K54: 0 | L54: 0 | M54: 0 | N54: NM | O54: DIRIG. SANITARI NON MEDICI
A55: Fisici con inc. di struttura semplice (rapp. Esclusivo) | B55: SD0E41 | C55: =IF(ISERROR(VLOOKUP($B55,IN_T1!$B$2:$Y$3000,2,FALSE))=TRUE,"",VLOOKUP($B55,IN_T1!$B$2:$Y$3000,2,FALSE)) -> 0 | D55: =IF(ISERROR(VLOOKUP($B55,IN_T1!$B$2:$Y$3000,3,FALSE))=TRUE,"",VLOOKUP($B55,IN_T1!$B$2:$Y$3000,3,FALSE)) -> 0 | E55: 0 | F55: 0 | G55: 0 | H55: 0 | I55: 0 | J55: 0 | K55: 0 | L55: 0 | M55: 0 | N55: NM | O55: DIRIG. SANITARI NON MEDICI
A56: Fisici con inc. di struttura semplice (rapp. Non escl.) | B56: SD0N41 | C56: =IF(ISERROR(VLOOKUP($B56,IN_T1!$B$2:$Y$3000,2,FALSE))=TRUE,"",VLOOKUP($B56,IN_T1!$B$2:$Y$3000,2,FALSE)) -> 0 | D56: =IF(ISERROR(VLOOKUP($B56,IN_T1!$B$2:$Y$3000,3,FALSE))=TRUE,"",VLOOKUP($B56,IN_T1!$B$2:$Y$3000,3,FALSE)) -> 0 | E56: 0 | F56: 0 | G56: 0 | H56: 0 | I56: 0 | J56: 0 | K56: 0 | L56: 0 | M56: 0 | N56: NM | O56: DIRIG. SANITARI NON MEDICI
A57: Fisici con altri incar. Prof.li (rapp. Esclusivo) | B57: SD0A41 | C57: =IF(ISERROR(VLOOKUP($B57,IN_T1!$B$2:$Y$3000,2,FALSE))=TRUE,"",VLOOKUP($B57,IN_T1!$B$2:$Y$3000,2,FALSE)) -> 2 | D57: =IF(ISERROR(VLOOKUP($B57,IN_T1!$B$2:$Y$3000,3,FALSE))=TRUE,"",VLOOKUP($B57,IN_T1!$B$2:$Y$3000,3,FALSE)) -> 5 | E57: 1 | F57: 5 | G57: 0 | H57: 0 | I57: 0 | J57: 0 | K57: 1 | L57: 5 | M57: 1 | N57: NM | O57: DIRIG. SANITARI NON MEDICI
A58: Fisici con altri incar. Prof.li (rapp. Non escl.) | B58: SD0040 | C58: =IF(ISERROR(VLOOKUP($B58,IN_T1!$B$2:$Y$3000,2,FALSE))=TRUE,"",VLOOKUP($B58,IN_T1!$B$2:$Y$3000,2,FALSE)) -> 0 | D58: =IF(ISERROR(VLOOKUP($B58,IN_T1!$B$2:$Y$3000,3,FALSE))=TRUE,"",VLOOKUP($B58,IN_T1!$B$2:$Y$3000,3,FALSE)) -> 0 | E58: 0 | F58: 0 | G58: 0 | H58: 0 | I58: 0 | J58: 0 | K58: 0 | L58: 0 | M58: 0 | N58: NM | O58: DIRIG. SANITARI NON MEDICI
A59: Fisici a t. determinato (art. 15-septies d.lgs. 502/92) | B59: SD0603 | C59: =IF(ISERROR(VLOOKUP($B59,IN_T1!$B$2:$Y$3000,2,FALSE))=TRUE,"",VLOOKUP($B59,IN_T1!$B$2:$Y$3000,2,FALSE)) -> 0 | D59: =IF(ISERROR(VLOOKUP($B59,IN_T1!$B$2:$Y$3000,3,FALSE))=TRUE,"",VLOOKUP($B59,IN_T1!$B$2:$Y$3000,3,FALSE)) -> 0 | E59: 0 | F59: 0 | G59: 0 | H59: 0 | I59: 0 | J59: 0 | K59: 0 | L59: 0 | M59: 0 | N59: NM | O59: DIRIG. SANITARI NON MEDICI
A60: Psicologi con inc. di struttura complessa (rapp. Esclusivo) | B60: SD0E66 | C60: =IF(ISERROR(VLOOKUP($B60,IN_T1!$B$2:$Y$3000,2,FALSE))=TRUE,"",VLOOKUP($B60,IN_T1!$B$2:$Y$3000,2,FALSE)) -> 0 | D60: =IF(ISERROR(VLOOKUP($B60,IN_T1!$B$2:$Y$3000,3,FALSE))=TRUE,"",VLOOKUP($B60,IN_T1!$B$2:$Y$3000,3,FALSE)) -> 0 | E60: 0 | F60: 0 | G60: 0 | H60: 0 | I60: 0 | J60: 0 | K60: 0 | L60: 0 | M60: 0 | N60: NM | O60: DIRIG. SANITARI NON MEDICI
A61: Psicologi con inc. di struttura complessa (rapp. Non escl.) | B61: SD0N66 | C61: =IF(ISERROR(VLOOKUP($B61,IN_T1!$B$2:$Y$3000,2,FALSE))=TRUE,"",VLOOKUP($B61,IN_T1!$B$2:$Y$3000,2,FALSE)) -> 0 | D61: =IF(ISERROR(VLOOKUP($B61,IN_T1!$B$2:$Y$3000,3,FALSE))=TRUE,"",VLOOKUP($B61,IN_T1!$B$2:$Y$3000,3,FALSE)) -> 0 | E61: 0 | F61: 0 | G61: 0 | H61: 0 | I61: 0 | J61: 0 | K61: 0 | L61: 0 | M61: 0 | N61: NM | O61: DIRIG. SANITARI NON MEDICI
A62: Psicologi con inc. di struttura semplice (rapp. Esclusivo) | B62: SD0E65 | C62: =IF(ISERROR(VLOOKUP($B62,IN_T1!$B$2:$Y$3000,2,FALSE))=TRUE,"",VLOOKUP($B62,IN_T1!$B$2:$Y$3000,2,FALSE)) -> 0 | D62: =IF(ISERROR(VLOOKUP($B62,IN_T1!$B$2:$Y$3000,3,FALSE))=TRUE,"",VLOOKUP($B62,IN_T1!$B$2:$Y$3000,3,FALSE)) -> 0 | E62: 0 | F62: 0 | G62: 0 | H62: 0 | I62: 0 | J62: 0 | K62: 0 | L62: 0 | M62: 0 | N62: NM | O62: DIRIG. SANITARI NON MEDICI
A63: Psicologi con inc. di struttura semplice (rapp. Non escl.) | B63: SD0N65 | C63: =IF(ISERROR(VLOOKUP($B63,IN_T1!$B$2:$Y$3000,2,FALSE))=TRUE,"",VLOOKUP($B63,IN_T1!$B$2:$Y$3000,2,FALSE)) -> 0 | D63: =IF(ISERROR(VLOOKUP($B63,IN_T1!$B$2:$Y$3000,3,FALSE))=TRUE,"",VLOOKUP($B63,IN_T1!$B$2:$Y$3000,3,FALSE)) -> 0 | E63: 0 | F63: 0 | G63: 0 | H63: 0 | I63: 0 | J63: 0 | K63: 0 | L63: 0 | M63: 0 | N63: NM | O63: DIRIG. SANITARI NON MEDICI
A64: Psicologi con altri incar. Prof.li (rapp. Esclusivo) | B64: SD0A65 | C64: =IF(ISERROR(VLOOKUP($B64,IN_T1!$B$2:$Y$3000,2,FALSE))=TRUE,"",VLOOKUP($B64,IN_T1!$B$2:$Y$3000,2,FALSE)) -> 1 | D64: =IF(ISERROR(VLOOKUP($B64,IN_T1!$B$2:$Y$3000,3,FALSE))=TRUE,"",VLOOKUP($B64,IN_T1!$B$2:$Y$3000,3,FALSE)) -> 22 | E64: 2 | F64: 21 | G64: 0 | H64: 0 | I64: 0 | J64: 1 | K64: 2 | L64: 22 | M64: 1 | N64: NM | O64: DIRIG. SANITARI NON MEDICI
A65: Psicologi con altri incar. Prof.li (rapp. Non escl.) | B65: SD0064 | C65: =IF(ISERROR(VLOOKUP($B65,IN_T1!$B$2:$Y$3000,2,FALSE))=TRUE,"",VLOOKUP($B65,IN_T1!$B$2:$Y$3000,2,FALSE)) -> 0 | D65: =IF(ISERROR(VLOOKUP($B65,IN_T1!$B$2:$Y$3000,3,FALSE))=TRUE,"",VLOOKUP($B65,IN_T1!$B$2:$Y$3000,3,FALSE)) -> 0 | E65: 1 | F65: 3 | G65: 0 | H65: 0 | I65: 0 | J65: 0 | K65: 1 | L65: 3 | M65: 1 | N65: NM | O65: DIRIG. SANITARI NON MEDICI
A66: Psicologi a t. determinato (art. 15-septies d.lgs. 502/92) | B66: SD0604 | C66: =IF(ISERROR(VLOOKUP($B66,IN_T1!$B$2:$Y$3000,2,FALSE))=TRUE,"",VLOOKUP($B66,IN_T1!$B$2:$Y$3000,2,FALSE)) -> 0 | D66: =IF(ISERROR(VLOOKUP($B66,IN_T1!$B$2:$Y$3000,3,FALSE))=TRUE,"",VLOOKUP($B66,IN_T1!$B$2:$Y$3000,3,FALSE)) -> 1 | E66: 0 | F66: 1 | G66: 0 | H66: 0 | I66: 0 | J66: 0 | K66: 0 | L66: 1 | M66: 1 | N66: NM | O66: DIRIG. SANITARI NON MEDICI
A67: Dirigente prof. Sanit. Inferm/ostetrica (inc. Strut. Compl.) | B67: SD0CO1 | C67: =IF(ISERROR(VLOOKUP($B67,IN_T1!$B$2:$Y$3000,2,FALSE))=TRUE,"",VLOOKUP($B67,IN_T1!$B$2:$Y$3000,2,FALSE)) -> 0 | D67: =IF(ISERROR(VLOOKUP($B67,IN_T1!$B$2:$Y$3000,3,FALSE))=TRUE,"",VLOOKUP($B67,IN_T1!$B$2:$Y$3000,3,FALSE)) -> 1 | E67: 0 | F67: 1 | G67: 0 | H67: 0 | I67: 0 | J67: 0 | K67: 0 | L67: 1 | M67: 1 | N67: NM | O67: DIRIGENTI PROFESSIONI SANITARIE
A68: Dirigente prof. Sanit. Inferm/ostetrica (inc. Strut. Sempl.) | B68: SD0SE1 | C68: =IF(ISERROR(VLOOKUP($B68,IN_T1!$B$2:$Y$3000,2,FALSE))=TRUE,"",VLOOKUP($B68,IN_T1!$B$2:$Y$3000,2,FALSE)) -> 0 | D68: =IF(ISERROR(VLOOKUP($B68,IN_T1!$B$2:$Y$3000,3,FALSE))=TRUE,"",VLOOKUP($B68,IN_T1!$B$2:$Y$3000,3,FALSE)) -> 0 | E68: 0 | F68: 0 | G68: 0 | H68: 0 | I68: 0 | J68: 0 | K68: 0 | L68: 0 | M68: 0 | N68: NM | O68: DIRIGENTI PROFESSIONI SANITARIE
A69: Dirigente prof. Sanit. Inferm/ostetrica (altri inc. Prof.li) | B69: SD0AI1 | C69: =IF(ISERROR(VLOOKUP($B69,IN_T1!$B$2:$Y$3000,2,FALSE))=TRUE,"",VLOOKUP($B69,IN_T1!$B$2:$Y$3000,2,FALSE)) -> 1 | D69: =IF(ISERROR(VLOOKUP($B69,IN_T1!$B$2:$Y$3000,3,FALSE))=TRUE,"",VLOOKUP($B69,IN_T1!$B$2:$Y$3000,3,FALSE)) -> 0 | E69: 2 | F69: 0 | G69: 0 | H69: 0 | I69: 0 | J69: 0 | K69: 2 | L69: 0 | M69: 1 | N69: NM | O69: DIRIGENTI PROFESSIONI SANITARIE
A70: Dir. Prof.san.inferm/ostet t.det.art.15-septies dlgs 502/92 | B70: SD048B | C70: =IF(ISERROR(VLOOKUP($B70,IN_T1!$B$2:$Y$3000,2,FALSE))=TRUE,"",VLOOKUP($B70,IN_T1!$B$2:$Y$3000,2,FALSE)) -> 0 | D70: =IF(ISERROR(VLOOKUP($B70,IN_T1!$B$2:$Y$3000,3,FALSE))=TRUE,"",VLOOKUP($B70,IN_T1!$B$2:$Y$3000,3,FALSE)) -> 0 | E70: 0 | F70: 0 | G70: 0 | H70: 0 | I70: 0 | J70: 0 | K70: 0 | L70: 0 | M70: 0 | N70: NM | O70: DIRIGENTI PROFESSIONI SANITARIE
A71: Dirigente prof. Sanit. Riabilitative (inc. Strut. Compl.) | B71: SD0CO2 | C71: =IF(ISERROR(VLOOKUP($B71,IN_T1!$B$2:$Y$3000,2,FALSE))=TRUE,"",VLOOKUP($B71,IN_T1!$B$2:$Y$3000,2,FALSE)) -> 0 | D71: =IF(ISERROR(VLOOKUP($B71,IN_T1!$B$2:$Y$3000,3,FALSE))=TRUE,"",VLOOKUP($B71,IN_T1!$B$2:$Y$3000,3,FALSE)) -> 0 | E71: 0 | F71: 0 | G71: 0 | H71: 0 | I71: 0 | J71: 0 | K71: 0 | L71: 0 | M71: =IF((K71+L71)>0,1,0) -> 0 | N71: NM | O71: DIRIGENTI PROFESSIONI SANITARIE
A72: Dirigente prof. Sanit. Riabilitative (inc. Strut. Sempl.) | B72: SD0SE2 | C72: =IF(ISERROR(VLOOKUP($B72,IN_T1!$B$2:$Y$3000,2,FALSE))=TRUE,"",VLOOKUP($B72,IN_T1!$B$2:$Y$3000,2,FALSE)) -> 0 | D72: =IF(ISERROR(VLOOKUP($B72,IN_T1!$B$2:$Y$3000,3,FALSE))=TRUE,"",VLOOKUP($B72,IN_T1!$B$2:$Y$3000,3,FALSE)) -> 0 | E72: 0 | F72: 0 | G72: 0 | H72: 0 | I72: 0 | J72: 0 | K72: =E72+G72+I72 -> 0 | L72: =F72+H72+J72 -> 0 | M72: 0 | N72: NM | O72: DIRIGENTI PROFESSIONI SANITARIE
A73: Dirigente prof. Sanit. Riabilitative (altri inc. Prof.li) | B73: SD0AI2 | C73: =IF(ISERROR(VLOOKUP($B73,IN_T1!$B$2:$Y$3000,2,FALSE))=TRUE,"",VLOOKUP($B73,IN_T1!$B$2:$Y$3000,2,FALSE)) -> 0 | D73: =IF(ISERROR(VLOOKUP($B73,IN_T1!$B$2:$Y$3000,3,FALSE))=TRUE,"",VLOOKUP($B73,IN_T1!$B$2:$Y$3000,3,FALSE)) -> 0 | E73: 0 | F73: 0 | G73: 0 | H73: 0 | I73: 0 | J73: 0 | K73: 0 | L73: 0 | M73: 0 | N73: NM | O73: DIRIGENTI PROFESSIONI SANITARIE
A74: Dir. Prof. San. Riabilitat. T.det.art.15-septies dlgs 502/92 | B74: SD048C | C74: =IF(ISERROR(VLOOKUP($B74,IN_T1!$B$2:$Y$3000,2,FALSE))=TRUE,"",VLOOKUP($B74,IN_T1!$B$2:$Y$3000,2,FALSE)) -> 0 | D74: =IF(ISERROR(VLOOKUP($B74,IN_T1!$B$2:$Y$3000,3,FALSE))=TRUE,"",VLOOKUP($B74,IN_T1!$B$2:$Y$3000,3,FALSE)) -> 0 | E74: 0 | F74: 0 | G74: 0 | H74: 0 | I74: 0 | J74: 0 | K74: 0 | L74: 0 | M74: 0 | N74: NM | O74: DIRIGENTI PROFESSIONI SANITARIE
A75: Dirigente prof. Tecnico sanitarie (inc. Strut. Compl.) | B75: SD0CO3 | C75: =IF(ISERROR(VLOOKUP($B75,IN_T1!$B$2:$Y$3000,2,FALSE))=TRUE,"",VLOOKUP($B75,IN_T1!$B$2:$Y$3000,2,FALSE)) -> 0 | D75: =IF(ISERROR(VLOOKUP($B75,IN_T1!$B$2:$Y$3000,3,FALSE))=TRUE,"",VLOOKUP($B75,IN_T1!$B$2:$Y$3000,3,FALSE)) -> 0 | E75: 0 | F75: 0 | G75: 0 | H75: 0 | I75: 0 | J75: 0 | K75: 0 | L75: 0 | M75: 0 | N75: NM | O75: DIRIGENTI PROFESSIONI SANITARIE
A76: Dirigente prof. Tecnico sanitarie (inc. Strut. Sempl.) | B76: SD0SE3 | C76: =IF(ISERROR(VLOOKUP($B76,IN_T1!$B$2:$Y$3000,2,FALSE))=TRUE,"",VLOOKUP($B76,IN_T1!$B$2:$Y$3000,2,FALSE)) -> 0 | D76: =IF(ISERROR(VLOOKUP($B76,IN_T1!$B$2:$Y$3000,3,FALSE))=TRUE,"",VLOOKUP($B76,IN_T1!$B$2:$Y$3000,3,FALSE)) -> 0 | E76: 0 | F76: 0 | G76: 0 | H76: 0 | I76: 0 | J76: 0 | K76: 0 | L76: 0 | M76: 0 | N76: NM | O76: DIRIGENTI PROFESSIONI SANITARIE
A77: Dirigente prof. Tecnico sanitarie (altri inc. Prof.li) | B77: SD0AI3 | C77: =IF(ISERROR(VLOOKUP($B77,IN_T1!$B$2:$Y$3000,2,FALSE))=TRUE,"",VLOOKUP($B77,IN_T1!$B$2:$Y$3000,2,FALSE)) -> 0 | D77: =IF(ISERROR(VLOOKUP($B77,IN_T1!$B$2:$Y$3000,3,FALSE))=TRUE,"",VLOOKUP($B77,IN_T1!$B$2:$Y$3000,3,FALSE)) -> 0 | E77: 0 | F77: 0 | G77: 0 | H77: 0 | I77: 0 | J77: 0 | K77: 0 | L77: 0 | M77: 0 | N77: NM | O77: DIRIGENTI PROFESSIONI SANITARIE
A78: Dir. Prof.tecnico sanitarie t.det.art.15-septies dlgs 502/92 | B78: SD048D | C78: =IF(ISERROR(VLOOKUP($B78,IN_T1!$B$2:$Y$3000,2,FALSE))=TRUE,"",VLOOKUP($B78,IN_T1!$B$2:$Y$3000,2,FALSE)) -> 0 | D78: =IF(ISERROR(VLOOKUP($B78,IN_T1!$B$2:$Y$3000,3,FALSE))=TRUE,"",VLOOKUP($B78,IN_T1!$B$2:$Y$3000,3,FALSE)) -> 0 | E78: 0 | F78: 0 | G78: 0 | H78: 0 | I78: 0 | J78: 0 | K78: 0 | L78: 0 | M78: 0 | N78: NM | O78: DIRIGENTI PROFESSIONI SANITARIE
A79: Dirigente prof.tecniche della prevenzione (inc.strut.compl.) | B79: SD0CO4 | C79: =IF(ISERROR(VLOOKUP($B79,IN_T1!$B$2:$Y$3000,2,FALSE))=TRUE,"",VLOOKUP($B79,IN_T1!$B$2:$Y$3000,2,FALSE)) -> 0 | D79: =IF(ISERROR(VLOOKUP($B79,IN_T1!$B$2:$Y$3000,3,FALSE))=TRUE,"",VLOOKUP($B79,IN_T1!$B$2:$Y$3000,3,FALSE)) -> 0 | E79: 0 | F79: 0 | G79: 0 | H79: 0 | I79: 0 | J79: 0 | K79: 0 | L79: 0 | M79: 0 | N79: NM | O79: DIRIGENTI PROFESSIONI SANITARIE
A80: Dirigente prof.tecniche della prevenzione (inc.strut.sempl.) | B80: SD0SE4 | C80: =IF(ISERROR(VLOOKUP($B80,IN_T1!$B$2:$Y$3000,2,FALSE))=TRUE,"",VLOOKUP($B80,IN_T1!$B$2:$Y$3000,2,FALSE)) -> 0 | D80: =IF(ISERROR(VLOOKUP($B80,IN_T1!$B$2:$Y$3000,3,FALSE))=TRUE,"",VLOOKUP($B80,IN_T1!$B$2:$Y$3000,3,FALSE)) -> 0 | E80: 0 | F80: 0 | G80: 0 | H80: 0 | I80: 0 | J80: 0 | K80: 0 | L80: 0 | M80: 0 | N80: NM | O80: DIRIGENTI PROFESSIONI SANITARIE
A81: Dirigente prof.tecniche della prevenzione(altri inc.prof.li) | B81: SD0AI4 | C81: =IF(ISERROR(VLOOKUP($B81,IN_T1!$B$2:$Y$3000,2,FALSE))=TRUE,"",VLOOKUP($B81,IN_T1!$B$2:$Y$3000,2,FALSE)) -> 0 | D81: =IF(ISERROR(VLOOKUP($B81,IN_T1!$B$2:$Y$3000,3,FALSE))=TRUE,"",VLOOKUP($B81,IN_T1!$B$2:$Y$3000,3,FALSE)) -> 0 | E81: 0 | F81: 0 | G81: 0 | H81: 0 | I81: 0 | J81: 0 | K81: 0 | L81: 0 | M81: 0 | N81: NM | O81: DIRIGENTI PROFESSIONI SANITARIE
A82: Dir. Prof.tecniche prevenz. T.det.art.15-septies dlgs 502/92 | B82: SD048E | C82: =IF(ISERROR(VLOOKUP($B82,IN_T1!$B$2:$Y$3000,2,FALSE))=TRUE,"",VLOOKUP($B82,IN_T1!$B$2:$Y$3000,2,FALSE)) -> 0 | D82: =IF(ISERROR(VLOOKUP($B82,IN_T1!$B$2:$Y$3000,3,FALSE))=TRUE,"",VLOOKUP($B82,IN_T1!$B$2:$Y$3000,3,FALSE)) -> 0 | E82: 0 | F82: 0 | G82: 0 | H82: 0 | I82: 0 | J82: 0 | K82: 0 | L82: 0 | M82: 0 | N82: NM | O82: DIRIGENTI PROFESSIONI SANITARIE
A83: Coll.re prof.le sanitario - pers. Infer. Senior - ds | B83: S18863 | C83: =IF(ISERROR(VLOOKUP($B83,IN_T1!$B$2:$Y$3000,2,FALSE))=TRUE,"",VLOOKUP($B83,IN_T1!$B$2:$Y$3000,2,FALSE)) -> 9 | D83: =IF(ISERROR(VLOOKUP($B83,IN_T1!$B$2:$Y$3000,3,FALSE))=TRUE,"",VLOOKUP($B83,IN_T1!$B$2:$Y$3000,3,FALSE)) -> 106 | E83: 9 | F83: 82 | G83: 0 | H83: 0 | I83: 0 | J83: 13 | K83: 9 | L83: 95 | M83: 1 | N83: ND | O83: PROFILI RUOLO SANITARIO - PERSONALE INFERMIERISTICO
A84: Coll.re prof.le sanitario - pers. Infer. - D | B84: S16020 | C84: =IF(ISERROR(VLOOKUP($B84,IN_T1!$B$2:$Y$3000,2,FALSE))=TRUE,"",VLOOKUP($B84,IN_T1!$B$2:$Y$3000,2,FALSE)) -> 369 | D84: =IF(ISERROR(VLOOKUP($B84,IN_T1!$B$2:$Y$3000,3,FALSE))=TRUE,"",VLOOKUP($B84,IN_T1!$B$2:$Y$3000,3,FALSE)) -> 1858 | E84: 334 | F84: 1360 | G84: 1 | H84: 43 | I84: 5 | J84: 360 | K84: 340 | L84: 1763 | M84: 1 | N84: ND | O84: PROFILI RUOLO SANITARIO - PERSONALE INFERMIERISTICO
A85: Oper.re prof.le sanitario pers. Inferm. - C | B85: S14056 | C85: =IF(ISERROR(VLOOKUP($B85,IN_T1!$B$2:$Y$3000,2,FALSE))=TRUE,"",VLOOKUP($B85,IN_T1!$B$2:$Y$3000,2,FALSE)) -> 0 | D85: =IF(ISERROR(VLOOKUP($B85,IN_T1!$B$2:$Y$3000,3,FALSE))=TRUE,"",VLOOKUP($B85,IN_T1!$B$2:$Y$3000,3,FALSE)) -> 0 | E85: 0 | F85: 0 | G85: 0 | H85: 0 | I85: 0 | J85: 0 | K85: 0 | L85: 0 | M85: 0 | N85: ND | O85: PROFILI RUOLO SANITARIO - PERSONALE INFERMIERISTICO
A86: Oper.re prof.le di ii cat.pers. Inferm. Senior-C | B86: S14S52 | C86: =IF(ISERROR(VLOOKUP($B86,IN_T1!$B$2:$Y$3000,2,FALSE))=TRUE,"",VLOOKUP($B86,IN_T1!$B$2:$Y$3000,2,FALSE)) -> 0 | D86: =IF(ISERROR(VLOOKUP($B86,IN_T1!$B$2:$Y$3000,3,FALSE))=TRUE,"",VLOOKUP($B86,IN_T1!$B$2:$Y$3000,3,FALSE)) -> 9 | E86: 0 | F86: 5 | G86: 0 | H86: 0 | I86: 0 | J86: 3 | K86: 0 | L86: 8 | M86: 1 | N86: ND | O86: PROFILI RUOLO SANITARIO - PERSONALE INFERMIERISTICO
A87: Oper.re prof.le di ii cat.pers. Inferm. Bs | B87: S13052 | C87: =IF(ISERROR(VLOOKUP($B87,IN_T1!$B$2:$Y$3000,2,FALSE))=TRUE,"",VLOOKUP($B87,IN_T1!$B$2:$Y$3000,2,FALSE)) -> 0 | D87: =IF(ISERROR(VLOOKUP($B87,IN_T1!$B$2:$Y$3000,3,FALSE))=TRUE,"",VLOOKUP($B87,IN_T1!$B$2:$Y$3000,3,FALSE)) -> 2 | E87: 0 | F87: 2 | G87: 0 | H87: 0 | I87: 0 | J87: 0 | K87: 0 | L87: 2 | M87: 1 | N87: ND | O87: PROFILI RUOLO SANITARIO - PERSONALE INFERMIERISTICO
A88: Coll.re prof.le sanitario - pers. Tec. Senior - DS | B88: S18864 | C88: =IF(ISERROR(VLOOKUP($B88,IN_T1!$B$2:$Y$3000,2,FALSE))=TRUE,"",VLOOKUP($B88,IN_T1!$B$2:$Y$3000,2,FALSE)) -> 3 | D88: =IF(ISERROR(VLOOKUP($B88,IN_T1!$B$2:$Y$3000,3,FALSE))=TRUE,"",VLOOKUP($B88,IN_T1!$B$2:$Y$3000,3,FALSE)) -> 0 | E88: 3 | F88: 0 | G88: 0 | H88: 0 | I88: 0 | J88: 0 | K88: 3 | L88: 0 | M88: 1 | N88: ND | O88: PROFILI RUOLO SANITARIO - PERSONALE TECNICO SANITARIO
A89: Coll.re prof.le sanitario - pers. Tec.- D | B89: S16021 | C89: =IF(ISERROR(VLOOKUP($B89,IN_T1!$B$2:$Y$3000,2,FALSE))=TRUE,"",VLOOKUP($B89,IN_T1!$B$2:$Y$3000,2,FALSE)) -> 98 | D89: =IF(ISERROR(VLOOKUP($B89,IN_T1!$B$2:$Y$3000,3,FALSE))=TRUE,"",VLOOKUP($B89,IN_T1!$B$2:$Y$3000,3,FALSE)) -> 195 | E89: 95 | F89: 166 | G89: 1 | H89: 3 | I89: 1 | J89: 30 | K89: 97 | L89: 199 | M89: 1 | N89: ND | O89: PROFILI RUOLO SANITARIO - PERSONALE TECNICO SANITARIO
A90: Oper.re prof.le sanitario - pers. Tec.- C | B90: S14054 | C90: =IF(ISERROR(VLOOKUP($B90,IN_T1!$B$2:$Y$3000,2,FALSE))=TRUE,"",VLOOKUP($B90,IN_T1!$B$2:$Y$3000,2,FALSE)) -> 0 | D90: =IF(ISERROR(VLOOKUP($B90,IN_T1!$B$2:$Y$3000,3,FALSE))=TRUE,"",VLOOKUP($B90,IN_T1!$B$2:$Y$3000,3,FALSE)) -> 0 | E90: 0 | F90: 0 | G90: 0 | H90: 0 | I90: 0 | J90: 0 | K90: 0 | L90: 0 | M90: 0 | N90: ND | O90: PROFILI RUOLO SANITARIO - PERSONALE TECNICO SANITARIO
A91: Coll.re prof.le sanitario - tecn. della prev. senior - ds | B91: S18865 | C91: =IF(ISERROR(VLOOKUP($B91,IN_T1!$B$2:$Y$3000,2,FALSE))=TRUE,"",VLOOKUP($B91,IN_T1!$B$2:$Y$3000,2,FALSE)) -> 0 | D91: =IF(ISERROR(VLOOKUP($B91,IN_T1!$B$2:$Y$3000,3,FALSE))=TRUE,"",VLOOKUP($B91,IN_T1!$B$2:$Y$3000,3,FALSE)) -> 0 | E91: 0 | F91: 0 | G91: 0 | H91: 0 | I91: 0 | J91: 0 | K91: 0 | L91: 0 | M91: 0 | N91: ND | O91: PROFILI RUOLO SANITARIO - PERSONALE VIGILANZA E ISPEZIONE
A92: Coll.re prof.le sanitario - tecn. della prev. - d | B92: S16022 | C92: =IF(ISERROR(VLOOKUP($B92,IN_T1!$B$2:$Y$3000,2,FALSE))=TRUE,"",VLOOKUP($B92,IN_T1!$B$2:$Y$3000,2,FALSE)) -> 0 | D92: =IF(ISERROR(VLOOKUP($B92,IN_T1!$B$2:$Y$3000,3,FALSE))=TRUE,"",VLOOKUP($B92,IN_T1!$B$2:$Y$3000,3,FALSE)) -> 0 | E92: 0 | F92: 0 | G92: 0 | H92: 0 | I92: 0 | J92: 0 | K92: 0 | L92: 0 | M92: 0 | N92: ND | O92: PROFILI RUOLO SANITARIO - PERSONALE VIGILANZA E ISPEZIONE
A93: Oper.re prof.le sanitario - tecn. della prev. - c | B93: S14055 | C93: =IF(ISERROR(VLOOKUP($B93,IN_T1!$B$2:$Y$3000,2,FALSE))=TRUE,"",VLOOKUP($B93,IN_T1!$B$2:$Y$3000,2,FALSE)) -> 0 | D93: =IF(ISERROR(VLOOKUP($B93,IN_T1!$B$2:$Y$3000,3,FALSE))=TRUE,"",VLOOKUP($B93,IN_T1!$B$2:$Y$3000,3,FALSE)) -> 0 | E93: 0 | F93: 0 | G93: 0 | H93: 0 | I93: 0 | J93: 0 | K93: 0 | L93: 0 | M93: 0 | N93: ND | O93: PROFILI RUOLO SANITARIO - PERSONALE VIGILANZA E ISPEZIONE
A94: Coll.re prof.le sanitario - pers. della riabil. senior - ds | B94: S18866 | C94: =IF(ISERROR(VLOOKUP($B94,IN_T1!$B$2:$Y$3000,2,FALSE))=TRUE,"",VLOOKUP($B94,IN_T1!$B$2:$Y$3000,2,FALSE)) -> 0 | D94: =IF(ISERROR(VLOOKUP($B94,IN_T1!$B$2:$Y$3000,3,FALSE))=TRUE,"",VLOOKUP($B94,IN_T1!$B$2:$Y$3000,3,FALSE)) -> 5 | E94: 0 | F94: 2 | G94: 0 | H94: 2 | I94: 0 | J94: 1 | K94: 0 | L94: 5 | M94: 1 | N94: ND | O94: PROFILI RUOLO SANITARIO - PERSONALE FUNZIONI RIABILITATIVE
A95: Coll.re prof.le sanitario - pers. della riabil. - d | B95: S16019 | C95: =IF(ISERROR(VLOOKUP($B95,IN_T1!$B$2:$Y$3000,2,FALSE))=TRUE,"",VLOOKUP($B95,IN_T1!$B$2:$Y$3000,2,FALSE)) -> 21 | D95: =IF(ISERROR(VLOOKUP($B95,IN_T1!$B$2:$Y$3000,3,FALSE))=TRUE,"",VLOOKUP($B95,IN_T1!$B$2:$Y$3000,3,FALSE)) -> 101 | E95: 22 | F95: 87 | G95: 0 | H95: 9 | I95: 0 | J95: 20 | K95: 22 | L95: 116 | M95: 1 | N95: ND | O95: PROFILI RUOLO SANITARIO - PERSONALE FUNZIONI RIABILITATIVE
A96: Oper.re prof.le di ii cat. con funz. di riabil. senior - c | B96: S14S51 | C96: =IF(ISERROR(VLOOKUP($B96,IN_T1!$B$2:$Y$3000,2,FALSE))=TRUE,"",VLOOKUP($B96,IN_T1!$B$2:$Y$3000,2,FALSE)) -> 0 | D96: =IF(ISERROR(VLOOKUP($B96,IN_T1!$B$2:$Y$3000,3,FALSE))=TRUE,"",VLOOKUP($B96,IN_T1!$B$2:$Y$3000,3,FALSE)) -> 5 | E96: 0 | F96: 2 | G96: 0 | H96: 0 | I96: 0 | J96: 3 | K96: 0 | L96: 5 | M96: 1 | N96: ND | O96: PROFILI RUOLO SANITARIO - PERSONALE FUNZIONI RIABILITATIVE
A97: Oper.re prof.le sanitario - pers. della riabil. - c | B97: S14053 | C97: =IF(ISERROR(VLOOKUP($B97,IN_T1!$B$2:$Y$3000,2,FALSE))=TRUE,"",VLOOKUP($B97,IN_T1!$B$2:$Y$3000,2,FALSE)) -> 0 | D97: =IF(ISERROR(VLOOKUP($B97,IN_T1!$B$2:$Y$3000,3,FALSE))=TRUE,"",VLOOKUP($B97,IN_T1!$B$2:$Y$3000,3,FALSE)) -> 0 | E97: 0 | F97: 0 | G97: 0 | H97: 0 | I97: 0 | J97: 0 | K97: 0 | L97: 0 | M97: 0 | N97: ND | O97: PROFILI RUOLO SANITARIO - PERSONALE FUNZIONI RIABILITATIVE
A98: Oper.re prof.le di ii cat. con funz. di riabil. - bs | B98: S13051 | C98: =IF(ISERROR(VLOOKUP($B98,IN_T1!$B$2:$Y$3000,2,FALSE))=TRUE,"",VLOOKUP($B98,IN_T1!$B$2:$Y$3000,2,FALSE)) -> 0 | D98: =IF(ISERROR(VLOOKUP($B98,IN_T1!$B$2:$Y$3000,3,FALSE))=TRUE,"",VLOOKUP($B98,IN_T1!$B$2:$Y$3000,3,FALSE)) -> 0 | E98: 0 | F98: 0 | G98: 0 | H98: 0 | I98: 0 | J98: 0 | K98: 0 | L98: 0 | M98: 0 | N98: ND | O98: PROFILI RUOLO SANITARIO - PERSONALE FUNZIONI RIABILITATIVE
A99: Profilo atipico ruolo sanitario | B99: S00062 | C99: =IF(ISERROR(VLOOKUP($B99,IN_T1!$B$2:$Y$3000,2,FALSE))=TRUE,"",VLOOKUP($B99,IN_T1!$B$2:$Y$3000,2,FALSE)) -> 0 | D99: =IF(ISERROR(VLOOKUP($B99,IN_T1!$B$2:$Y$3000,3,FALSE))=TRUE,"",VLOOKUP($B99,IN_T1!$B$2:$Y$3000,3,FALSE)) -> 0 | E99: 0 | F99: 0 | G99: 0 | H99: 0 | I99: 0 | J99: 0 | K99: 0 | L99: 0 | M99: 0 | N99: ND | O99: PROFILI RUOLO SANITARIO - PERSONALE TECNICO SANITARIO
A100: Avvocato dirig. Con incarico di struttura complessa | B100: PD0010 | C100: =IF(ISERROR(VLOOKUP($B100,IN_T1!$B$2:$Y$3000,2,FALSE))=TRUE,"",VLOOKUP($B100,IN_T1!$B$2:$Y$3000,2,FALSE)) -> 1 | D100: =IF(ISERROR(VLOOKUP($B100,IN_T1!$B$2:$Y$3000,3,FALSE))=TRUE,"",VLOOKUP($B100,IN_T1!$B$2:$Y$3000,3,FALSE)) -> 0 | E100: 0 | F100: 0 | G100: 0 | H100: 0 | I100: 0 | J100: 0 | K100: 0 | L100: 0 | M100: 0 | N100: NM | O100: DIR. RUOLO PROFESSIONALE
A101: Avvocato dirig. Con incarico di struttura semplice | B101: PD0S09 | C101: =IF(ISERROR(VLOOKUP($B101,IN_T1!$B$2:$Y$3000,2,FALSE))=TRUE,"",VLOOKUP($B101,IN_T1!$B$2:$Y$3000,2,FALSE)) -> 0 | D101: =IF(ISERROR(VLOOKUP($B101,IN_T1!$B$2:$Y$3000,3,FALSE))=TRUE,"",VLOOKUP($B101,IN_T1!$B$2:$Y$3000,3,FALSE)) -> 0 | E101: 0 | F101: 0 | G101: 0 | H101: 0 | I101: 0 | J101: 0 | K101: 0 | L101: 0 | M101: 0 | N101: NM | O101: DIR. RUOLO PROFESSIONALE
A102: Avvocato dirig. Con altri incar.prof.li | B102: PD0A09 | C102: =IF(ISERROR(VLOOKUP($B102,IN_T1!$B$2:$Y$3000,2,FALSE))=TRUE,"",VLOOKUP($B102,IN_T1!$B$2:$Y$3000,2,FALSE)) -> 0 | D102: =IF(ISERROR(VLOOKUP($B102,IN_T1!$B$2:$Y$3000,3,FALSE))=TRUE,"",VLOOKUP($B102,IN_T1!$B$2:$Y$3000,3,FALSE)) -> 0 | E102: 0 | F102: 0 | G102: 0 | H102: 0 | I102: 0 | J102: 0 | K102: 0 | L102: 0 | M102: 0 | N102: NM | O102: DIR. RUOLO PROFESSIONALE
A103: Avvocato dir. A t. Determinato(art. 15-septies dlgs. 502/92) | B103: PD0605 | C103: =IF(ISERROR(VLOOKUP($B103,IN_T1!$B$2:$Y$3000,2,FALSE))=TRUE,"",VLOOKUP($B103,IN_T1!$B$2:$Y$3000,2,FALSE)) -> 0 | D103: =IF(ISERROR(VLOOKUP($B103,IN_T1!$B$2:$Y$3000,3,FALSE))=TRUE,"",VLOOKUP($B103,IN_T1!$B$2:$Y$3000,3,FALSE)) -> 0 | E103: 0 | F103: 0 | G103: 0 | H103: 0 | I103: 0 | J103: 0 | K103: 0 | L103: 0 | M103: =IF((K103+L103)>0,1,0) -> 0 | N103: NM | O103: DIR. RUOLO PROFESSIONALE
A104: Ingegnere dirig. Con incarico di struttura complessa | B104: PD0046 | C104: =IF(ISERROR(VLOOKUP($B104,IN_T1!$B$2:$Y$3000,2,FALSE))=TRUE,"",VLOOKUP($B104,IN_T1!$B$2:$Y$3000,2,FALSE)) -> 4 | D104: =IF(ISERROR(VLOOKUP($B104,IN_T1!$B$2:$Y$3000,3,FALSE))=TRUE,"",VLOOKUP($B104,IN_T1!$B$2:$Y$3000,3,FALSE)) -> 1 | E104: 3 | F104: 1 | G104: 0 | H104: 0 | I104: 0 | J104: 0 | K104: 3 | L104: =F104+H104+J104 -> 1 | M104: 1 | N104: NM | O104: DIR. RUOLO PROFESSIONALE
A105: Ingegnere dirig. Con incarico di struttura semplice | B105: PD0S45 | C105: =IF(ISERROR(VLOOKUP($B105,IN_T1!$B$2:$Y$3000,2,FALSE))=TRUE,"",VLOOKUP($B105,IN_T1!$B$2:$Y$3000,2,FALSE)) -> 0 | D105: =IF(ISERROR(VLOOKUP($B105,IN_T1!$B$2:$Y$3000,3,FALSE))=TRUE,"",VLOOKUP($B105,IN_T1!$B$2:$Y$3000,3,FALSE)) -> 0 | E105: 0 | F105: 0 | G105: 0 | H105: 0 | I105: 0 | J105: 0 | K105: 0 | L105: 0 | M105: 0 | N105: NM | O105: DIR. RUOLO PROFESSIONALE
A106: Ingegnere dirig. Con altri incar.prof.li | B106: PD0A45 | C106: =IF(ISERROR(VLOOKUP($B106,IN_T1!$B$2:$Y$3000,2,FALSE))=TRUE,"",VLOOKUP($B106,IN_T1!$B$2:$Y$3000,2,FALSE)) -> 1 | D106: =IF(ISERROR(VLOOKUP($B106,IN_T1!$B$2:$Y$3000,3,FALSE))=TRUE,"",VLOOKUP($B106,IN_T1!$B$2:$Y$3000,3,FALSE)) -> 0 | E106: 1 | F106: 0 | G106: 0 | H106: 0 | I106: 0 | J106: 0 | K106: 1 | L106: 0 | M106: 1 | N106: NM | O106: DIR. RUOLO PROFESSIONALE
A107: Ingegnere dir. A t. Determinato(art.15-septies dlgs. 502/92) | B107: PD0606 | C107: =IF(ISERROR(VLOOKUP($B107,IN_T1!$B$2:$Y$3000,2,FALSE))=TRUE,"",VLOOKUP($B107,IN_T1!$B$2:$Y$3000,2,FALSE)) -> 0 | D107: =IF(ISERROR(VLOOKUP($B107,IN_T1!$B$2:$Y$3000,3,FALSE))=TRUE,"",VLOOKUP($B107,IN_T1!$B$2:$Y$3000,3,FALSE)) -> 0 | E107: 0 | F107: 0 | G107: 0 | H107: 0 | I107: 0 | J107: 0 | K107: 0 | L107: 0 | M107: 0 | N107: NM | O107: DIR. RUOLO PROFESSIONALE
A108: Architetti dirig. Con incarico di struttura complessa | B108: PD0004 | C108: =IF(ISERROR(VLOOKUP($B108,IN_T1!$B$2:$Y$3000,2,FALSE))=TRUE,"",VLOOKUP($B108,IN_T1!$B$2:$Y$3000,2,FALSE)) -> 0 | D108: =IF(ISERROR(VLOOKUP($B108,IN_T1!$B$2:$Y$3000,3,FALSE))=TRUE,"",VLOOKUP($B108,IN_T1!$B$2:$Y$3000,3,FALSE)) -> 0 | E108: 0 | F108: 0 | G108: 0 | H108: 0 | I108: 0 | J108: 0 | K108: 0 | L108: 0 | M108: 0 | N108: NM | O108: DIR. RUOLO PROFESSIONALE
A109: Architetti dirig. Con incarico di struttura semplice | B109: PD0S03 | C109: =IF(ISERROR(VLOOKUP($B109,IN_T1!$B$2:$Y$3000,2,FALSE))=TRUE,"",VLOOKUP($B109,IN_T1!$B$2:$Y$3000,2,FALSE)) -> 0 | D109: =IF(ISERROR(VLOOKUP($B109,IN_T1!$B$2:$Y$3000,3,FALSE))=TRUE,"",VLOOKUP($B109,IN_T1!$B$2:$Y$3000,3,FALSE)) -> 0 | E109: 0 | F109: 0 | G109: 0 | H109: 0 | I109: 0 | J109: 0 | K109: 0 | L109: 0 | M109: 0 | N109: NM | O109: DIR. RUOLO PROFESSIONALE
A110: Architetti dirig. Con altri incar.prof.li | B110: PD0A03 | C110: =IF(ISERROR(VLOOKUP($B110,IN_T1!$B$2:$Y$3000,2,FALSE))=TRUE,"",VLOOKUP($B110,IN_T1!$B$2:$Y$3000,2,FALSE)) -> 1 | D110: =IF(ISERROR(VLOOKUP($B110,IN_T1!$B$2:$Y$3000,3,FALSE))=TRUE,"",VLOOKUP($B110,IN_T1!$B$2:$Y$3000,3,FALSE)) -> 0 | E110: 1 | F110: 0 | G110: 0 | H110: 0 | I110: 0 | J110: 0 | K110: 1 | L110: 0 | M110: 1 | N110: NM | O110: DIR. RUOLO PROFESSIONALE
A111: Architetti dir. A t.determinato(art. 15-septies dlgs.502/92) | B111: PD0607 | C111: =IF(ISERROR(VLOOKUP($B111,IN_T1!$B$2:$Y$3000,2,FALSE))=TRUE,"",VLOOKUP($B111,IN_T1!$B$2:$Y$3000,2,FALSE)) -> 0 | D111: =IF(ISERROR(VLOOKUP($B111,IN_T1!$B$2:$Y$3000,3,FALSE))=TRUE,"",VLOOKUP($B111,IN_T1!$B$2:$Y$3000,3,FALSE)) -> 0 | E111: 0 | F111: 0 | G111: 0 | H111: 0 | I111: 0 | J111: 0 | K111: 0 | L111: 0 | M111: 0 | N111: NM | O111: DIR. RUOLO PROFESSIONALE
A112: Geologi dirig. Con incarico di struttura complessa | B112: PD0044 | C112: =IF(ISERROR(VLOOKUP($B112,IN_T1!$B$2:$Y$3000,2,FALSE))=TRUE,"",VLOOKUP($B112,IN_T1!$B$2:$Y$3000,2,FALSE)) -> 0 | D112: =IF(ISERROR(VLOOKUP($B112,IN_T1!$B$2:$Y$3000,3,FALSE))=TRUE,"",VLOOKUP($B112,IN_T1!$B$2:$Y$3000,3,FALSE)) -> 0 | E112: 0 | F112: 0 | G112: 0 | H112: 0 | I112: 0 | J112: 0 | K112: 0 | L112: 0 | M112: 0 | N112: NM | O112: DIR. RUOLO PROFESSIONALE
A113: Geologi dirig. Con incarico di struttura semplice | B113: PD0S43 | C113: =IF(ISERROR(VLOOKUP($B113,IN_T1!$B$2:$Y$3000,2,FALSE))=TRUE,"",VLOOKUP($B113,IN_T1!$B$2:$Y$3000,2,FALSE)) -> 0 | D113: =IF(ISERROR(VLOOKUP($B113,IN_T1!$B$2:$Y$3000,3,FALSE))=TRUE,"",VLOOKUP($B113,IN_T1!$B$2:$Y$3000,3,FALSE)) -> 0 | E113: 0 | F113: 0 | G113: 0 | H113: 0 | I113: 0 | J113: 0 | K113: 0 | L113: 0 | M113: 0 | N113: NM | O113: DIR. RUOLO PROFESSIONALE
A114: Geologi dirig. Con altri incar.prof.li | B114: PD0A43 | C114: =IF(ISERROR(VLOOKUP($B114,IN_T1!$B$2:$Y$3000,2,FALSE))=TRUE,"",VLOOKUP($B114,IN_T1!$B$2:$Y$3000,2,FALSE)) -> 0 | D114: =IF(ISERROR(VLOOKUP($B114,IN_T1!$B$2:$Y$3000,3,FALSE))=TRUE,"",VLOOKUP($B114,IN_T1!$B$2:$Y$3000,3,FALSE)) -> 0 | E114: 0 | F114: 0 | G114: 0 | H114: 0 | I114: 0 | J114: 0 | K114: 0 | L114: 0 | M114: 0 | N114: NM | O114: DIR. RUOLO PROFESSIONALE
A115: Geologi dir. A t. Determinato(art. 15-septies dlgs. 502/92) | B115: PD0608 | C115: =IF(ISERROR(VLOOKUP($B115,IN_T1!$B$2:$Y$3000,2,FALSE))=TRUE,"",VLOOKUP($B115,IN_T1!$B$2:$Y$3000,2,FALSE)) -> 0 | D115: =IF(ISERROR(VLOOKUP($B115,IN_T1!$B$2:$Y$3000,3,FALSE))=TRUE,"",VLOOKUP($B115,IN_T1!$B$2:$Y$3000,3,FALSE)) -> 0 | E115: 0 | F115: 0 | G115: 0 | H115: 0 | I115: 0 | J115: 0 | K115: 0 | L115: 0 | M115: 0 | N115: NM | O115: DIR. RUOLO PROFESSIONALE
A116: Assistente religioso - D | B116: P16006 | C116: =IF(ISERROR(VLOOKUP($B116,IN_T1!$B$2:$Y$3000,2,FALSE))=TRUE,"",VLOOKUP($B116,IN_T1!$B$2:$Y$3000,2,FALSE)) -> 1 | D116: =IF(ISERROR(VLOOKUP($B116,IN_T1!$B$2:$Y$3000,3,FALSE))=TRUE,"",VLOOKUP($B116,IN_T1!$B$2:$Y$3000,3,FALSE)) -> 0 | E116: 2 | F116: 0 | G116: 0 | H116: 0 | I116: 0 | J116: 0 | K116: 2 | L116: 0 | M116: 1 | N116: ND | O116: PROFILI RUOLO PROFESSIONALE
A117: Specialista della comunicazione istituzionale - D | B117: PSP871 | C117: =IF(ISERROR(VLOOKUP($B117,IN_T1!$B$2:$Y$3000,2,FALSE))=TRUE,"",VLOOKUP($B117,IN_T1!$B$2:$Y$3000,2,FALSE)) -> 0 | D117: =IF(ISERROR(VLOOKUP($B117,IN_T1!$B$2:$Y$3000,3,FALSE))=TRUE,"",VLOOKUP($B117,IN_T1!$B$2:$Y$3000,3,FALSE)) -> 0 | E117: 0 | F117: 0 | G117: 0 | H117: 0 | I117: 0 | J117: 0 | K117: 0 | L117: 0 | M117: 0 | N117: ND | O117: PROFILI RUOLO PROFESSIONALE
A118: Specialista nei rapporti con i media, giornalista pubblico - D | B118: PSP872 | C118: =IF(ISERROR(VLOOKUP($B118,IN_T1!$B$2:$Y$3000,2,FALSE))=TRUE,"",VLOOKUP($B118,IN_T1!$B$2:$Y$3000,2,FALSE)) -> 0 | D118: =IF(ISERROR(VLOOKUP($B118,IN_T1!$B$2:$Y$3000,3,FALSE))=TRUE,"",VLOOKUP($B118,IN_T1!$B$2:$Y$3000,3,FALSE)) -> 0 | E118: 0 | F118: 0 | G118: 0 | H118: 0 | I118: 0 | J118: 0 | K118: 0 | L118: 0 | M118: 0 | N118: ND | O118: PROFILI RUOLO PROFESSIONALE
A119: Profilo atipico ruolo professionale | B119: P00062 | C119: =IF(ISERROR(VLOOKUP($B119,IN_T1!$B$2:$Y$3000,2,FALSE))=TRUE,"",VLOOKUP($B119,IN_T1!$B$2:$Y$3000,2,FALSE)) -> 0 | D119: =IF(ISERROR(VLOOKUP($B119,IN_T1!$B$2:$Y$3000,3,FALSE))=TRUE,"",VLOOKUP($B119,IN_T1!$B$2:$Y$3000,3,FALSE)) -> 0 | E119: 0 | F119: 0 | G119: 0 | H119: 0 | I119: 0 | J119: 0 | K119: 0 | L119: 0 | M119: 0 | N119: ND | O119: PROFILI RUOLO PROFESSIONALE
A120: Analisti dirig. Con incarico di struttura complessa | B120: TD0002 | C120: =IF(ISERROR(VLOOKUP($B120,IN_T1!$B$2:$Y$3000,2,FALSE))=TRUE,"",VLOOKUP($B120,IN_T1!$B$2:$Y$3000,2,FALSE)) -> 0 | D120: =IF(ISERROR(VLOOKUP($B120,IN_T1!$B$2:$Y$3000,3,FALSE))=TRUE,"",VLOOKUP($B120,IN_T1!$B$2:$Y$3000,3,FALSE)) -> 0 | E120: 0 | F120: 0 | G120: 0 | H120: 0 | I120: 0 | J120: 0 | K120: 0 | L120: 0 | M120: 0 | N120: NM | O120: DIR. RUOLO TECNICO
A121: Analisti dirig. Con incarico di struttura semplice | B121: TD0S01 | C121: =IF(ISERROR(VLOOKUP($B121,IN_T1!$B$2:$Y$3000,2,FALSE))=TRUE,"",VLOOKUP($B121,IN_T1!$B$2:$Y$3000,2,FALSE)) -> 0 | D121: =IF(ISERROR(VLOOKUP($B121,IN_T1!$B$2:$Y$3000,3,FALSE))=TRUE,"",VLOOKUP($B121,IN_T1!$B$2:$Y$3000,3,FALSE)) -> 0 | E121: 0 | F121: 0 | G121: 0 | H121: 0 | I121: 0 | J121: 0 | K121: 0 | L121: 0 | M121: 0 | N121: NM | O121: DIR. RUOLO TECNICO
A122: Analisti dirig. Con altri incar.prof.li | B122: TD0A01 | C122: =IF(ISERROR(VLOOKUP($B122,IN_T1!$B$2:$Y$3000,2,FALSE))=TRUE,"",VLOOKUP($B122,IN_T1!$B$2:$Y$3000,2,FALSE)) -> 0 | D122: =IF(ISERROR(VLOOKUP($B122,IN_T1!$B$2:$Y$3000,3,FALSE))=TRUE,"",VLOOKUP($B122,IN_T1!$B$2:$Y$3000,3,FALSE)) -> 0 | E122: 0 | F122: 0 | G122: 0 | H122: 0 | I122: 0 | J122: 0 | K122: 0 | L122: 0 | M122: 0 | N122: NM | O122: DIR. RUOLO TECNICO
A123: Analisti dir. A t. Determinato(art. 15-septies dlgs. 502/92) | B123: TD0609 | C123: =IF(ISERROR(VLOOKUP($B123,IN_T1!$B$2:$Y$3000,2,FALSE))=TRUE,"",VLOOKUP($B123,IN_T1!$B$2:$Y$3000,2,FALSE)) -> 0 | D123: =IF(ISERROR(VLOOKUP($B123,IN_T1!$B$2:$Y$3000,3,FALSE))=TRUE,"",VLOOKUP($B123,IN_T1!$B$2:$Y$3000,3,FALSE)) -> 0 | E123: 0 | F123: 0 | G123: 0 | H123: 0 | I123: 0 | J123: 0 | K123: 0 | L123: 0 | M123: 0 | N123: NM | O123: DIR. RUOLO TECNICO
A124: Statistico dirig. Con incarico di struttura complessa | B124: TD0071 | C124: =IF(ISERROR(VLOOKUP($B124,IN_T1!$B$2:$Y$3000,2,FALSE))=TRUE,"",VLOOKUP($B124,IN_T1!$B$2:$Y$3000,2,FALSE)) -> 0 | D124: =IF(ISERROR(VLOOKUP($B124,IN_T1!$B$2:$Y$3000,3,FALSE))=TRUE,"",VLOOKUP($B124,IN_T1!$B$2:$Y$3000,3,FALSE)) -> 0 | E124: 0 | F124: 0 | G124: 0 | H124: 0 | I124: 0 | J124: 0 | K124: 0 | L124: 0 | M124: 0 | N124: NM | O124: DIR. RUOLO TECNICO
A125: Statistico dirig. Con incarico di struttura semplice | B125: TD0S70 | C125: =IF(ISERROR(VLOOKUP($B125,IN_T1!$B$2:$Y$3000,2,FALSE))=TRUE,"",VLOOKUP($B125,IN_T1!$B$2:$Y$3000,2,FALSE)) -> 0 | D125: =IF(ISERROR(VLOOKUP($B125,IN_T1!$B$2:$Y$3000,3,FALSE))=TRUE,"",VLOOKUP($B125,IN_T1!$B$2:$Y$3000,3,FALSE)) -> 0 | E125: 0 | F125: 0 | G125: 0 | H125: 0 | I125: 0 | J125: 0 | K125: 0 | L125: 0 | M125: 0 | N125: NM | O125: DIR. RUOLO TECNICO
A126: Statistico dirig. Con altri incar.prof.li | B126: TD0A70 | C126: =IF(ISERROR(VLOOKUP($B126,IN_T1!$B$2:$Y$3000,2,FALSE))=TRUE,"",VLOOKUP($B126,IN_T1!$B$2:$Y$3000,2,FALSE)) -> 0 | D126: =IF(ISERROR(VLOOKUP($B126,IN_T1!$B$2:$Y$3000,3,FALSE))=TRUE,"",VLOOKUP($B126,IN_T1!$B$2:$Y$3000,3,FALSE)) -> 0 | E126: 0 | F126: 0 | G126: 0 | H126: 0 | I126: 0 | J126: 0 | K126: 0 | L126: 0 | M126: 0 | N126: NM | O126: DIR. RUOLO TECNICO
A127: Statistico dir. A t.determinato(art. 15-septies dlgs.502/92) | B127: TD0610 | C127: =IF(ISERROR(VLOOKUP($B127,IN_T1!$B$2:$Y$3000,2,FALSE))=TRUE,"",VLOOKUP($B127,IN_T1!$B$2:$Y$3000,2,FALSE)) -> 0 | D127: =IF(ISERROR(VLOOKUP($B127,IN_T1!$B$2:$Y$3000,3,FALSE))=TRUE,"",VLOOKUP($B127,IN_T1!$B$2:$Y$3000,3,FALSE)) -> 0 | E127: 0 | F127: 0 | G127: 0 | H127: 0 | I127: 0 | J127: 0 | K127: 0 | L127: 0 | M127: 0 | N127: NM | O127: DIR. RUOLO TECNICO
A128: Sociologo dirig. Con incarico di struttura complessa | B128: TD0068 | C128: =IF(ISERROR(VLOOKUP($B128,IN_T1!$B$2:$Y$3000,2,FALSE))=TRUE,"",VLOOKUP($B128,IN_T1!$B$2:$Y$3000,2,FALSE)) -> 0 | D128: =IF(ISERROR(VLOOKUP($B128,IN_T1!$B$2:$Y$3000,3,FALSE))=TRUE,"",VLOOKUP($B128,IN_T1!$B$2:$Y$3000,3,FALSE)) -> 0 | E128: 0 | F128: 0 | G128: 0 | H128: 0 | I128: 0 | J128: 0 | K128: 0 | L128: 0 | M128: 0 | N128: NM | O128: DIR. RUOLO TECNICO
A129: Sociologo dirig. Con incarico di struttura semplice | B129: TD0S67 | C129: =IF(ISERROR(VLOOKUP($B129,IN_T1!$B$2:$Y$3000,2,FALSE))=TRUE,"",VLOOKUP($B129,IN_T1!$B$2:$Y$3000,2,FALSE)) -> 0 | D129: =IF(ISERROR(VLOOKUP($B129,IN_T1!$B$2:$Y$3000,3,FALSE))=TRUE,"",VLOOKUP($B129,IN_T1!$B$2:$Y$3000,3,FALSE)) -> 0 | E129: 0 | F129: 0 | G129: 0 | H129: 0 | I129: 0 | J129: 0 | K129: 0 | L129: 0 | M129: 0 | N129: NM | O129: DIR. RUOLO TECNICO
A130: Sociologo dirig. Con altri incar.prof.li | B130: TD0A67 | C130: =IF(ISERROR(VLOOKUP($B130,IN_T1!$B$2:$Y$3000,2,FALSE))=TRUE,"",VLOOKUP($B130,IN_T1!$B$2:$Y$3000,2,FALSE)) -> 0 | D130: =IF(ISERROR(VLOOKUP($B130,IN_T1!$B$2:$Y$3000,3,FALSE))=TRUE,"",VLOOKUP($B130,IN_T1!$B$2:$Y$3000,3,FALSE)) -> 0 | E130: 0 | F130: 0 | G130: 0 | H130: 0 | I130: 0 | J130: 0 | K130: 0 | L130: 0 | M130: 0 | N130: NM | O130: DIR. RUOLO TECNICO
A131: Sociologo dir. A t. Determinato(art.15-septies dlgs. 502/92) | B131: TD0611 | C131: =IF(ISERROR(VLOOKUP($B131,IN_T1!$B$2:$Y$3000,2,FALSE))=TRUE,"",VLOOKUP($B131,IN_T1!$B$2:$Y$3000,2,FALSE)) -> 0 | D131: =IF(ISERROR(VLOOKUP($B131,IN_T1!$B$2:$Y$3000,3,FALSE))=TRUE,"",VLOOKUP($B131,IN_T1!$B$2:$Y$3000,3,FALSE)) -> 0 | E131: 0 | F131: 0 | G131: 0 | H131: 0 | I131: 0 | J131: 0 | K131: 0 | L131: 0 | M131: 0 | N131: NM | O131: DIR. RUOLO TECNICO
A132: Dir. Ambientale con incarico di struttura complessa | B132: TD0C02 | C132: =IF(ISERROR(VLOOKUP($B132,IN_T1!$B$2:$Y$3000,2,FALSE))=TRUE,"",VLOOKUP($B132,IN_T1!$B$2:$Y$3000,2,FALSE)) -> 0 | D132: =IF(ISERROR(VLOOKUP($B132,IN_T1!$B$2:$Y$3000,3,FALSE))=TRUE,"",VLOOKUP($B132,IN_T1!$B$2:$Y$3000,3,FALSE)) -> 0 | E132: 0 | F132: 0 | G132: 0 | H132: 0 | I132: 0 | J132: 0 | K132: =E132+G132+I132 -> 0 | L132: 0 | M132: =IF((K132+L132)>0,1,0) -> 0 | N132: NM | O132: DIR. RUOLO TECNICO
A133: Dir. Ambientale con incarico di struttura semplice | B133: TD0S02 | C133: =IF(ISERROR(VLOOKUP($B133,IN_T1!$B$2:$Y$3000,2,FALSE))=TRUE,"",VLOOKUP($B133,IN_T1!$B$2:$Y$3000,2,FALSE)) -> 0 | D133: =IF(ISERROR(VLOOKUP($B133,IN_T1!$B$2:$Y$3000,3,FALSE))=TRUE,"",VLOOKUP($B133,IN_T1!$B$2:$Y$3000,3,FALSE)) -> 0 | E133: 0 | F133: 0 | G133: 0 | H133: 0 | I133: 0 | J133: 0 | K133: 0 | L133: 0 | M133: =IF((K133+L133)>0,1,0) -> 0 | N133: NM | O133: DIR. RUOLO TECNICO
A134: Dir. Ambientale con altri incar.prof.li | B134: TD0A02 | C134: =IF(ISERROR(VLOOKUP($B134,IN_T1!$B$2:$Y$3000,2,FALSE))=TRUE,"",VLOOKUP($B134,IN_T1!$B$2:$Y$3000,2,FALSE)) -> 0 | D134: =IF(ISERROR(VLOOKUP($B134,IN_T1!$B$2:$Y$3000,3,FALSE))=TRUE,"",VLOOKUP($B134,IN_T1!$B$2:$Y$3000,3,FALSE)) -> 0 | E134: 0 | F134: 0 | G134: 0 | H134: 0 | I134: 0 | J134: 0 | K134: 0 | L134: 0 | M134: =IF((K134+L134)>0,1,0) -> 0 | N134: NM | O134: DIR. RUOLO TECNICO
A135: Dir. Ambientale a t. determinato (art.15-septies dlgs 502/92) | B135: TD0810 | C135: =IF(ISERROR(VLOOKUP($B135,IN_T1!$B$2:$Y$3000,2,FALSE))=TRUE,"",VLOOKUP($B135,IN_T1!$B$2:$Y$3000,2,FALSE)) -> 0 | D135: =IF(ISERROR(VLOOKUP($B135,IN_T1!$B$2:$Y$3000,3,FALSE))=TRUE,"",VLOOKUP($B135,IN_T1!$B$2:$Y$3000,3,FALSE)) -> 0 | E135: 0 | F135: 0 | G135: 0 | H135: 0 | I135: 0 | J135: 0 | K135: 0 | L135: 0 | M135: =IF((K135+L135)>0,1,0) -> 0 | N135: NM | O135: DIR. RUOLO TECNICO
A136: Collab.re prof.le assistente sociale senior - DS | B136: T18867 | C136: =IF(ISERROR(VLOOKUP($B136,IN_T1!$B$2:$Y$3000,2,FALSE))=TRUE,"",VLOOKUP($B136,IN_T1!$B$2:$Y$3000,2,FALSE)) -> 0 | D136: =IF(ISERROR(VLOOKUP($B136,IN_T1!$B$2:$Y$3000,3,FALSE))=TRUE,"",VLOOKUP($B136,IN_T1!$B$2:$Y$3000,3,FALSE)) -> 1 | E136: 0 | F136: 1 | G136: 0 | H136: 0 | I136: 0 | J136: 0 | K136: 0 | L136: 1 | M136: 1 | N136: ND | O136: PROFILI RUOLO TECNICO
A137: Collab.re prof.le assistente sociale - D | B137: T16024 | C137: =IF(ISERROR(VLOOKUP($B137,IN_T1!$B$2:$Y$3000,2,FALSE))=TRUE,"",VLOOKUP($B137,IN_T1!$B$2:$Y$3000,2,FALSE)) -> 1 | D137: =IF(ISERROR(VLOOKUP($B137,IN_T1!$B$2:$Y$3000,3,FALSE))=TRUE,"",VLOOKUP($B137,IN_T1!$B$2:$Y$3000,3,FALSE)) -> 31 | E137: 1 | F137: 26 | G137: 0 | H137: 1 | I137: 0 | J137: 9 | K137: 1 | L137: 36 | M137: 1 | N137: ND | O137: PROFILI RUOLO TECNICO
A138: Collab.re tec. - prof.le senior - DS | B138: T18868 | C138: =IF(ISERROR(VLOOKUP($B138,IN_T1!$B$2:$Y$3000,2,FALSE))=TRUE,"",VLOOKUP($B138,IN_T1!$B$2:$Y$3000,2,FALSE)) -> 0 | D138: =IF(ISERROR(VLOOKUP($B138,IN_T1!$B$2:$Y$3000,3,FALSE))=TRUE,"",VLOOKUP($B138,IN_T1!$B$2:$Y$3000,3,FALSE)) -> 0 | E138: 0 | F138: 0 | G138: 0 | H138: 0 | I138: 0 | J138: 0 | K138: 0 | L138: 0 | M138: 0 | N138: ND | O138: PROFILI RUOLO TECNICO
A139: Collab.re tec. - prof.le - D | B139: T16026 | C139: =IF(ISERROR(VLOOKUP($B139,IN_T1!$B$2:$Y$3000,2,FALSE))=TRUE,"",VLOOKUP($B139,IN_T1!$B$2:$Y$3000,2,FALSE)) -> 10 | D139: =IF(ISERROR(VLOOKUP($B139,IN_T1!$B$2:$Y$3000,3,FALSE))=TRUE,"",VLOOKUP($B139,IN_T1!$B$2:$Y$3000,3,FALSE)) -> 4 | E139: 10 | F139: 6 | G139: 0 | H139: 0 | I139: 0 | J139: 0 | K139: 10 | L139: 6 | M139: =IF((K139+L139)>0,1,0) -> 1 | N139: ND | O139: PROFILI RUOLO TECNICO
A140: Oper.re prof.le assistente soc. - C | B140: T14050 | C140: =IF(ISERROR(VLOOKUP($B140,IN_T1!$B$2:$Y$3000,2,FALSE))=TRUE,"",VLOOKUP($B140,IN_T1!$B$2:$Y$3000,2,FALSE)) -> 0 | D140: =IF(ISERROR(VLOOKUP($B140,IN_T1!$B$2:$Y$3000,3,FALSE))=TRUE,"",VLOOKUP($B140,IN_T1!$B$2:$Y$3000,3,FALSE)) -> 0 | E140: 0 | F140: 0 | G140: 0 | H140: 0 | I140: 0 | J140: 0 | K140: =E140+G140+I140 -> 0 | L140: =F140+H140+J140 -> 0 | M140: 0 | N140: ND | O140: PROFILI RUOLO TECNICO
A141: Assistente tecnico - C | B141: T14007 | C141: =IF(ISERROR(VLOOKUP($B141,IN_T1!$B$2:$Y$3000,2,FALSE))=TRUE,"",VLOOKUP($B141,IN_T1!$B$2:$Y$3000,2,FALSE)) -> 14 | D141: =IF(ISERROR(VLOOKUP($B141,IN_T1!$B$2:$Y$3000,3,FALSE))=TRUE,"",VLOOKUP($B141,IN_T1!$B$2:$Y$3000,3,FALSE)) -> 2 | E141: 12 | F141: 2 | G141: 0 | H141: 0 | I141: 0 | J141: 0 | K141: 12 | L141: 2 | M141: 1 | N141: ND | O141: PROFILI RUOLO TECNICO
A142: Program.re - C | B142: T14063 | C142: =IF(ISERROR(VLOOKUP($B142,IN_T1!$B$2:$Y$3000,2,FALSE))=TRUE,"",VLOOKUP($B142,IN_T1!$B$2:$Y$3000,2,FALSE)) -> 0 | D142: =IF(ISERROR(VLOOKUP($B142,IN_T1!$B$2:$Y$3000,3,FALSE))=TRUE,"",VLOOKUP($B142,IN_T1!$B$2:$Y$3000,3,FALSE)) -> 0 | E142: 0 | F142: 0 | G142: 0 | H142: 0 | I142: 0 | J142: 0 | K142: 0 | L142: 0 | M142: 0 | N142: ND | O142: PROFILI RUOLO TECNICO
A143: Operatore tecnico special.to senior - C | B143: T14S59 | C143: =IF(ISERROR(VLOOKUP($B143,IN_T1!$B$2:$Y$3000,2,FALSE))=TRUE,"",VLOOKUP($B143,IN_T1!$B$2:$Y$3000,2,FALSE)) -> 54 | D143: =IF(ISERROR(VLOOKUP($B143,IN_T1!$B$2:$Y$3000,3,FALSE))=TRUE,"",VLOOKUP($B143,IN_T1!$B$2:$Y$3000,3,FALSE)) -> 4 | E143: 43 | F143: 3 | G143: 3 | H143: 0 | I143: 1 | J143: 1 | K143: 47 | L143: 4 | M143: 1 | N143: ND | O143: PROFILI RUOLO TECNICO
A144: Operatore tecnico special.to - BS | B144: T13059 | C144: =IF(ISERROR(VLOOKUP($B144,IN_T1!$B$2:$Y$3000,2,FALSE))=TRUE,"",VLOOKUP($B144,IN_T1!$B$2:$Y$3000,2,FALSE)) -> 55 | D144: =IF(ISERROR(VLOOKUP($B144,IN_T1!$B$2:$Y$3000,3,FALSE))=TRUE,"",VLOOKUP($B144,IN_T1!$B$2:$Y$3000,3,FALSE)) -> 17 | E144: 50 | F144: 12 | G144: 1 | H144: 0 | I144: 1 | J144: 1 | K144: 52 | L144: 13 | M144: 1 | N144: ND | O144: PROFILI RUOLO TECNICO
A145: Operatore socio sanitario - BS | B145: T13660 | C145: =IF(ISERROR(VLOOKUP($B145,IN_T1!$B$2:$Y$3000,2,FALSE))=TRUE,"",VLOOKUP($B145,IN_T1!$B$2:$Y$3000,2,FALSE)) -> 87 | D145: =IF(ISERROR(VLOOKUP($B145,IN_T1!$B$2:$Y$3000,3,FALSE))=TRUE,"",VLOOKUP($B145,IN_T1!$B$2:$Y$3000,3,FALSE)) -> 469 | E145: 96 | F145: 425 | G145: 0 | H145: 3 | I145: 1 | J145: 82 | K145: 97 | L145: 510 | M145: 1 | N145: ND | O145: PROFILI RUOLO TECNICO
A146: Operatore tecnico - B | B146: T12057 | C146: =IF(ISERROR(VLOOKUP($B146,IN_T1!$B$2:$Y$3000,2,FALSE))=TRUE,"",VLOOKUP($B146,IN_T1!$B$2:$Y$3000,2,FALSE)) -> 30 | D146: =IF(ISERROR(VLOOKUP($B146,IN_T1!$B$2:$Y$3000,3,FALSE))=TRUE,"",VLOOKUP($B146,IN_T1!$B$2:$Y$3000,3,FALSE)) -> 23 | E146: 25 | F146: 18 | G146: 1 | H146: 0 | I146: 1 | J146: 2 | K146: 27 | L146: 20 | M146: 1 | N146: ND | O146: PROFILI RUOLO TECNICO
A147: Operatore tecnico addetto all'assistenza - B | B147: T12058 | C147: =IF(ISERROR(VLOOKUP($B147,IN_T1!$B$2:$Y$3000,2,FALSE))=TRUE,"",VLOOKUP($B147,IN_T1!$B$2:$Y$3000,2,FALSE)) -> 3 | D147: =IF(ISERROR(VLOOKUP($B147,IN_T1!$B$2:$Y$3000,3,FALSE))=TRUE,"",VLOOKUP($B147,IN_T1!$B$2:$Y$3000,3,FALSE)) -> 10 | E147: 3 | F147: 7 | G147: 0 | H147: 0 | I147: 0 | J147: 1 | K147: 3 | L147: 8 | M147: 1 | N147: ND | O147: PROFILI RUOLO TECNICO
A148: Ausiliario specializzato - A | B148: T11008 | C148: =IF(ISERROR(VLOOKUP($B148,IN_T1!$B$2:$Y$3000,2,FALSE))=TRUE,"",VLOOKUP($B148,IN_T1!$B$2:$Y$3000,2,FALSE)) -> 21 | D148: =IF(ISERROR(VLOOKUP($B148,IN_T1!$B$2:$Y$3000,3,FALSE))=TRUE,"",VLOOKUP($B148,IN_T1!$B$2:$Y$3000,3,FALSE)) -> 96 | E148: 18 | F148: 49 | G148: 0 | H148: 3 | I148: 1 | J148: 28 | K148: 19 | L148: 80 | M148: 1 | N148: ND | O148: PROFILI RUOLO TECNICO
A149: Profilo atipico ruolo tecnico | B149: T00062 | C149: =IF(ISERROR(VLOOKUP($B149,IN_T1!$B$2:$Y$3000,2,FALSE))=TRUE,"",VLOOKUP($B149,IN_T1!$B$2:$Y$3000,2,FALSE)) -> 0 | D149: =IF(ISERROR(VLOOKUP($B149,IN_T1!$B$2:$Y$3000,3,FALSE))=TRUE,"",VLOOKUP($B149,IN_T1!$B$2:$Y$3000,3,FALSE)) -> 0 | E149: 0 | F149: 0 | G149: 0 | H149: 0 | I149: 0 | J149: 0 | K149: 0 | L149: 0 | M149: 0 | N149: ND | O149: PROFILI RUOLO TECNICO
A150: Dirigente amm.vo con incarico di struttura complessa | B150: AD0032 | C150: =IF(ISERROR(VLOOKUP($B150,IN_T1!$B$2:$Y$3000,2,FALSE))=TRUE,"",VLOOKUP($B150,IN_T1!$B$2:$Y$3000,2,FALSE)) -> 2 | D150: =IF(ISERROR(VLOOKUP($B150,IN_T1!$B$2:$Y$3000,3,FALSE))=TRUE,"",VLOOKUP($B150,IN_T1!$B$2:$Y$3000,3,FALSE)) -> 1 | E150: 2 | F150: 4 | G150: 0 | H150: 0 | I150: 0 | J150: 0 | K150: 2 | L150: 4 | M150: 1 | N150: NM | O150: DIR. RUOLO AMMINISTRATIVO
A151: Dirigente amm.vo con incarico di struttura semplice | B151: AD0S31 | C151: =IF(ISERROR(VLOOKUP($B151,IN_T1!$B$2:$Y$3000,2,FALSE))=TRUE,"",VLOOKUP($B151,IN_T1!$B$2:$Y$3000,2,FALSE)) -> 1 | D151: =IF(ISERROR(VLOOKUP($B151,IN_T1!$B$2:$Y$3000,3,FALSE))=TRUE,"",VLOOKUP($B151,IN_T1!$B$2:$Y$3000,3,FALSE)) -> 1 | E151: 1 | F151: 1 | G151: 0 | H151: 0 | I151: 0 | J151: 0 | K151: 1 | L151: 1 | M151: 1 | N151: NM | O151: DIR. RUOLO AMMINISTRATIVO
A152: Dirigente amm.vo con altri incar.prof.li | B152: AD0A31 | C152: =IF(ISERROR(VLOOKUP($B152,IN_T1!$B$2:$Y$3000,2,FALSE))=TRUE,"",VLOOKUP($B152,IN_T1!$B$2:$Y$3000,2,FALSE)) -> 1 | D152: =IF(ISERROR(VLOOKUP($B152,IN_T1!$B$2:$Y$3000,3,FALSE))=TRUE,"",VLOOKUP($B152,IN_T1!$B$2:$Y$3000,3,FALSE)) -> 2 | E152: 2 | F152: 1 | G152: 0 | H152: 0 | I152: 0 | J152: 0 | K152: 2 | L152: 1 | M152: 1 | N152: NM | O152: DIR. RUOLO AMMINISTRATIVO
A153: Dirig. Amm.vo a t. determinato (art. 15-septies dlgs.502/92) | B153: AD0612 | C153: =IF(ISERROR(VLOOKUP($B153,IN_T1!$B$2:$Y$3000,2,FALSE))=TRUE,"",VLOOKUP($B153,IN_T1!$B$2:$Y$3000,2,FALSE)) -> 0 | D153: =IF(ISERROR(VLOOKUP($B153,IN_T1!$B$2:$Y$3000,3,FALSE))=TRUE,"",VLOOKUP($B153,IN_T1!$B$2:$Y$3000,3,FALSE)) -> 0 | E153: 0 | F153: 0 | G153: 0 | H153: 0 | I153: 0 | J153: 0 | K153: 0 | L153: 0 | M153: 0 | N153: NM | O153: DIR. RUOLO AMMINISTRATIVO
A154: Collaboratore amministrativo prof.le senior - DS | B154: A18869 | C154: =IF(ISERROR(VLOOKUP($B154,IN_T1!$B$2:$Y$3000,2,FALSE))=TRUE,"",VLOOKUP($B154,IN_T1!$B$2:$Y$3000,2,FALSE)) -> 3 | D154: =IF(ISERROR(VLOOKUP($B154,IN_T1!$B$2:$Y$3000,3,FALSE))=TRUE,"",VLOOKUP($B154,IN_T1!$B$2:$Y$3000,3,FALSE)) -> 1 | E154: 4 | F154: 1 | G154: 0 | H154: 0 | I154: 0 | J154: 0 | K154: 4 | L154: 1 | M154: 1 | N154: ND | O154: PROFILI RUOLO AMMINISTRATIVO
A155: Collaboratore amministrativo prof.le - D | B155: A16028 | C155: =IF(ISERROR(VLOOKUP($B155,IN_T1!$B$2:$Y$3000,2,FALSE))=TRUE,"",VLOOKUP($B155,IN_T1!$B$2:$Y$3000,2,FALSE)) -> 20 | D155: =IF(ISERROR(VLOOKUP($B155,IN_T1!$B$2:$Y$3000,3,FALSE))=TRUE,"",VLOOKUP($B155,IN_T1!$B$2:$Y$3000,3,FALSE)) -> 54 | E155: 17 | F155: 40 | G155: 0 | H155: 0 | I155: 0 | J155: 8 | K155: 17 | L155: 48 | M155: 1 | N155: ND | O155: PROFILI RUOLO AMMINISTRATIVO
A156: Assistente amministrativo - C | B156: A14005 | C156: =IF(ISERROR(VLOOKUP($B156,IN_T1!$B$2:$Y$3000,2,FALSE))=TRUE,"",VLOOKUP($B156,IN_T1!$B$2:$Y$3000,2,FALSE)) -> 32 | D156: =IF(ISERROR(VLOOKUP($B156,IN_T1!$B$2:$Y$3000,3,FALSE))=TRUE,"",VLOOKUP($B156,IN_T1!$B$2:$Y$3000,3,FALSE)) -> 217 | E156: 31 | F156: 162 | G156: 0 | H156: 5 | I156: 0 | J156: 41 | K156: 31 | L156: 208 | M156: 1 | N156: ND | O156: PROFILI RUOLO AMMINISTRATIVO
A157: Coadiutore amm.vo senior - BS | B157: A13870 | C157: =IF(ISERROR(VLOOKUP($B157,IN_T1!$B$2:$Y$3000,2,FALSE))=TRUE,"",VLOOKUP($B157,IN_T1!$B$2:$Y$3000,2,FALSE)) -> 12 | D157: =IF(ISERROR(VLOOKUP($B157,IN_T1!$B$2:$Y$3000,3,FALSE))=TRUE,"",VLOOKUP($B157,IN_T1!$B$2:$Y$3000,3,FALSE)) -> 83 | E157: 23 | F157: 88 | G157: 0 | H157: 4 | I157: 1 | J157: 17 | K157: 24 | L157: 109 | M157: 1 | N157: ND | O157: PROFILI RUOLO AMMINISTRATIVO
A158: Coadiutore amm.vo - B | B158: A12017 | C158: =IF(ISERROR(VLOOKUP($B158,IN_T1!$B$2:$Y$3000,2,FALSE))=TRUE,"",VLOOKUP($B158,IN_T1!$B$2:$Y$3000,2,FALSE)) -> 9 | D158: =IF(ISERROR(VLOOKUP($B158,IN_T1!$B$2:$Y$3000,3,FALSE))=TRUE,"",VLOOKUP($B158,IN_T1!$B$2:$Y$3000,3,FALSE)) -> 49 | E158: 9 | F158: 31 | G158: 0 | H158: 0 | I158: 0 | J158: 11 | K158: 9 | L158: 42 | M158: 1 | N158: ND | O158: PROFILI RUOLO AMMINISTRATIVO
A159: Commesso - A | B159: A11030 | C159: =IF(ISERROR(VLOOKUP($B159,IN_T1!$B$2:$Y$3000,2,FALSE))=TRUE,"",VLOOKUP($B159,IN_T1!$B$2:$Y$3000,2,FALSE)) -> 2 | D159: =IF(ISERROR(VLOOKUP($B159,IN_T1!$B$2:$Y$3000,3,FALSE))=TRUE,"",VLOOKUP($B159,IN_T1!$B$2:$Y$3000,3,FALSE)) -> 6 | E159: 2 | F159: 6 | G159: 0 | H159: 0 | I159: 0 | J159: 0 | K159: 2 | L159: 6 | M159: 1 | N159: ND | O159: PROFILI RUOLO AMMINISTRATIVO
A160: Profilo atipico ruolo amministrativo | B160: A00062 | C160: =IF(ISERROR(VLOOKUP($B160,IN_T1!$B$2:$Y$3000,2,FALSE))=TRUE,"",VLOOKUP($B160,IN_T1!$B$2:$Y$3000,2,FALSE)) -> 0 | D160: =IF(ISERROR(VLOOKUP($B160,IN_T1!$B$2:$Y$3000,3,FALSE))=TRUE,"",VLOOKUP($B160,IN_T1!$B$2:$Y$3000,3,FALSE)) -> 0 | E160: 0 | F160: 0 | G160: 0 | H160: 0 | I160: 0 | J160: 0 | K160: 0 | L160: 0 | M160: 0 | N160: ND | O160: PROFILI RUOLO AMMINISTRATIVO
A161: Ricercatore sanitario - DS | B161: N18694 | C161: =IF(ISERROR(VLOOKUP($B161,IN_T1!$B$2:$Y$3000,2,FALSE))=TRUE,"",VLOOKUP($B161,IN_T1!$B$2:$Y$3000,2,FALSE)) -> 0 | D161: =IF(ISERROR(VLOOKUP($B161,IN_T1!$B$2:$Y$3000,3,FALSE))=TRUE,"",VLOOKUP($B161,IN_T1!$B$2:$Y$3000,3,FALSE)) -> 0 | E161: 0 | F161: 0 | G161: 0 | H161: 0 | I161: 0 | J161: 0 | K161: 0 | L161: 0 | M161: 0 | N161: ND | O161: PROFILO RUOLO RICERCA SANITARIA
A162: Collaboratore prof.le di ricerca sanitaria - D | B162: N16695 | C162: =IF(ISERROR(VLOOKUP($B162,IN_T1!$B$2:$Y$3000,2,FALSE))=TRUE,"",VLOOKUP($B162,IN_T1!$B$2:$Y$3000,2,FALSE)) -> 0 | D162: =IF(ISERROR(VLOOKUP($B162,IN_T1!$B$2:$Y$3000,3,FALSE))=TRUE,"",VLOOKUP($B162,IN_T1!$B$2:$Y$3000,3,FALSE)) -> 0 | E162: 0 | F162: 0 | G162: 0 | H162: 0 | I162: 0 | J162: 0 | K162: 0 | L162: 0 | M162: 0 | N162: ND | O162: PROFILO RUOLO RICERCA SANITARIA
A163: CONTRATTISTI (a) | B163: 000061 | C163: =IF(ISERROR(VLOOKUP($B163,IN_T1!$B$2:$Y$3000,2,FALSE))=TRUE,"",VLOOKUP($B163,IN_T1!$B$2:$Y$3000,2,FALSE)) -> 0 | D163: =IF(ISERROR(VLOOKUP($B163,IN_T1!$B$2:$Y$3000,3,FALSE))=TRUE,"",VLOOKUP($B163,IN_T1!$B$2:$Y$3000,3,FALSE)) -> 0 | E163: 0 | F163: 0 | G163: 0 | H163: 0 | I163: 0 | J163: 0 | K163: =E163+G163+I163 -> 0 | L163: =F163+H163+J163 -> 0 | M163: =IF((K163+L163)>0,1,0) -> 0 | N163: AP | O163: PERSONALE CONTRATTISTA
A164: TOTALE | C164: =SUM(C7:C163) -> 1218 | D164: 3868 | E164: 1177 | F164: 3123 | G164: 7 | H164: 76 | I164: 13 | J164: 641 | K164: 1197 | L164: 3840
A165: (a) personale a tempo indeterminato al quale viene applicato un contratto di lavoro di tipo privatistico (es.: tipografico, chimico, edile, metalmeccanico, portierato, ecc.) e personale ex medico condotto di cui all'art. 36, comma 3, del CCNL 10.2.2004
A166: ="(*) inserire i dati comunicati nella tab.1 (colonna presenti al 31/12/"&L1-1&") della rilevazione dell'anno precedente" -> (*) inserire i dati comunicati nella tab.1 (colonna presenti al 31/12/2021) della rilevazione dell'anno precedente
A167: (**) dato pari alla somma del personale a tempo pieno + in part-time fino al 50% + in part-time oltre il 50%
A168: (1) qualifica unica di dirigente delle professioni sanitarie infermieristiche, tecniche, della riabilitazione, della prevenzione e della professione ostetrica di cui agli artt. 8 e 9 del CCNL 17.10.2008
A169: (2) profili previsti dall'art.18 del CCNL 19 aprile 2004

Sheet IN_COCOCO (hidden)
A1: INFO1_A | B1: INFO1_B | C1: INFO1_C | D1: INFO2 | E1: INFO3_A | F1: INFO3_B | G1: INFO3_C | H1: INFO3_D | I1: INFO4_A | J1: INFO4_B | K1: INFO4_C | L1: INFO4_D | M1: CHECK_INFO1 | N1: CHECK_INFO2 | O1: CHECK_INFO3 | P1: CHECK_INFO4 | Q1: CHECK_INFO5

Sheet out_COCOCO (hidden)
A1: Info1_a | B1: Info1_b | C1: Info1_c | D1: Info2 | E1: Info3_a | F1: Info3_b | G1: Info3_c | H1: Info3_d | I1: Info4_a | J1: Info4_b | K1: Info4_c | L1: Info4_d | M1: check_info1 | N1: check_info2 | O1: check_info3 | P1: check_info4 | Q1: check_info5
A2: =COCOCO!G7 -> 0 | B2: =COCOCO!G8 -> 0 | C2: =COCOCO!G9 -> 90 | D2: =IF(COCOCO!G11="",-1,COCOCO!G11) -> 1 | E2: =COCOCO!G14 -> 63 | F2: =COCOCO!G15 -> 26 | G2: =COCOCO!G16 -> 0 | H2: =COCOCO!G17 -> 1 | I2: =COCOCO!G19 -> 82 | J2: =COCOCO!G22 -> 82 | K2: =COCOCO!G23 -> 0 | L2: =COCOCO!G24 -> 0 | M2: =COCOCO!H7 ->  | N2: =COCOCO!H11 ->  | O2: =COCOCO!H14 ->  | P2: =COCOCO!H19 ->  | Q2: =COCOCO!H22 -> 

Sheet IN_T1 (hidden)
A1: QUALIFICA | B1: COD_QUAL | C1: UOMINI_AP | D1: DONNE_AP | E1: UOMINI_TP | F1: DONNE_TP | G1: UOMINI_UNDER50 | H1: DONNE_UNDER50 | I1: UOMINI_OVER50 | J1: DONNE_OVER50 | K1: UOMINI_AC | L1: DONNE_AC
A2: Direttore generale | B2: 0D0097 | C2: 1 | D2: 0 | E2: 0 | F2: 0 | G2: 0 | H2: 0 | I2: 0 | J2: 0 | K2: 0 | L2: 0
A3: Direttore sanitario | B3: 0D0482 | C3: 1 | D3: 0 | E3: 0 | F3: 0 | G3: 0 | H3: 0 | I3: 0 | J3: 0 | K3: 0 | L3: 0
A4: Direttore amministrativo | B4: 0D0163 | C4: 1 | D4: 0 | E4: 0 | F4: 0 | G4: 0 | H4: 0 | I4: 0 | J4: 0 | K4: 0 | L4: 0
A5: Direttore dei servizi sociali | B5: 0D0484 | C5: 1 | D5: 0 | E5: 0 | F5: 0 | G5: 0 | H5: 0 | I5: 0 | J5: 0 | K5: 0 | L5: 0
A6: Dir. Medico con inc. Struttura complessa (rapp. Esclusivo) | B6: SD0E33 | C6: 17 | D6: 7 | E6: 0 | F6: 0 | G6: 0 | H6: 0 | I6: 0 | J6: 0 | K6: 0 | L6: 0
A7: Dir. Medico con inc. di struttura complessa (rapp. Non escl. | B7: SD0N33 | C7: 4 | D7: 0 | E7: 0 | F7: 0 | G7: 0 | H7: 0 | I7: 0 | J7: 0 | K7: 0 | L7: 0
A8: Dir. Medico con incarico di struttura semplice (rapp. Esclus | B8: SD0E34 | C8: 43 | D8: 31 | E8: 0 | F8: 0 | G8: 0 | H8: 0 | I8: 0 | J8: 0 | K8: 0 | L8: 0
A9: Dir. Medico con incarico struttura semplice (rapp. Non escl. | B9: SD0N34 | C9: 6 | D9: 1 | E9: 0 | F9: 0 | G9: 0 | H9: 0 | I9: 0 | J9: 0 | K9: 0 | L9: 0
A10: Dirigenti medici con altri incar. Prof.li (rapp. Esclusivo) | B10: SD0035 | C10: 235 | D10: 398 | E10: 0 | F10: 0 | G10: 0 | H10: 0 | I10: 0 | J10: 0 | K10: 0 | L10: 0
A11: Dirigenti medici con altri incar. Prof.li (rapp. Non escl.) | B11: SD0036 | C11: 32 | D11: 25 | E11: 0 | F11: 0 | G11: 0 | H11: 0 | I11: 0 | J11: 0 | K11: 0 | L11: 0
A12: Dir. Medici a t. Determinato(art. 15-septies d.lgs. 502/92) | B12: SD0597 | C12: 0 | D12: 0 | E12: 0 | F12: 0 | G12: 0 | H12: 0 | I12: 0 | J12: 0 | K12: 0 | L12: 0
A13: Veterinari con inc. di struttura complessa (rapp.esclusivo) | B13: SD0E74 | C13: 0 | D13: 0 | E13: 0 | F13: 0 | G13: 0 | H13: 0 | I13: 0 | J13: 0 | K13: 0 | L13: 0
A14: Veterinari con inc. di struttura complessa (rapp. Non escl.) | B14: SD0N74 | C14: 0 | D14: 0 | E14: 0 | F14: 0 | G14: 0 | H14: 0 | I14: 0 | J14: 0 | K14: 0 | L14: 0
A15: Veterinari con inc. di struttura semplice (rapp. Esclusivo) | B15: SD0E73 | C15: 0 | D15: 0 | E15: 0 | F15: 0 | G15: 0 | H15: 0 | I15: 0 | J15: 0 | K15: 0 | L15: 0
A16: Veterinari con inc. di struttura semplice (rapp. Non escl.) | B16: SD0N73 | C16: 0 | D16: 0 | E16: 0 | F16: 0 | G16: 0 | H16: 0 | I16: 0 | J16: 0 | K16: 0 | L16: 0
A17: Veterinari con altri incar. Prof.li (rapp. Esclusivo) | B17: SD0A73 | C17: 0 | D17: 0 | E17: 0 | F17: 0 | G17: 0 | H17: 0 | I17: 0 | J17: 0 | K17: 0 | L17: 0
A18: Veterinari con altri incar. Prof.li (rapp. Non escl.) | B18: SD0072 | C18: 0 | D18: 0 | E18: 0 | F18: 0 | G18: 0 | H18: 0 | I18: 0 | J18: 0 | K18: 0 | L18: 0
A19: Veterinari a t. determinato (art. 15-septies d.lgs. 502/92) | B19: SD0598 | C19: 0 | D19: 0 | E19: 0 | F19: 0 | G19: 0 | H19: 0 | I19: 0 | J19: 0 | K19: 0 | L19: 0
A20: Odontoiatri con inc. di struttura complessa (rapp. Escl.) | B20: SD0E49 | C20: 0 | D20: 0 | E20: 0 | F20: 0 | G20: 0 | H20: 0 | I20: 0 | J20: 0 | K20: 0 | L20: 0
A21: Odontoiatri con inc. di struttura complessa (rapp. Non escl. | B21: SD0N49 | C21: 0 | D21: 0 | E21: 0 | F21: 0 | G21: 0 | H21: 0 | I21: 0 | J21: 0 | K21: 0 | L21: 0
A22: Odontoiatri con inc. di struttura semplice (rapp. Esclusivo) | B22: SD0E48 | C22: 0 | D22: 0 | E22: 0 | F22: 0 | G22: 0 | H22: 0 | I22: 0 | J22: 0 | K22: 0 | L22: 0
A23: Odontoiatri con inc. di struttura semplice (rapp. Non escl.) | B23: SD0N48 | C23: 0 | D23: 0 | E23: 0 | F23: 0 | G23: 0 | H23: 0 | I23: 0 | J23: 0 | K23: 0 | L23: 0
A24: Odontoiatri con altri incar. Prof.li (rapp. Esclusivo) | B24: SD0A48 | C24: 0 | D24: 0 | E24: 0 | F24: 0 | G24: 0 | H24: 0 | I24: 0 | J24: 0 | K24: 0 | L24: 0
A25: Odontoiatri con altri incar. Prof.li (rapp. Non escl.) | B25: SD0047 | C25: 0 | D25: 0 | E25: 0 | F25: 0 | G25: 0 | H25: 0 | I25: 0 | J25: 0 | K25: 0 | L25: 0
A26: Odontoiatri a t. determinato (art. 15-septies d.lgs. 502/92) | B26: SD0599 | C26: 0 | D26: 0 | E26: 0 | F26: 0 | G26: 0 | H26: 0 | I26: 0 | J26: 0 | K26: 0 | L26: 0
A27: Farmacisti con inc. di struttura complessa (rapp. Esclusivo) | B27: SD0E39 | C27: 0 | D27: 1 | E27: 0 | F27: 0 | G27: 0 | H27: 0 | I27: 0 | J27: 0 | K27: 0 | L27: 0
A28: Farmacisti con inc. di struttura complessa (rapp. Non escl.) | B28: SD0N39 | C28: 0 | D28: 0 | E28: 0 | F28: 0 | G28: 0 | H28: 0 | I28: 0 | J28: 0 | K28: 0 | L28: 0
A29: Farmacisti con inc. di struttura semplice (rapp. Esclusivo) | B29: SD0E38 | C29: 1 | D29: 3 | E29: 0 | F29: 0 | G29: 0 | H29: 0 | I29: 0 | J29: 0 | K29: 0 | L29: 0
A30: Farmacisti con inc. di struttura semplice (rapp. Non escl.) | B30: SD0N38 | C30: 0 | D30: 0 | E30: 0 | F30: 0 | G30: 0 | H30: 0 | I30: 0 | J30: 0 | K30: 0 | L30: 0
A31: Farmacisti con altri incar. Prof.li (rapp. Esclusivo) | B31: SD0A38 | C31: 2 | D31: 6 | E31: 0 | F31: 0 | G31: 0 | H31: 0 | I31: 0 | J31: 0 | K31: 0 | L31: 0
A32: Farmacisti con altri incar. Prof.li (rapp. Non escl.) | B32: SD0037 | C32: 0 | D32: 0 | E32: 0 | F32: 0 | G32: 0 | H32: 0 | I32: 0 | J32: 0 | K32: 0 | L32: 0
A33: Farmacisti a t. determinato (art. 15-septies d.lgs. 502/92) | B33: SD0600 | C33: 0 | D33: 0 | E33: 0 | F33: 0 | G33: 0 | H33: 0 | I33: 0 | J33: 0 | K33: 0 | L33: 0
A34: Biologi con inc. di struttura complessa (rapp. Esclusivo) | B34: SD0E13 | C34: 0 | D34: 0 | E34: 0 | F34: 0 | G34: 0 | H34: 0 | I34: 0 | J34: 0 | K34: 0 | L34: 0
A35: Biologi con inc. di struttura complessa (rapp. Non escl.) | B35: SD0N13 | C35: 0 | D35: 0 | E35: 0 | F35: 0 | G35: 0 | H35: 0 | I35: 0 | J35: 0 | K35: 0 | L35: 0
A36: Biologi con inc. di struttura semplice (rapp. Esclusivo) | B36: SD0E12 | C36: 0 | D36: 1 | E36: 0 | F36: 0 | G36: 0 | H36: 0 | I36: 0 | J36: 0 | K36: 0 | L36: 0
A37: Biologi con inc. di struttura semplice (rapp. Non escl.) | B37: SD0N12 | C37: 0 | D37: 0 | E37: 0 | F37: 0 | G37: 0 | H37: 0 | I37: 0 | J37: 0 | K37: 0 | L37: 0
A38: Biologi con altri incar. Prof.li (rapp. Esclusivo) | B38: SD0A12 | C38: 4 | D38: 13 | E38: 0 | F38: 0 | G38: 0 | H38: 0 | I38: 0 | J38: 0 | K38: 0 | L38: 0
A39: Biologi con altri incar. Prof.li (rapp. Non escl.) | B39: SD0011 | C39: 0 | D39: 0 | E39: 0 | F39: 0 | G39: 0 | H39: 0 | I39: 0 | J39: 0 | K39: 0 | L39: 0
A40: Biologi a t. determinato (art. 15-septies d.lgs. 502/92) | B40: SD0601 | C40: 0 | D40: 0 | E40: 0 | F40: 0 | G40: 0 | H40: 0 | I40: 0 | J40: 0 | K40: 0 | L40: 0
A41: Chimici con inc. di struttura complessa (rapp. Esclusivo) | B41: SD0E16 | C41: 0 | D41: 0 | E41: 0 | F41: 0 | G41: 0 | H41: 0 | I41: 0 | J41: 0 | K41: 0 | L41: 0
A42: Chimici con inc. di struttura complessa (rapp.non escl.) | B42: SD0N16 | C42: 0 | D42: 0 | E42: 0 | F42: 0 | G42: 0 | H42: 0 | I42: 0 | J42: 0 | K42: 0 | L42: 0
A43: Chimici con inc. di struttura semplice (rapp. Esclusivo) | B43: SD0E15 | C43: 0 | D43: 0 | E43: 0 | F43: 0 | G43: 0 | H43: 0 | I43: 0 | J43: 0 | K43: 0 | L43: 0
A44: Chimici con inc. di struttura semplice (rapp. Non escl.) | B44: SD0N15 | C44: 0 | D44: 0 | E44: 0 | F44: 0 | G44: 0 | H44: 0 | I44: 0 | J44: 0 | K44: 0 | L44: 0
A45: Chimici con altri incar. Prof.li (rapp. Esclusivo) | B45: SD0A15 | C45: 1 | D45: 0 | E45: 0 | F45: 0 | G45: 0 | H45: 0 | I45: 0 | J45: 0 | K45: 0 | L45: 0
A46: Chimici con altri incar. Prof.li (rapp. Non escl.) | B46: SD0014 | C46: 0 | D46: 0 | E46: 0 | F46: 0 | G46: 0 | H46: 0 | I46: 0 | J46: 0 | K46: 0 | L46: 0
A47: Chimici a t. determinato (art. 15-septies d.lgs. 502/92) | B47: SD0602 | C47: 0 | D47: 0 | E47: 0 | F47: 0 | G47: 0 | H47: 0 | I47: 0 | J47: 0 | K47: 0 | L47: 0
A48: Fisici con inc. di struttura complessa (rapp. Esclusivo) | B48: SD0E42 | C48: 0 | D48: 0 | E48: 0 | F48: 0 | G48: 0 | H48: 0 | I48: 0 | J48: 0 | K48: 0 | L48: 0
A49: Fisici con inc. di struttura complessa (rapp. Non escl.) | B49: SD0N42 | C49: 0 | D49: 0 | E49: 0 | F49: 0 | G49: 0 | H49: 0 | I49: 0 | J49: 0 | K49: 0 | L49: 0
A50: Fisici con inc. di struttura semplice (rapp. Esclusivo) | B50: SD0E41 | C50: 0 | D50: 0 | E50: 0 | F50: 0 | G50: 0 | H50: 0 | I50: 0 | J50: 0 | K50: 0 | L50: 0
A51: Fisici con inc. di struttura semplice (rapp. Non escl.) | B51: SD0N41 | C51: 0 | D51: 0 | E51: 0 | F51: 0 | G51: 0 | H51: 0 | I51: 0 | J51: 0 | K51: 0 | L51: 0
A52: Fisici con altri incar. Prof.li (rapp. Esclusivo) | B52: SD0A41 | C52: 2 | D52: 5 | E52: 0 | F52: 0 | G52: 0 | H52: 0 | I52: 0 | J52: 0 | K52: 0 | L52: 0
A53: Fisici con altri incar. Prof.li (rapp. Non escl.) | B53: SD0040 | C53: 0 | D53: 0 | E53: 0 | F53: 0 | G53: 0 | H53: 0 | I53: 0 | J53: 0 | K53: 0 | L53: 0
A54: Fisici a t. determinato (art. 15-septies d.lgs. 502/92) | B54: SD0603 | C54: 0 | D54: 0 | E54: 0 | F54: 0 | G54: 0 | H54: 0 | I54: 0 | J54: 0 | K54: 0 | L54: 0
A55: Psicologi con inc. di struttura complessa (rapp. Esclusivo) | B55: SD0E66 | C55: 0 | D55: 0 | E55: 0 | F55: 0 | G55: 0 | H55: 0 | I55: 0 | J55: 0 | K55: 0 | L55: 0
A56: Psicologi con inc. di struttura complessa (rapp. Non escl.) | B56: SD0N66 | C56: 0 | D56: 0 | E56: 0 | F56: 0 | G56: 0 | H56: 0 | I56: 0 | J56: 0 | K56: 0 | L56: 0
A57: Psicologi con inc. di struttura semplice (rapp. Esclusivo) | B57: SD0E65 | C57: 0 | D57: 0 | E57: 0 | F57: 0 | G57: 0 | H57: 0 | I57: 0 | J57: 0 | K57: 0 | L57: 0
A58: Psicologi con inc. di struttura semplice (rapp. Non escl.) | B58: SD0N65 | C58: 0 | D58: 0 | E58: 0 | F58: 0 | G58: 0 | H58: 0 | I58: 0 | J58: 0 | K58: 0 | L58: 0
A59: Psicologi con altri incar. Prof.li (rapp. Esclusivo) | B59: SD0A65 | C59: 1 | D59: 22 | E59: 0 | F59: 0 | G59: 0 | H59: 0 | I59: 0 | J59: 0 | K59: 0 | L59: 0
A60: Psicologi con altri incar. Prof.li (rapp. Non escl.) | B60: SD0064 | C60: 0 | D60: 0 | E60: 0 | F60: 0 | G60: 0 | H60: 0 | I60: 0 | J60: 0 | K60: 0 | L60: 0
A61: Psicologi a t. determinato (art. 15-septies d.lgs. 502/92) | B61: SD0604 | C61: 0 | D61: 1 | E61: 0 | F61: 0 | G61: 0 | H61: 0 | I61: 0 | J61: 0 | K61: 0 | L61: 0
A62: Dirigente prof. Sanit. Inferm/ostetrica (inc. Strut. Compl.) | B62: SD0CO1 | C62: 0 | D62: 1 | E62: 0 | F62: 0 | G62: 0 | H62: 0 | I62: 0 | J62: 0 | K62: 0 | L62: 0
A63: Dirigente prof. Sanit. Inferm/ostetrica (inc. Strut. Sempl.) | B63: SD0SE1 | C63: 0 | D63: 0 | E63: 0 | F63: 0 | G63: 0 | H63: 0 | I63: 0 | J63: 0 | K63: 0 | L63: 0
A64: Dirigente prof. Sanit. Inferm/ostetrica (altri inc. Prof.li) | B64: SD0AI1 | C64: 1 | D64: 0 | E64: 0 | F64: 0 | G64: 0 | H64: 0 | I64: 0 | J64: 0 | K64: 0 | L64: 0
A65: Dir. Prof.san.inferm/ostet t.det.art.15-septies dlgs 502/92 | B65: SD048B | C65: 0 | D65: 0 | E65: 0 | F65: 0 | G65: 0 | H65: 0 | I65: 0 | J65: 0 | K65: 0 | L65: 0
A66: Dirigente prof. Sanit. Riabilitative (inc. Strut. Compl.) | B66: SD0CO2 | C66: 0 | D66: 0 | E66: 0 | F66: 0 | G66: 0 | H66: 0 | I66: 0 | J66: 0 | K66: 0 | L66: 0
A67: Dirigente prof. Sanit. Riabilitative (inc. Strut. Sempl.) | B67: SD0SE2 | C67: 0 | D67: 0 | E67: 0 | F67: 0 | G67: 0 | H67: 0 | I67: 0 | J67: 0 | K67: 0 | L67: 0
A68: Dirigente prof. Sanit. Riabilitative (altri inc. Prof.li) | B68: SD0AI2 | C68: 0 | D68: 0 | E68: 0 | F68: 0 | G68: 0 | H68: 0 | I68: 0 | J68: 0 | K68: 0 | L68: 0
A69: Dir. Prof. San. Riabilitat. T.det.art.15-septies dlgs 502/92 | B69: SD048C | C69: 0 | D69: 0 | E69: 0 | F69: 0 | G69: 0 | H69: 0 | I69: 0 | J69: 0 | K69: 0 | L69: 0
A70: Dirigente prof. Tecnico sanitarie (inc. Strut. Compl.) | B70: SD0CO3 | C70: 0 | D70: 0 | E70: 0 | F70: 0 | G70: 0 | H70: 0 | I70: 0 | J70: 0 | K70: 0 | L70: 0
A71: Dirigente prof. Tecnico sanitarie (inc. Strut. Sempl.) | B71: SD0SE3 | C71: 0 | D71: 0 | E71: 0 | F71: 0 | G71: 0 | H71: 0 | I71: 0 | J71: 0 | K71: 0 | L71: 0
A72: Dirigente prof. Tecnico sanitarie (altri inc. Prof.li) | B72: SD0AI3 | C72: 0 | D72: 0 | E72: 0 | F72: 0 | G72: 0 | H72: 0 | I72: 0 | J72: 0 | K72: 0 | L72: 0
A73: Dir. Prof.tecnico sanitarie t.det.art.15-septies dlgs 502/92 | B73: SD048D | C73: 0 | D73: 0 | E73: 0 | F73: 0 | G73: 0 | H73: 0 | I73: 0 | J73: 0 | K73: 0 | L73: 0
A74: Dirigente prof.tecniche della prevenzione (inc.strut.compl.) | B74: SD0CO4 | C74: 0 | D74: 0 | E74: 0 | F74: 0 | G74: 0 | H74: 0 | I74: 0 | J74: 0 | K74: 0 | L74: 0
A75: Dirigente prof.tecniche della prevenzione (inc.strut.sempl.) | B75: SD0SE4 | C75: 0 | D75: 0 | E75: 0 | F75: 0 | G75: 0 | H75: 0 | I75: 0 | J75: 0 | K75: 0 | L75: 0
A76: Dirigente prof.tecniche della prevenzione(altri inc.prof.li) | B76: SD0AI4 | C76: 0 | D76: 0 | E76: 0 | F76: 0 | G76: 0 | H76: 0 | I76: 0 | J76: 0 | K76: 0 | L76: 0
A77: Dir. Prof.tecniche prevenz. T.det.art.15-septies dlgs 502/92 | B77: SD048E | C77: 0 | D77: 0 | E77: 0 | F77: 0 | G77: 0 | H77: 0 | I77: 0 | J77: 0 | K77: 0 | L77: 0
A78: Coll.re prof.le sanitario - pers. Infer. Senior - ds | B78: S18863 | C78: 9 | D78: 106 | E78: 0 | F78: 0 | G78: 0 | H78: 0 | I78: 0 | J78: 0 | K78: 0 | L78: 0
A79: Coll.re prof.le sanitario - pers. Infer. - D | B79: S16020 | C79: 369 | D79: 1858 | E79: 0 | F79: 0 | G79: 0 | H79: 0 | I79: 0 | J79: 0 | K79: 0 | L79: 0
A80: Oper.re prof.le sanitario pers. Inferm. - C | B80: S14056 | C80: 0 | D80: 0 | E80: 0 | F80: 0 | G80: 0 | H80: 0 | I80: 0 | J80: 0 | K80: 0 | L80: 0
A81: Oper.re prof.le di ii cat.pers. Inferm. Senior-C | B81: S14S52 | C81: 0 | D81: 9 | E81: 0 | F81: 0 | G81: 0 | H81: 0 | I81: 0 | J81: 0 | K81: 0 | L81: 0
A82: Oper.re prof.le di ii cat.pers. Inferm. Bs | B82: S13052 | C82: 0 | D82: 2 | E82: 0 | F82: 0 | G82: 0 | H82: 0 | I82: 0 | J82: 0 | K82: 0 | L82: 0
A83: Coll.re prof.le sanitario - pers. Tec. Senior - DS | B83: S18864 | C83: 3 | D83: 0 | E83: 0 | F83: 0 | G83: 0 | H83: 0 | I83: 0 | J83: 0 | K83: 0 | L83: 0
A84: Coll.re prof.le sanitario - pers. Tec.- D | B84: S16021 | C84: 98 | D84: 195 | E84: 0 | F84: 0 | G84: 0 | H84: 0 | I84: 0 | J84: 0 | K84: 0 | L84: 0
A85: Oper.re prof.le sanitario - pers. Tec.- C | B85: S14054 | C85: 0 | D85: 0 | E85: 0 | F85: 0 | G85: 0 | H85: 0 | I85: 0 | J85: 0 | K85: 0 | L85: 0
A86: Coll.re prof.le sanitario - tecn. della prev. senior - ds | B86: S18865 | C86: 0 | D86: 0 | E86: 0 | F86: 0 | G86: 0 | H86: 0 | I86: 0 | J86: 0 | K86: 0 | L86: 0
A87: Coll.re prof.le sanitario - tecn. della prev. - d | B87: S16022 | C87: 0 | D87: 0 | E87: 0 | F87: 0 | G87: 0 | H87: 0 | I87: 0 | J87: 0 | K87: 0 | L87: 0
A88: Oper.re prof.le sanitario - tecn. della prev. - c | B88: S14055 | C88: 0 | D88: 0 | E88: 0 | F88: 0 | G88: 0 | H88: 0 | I88: 0 | J88: 0 | K88: 0 | L88: 0
A89: Coll.re prof.le sanitario - pers. della riabil. senior - ds | B89: S18866 | C89: 0 | D89: 5 | E89: 0 | F89: 0 | G89: 0 | H89: 0 | I89: 0 | J89: 0 | K89: 0 | L89: 0
A90: Coll.re prof.le sanitario - pers. della riabil. - d | B90: S16019 | C90: 21 | D90: 101 | E90: 0 | F90: 0 | G90: 0 | H90: 0 | I90: 0 | J90: 0 | K90: 0 | L90: 0
A91: Oper.re prof.le di ii cat. con funz. di riabil. senior - c | B91: S14S51 | C91: 0 | D91: 5 | E91: 0 | F91: 0 | G91: 0 | H91: 0 | I91: 0 | J91: 0 | K91: 0 | L91: 0
A92: Oper.re prof.le sanitario - pers. della riabil. - c | B92: S14053 | C92: 0 | D92: 0 | E92: 0 | F92: 0 | G92: 0 | H92: 0 | I92: 0 | J92: 0 | K92: 0 | L92: 0
A93: Oper.re prof.le di ii cat. con funz. di riabil. - bs | B93: S13051 | C93: 0 | D93: 0 | E93: 0 | F93: 0 | G93: 0 | H93: 0 | I93: 0 | J93: 0 | K93: 0 | L93: 0
A94: Profilo atipico ruolo sanitario | B94: S00062 | C94: 0 | D94: 0 | E94: 0 | F94: 0 | G94: 0 | H94: 0 | I94: 0 | J94: 0 | K94: 0 | L94: 0
A95: Avvocato dirig. Con incarico di struttura complessa | B95: PD0010 | C95: 1 | D95: 0 | E95: 0 | F95: 0 | G95: 0 | H95: 0 | I95: 0 | J95: 0 | K95: 0 | L95: 0
A96: Avvocato dirig. Con incarico di struttura semplice | B96: PD0S09 | C96: 0 | D96: 0 | E96: 0 | F96: 0 | G96: 0 | H96: 0 | I96: 0 | J96: 0 | K96: 0 | L96: 0
A97: Avvocato dirig. Con altri incar.prof.li | B97: PD0A09 | C97: 0 | D97: 0 | E97: 0 | F97: 0 | G97: 0 | H97: 0 | I97: 0 | J97: 0 | K97: 0 | L97: 0
A98: Avvocato dir. A t. Determinato(art. 15-septies dlgs. 502/92) | B98: PD0605 | C98: 0 | D98: 0 | E98: 0 | F98: 0 | G98: 0 | H98: 0 | I98: 0 | J98: 0 | K98: 0 | L98: 0
A99: Ingegnere dirig. Con incarico di struttura complessa | B99: PD0046 | C99: 4 | D99: 1 | E99: 0 | F99: 0 | G99: 0 | H99: 0 | I99: 0 | J99: 0 | K99: 0 | L99: 0
A100: Ingegnere dirig. Con incarico di struttura semplice | B100: PD0S45 | C100: 0 | D100: 0 | E100: 0 | F100: 0 | G100: 0 | H100: 0 | I100: 0 | J100: 0 | K100: 0 | L100: 0
A101: Ingegnere dirig. Con altri incar.prof.li | B101: PD0A45 | C101: 1 | D101: 0 | E101: 0 | F101: 0 | G101: 0 | H101: 0 | I101: 0 | J101: 0 | K101: 0 | L101: 0
A102: Ingegnere dir. A t. Determinato(art.15-septies dlgs. 502/92) | B102: PD0606 | C102: 0 | D102: 0 | E102: 0 | F102: 0 | G102: 0 | H102: 0 | I102: 0 | J102: 0 | K102: 0 | L102: 0
A103: Architetti dirig. Con incarico di struttura complessa | B103: PD0004 | C103: 0 | D103: 0 | E103: 0 | F103: 0 | G103: 0 | H103: 0 | I103: 0 | J103: 0 | K103: 0 | L103: 0
A104: Architetti dirig. Con incarico di struttura semplice | B104: PD0S03 | C104: 0 | D104: 0 | E104: 0 | F104: 0 | G104: 0 | H104: 0 | I104: 0 | J104: 0 | K104: 0 | L104: 0
A105: Architetti dirig. Con altri incar.prof.li | B105: PD0A03 | C105: 1 | D105: 0 | E105: 0 | F105: 0 | G105: 0 | H105: 0 | I105: 0 | J105: 0 | K105: 0 | L105: 0
A106: Architetti dir. A t.determinato(art. 15-septies dlgs.502/92) | B106: PD0607 | C106: 0 | D106: 0 | E106: 0 | F106: 0 | G106: 0 | H106: 0 | I106: 0 | J106: 0 | K106: 0 | L106: 0
A107: Geologi dirig. Con incarico di struttura complessa | B107: PD0044 | C107: 0 | D107: 0 | E107: 0 | F107: 0 | G107: 0 | H107: 0 | I107: 0 | J107: 0 | K107: 0 | L107: 0
A108: Geologi dirig. Con incarico di struttura semplice | B108: PD0S43 | C108: 0 | D108: 0 | E108: 0 | F108: 0 | G108: 0 | H108: 0 | I108: 0 | J108: 0 | K108: 0 | L108: 0
A109: Geologi dirig. Con altri incar.prof.li | B109: PD0A43 | C109: 0 | D109: 0 | E109: 0 | F109: 0 | G109: 0 | H109: 0 | I109: 0 | J109: 0 | K109: 0 | L109: 0
A110: Geologi dir. A t. Determinato(art. 15-septies dlgs. 502/92) | B110: PD0608 | C110: 0 | D110: 0 | E110: 0 | F110: 0 | G110: 0 | H110: 0 | I110: 0 | J110: 0 | K110: 0 | L110: 0
A111: Assistente religioso - D | B111: P16006 | C111: 1 | D111: 0 | E111: 0 | F111: 0 | G111: 0 | H111: 0 | I111: 0 | J111: 0 | K111: 0 | L111: 0
A112: Specialista della comunicazione istituzionale - D | B112: PSP871 | C112: 0 | D112: 0 | E112: 0 | F112: 0 | G112: 0 | H112: 0 | I112: 0 | J112: 0 | K112: 0 | L112: 0
A113: Specialista nei rapporti con i media, giornalista pubblico - D | B113: PSP872 | C113: 0 | D113: 0 | E113: 0 | F113: 0 | G113: 0 | H113: 0 | I113: 0 | J113: 0 | K113: 0 | L113: 0
A114: Profilo atipico ruolo professionale | B114: P00062 | C114: 0 | D114: 0 | E114: 0 | F114: 0 | G114: 0 | H114: 0 | I114: 0 | J114: 0 | K114: 0 | L114: 0
A115: Analisti dirig. Con incarico di struttura complessa | B115: TD0002 | C115: 0 | D115: 0 | E115: 0 | F115: 0 | G115: 0 | H115: 0 | I115: 0 | J115: 0 | K115: 0 | L115: 0
A116: Analisti dirig. Con incarico di struttura semplice | B116: TD0S01 | C116: 0 | D116: 0 | E116: 0 | F116: 0 | G116: 0 | H116: 0 | I116: 0 | J116: 0 | K116: 0 | L116: 0
A117: Analisti dirig. Con altri incar.prof.li | B117: TD0A01 | C117: 0 | D117: 0 | E117: 0 | F117: 0 | G117: 0 | H117: 0 | I117: 0 | J117: 0 | K117: 0 | L117: 0
A118: Analisti dir. A t. Determinato(art. 15-septies dlgs. 502/92) | B118: TD0609 | C118: 0 | D118: 0 | E118: 0 | F118: 0 | G118: 0 | H118: 0 | I118: 0 | J118: 0 | K118: 0 | L118: 0
A119: Statistico dirig. Con incarico di struttura complessa | B119: TD0071 | C119: 0 | D119: 0 | E119: 0 | F119: 0 | G119: 0 | H119: 0 | I119: 0 | J119: 0 | K119: 0 | L119: 0
A120: Statistico dirig. Con incarico di struttura semplice | B120: TD0S70 | C120: 0 | D120: 0 | E120: 0 | F120: 0 | G120: 0 | H120: 0 | I120: 0 | J120: 0 | K120: 0 | L120: 0
A121: Statistico dirig. Con altri incar.prof.li | B121: TD0A70 | C121: 0 | D121: 0 | E121: 0 | F121: 0 | G121: 0 | H121: 0 | I121: 0 | J121: 0 | K121: 0 | L121: 0
A122: Statistico dir. A t.determinato(art. 15-septies dlgs.502/92) | B122: TD0610 | C122: 0 | D122: 0 | E122: 0 | F122: 0 | G122: 0 | H122: 0 | I122: 0 | J122: 0 | K122: 0 | L122: 0
A123: Sociologo dirig. Con incarico di struttura complessa | B123: TD0068 | C123: 0 | D123: 0 | E123: 0 | F123: 0 | G123: 0 | H123: 0 | I123: 0 | J123: 0 | K123: 0 | L123: 0
A124: Sociologo dirig. Con incarico di struttura semplice | B124: TD0S67 | C124: 0 | D124: 0 | E124: 0 | F124: 0 | G124: 0 | H124: 0 | I124: 0 | J124: 0 | K124: 0 | L124: 0
A125: Sociologo dirig. Con altri incar.prof.li | B125: TD0A67 | C125: 0 | D125: 0 | E125: 0 | F125: 0 | G125: 0 | H125: 0 | I125: 0 | J125: 0 | K125: 0 | L125: 0
A126: Sociologo dir. A t. Determinato(art.15-septies dlgs. 502/92) | B126: TD0611 | C126: 0 | D126: 0 | E126: 0 | F126: 0 | G126: 0 | H126: 0 | I126: 0 | J126: 0 | K126: 0 | L126: 0
A127: Dir. Ambientale con incarico di struttura complessa | B127: TD0C02 | C127: 0 | D127: 0 | E127: 0 | F127: 0 | G127: 0 | H127: 0 | I127: 0 | J127: 0 | K127: 0 | L127: 0
A128: Dir. Ambientale con incarico di struttura semplice | B128: TD0S02 | C128: 0 | D128: 0 | E128: 0 | F128: 0 | G128: 0 | H128: 0 | I128: 0 | J128: 0 | K128: 0 | L128: 0
A129: Dir. Ambientale con altri incar.prof.li | B129: TD0A02 | C129: 0 | D129: 0 | E129: 0 | F129: 0 | G129: 0 | H129: 0 | I129: 0 | J129: 0 | K129: 0 | L129: 0
A130: Dir. Ambientale a t. determinato (art.15-septies dlgs 502/92) | B130: TD0810 | C130: 0 | D130: 0 | E130: 0 | F130: 0 | G130: 0 | H130: 0 | I130: 0 | J130: 0 | K130: 0 | L130: 0
A131: Collab.re prof.le assistente sociale senior - DS | B131: T18867 | C131: 0 | D131: 1 | E131: 0 | F131: 0 | G131: 0 | H131: 0 | I131: 0 | J131: 0 | K131: 0 | L131: 0
A132: Collab.re prof.le assistente sociale - D | B132: T16024 | C132: 1 | D132: 31 | E132: 0 | F132: 0 | G132: 0 | H132: 0 | I132: 0 | J132: 0 | K132: 0 | L132: 0
A133: Collab.re tec. - prof.le senior - DS | B133: T18868 | C133: 0 | D133: 0 | E133: 0 | F133: 0 | G133: 0 | H133: 0 | I133: 0 | J133: 0 | K133: 0 | L133: 0
A134: Collab.re tec. - prof.le - D | B134: T16026 | C134: 10 | D134: 4 | E134: 0 | F134: 0 | G134: 0 | H134: 0 | I134: 0 | J134: 0 | K134: 0 | L134: 0
A135: Oper.re prof.le assistente soc. - C | B135: T14050 | C135: 0 | D135: 0 | E135: 0 | F135: 0 | G135: 0 | H135: 0 | I135: 0 | J135: 0 | K135: 0 | L135: 0
A136: Assistente tecnico - C | B136: T14007 | C136: 14 | D136: 2 | E136: 0 | F136: 0 | G136: 0 | H136: 0 | I136: 0 | J136: 0 | K136: 0 | L136: 0
A137: Program.re - C | B137: T14063 | C137: 0 | D137: 0 | E137: 0 | F137: 0 | G137: 0 | H137: 0 | I137: 0 | J137: 0 | K137: 0 | L137: 0
A138: Operatore tecnico special.to senior - C | B138: T14S59 | C138: 54 | D138: 4 | E138: 0 | F138: 0 | G138: 0 | H138: 0 | I138: 0 | J138: 0 | K138: 0 | L138: 0
A139: Operatore tecnico special.to - BS | B139: T13059 | C139: 55 | D139: 17 | E139: 0 | F139: 0 | G139: 0 | H139: 0 | I139: 0 | J139: 0 | K139: 0 | L139: 0
A140: Operatore socio sanitario - BS | B140: T13660 | C140: 87 | D140: 469 | E140: 0 | F140: 0 | G140: 0 | H140: 0 | I140: 0 | J140: 0 | K140: 0 | L140: 0
A141: Operatore tecnico - B | B141: T12057 | C141: 30 | D141: 23 | E141: 0 | F141: 0 | G141: 0 | H141: 0 | I141: 0 | J141: 0 | K141: 0 | L141: 0
A142: Operatore tecnico addetto all'assistenza - B | B142: T12058 | C142: 3 | D142: 10 | E142: 0 | F142: 0 | G142: 0 | H142: 0 | I142: 0 | J142: 0 | K142: 0 | L142: 0
A143: Ausiliario specializzato - A | B143: T11008 | C143: 21 | D143: 96 | E143: 0 | F143: 0 | G143: 0 | H143: 0 | I143: 0 | J143: 0 | K143: 0 | L143: 0
A144: Profilo atipico ruolo tecnico | B144: T00062 | C144: 0 | D144: 0 | E144: 0 | F144: 0 | G144: 0 | H144: 0 | I144: 0 | J144: 0 | K144: 0 | L144: 0
A145: Dirigente amm.vo con incarico di struttura complessa | B145: AD0032 | C145: 2 | D145: 1 | E145: 0 | F145: 0 | G145: 0 | H145: 0 | I145: 0 | J145: 0 | K145: 0 | L145: 0
A146: Dirigente amm.vo con incarico di struttura semplice | B146: AD0S31 | C146: 1 | D146: 1 | E146: 0 | F146: 0 | G146: 0 | H146: 0 | I146: 0 | J146: 0 | K146: 0 | L146: 0
A147: Dirigente amm.vo con altri incar.prof.li | B147: AD0A31 | C147: 1 | D147: 2 | E147: 0 | F147: 0 | G147: 0 | H147: 0 | I147: 0 | J147: 0 | K147: 0 | L147: 0
A148: Dirig. Amm.vo a t. determinato (art. 15-septies dlgs.502/92) | B148: AD0612 | C148: 0 | D148: 0 | E148: 0 | F148: 0 | G148: 0 | H148: 0 | I148: 0 | J148: 0 | K148: 0 | L148: 0
A149: Collaboratore amministrativo prof.le senior - DS | B149: A18869 | C149: 3 | D149: 1 | E149: 0 | F149: 0 | G149: 0 | H149: 0 | I149: 0 | J149: 0 | K149: 0 | L149: 0
A150: Collaboratore amministrativo prof.le - D | B150: A16028 | C150: 20 | D150: 54 | E150: 0 | F150: 0 | G150: 0 | H150: 0 | I150: 0 | J150: 0 | K150: 0 | L150: 0
A151: Assistente amministrativo - C | B151: A14005 | C151: 32 | D151: 217 | E151: 0 | F151: 0 | G151: 0 | H151: 0 | I151: 0 | J151: 0 | K151: 0 | L151: 0
A152: Coadiutore amm.vo senior - BS | B152: A13870 | C152: 12 | D152: 83 | E152: 0 | F152: 0 | G152: 0 | H152: 0 | I152: 0 | J152: 0 | K152: 0 | L152: 0
A153: Coadiutore amm.vo - B | B153: A12017 | C153: 9 | D153: 49 | E153: 0 | F153: 0 | G153: 0 | H153: 0 | I153: 0 | J153: 0 | K153: 0 | L153: 0
A154: Commesso - A | B154: A11030 | C154: 2 | D154: 6 | E154: 0 | F154: 0 | G154: 0 | H154: 0 | I154: 0 | J154: 0 | K154: 0 | L154: 0
A155: Profilo atipico ruolo amministrativo | B155: A00062 | C155: 0 | D155: 0 | E155: 0 | F155: 0 | G155: 0 | H155: 0 | I155: 0 | J155: 0 | K155: 0 | L155: 0
A156: Ricercatore sanitario - DS | B156: N18694 | C156: 0 | D156: 0 | E156: 0 | F156: 0 | G156: 0 | H156: 0 | I156: 0 | J156: 0 | K156: 0 | L156: 0
A157: Collaboratore prof.le di ricerca sanitaria - D | B157: N16695 | C157: 0 | D157: 0 | E157: 0 | F157: 0 | G157: 0 | H157: 0 | I157: 0 | J157: 0 | K157: 0 | L157: 0
A158: CONTRATTISTI (a) | B158: 000061 | C158: 0 | D158: 0 | E158: 0 | F158: 0 | G158: 0 | H158: 0 | I158: 0 | J158: 0 | K158: 0 | L158: 0

Sheet IN_T1_NOTE (hidden)
A1: NOTE | B1: ID_NUM | C1: TIPO

Sheet 1A
A1: ='t1'!A1 -> SERVIZIO SANITARIO NAZIONALE - anno 2022 | E1: =IF(STRUTTURE!A2=0,"",STRUTTURE!A2) ->  | F1: =IF(STRUTTURE!A3=0,"",STRUTTURE!A3) -> 030710 | G1: =IF(STRUTTURE!A4=0,"",STRUTTURE!A4) -> 030010 | H1: =IF(STRUTTURE!A5=0,"",STRUTTURE!A5) -> 030012 | I1: =IF(STRUTTURE!A6=0,"",STRUTTURE!A6) -> 030282 | J1: =IF(STRUTTURE!A7=0,"",STRUTTURE!A7) -> 030901 | K1: =IF(STRUTTURE!A8=0,"",STRUTTURE!A8) ->  | L1: =IF(STRUTTURE!A9=0,"",STRUTTURE!A9) ->  | M1: =IF(STRUTTURE!A10=0,"",STRUTTURE!A10) ->  | N1: =IF(STRUTTURE!A11=0,"",STRUTTURE!A11) ->  | O1: =IF(STRUTTURE!A12=0,"",STRUTTURE!A12) ->  | P1: =IF(STRUTTURE!A13=0,"",STRUTTURE!A13) -> 
H2: =IF(COUNTIF(S10:S74,"ERRORE")=0,"","ATTENZIONE! Il numero delle unità di personale 'comandato ad altri Enti', per ciascuna figura professionale, non può essere superiore al 'Personale al 31/12' ") -> 
A3: TAB.1A - PERSONALE DELL'AZIENDA SANITARIA PER FIGURA PROFESSIONALE
A4: FIGURA PROFESSIONALE(*) | B4: CODICE | D4: STRUTTURA | E4: TEMPO INDETERMINATO | I4: TEMPO DETERMINATO | M4: COM. DA | O4: COM. AD | Q4: PERSONALE
E5: TEMPO PIENO | G5: TEMPO PARZ. | I5: TEMPO PIENO | K5: TEMPO PARZ. | M5: ALTRI ENTI | O5: ALTRI ENTI | Q5: ="31/12/"&'t1'!L1 -> 31/12/2022
E6: Uomini | F6: Donne | G6: Uomini | H6: Donne | I6: Uomini | J6: Donne | K6: Uomini | L6: Donne | M6: Uomini | N6: Donne | O6: Uomini | P6: Donne | Q6: Uomini | R6: Donne
A7: PROFESSIONI SANITARIE INFERMIERISTICHE
A8: COLLABORATORE PROFESSIONALE SANITARIO
E9: 0 | F9: 0 | G9: 0 | H9: 0 | I9: 0 | J9: 0 | K9: 0 | L9: 0 | M9: 0 | N9: 0 | O9: 0 | P9: 0 | Q9: 0 | R9: 0
A10: Infermiere | B10: S07INA | C10: 1 | D10: 030710 | E10: 23 | F10: 100 | G10: 0 | H10: 40 | I10: 1 | J10: 0 | K10: 0 | L10: 0 | M10: 0 | N10: 0 | O10: 0 | P10: 0 | Q10: =E10+G10 -> 23 | R10: =F10+H10 -> 140 | S10: =IF(O10>Q10,"ERRORE",IF(P10>R10,"ERRORE","")) -> 
A11: Ostetrica | B11: S07INC | C11: 1 | D11: =CONCATENATE(D$10) -> 030710 | E11: 0 | F11: 12 | G11: 0 | H11: 6 | I11: 0 | J11: 0 | K11: 0 | L11: 0 | M11: 0 | N11: 0 | O11: 0 | P11: 0 | Q11: =E11+G11 -> 0 | R11: =F11+H11 -> 18 | S11: =IF(O11>Q11,"ERRORE",IF(P11>R11,"ERRORE","")) -> 
A12: Infermiere pediatrico | B12: S07IND | C12: 1 | D12: =CONCATENATE(D$10) -> 030710 | E12: 0 | F12: 2 | G12: 0 | H12: 0 | I12: 0 | J12: 0 | K12: 0 | L12: 0 | M12: 0 | N12: 0 | O12: 0 | P12: 0 | Q12: 0 | R12: 2 | S12: =IF(O12>Q12,"ERRORE",IF(P12>R12,"ERRORE","")) -> 
A13: OPERATORE PROFESSIONALE SANITARIO
A14: Infermiere | B14: S06INA | C14: 1 | D14: =CONCATENATE(D$10) -> 030710 | E14: 0 | F14: 0 | G14: 0 | H14: 0 | I14: 0 | J14: 0 | K14: 0 | L14: 0 | M14: 0 | N14: 0 | O14: 0 | P14: 0 | Q14: 0 | R14: 0 | S14: =IF(O14>Q14,"ERRORE",IF(P14>R14,"ERRORE","")) -> 
A15: Ostetrica | B15: S06INC | C15: 1 | D15: =CONCATENATE(D$10) -> 030710 | E15: 0 | F15: 0 | G15: 0 | H15: 0 | I15: 0 | J15: 0 | K15: 0 | L15: 0 | M15: 0 | N15: 0 | O15: 0 | P15: 0 | Q15: 0 | R15: 0 | S15: =IF(O15>Q15,"ERRORE",IF(P15>R15,"ERRORE","")) -> 
A16: Infermiere pediatrico | B16: S06IND | C16: 1 | D16: =CONCATENATE(D$10) -> 030710 | E16: 0 | F16: 0 | G16: 0 | H16: 0 | I16: 0 | J16: 0 | K16: 0 | L16: 0 | M16: 0 | N16: 0 | O16: 0 | P16: 0 | Q16: 0 | R16: 0 | S16: =IF(O16>Q16,"ERRORE",IF(P16>R16,"ERRORE","")) -> 
A17: OPERATORE PROFESSIONALE 2^ CAT.
A18: Infermiere generico | B18: S05INA | C18: 1 | D18: =CONCATENATE(D$10) -> 030710 | E18: 0 | F18: 0 | G18: 0 | H18: 0 | I18: 0 | J18: 0 | K18: 0 | L18: 0 | M18: 0 | N18: 0 | O18: 0 | P18: 0 | Q18: 0 | R18: 0 | S18: =IF(O18>Q18,"ERRORE",IF(P18>R18,"ERRORE","")) -> 
A19: Infermiere psichiatrico 1 anno scuola | B19: S05INB | C19: 1 | D19: =CONCATENATE(D$10) -> 030710 | E19: 0 | F19: 0 | G19: 0 | H19: 0 | I19: 0 | J19: 0 | K19: 0 | L19: 0 | M19: 0 | N19: 0 | O19: 0 | P19: 0 | Q19: 0 | R19: 0 | S19: =IF(O19>Q19,"ERRORE",IF(P19>R19,"ERRORE","")) -> 
A20: Puericultrice | B20: S05INC | C20: 1 | D20: =CONCATENATE(D$10) -> 030710 | E20: 0 | F20: 0 | G20: 0 | H20: 0 | I20: 0 | J20: 0 | K20: 0 | L20: 0 | M20: 0 | N20: 0 | O20: 0 | P20: 0 | Q20: 0 | R20: 0 | S20: =IF(O20>Q20,"ERRORE",IF(P20>R20,"ERRORE","")) -> 
A21: PROFESSIONI TECNICO SANITARIE E DELLA PREVENZIONE
A22: COLLABORATORE PROFESSIONALE SANITARIO
A23: Dietista | B23: S07INE | C23: 1 | D23: =CONCATENATE(D$10) -> 030710 | E23: 0 | F23: 0 | G23: 0 | H23: 0 | I23: 0 | J23: 0 | K23: 0 | L23: 0 | M23: 0 | N23: 0 | O23: 0 | P23: 0 | Q23: 0 | R23: 0 | S23: =IF(O23>Q23,"ERRORE",IF(P23>R23,"ERRORE","")) -> 
A24: Igienista dentale | B24: S07TSE | C24: 1 | D24: 030710 | E24: 0 | F24: 0 | G24: 0 | H24: 0 | I24: 0 | J24: 0 | K24: 0 | L24: 0 | M24: 0 | N24: 0 | O24: 0 | P24: 0 | Q24: 0 | R24: 0
A25: Tecnico audioprotesista | B25: S07RIE | C25: 1 | D25: 030710 | E25: 0 | F25: 0 | G25: 0 | H25: 0 | I25: 0 | J25: 0 | K25: 0 | L25: 0 | M25: 0 | N25: 0 | O25: 0 | P25: 0 | Q25: 0 | R25: 0
A26: Tecnico audiometrista | B26: S07RIF | C26: 1 | D26: 030710 | E26: 0 | F26: 0 | G26: 0 | H26: 0 | I26: 0 | J26: 0 | K26: 0 | L26: 0 | M26: 0 | N26: 0 | O26: 0 | P26: 0 | Q26: 0 | R26: 0
A27: Assistente sanitario | B27: S07INB | C27: 1 | D27: 030710 | E27: 0 | F27: 0 | G27: 0 | H27: 0 | I27: 0 | J27: 0 | K27: 0 | L27: 0 | M27: 0 | N27: 0 | O27: 0 | P27: 0 | Q27: 0 | R27: 0
A28: Tecnico della prevenzione nell'ambiente e nei luoghi di lavoro | B28: S07TSH | C28: 1 | D28: 030710 | E28: 0 | F28: 0 | G28: 0 | H28: 0 | I28: 0 | J28: 0 | K28: 0 | L28: 0 | M28: 0 | N28: 0 | O28: 0 | P28: 0 | Q28: 0 | R28: 0
A29: Tecnico di neurofisiopatologia | B29: S07TSA | C29: 1 | D29: 030710 | E29: 0 | F29: 0 | G29: 0 | H29: 0 | I29: 0 | J29: 0 | K29: 0 | L29: 0 | M29: 0 | N29: 0 | O29: 0 | P29: 0 | Q29: 0 | R29: 0
A30: Tecnico sanitario di laboratorio biomedico | B30: S07TSB | C30: 1 | D30: 030710 | E30: 0 | F30: 0 | G30: 0 | H30: 0 | I30: 0 | J30: 0 | K30: 0 | L30: 0 | M30: 0 | N30: 0 | O30: 0 | P30: 0 | Q30: 0 | R30: 0
A31: Tecnico sanitario di radiologia medica | B31: S07TSC | C31: 1 | D31: 030710 | E31: 0 | F31: 0 | G31: 0 | H31: 0 | I31: 0 | J31: 0 | K31: 0 | L31: 0 | M31: 0 | N31: 0 | O31: 0 | P31: 0 | Q31: 0 | R31: 0
A32: Tecnico di fisiopatologia cardiocircol. e profusione cardiovasc. | B32: S07TSD | C32: 1 | D32: 030710 | E32: 0 | F32: 0 | G32: 0 | H32: 0 | I32: 0 | J32: 0 | K32: 0 | L32: 0 | M32: 0 | N32: 0 | O32: 0 | P32: 0 | Q32: 0 | R32: 0
A33: Ottico | B33: S07TSF | C33: 1 | D33: 030710 | E33: 0 | F33: 0 | G33: 0 | H33: 0 | I33: 0 | J33: 0 | K33: 0 | L33: 0 | M33: 0 | N33: 0 | O33: 0 | P33: 0 | Q33: 0 | R33: 0
A34: Odontotecnico | B34: S07TSG | C34: 1 | D34: 030710 | E34: 0 | F34: 0 | G34: 0 | H34: 0 | I34: 0 | J34: 0 | K34: 0 | L34: 0 | M34: 0 | N34: 0 | O34: 0 | P34: 0 | Q34: 0 | R34: 0
A35: Tecnico ortopedico | B35: S07RIG | C35: 1 | D35: 030710 | E35: 0 | F35: 0 | G35: 0 | H35: 0 | I35: 0 | J35: 0 | K35: 0 | L35: 0 | M35: 0 | N35: 0 | O35: 0 | P35: 0 | Q35: 0 | R35: 0
A36: OPERATORE PROFESSIONALE SANITARIO
A37: Dietista | B37: S06INE | C37: 1 | D37: =CONCATENATE(D$10) -> 030710 | E37: 0 | F37: 0 | G37: 0 | H37: 0 | I37: 0 | J37: 0 | K37: 0 | L37: 0 | M37: 0 | N37: 0 | O37: 0 | P37: 0 | Q37: 0 | R37: 0 | S37: =IF(O37>Q37,"ERRORE",IF(P37>R37,"ERRORE","")) -> 
A38: Igienista dentale | B38: S06TSE | C38: 1 | D38: 030710 | E38: 0 | F38: 0 | G38: 0 | H38: 0 | I38: 0 | J38: 0 | K38: 0 | L38: 0 | M38: 0 | N38: 0 | O38: 0 | P38: 0 | Q38: 0 | R38: 0
A39: Tecnico audioprotesista | B39: S06RIE | C39: 1 | D39: 030710 | E39: 0 | F39: 0 | G39: 0 | H39: 0 | I39: 0 | J39: 0 | K39: 0 | L39: 0 | M39: 0 | N39: 0 | O39: 0 | P39: 0 | Q39: 0 | R39: 0
A40: Tecnico audiometrista | B40: S06RIF | C40: 1 | D40: 030710 | E40: 0 | F40: 0 | G40: 0 | H40: 0 | I40: 0 | J40: 0 | K40: 0 | L40: 0 | M40: 0 | N40: 0 | O40: 0 | P40: 0 | Q40: 0 | R40: 0
A41: Assistente sanitario | B41: S06INB | C41: 1 | D41: 030710 | E41: 0 | F41: 0 | G41: 0 | H41: 0 | I41: 0 | J41: 0 | K41: 0 | L41: 0 | M41: 0 | N41: 0 | O41: 0 | P41: 0 | Q41: 0 | R41: 0
A42: Tecnico della prevenzione nell'ambiente e nei luoghi di lavoro | B42: S06TSH | C42: 1 | D42: 030710 | E42: 0 | F42: 0 | G42: 0 | H42: 0 | I42: 0 | J42: 0 | K42: 0 | L42: 0 | M42: 0 | N42: 0 | O42: 0 | P42: 0 | Q42: 0 | R42: 0
A43: Tecnico di neurofisiopatologia | B43: S06TSA | C43: 1 | D43: 030710 | E43: 0 | F43: 0 | G43: 0 | H43: 0 | I43: 0 | J43: 0 | K43: 0 | L43: 0 | M43: 0 | N43: 0 | O43: 0 | P43: 0 | Q43: 0 | R43: 0
A44: Tecnico sanitario di laboratorio biomedico | B44: S06TSB | C44: 1 | D44: 030710 | E44: 0 | F44: 0 | G44: 0 | H44: 0 | I44: 0 | J44: 0 | K44: 0 | L44: 0 | M44: 0 | N44: 0 | O44: 0 | P44: 0 | Q44: 0 | R44: 0
A45: Tecnico sanitario di radiologia medica | B45: S06TSC | C45: 1 | D45: 030710 | E45: 0 | F45: 0 | G45: 0 | H45: 0 | I45: 0 | J45: 0 | K45: 0 | L45: 0 | M45: 0 | N45: 0 | O45: 0 | P45: 0 | Q45: 0 | R45: 0
A46: Tecnico di fisiopatologia cardiocircol. e profusione cardiovasc. | B46: S06TSD | C46: 1 | D46: 030710 | E46: 0 | F46: 0 | G46: 0 | H46: 0 | I46: 0 | J46: 0 | K46: 0 | L46: 0 | M46: 0 | N46: 0 | O46: 0 | P46: 0 | Q46: 0 | R46: 0
A47: Ottico | B47: S06TSF | C47: 1 | D47: 030710 | E47: 0 | F47: 0 | G47: 0 | H47: 0 | I47: 0 | J47: 0 | K47: 0 | L47: 0 | M47: 0 | N47: 0 | O47: 0 | P47: 0 | Q47: 0 | R47: 0
A48: Odontotecnico | B48: S06TSG | C48: 1 | D48: 030710 | E48: 0 | F48: 0 | G48: 0 | H48: 0 | I48: 0 | J48: 0 | K48: 0 | L48: 0 | M48: 0 | N48: 0 | O48: 0 | P48: 0 | Q48: 0 | R48: 0
A49: Tecnico ortopedico | B49: S06RIG | C49: 1 | D49: 030710 | E49: 0 | F49: 0 | G49: 0 | H49: 0 | I49: 0 | J49: 0 | K49: 0 | L49: 0 | M49: 0 | N49: 0 | O49: 0 | P49: 0 | Q49: 0 | R49: 0
A50: PROFESSIONI SANITARIE RIABILITATIVE
A51: COLLABORATORE PROFESSIONALE SANITARIO
A52: Fisioterapista | B52: S07RIA | C52: 1 | D52: =CONCATENATE(D$10) -> 030710 | E52: 0 | F52: 0 | G52: 0 | H52: 1 | I52: 0 | J52: 0 | K52: 0 | L52: 0 | M52: 0 | N52: 0 | O52: 0 | P52: 0 | Q52: 0 | R52: 1 | S52: =IF(O52>Q52,"ERRORE",IF(P52>R52,"ERRORE","")) -> 
A53: Logopedista | B53: S07RIB | C53: 1 | D53: 030710 | E53: 0 | F53: 0 | G53: 0 | H53: 0 | I53: 0 | J53: 0 | K53: 0 | L53: 0 | M53: 0 | N53: 0 | O53: 0 | P53: 0 | Q53: 0 | R53: 0
A54: Ortottista - assistente di oftalmologia | B54: S07RIC | C54: 1 | D54: 030710 | E54: 0 | F54: 0 | G54: 0 | H54: 0 | I54: 0 | J54: 0 | K54: 0 | L54: 0 | M54: 0 | N54: 0 | O54: 0 | P54: 0 | Q54: 0 | R54: 0
A55: Massaggiatore non vedente | B55: S07RID | C55: 1 | D55: 030710 | E55: 0 | F55: 0 | G55: 0 | H55: 0 | I55: 0 | J55: 0 | K55: 0 | L55: 0 | M55: 0 | N55: 0 | O55: 0 | P55: 0 | Q55: 0 | R55: 0
A56: Podologo | B56: S07INF | C56: 1 | D56: 030710 | E56: 0 | F56: 0 | G56: 0 | H56: 0 | I56: 0 | J56: 1 | K56: 0 | L56: 0 | M56: 0 | N56: 0 | O56: 0 | P56: 0 | Q56: 0 | R56: 0
A57: Educatore professionale | B57: S07RIH | C57: 1 | D57: 030710 | E57: 0 | F57: 3 | G57: 0 | H57: 2 | I57: 0 | J57: 0 | K57: 0 | L57: 0 | M57: 0 | N57: 0 | O57: 0 | P57: 0 | Q57: 0 | R57: 5
A58: Terapista della neuro e psicomotricità dell’età evolutiva | B58: S07RII | C58: 1 | D58: 030710 | E58: 0 | F58: 0 | G58: 0 | H58: 0 | I58: 0 | J58: 0 | K58: 0 | L58: 0 | M58: 0 | N58: 0 | O58: 0 | P58: 0 | Q58: 0 | R58: 0
A59: Tecnico dell’educazione e riabilit. psichiatrica e psicosociale | B59: S07RIJ | C59: 1 | D59: 030710 | E59: 0 | F59: 0 | G59: 0 | H59: 0 | I59: 0 | J59: 0 | K59: 0 | L59: 0 | M59: 0 | N59: 0 | O59: 0 | P59: 0 | Q59: 0 | R59: 0
A60: Terapista occupazionale | B60: S07RIK | C60: 1 | D60: 030710 | E60: 0 | F60: 0 | G60: 0 | H60: 0 | I60: 0 | J60: 0 | K60: 0 | L60: 0 | M60: 0 | N60: 0 | O60: 0 | P60: 0 | Q60: 0 | R60: 0
A61: OPERATORE PROFESSIONALE SANITARIO
A62: Fisioterapista | B62: S06RIA | C62: 1 | D62: =CONCATENATE(D$10) -> 030710 | E62: 0 | F62: 0 | G62: 0 | H62: 0 | I62: 0 | J62: 0 | K62: 0 | L62: 0 | M62: 0 | N62: 0 | O62: 0 | P62: 0 | Q62: 0 | R62: 0 | S62: =IF(O62>Q62,"ERRORE",IF(P62>R62,"ERRORE","")) -> 
A63: Logopedista | B63: S06RIB | C63: 1 | D63: 030710 | E63: 0 | F63: 0 | G63: 0 | H63: 0 | I63: 0 | J63: 0 | K63: 0 | L63: 0 | M63: 0 | N63: 0 | O63: 0 | P63: 0 | Q63: 0 | R63: 0
A64: Ortottista - assistente di oftalmologia | B64: S06RIC | C64: 1 | D64: 030710 | E64: 0 | F64: 0 | G64: 0 | H64: 0 | I64: 0 | J64: 0 | K64: 0 | L64: 0 | M64: 0 | N64: 0 | O64: 0 | P64: 0 | Q64: 0 | R64: 0
A65: Massaggiatore non vedente | B65: S06RID | C65: 1 | D65: 030710 | E65: 0 | F65: 0 | G65: 0 | H65: 0 | I65: 0 | J65: 0 | K65: 0 | L65: 0 | M65: 0 | N65: 0 | O65: 0 | P65: 0 | Q65: 0 | R65: 0
A66: Podologo | B66: S06INF | C66: 1 | D66: 030710 | E66: 0 | F66: 0 | G66: 0 | H66: 0 | I66: 0 | J66: 0 | K66: 0 | L66: 0 | M66: 0 | N66: 0 | O66: 0 | P66: 0 | Q66: 0 | R66: 0
A67: Educatore professionale | B67: S06RIH | C67: 1 | D67: 030710 | E67: 0 | F67: 0 | G67: 0 | H67: 0 | I67: 0 | J67: 0 | K67: 0 | L67: 0 | M67: 0 | N67: 0 | O67: 0 | P67: 0 | Q67: 0 | R67: 0
A68: Terapista della neuro e psicomotricità dell’età evolutiva | B68: S06RII | C68: 1 | D68: 030710 | E68: 0 | F68: 0 | G68: 0 | H68: 0 | I68: 0 | J68: 0 | K68: 0 | L68: 0 | M68: 0 | N68: 0 | O68: 0 | P68: 0 | Q68: 0 | R68: 0
A69: Tecnico dell’educazione e riabilit. psichiatrica e psicosociale | B69: S06RIJ | C69: 1 | D69: 030710 | E69: 0 | F69: 0 | G69: 0 | H69: 0 | I69: 0 | J69: 0 | K69: 0 | L69: 0 | M69: 0 | N69: 0 | O69: 0 | P69: 0 | Q69: 0 | R69: 0
A70: Terapista occupazionale | B70: S06RIK | C70: 1 | D70: 030710 | E70: 0 | F70: 0 | G70: 0 | H70: 0 | I70: 0 | J70: 0 | K70: 0 | L70: 0 | M70: 0 | N70: 0 | O70: 0 | P70: 0 | Q70: 0 | R70: 0
A71: Tecnico della riabilitazione psichiatrica | B71: S06RIL | C71: 1 | D71: 030710 | E71: 0 | F71: 0 | G71: 0 | H71: 0 | I71: 0 | J71: 0 | K71: 0 | L71: 0 | M71: 0 | N71: 0 | O71: 0 | P71: 0 | Q71: 0 | R71: 0
A72: OPERATORE PROFESSIONALE 2^ CAT.
A73: Massaggiatore/massofisioterapista | B73: S05RIN | C73: 1 | D73: =CONCATENATE(D$10) -> 030710 | E73: 0 | F73: 0 | G73: 0 | H73: 0 | I73: 0 | J73: 0 | K73: 0 | L73: 0 | M73: 0 | N73: 0 | O73: 0 | P73: 0 | Q73: 0 | R73: 0 | S73: =IF(O73>Q73,"ERRORE",IF(P73>R73,"ERRORE","")) -> 
A74: TOTALE | D74: =CONCATENATE(D$10) -> 030710 | E74: =SUM(E10:E73) -> 23 | F74: =SUM(F10:F73) -> 117 | G74: 0 | H74: 49 | I74: 1 | J74: 1 | K74: 0 | L74: 0 | M74: 0 | N74: 0 | O74: 0 | P74: 0 | Q74: =SUM(Q10:Q73) -> 23 | R74: =SUM(R10:R73) -> 166 | S74: =IF(O74>Q74,"ERRORE",IF(P74>R74,"ERRORE","")) -> 
A75: (*) il personale con qualifica di collaboratore professionale sanitario esperto “ds” delle quattro aree professionali (infermieri, tecnici sanitari e della prevenzione, personale riabilitazione) va considerato insieme al personale con profilo di collaboratore professionale sanitario di categoria “d”
A77: PROFESSIONI SANITARIE INFERMIERISTICHE
A78: COLLABORATORE PROFESSIONALE SANITARIO
A79: Infermiere | B79: S07INA | C79: 2 | D79: 030010 | E79: 29 | F79: 145 | G79: 0 | H79: 48 | I79: 0 | J79: 0 | K79: 0 | L79: 0 | M79: 0 | N79: 0 | O79: 0 | P79: 0 | Q79: =E79+G79 -> 29 | R79: =F79+H79 -> 193
A80: Ostetrica | B80: S07INC | C80: 2 | D80: =CONCATENATE(D$79) -> 030010 | E80: 1 | F80: 15 | G80: 0 | H80: 4 | I80: 0 | J80: 0 | K80: 0 | L80: 0 | M80: 0 | N80: 0 | O80: 0 | P80: 0 | Q80: =E80+G80 -> 1 | R80: 19
A81: Infermiere pediatrico | B81: S07IND | C81: 2 | D81: =CONCATENATE(D$79) -> 030010 | E81: 0 | F81: 1 | G81: 0 | H81: 0 | I81: 0 | J81: 0 | K81: 0 | L81: 0 | M81: 0 | N81: 0 | O81: 0 | P81: 0 | Q81: 0 | R81: 1 | S81: =IF(O81>Q81,"ERRORE",IF(P81>R81,"ERRORE","")) -> 
A82: OPERATORE PROFESSIONALE SANITARIO | S82: =IF(O82>Q82,"ERRORE",IF(P82>R82,"ERRORE","")) -> 
A83: Infermiere | B83: S06INA | C83: 2 | D83: =CONCATENATE(D$79) -> 030010 | E83: 0 | F83: 0 | G83: 0 | H83: 0 | I83: 0 | J83: 0 | K83: 0 | L83: 0 | M83: 0 | N83: 0 | O83: 0 | P83: 0 | Q83: 0 | R83: 0 | S83: =IF(O83>Q83,"ERRORE",IF(P83>R83,"ERRORE","")) -> 
A84: Ostetrica | B84: S06INC | C84: 2 | D84: =CONCATENATE(D$79) -> 030010 | E84: 0 | F84: 0 | G84: 0 | H84: 0 | I84: 0 | J84: 0 | K84: 0 | L84: 0 | M84: 0 | N84: 0 | O84: 0 | P84: 0 | Q84: 0 | R84: 0
A85: Infermiere pediatrico | B85: S06IND | C85: 2 | D85: =CONCATENATE(D$79) -> 030010 | E85: 0 | F85: 0 | G85: 0 | H85: 0 | I85: 0 | J85: 0 | K85: 0 | L85: 0 | M85: 0 | N85: 0 | O85: 0 | P85: 0 | Q85: 0 | R85: 0 | S85: =IF(O85>Q85,"ERRORE",IF(P85>R85,"ERRORE","")) -> 
A86: OPERATORE PROFESSIONALE 2^ CAT. | S86: =IF(O86>Q86,"ERRORE",IF(P86>R86,"ERRORE","")) -> 
A87: Infermiere generico | B87: S05INA | C87: 2 | D87: =CONCATENATE(D$79) -> 030010 | E87: 0 | F87: 0 | G87: 0 | H87: 0 | I87: 0 | J87: 0 | K87: 0 | L87: 0 | M87: 0 | N87: 0 | O87: 0 | P87: 0 | Q87: 0 | R87: 0 | S87: =IF(O87>Q87,"ERRORE",IF(P87>R87,"ERRORE","")) -> 
A88: Infermiere psichiatrico 1 anno scuola | B88: S05INB | C88: 2 | D88: =CONCATENATE(D$79) -> 030010 | E88: 0 | F88: 0 | G88: 0 | H88: 0 | I88: 0 | J88: 0 | K88: 0 | L88: 0 | M88: 0 | N88: 0 | O88: 0 | P88: 0 | Q88: 0 | R88: 0
A89: Puericultrice | B89: S05INC | C89: 2 | D89: =CONCATENATE(D$79) -> 030010 | E89: 0 | F89: 0 | G89: 0 | H89: 0 | I89: 0 | J89: 0 | K89: 0 | L89: 0 | M89: 0 | N89: 0 | O89: 0 | P89: 0 | Q89: 0 | R89: 0 | S89: =IF(O89>Q89,"ERRORE",IF(P89>R89,"ERRORE","")) -> 
A90: PROFESSIONI TECNICO SANITARIE E DELLA PREVENZIONE | S90: =IF(O90>Q90,"ERRORE",IF(P90>R90,"ERRORE","")) -> 
A91: COLLABORATORE PROFESSIONALE SANITARIO | S91: =IF(O91>Q91,"ERRORE",IF(P91>R91,"ERRORE","")) -> 
A92: Dietista | B92: S07INE | C92: 2 | D92: =CONCATENATE(D$79) -> 030010 | E92: 0 | F92: 1 | G92: 0 | H92: 0 | I92: 0 | J92: 0 | K92: 0 | L92: 0 | M92: 0 | N92: 0 | O92: 0 | P92: 0 | Q92: 0 | R92: 1
A93: Igienista dentale | B93: S07TSE | C93: 2 | D93: 030010 | E93: 0 | F93: 0 | G93: 0 | H93: 0 | I93: 0 | J93: 0 | K93: 0 | L93: 0 | M93: 0 | N93: 0 | O93: 0 | P93: 0 | Q93: 0 | R93: 0
A94: Tecnico audioprotesista | B94: S07RIE | C94: 2 | D94: 030010 | E94: 0 | F94: 0 | G94: 0 | H94: 0 | I94: 0 | J94: 0 | K94: 0 | L94: 0 | M94: 0 | N94: 0 | O94: 0 | P94: 0 | Q94: 0 | R94: 0 | S94: =IF(O94>Q94,"ERRORE",IF(P94>R94,"ERRORE","")) -> 
A95: Tecnico audiometrista | B95: S07RIF | C95: 2 | D95: 030010 | E95: 0 | F95: 0 | G95: 0 | H95: 0 | I95: 0 | J95: 0 | K95: 0 | L95: 0 | M95: 0 | N95: 0 | O95: 0 | P95: 0 | Q95: 0 | R95: 0
A96: Assistente sanitario | B96: S07INB | C96: 2 | D96: 030010 | E96: 0 | F96: 0 | G96: 0 | H96: 0 | I96: 0 | J96: 0 | K96: 0 | L96: 0 | M96: 0 | N96: 0 | O96: 0 | P96: 0 | Q96: 0 | R96: 0
A97: Tecnico della prevenzione nell'ambiente e nei luoghi di lavoro | B97: S07TSH | C97: 2 | D97: 030010 | E97: 0 | F97: 0 | G97: 0 | H97: 0 | I97: 0 | J97: 0 | K97: 0 | L97: 0 | M97: 0 | N97: 0 | O97: 0 | P97: 0 | Q97: 0 | R97: 0
A98: Tecnico di neurofisiopatologia | B98: S07TSA | C98: 2 | D98: 030010 | E98: 0 | F98: 2 | G98: 0 | H98: 0 | I98: 0 | J98: 0 | K98: 0 | L98: 0 | M98: 0 | N98: 0 | O98: 0 | P98: 0 | Q98: 0 | R98: 2
A99: Tecnico sanitario di laboratorio biomedico | B99: S07TSB | C99: 2 | D99: 030010 | E99: 1 | F99: 4 | G99: 0 | H99: 1 | I99: 0 | J99: 1 | K99: 0 | L99: 0 | M99: 0 | N99: 0 | O99: 0 | P99: 0 | Q99: 1 | R99: 5
A100: Tecnico sanitario di radiologia medica | B100: S07TSC | C100: 2 | D100: 030010 | E100: 6 | F100: 5 | G100: 0 | H100: 2 | I100: 0 | J100: 0 | K100: 0 | L100: 0 | M100: 0 | N100: 0 | O100: 0 | P100: 0 | Q100: 6 | R100: 7
A101: Tecnico di fisiopatologia cardiocircol. e profusione cardiovasc. | B101: S07TSD | C101: 2 | D101: 030010 | E101: 0 | F101: 0 | G101: 0 | H101: 0 | I101: 0 | J101: 0 | K101: 0 | L101: 0 | M101: 0 | N101: 0 | O101: 0 | P101: 0 | Q101: 0 | R101: 0
A102: Ottico | B102: S07TSF | C102: 2 | D102: 030010 | E102: 0 | F102: 0 | G102: 0 | H102: 0 | I102: 0 | J102: 0 | K102: 0 | L102: 0 | M102: 0 | N102: 0 | O102: 0 | P102: 0 | Q102: 0 | R102: 0
A103: Odontotecnico | B103: S07TSG | C103: 2 | D103: 030010 | E103: 0 | F103: 0 | G103: 0 | H103: 0 | I103: 0 | J103: 0 | K103: 0 | L103: 0 | M103: 0 | N103: 0 | O103: 0 | P103: 0 | Q103: 0 | R103: 0
A104: Tecnico ortopedico | B104: S07RIG | C104: 2 | D104: 030010 | E104: 0 | F104: 0 | G104: 0 | H104: 0 | I104: 0 | J104: 0 | K104: 0 | L104: 0 | M104: 0 | N104: 0 | O104: 0 | P104: 0 | Q104: 0 | R104: 0
A105: OPERATORE PROFESSIONALE SANITARIO
A106: Dietista | B106: S06INE | C106: 2 | D106: 030010 | E106: 0 | F106: 0 | G106: 0 | H106: 0 | I106: 0 | J106: 0 | K106: 0 | L106: 0 | M106: 0 | N106: 0 | O106: 0 | P106: 0 | Q106: 0 | R106: 0
A107: Igienista dentale | B107: S06TSE | C107: 2 | D107: 030010 | E107: 0 | F107: 0 | G107: 0 | H107: 0 | I107: 0 | J107: 0 | K107: 0 | L107: 0 | M107: 0 | N107: 0 | O107: 0 | P107: 0 | Q107: 0 | R107: 0
A108: Tecnico audioprotesista | B108: S06RIE | C108: 2 | D108: 030010 | E108: 0 | F108: 0 | G108: 0 | H108: 0 | I108: 0 | J108: 0 | K108: 0 | L108: 0 | M108: 0 | N108: 0 | O108: 0 | P108: 0 | Q108: 0 | R108: 0 | S108: =IF(O108>Q108,"ERRORE",IF(P108>R108,"ERRORE","")) -> 
A109: Tecnico audiometrista | B109: S06RIF | C109: 2 | D109: 030010 | E109: 0 | F109: 0 | G109: 0 | H109: 0 | I109: 0 | J109: 0 | K109: 0 | L109: 0 | M109: 0 | N109: 0 | O109: 0 | P109: 0 | Q109: 0 | R109: 0
A110: Assistente sanitario | B110: S06INB | C110: 2 | D110: 030010 | E110: 0 | F110: 0 | G110: 0 | H110: 0 | I110: 0 | J110: 0 | K110: 0 | L110: 0 | M110: 0 | N110: 0 | O110: 0 | P110: 0 | Q110: 0 | R110: 0
A111: Tecnico della prevenzione nell'ambiente e nei luoghi di lavoro | B111: S06TSH | C111: 2 | D111: 030010 | E111: 0 | F111: 0 | G111: 0 | H111: 0 | I111: 0 | J111: 0 | K111: 0 | L111: 0 | M111: 0 | N111: 0 | O111: 0 | P111: 0 | Q111: 0 | R111: 0
A112: Tecnico di neurofisiopatologia | B112: S06TSA | C112: 2 | D112: 030010 | E112: 0 | F112: 0 | G112: 0 | H112: 0 | I112: 0 | J112: 0 | K112: 0 | L112: 0 | M112: 0 | N112: 0 | O112: 0 | P112: 0 | Q112: 0 | R112: 0
A113: Tecnico sanitario di laboratorio biomedico | B113: S06TSB | C113: 2 | D113: 030010 | E113: 0 | F113: 0 | G113: 0 | H113: 0 | I113: 0 | J113: 0 | K113: 0 | L113: 0 | M113: 0 | N113: 0 | O113: 0 | P113: 0 | Q113: 0 | R113: 0
A114: Tecnico sanitario di radiologia medica | B114: S06TSC | C114: 2 | D114: 030010 | E114: 0 | F114: 0 | G114: 0 | H114: 0 | I114: 0 | J114: 0 | K114: 0 | L114: 0 | M114: 0 | N114: 0 | O114: 0 | P114: 0 | Q114: 0 | R114: 0
A115: Tecnico di fisiopatologia cardiocircol. e profusione cardiovasc. | B115: S06TSD | C115: 2 | D115: 030010 | E115: 0 | F115: 0 | G115: 0 | H115: 0 | I115: 0 | J115: 0 | K115: 0 | L115: 0 | M115: 0 | N115: 0 | O115: 0 | P115: 0 | Q115: 0 | R115: 0
A116: Ottico | B116: S06TSF | C116: 2 | D116: 030010 | E116: 0 | F116: 0 | G116: 0 | H116: 0 | I116: 0 | J116: 0 | K116: 0 | L116: 0 | M116: 0 | N116: 0 | O116: 0 | P116: 0 | Q116: 0 | R116: 0
A117: Odontotecnico | B117: S06TSG | C117: 2 | D117: 030010 | E117: 0 | F117: 0 | G117: 0 | H117: 0 | I117: 0 | J117: 0 | K117: 0 | L117: 0 | M117: 0 | N117: 0 | O117: 0 | P117: 0 | Q117: 0 | R117: 0
A118: Tecnico ortopedico | B118: S06RIG | C118: 2 | D118: 030010 | E118: 0 | F118: 0 | G118: 0 | H118: 0 | I118: 0 | J118: 0 | K118: 0 | L118: 0 | M118: 0 | N118: 0 | O118: 0 | P118: 0 | Q118: 0 | R118: 0
A119: PROFESSIONI SANITARIE RIABILITATIVE
A120: COLLABORATORE PROFESSIONALE SANITARIO
A121: Fisioterapista | B121: S07RIA | C121: 2 | D121: =CONCATENATE(D$79) -> 030010 | E121: 2 | F121: 7 | G121: 0 | H121: 2 | I121: 0 | J121: 0 | K121: 0 | L121: 0 | M121: 0 | N121: 0 | O121: 0 | P121: 0 | Q121: 2 | R121: 9
A122: Logopedista | B122: S07RIB | C122: 2 | D122: 030010 | E122: 0 | F122: 0 | G122: 0 | H122: 0 | I122: 0 | J122: 0 | K122: 0 | L122: 0 | M122: 0 | N122: 0 | O122: 0 | P122: 0 | Q122: 0 | R122: 0
A123: Ortottista - assistente di oftalmologia | B123: S07RIC | C123: 2 | D123: 030010 | E123: 0 | F123: 0 | G123: 0 | H123: 1 | I123: 0 | J123: 0 | K123: 0 | L123: 0 | M123: 0 | N123: 0 | O123: 0 | P123: 0 | Q123: 0 | R123: 1 | S123: =IF(O123>Q123,"ERRORE",IF(P123>R123,"ERRORE","")) -> 
A124: Massaggiatore non vedente | B124: S07RID | C124: 2 | D124: 030010 | E124: 0 | F124: 0 | G124: 0 | H124: 0 | I124: 0 | J124: 0 | K124: 0 | L124: 0 | M124: 0 | N124: 0 | O124: 0 | P124: 0 | Q124: 0 | R124: 0
A125: Podologo | B125: S07INF | C125: 2 | D125: 030010 | E125: 0 | F125: 0 | G125: 0 | H125: 0 | I125: 0 | J125: 0 | K125: 0 | L125: 0 | M125: 0 | N125: 0 | O125: 0 | P125: 0 | Q125: 0 | R125: 0
A126: Educatore professionale | B126: S07RIH | C126: 2 | D126: 030010 | E126: 0 | F126: 0 | G126: 0 | H126: 0 | I126: 0 | J126: 0 | K126: 0 | L126: 0 | M126: 0 | N126: 0 | O126: 0 | P126: 0 | Q126: 0 | R126: 0
A127: Terapista della neuro e psicomotricità dell’età evolutiva | B127: S07RII | C127: 2 | D127: 030010 | E127: 0 | F127: 0 | G127: 0 | H127: 0 | I127: 0 | J127: 0 | K127: 0 | L127: 0 | M127: 0 | N127: 0 | O127: 0 | P127: 0 | Q127: 0 | R127: 0
A128: Tecnico dell’educazione e riabilit. psichiatrica e psicosociale | B128: S07RIJ | C128: 2 | D128: 030010 | E128: 0 | F128: 0 | G128: 0 | H128: 0 | I128: 0 | J128: 0 | K128: 0 | L128: 0 | M128: 0 | N128: 0 | O128: 0 | P128: 0 | Q128: 0 | R128: 0
A129: Terapista occupazionale | B129: S07RIK | C129: 2 | D129: 030010 | E129: 0 | F129: 0 | G129: 0 | H129: 0 | I129: 0 | J129: 0 | K129: 0 | L129: 0 | M129: 0 | N129: 0 | O129: 0 | P129: 0 | Q129: 0 | R129: 0
A130: OPERATORE PROFESSIONALE SANITARIO
A131: Fisioterapista | B131: S06RIA | C131: 2 | D131: =CONCATENATE(D$79) -> 030010 | E131: 0 | F131: 0 | G131: 0 | H131: 0 | I131: 0 | J131: 0 | K131: 0 | L131: 0 | M131: 0 | N131: 0 | O131: 0 | P131: 0 | Q131: 0 | R131: 0
A132: Logopedista | B132: S06RIB | C132: 2 | D132: 030010 | E132: 0 | F132: 0 | G132: 0 | H132: 0 | I132: 0 | J132: 0 | K132: 0 | L132: 0 | M132: 0 | N132: 0 | O132: 0 | P132: 0 | Q132: 0 | R132: 0
A133: Ortottista - assistente di oftalmologia | B133: S06RIC | C133: 2 | D133: 030010 | E133: 0 | F133: 0 | G133: 0 | H133: 0 | I133: 0 | J133: 0 | K133: 0 | L133: 0 | M133: 0 | N133: 0 | O133: 0 | P133: 0 | Q133: 0 | R133: 0 | S133: =IF(O133>Q133,"ERRORE",IF(P133>R133,"ERRORE","")) -> 
A134: Massaggiatore non vedente | B134: S06RID | C134: 2 | D134: 030010 | E134: 0 | F134: 0 | G134: 0 | H134: 0 | I134: 0 | J134: 0 | K134: 0 | L134: 0 | M134: 0 | N134: 0 | O134: 0 | P134: 0 | Q134: 0 | R134: 0
A135: Podologo | B135: S06INF | C135: 2 | D135: 030010 | E135: 0 | F135: 0 | G135: 0 | H135: 0 | I135: 0 | J135: 0 | K135: 0 | L135: 0 | M135: 0 | N135: 0 | O135: 0 | P135: 0 | Q135: 0 | R135: 0
A136: Educatore professionale | B136: S06RIH | C136: 2 | D136: 030010 | E136: 0 | F136: 0 | G136: 0 | H136: 0 | I136: 0 | J136: 0 | K136: 0 | L136: 0 | M136: 0 | N136: 0 | O136: 0 | P136: 0 | Q136: 0 | R136: 0
A137: Terapista della neuro e psicomotricità dell’età evolutiva | B137: S06RII | C137: 2 | D137: 030010 | E137: 0 | F137: 0 | G137: 0 | H137: 0 | I137: 0 | J137: 0 | K137: 0 | L137: 0 | M137: 0 | N137: 0 | O137: 0 | P137: 0 | Q137: 0 | R137: 0
A138: Tecnico dell’educazione e riabilit. psichiatrica e psicosociale | B138: S06RIJ | C138: 2 | D138: 030010 | E138: 0 | F138: 0 | G138: 0 | H138: 0 | I138: 0 | J138: 0 | K138: 0 | L138: 0 | M138: 0 | N138: 0 | O138: 0 | P138: 0 | Q138: 0 | R138: 0
A139: Terapista occupazionale | B139: S06RIK | C139: 2 | D139: 030010 | E139: 0 | F139: 0 | G139: 0 | H139: 0 | I139: 0 | J139: 0 | K139: 0 | L139: 0 | M139: 0 | N139: 0 | O139: 0 | P139: 0 | Q139: 0 | R139: 0
A140: Tecnico della riabilitazione psichiatrica | B140: S06RIL | C140: 2 | D140: 030010 | E140: 0 | F140: 0 | G140: 0 | H140: 0 | I140: 0 | J140: 0 | K140: 0 | L140: 0 | M140: 0 | N140: 0 | O140: 0 | P140: 0 | Q140: 0 | R140: 0
A141: OPERATORE PROFESSIONALE 2^ CAT. | D141: 030010
A142: Massaggiatore/massofisioterapista | B142: S05RIN | C142: 2 | D142: 030010 | E142: 0 | F142: 0 | G142: 0 | H142: 0 | I142: 0 | J142: 0 | K142: 0 | L142: 0 | M142: 0 | N142: 0 | O142: 0 | P142: 0 | Q142: 0 | R142: 0
A143: TOTALE | D143: 030010 | E143: =SUM(E79:E142) -> 39 | F143: =SUM(F79:F142) -> 180 | G143: 0 | H143: 58 | I143: 0 | J143: 1 | K143: 0 | L143: 0 | M143: 0 | N143: 0 | O143: 0 | P143: 0 | Q143: =SUM(Q79:Q142) -> 39 | R143: =SUM(R79:R142) -> 238
A144: (*) il personale con qualifica di collaboratore professionale sanitario esperto “ds” delle quattro aree professionali (infermieri, tecnici sanitari e della prevenzione, personale riabilitazione) va considerato insieme al personale con profilo di collaboratore professionale sanitario di categoria “d” | S144: =IF(O144>Q144,"ERRORE",IF(P144>R144,"ERRORE","")) -> 
A147: PROFESSIONI SANITARIE INFERMIERISTICHE
A148: COLLABORATORE PROFESSIONALE SANITARIO
A149: Infermiere | B149: S07INA | C149: 3 | D149: 030012 | E149: 8 | F149: 47 | G149: 0 | H149: 19 | I149: 0 | J149: 0 | K149: 0 | L149: 0 | M149: 0 | N149: 0 | O149: 0 | P149: 0 | Q149: =E149+G149 -> 8 | R149: =F149+H149 -> 66
A150: Ostetrica | B150: S07INC | C150: 3 | D150: =CONCATENATE(D$149) -> 030012 | E150: 0 | F150: 0 | G150: 0 | H150: 0 | I150: 0 | J150: 0 | K150: 0 | L150: 0 | M150: 0 | N150: 0 | O150: 0 | P150: 0 | Q150: =E150+G150 -> 0 | R150: 0
A151: Infermiere pediatrico | B151: S07IND | C151: 3 | D151: =CONCATENATE(D$149) -> 030012 | E151: 0 | F151: 0 | G151: 0 | H151: 0 | I151: 0 | J151: 0 | K151: 0 | L151: 0 | M151: 0 | N151: 0 | O151: 0 | P151: 0 | Q151: 0 | R151: 0 | S151: =IF(O151>Q151,"ERRORE",IF(P151>R151,"ERRORE","")) -> 
A152: OPERATORE PROFESSIONALE SANITARIO | S152: =IF(O152>Q152,"ERRORE",IF(P152>R152,"ERRORE","")) -> 
A153: Infermiere | B153: S06INA | C153: 3 | D153: =CONCATENATE(D$149) -> 030012 | E153: 0 | F153: 0 | G153: 0 | H153: 0 | I153: 0 | J153: 0 | K153: 0 | L153: 0 | M153: 0 | N153: 0 | O153: 0 | P153: 0 | Q153: 0 | R153: 0 | S153: =IF(O153>Q153,"ERRORE",IF(P153>R153,"ERRORE","")) -> 
A154: Ostetrica | B154: S06INC | C154: 3 | D154: =CONCATENATE(D$149) -> 030012 | E154: 0 | F154: 0 | G154: 0 | H154: 0 | I154: 0 | J154: 0 | K154: 0 | L154: 0 | M154: 0 | N154: 0 | O154: 0 | P154: 0 | Q154: 0 | R154: 0
A155: Infermiere pediatrico | B155: S06IND | C155: 3 | D155: =CONCATENATE(D$149) -> 030012 | E155: 0 | F155: 0 | G155: 0 | H155: 0 | I155: 0 | J155: 0 | K155: 0 | L155: 0 | M155: 0 | N155: 0 | O155: 0 | P155: 0 | Q155: 0 | R155: 0 | S155: =IF(O155>Q155,"ERRORE",IF(P155>R155,"ERRORE","")) -> 
A156: OPERATORE PROFESSIONALE 2^ CAT. | S156: =IF(O156>Q156,"ERRORE",IF(P156>R156,"ERRORE","")) -> 
A157: Infermiere generico | B157: S05INA | C157: 3 | D157: =CONCATENATE(D$149) -> 030012 | E157: 0 | F157: 0 | G157: 0 | H157: 0 | I157: 0 | J157: 0 | K157: 0 | L157: 0 | M157: 0 | N157: 0 | O157: 0 | P157: 0 | Q157: 0 | R157: 0 | S157: =IF(O157>Q157,"ERRORE",IF(P157>R157,"ERRORE","")) -> 
A158: Infermiere psichiatrico 1 anno scuola | B158: S05INB | C158: 3 | D158: =CONCATENATE(D$149) -> 030012 | E158: 0 | F158: 0 | G158: 0 | H158: 0 | I158: 0 | J158: 0 | K158: 0 | L158: 0 | M158: 0 | N158: 0 | O158: 0 | P158: 0 | Q158: 0 | R158: 0
A159: Puericultrice | B159: S05INC | C159: 3 | D159: =CONCATENATE(D$149) -> 030012 | E159: 0 | F159: 0 | G159: 0 | H159: 0 | I159: 0 | J159: 0 | K159: 0 | L159: 0 | M159: 0 | N159: 0 | O159: 0 | P159: 0 | Q159: 0 | R159: 0 | S159: =IF(O159>Q159,"ERRORE",IF(P159>R159,"ERRORE","")) -> 
A160: PROFESSIONI TECNICO SANITARIE E DELLA PREVENZIONE | S160: =IF(O160>Q160,"ERRORE",IF(P160>R160,"ERRORE","")) -> 
A161: COLLABORATORE PROFESSIONALE SANITARIO | S161: =IF(O161>Q161,"ERRORE",IF(P161>R161,"ERRORE","")) -> 
A162: Dietista | B162: S07INE | C162: 3 | D162: =CONCATENATE(D$149) -> 030012 | E162: 0 | F162: 0 | G162: 0 | H162: 0 | I162: 0 | J162: 0 | K162: 0 | L162: 0 | M162: 0 | N162: 0 | O162: 0 | P162: 0 | Q162: 0 | R162: 0
A163: Igienista dentale | B163: S07TSE | C163: 3 | D163: 030012 | E163: 0 | F163: 0 | G163: 0 | H163: 0 | I163: 0 | J163: 0 | K163: 0 | L163: 0 | M163: 0 | N163: 0 | O163: 0 | P163: 0 | Q163: 0 | R163: 0
A164: Tecnico audioprotesista | B164: S07RIE | C164: 3 | D164: 030012 | E164: 0 | F164: 0 | G164: 0 | H164: 0 | I164: 0 | J164: 0 | K164: 0 | L164: 0 | M164: 0 | N164: 0 | O164: 0 | P164: 0 | Q164: 0 | R164: 0 | S164: =IF(O164>Q164,"ERRORE",IF(P164>R164,"ERRORE","")) -> 
A165: Tecnico audiometrista | B165: S07RIF | C165: 3 | D165: 030012 | E165: 0 | F165: 0 | G165: 0 | H165: 0 | I165: 0 | J165: 0 | K165: 0 | L165: 0 | M165: 0 | N165: 0 | O165: 0 | P165: 0 | Q165: 0 | R165: 0
A166: Assistente sanitario | B166: S07INB | C166: 3 | D166: 030012 | E166: 0 | F166: 0 | G166: 0 | H166: 0 | I166: 0 | J166: 0 | K166: 0 | L166: 0 | M166: 0 | N166: 0 | O166: 0 | P166: 0 | Q166: 0 | R166: 0
A167: Tecnico della prevenzione nell'ambiente e nei luoghi di lavoro | B167: S07TSH | C167: 3 | D167: 030012 | E167: 0 | F167: 0 | G167: 0 | H167: 0 | I167: 0 | J167: 0 | K167: 0 | L167: 0 | M167: 0 | N167: 0 | O167: 0 | P167: 0 | Q167: 0 | R167: 0
A168: Tecnico di neurofisiopatologia | B168: S07TSA | C168: 3 | D168: 030012 | E168: 0 | F168: 0 | G168: 0 | H168: 0 | I168: 0 | J168: 0 | K168: 0 | L168: 0 | M168: 0 | N168: 0 | O168: 0 | P168: 0 | Q168: 0 | R168: 0
A169: Tecnico sanitario di laboratorio biomedico | B169: S07TSB | C169: 3 | D169: 030012 | E169: 1 | F169: 2 | G169: 0 | H169: 0 | I169: 0 | J169: 0 | K169: 0 | L169: 0 | M169: 0 | N169: 0 | O169: 0 | P169: 0 | Q169: 1 | R169: 2
A170: Tecnico sanitario di radiologia medica | B170: S07TSC | C170: 3 | D170: 030012 | E170: 2 | F170: 3 | G170: 1 | H170: 1 | I170: 1 | J170: 0 | K170: 0 | L170: 0 | M170: 0 | N170: 0 | O170: 0 | P170: 0 | Q170: 3 | R170: 4
A171: Tecnico di fisiopatologia cardiocircol. e profusione cardiovasc. | B171: S07TSD | C171: 3 | D171: 030012 | E171: 0 | F171: 0 | G171: 0 | H171: 0 | I171: 0 | J171: 0 | K171: 0 | L171: 0 | M171: 0 | N171: 0 | O171: 0 | P171: 0 | Q171: 0 | R171: 0
A172: Ottico | B172: S07TSF | C172: 3 | D172: 030012 | E172: 0 | F172: 0 | G172: 0 | H172: 0 | I172: 0 | J172: 0 | K172: 0 | L172: 0 | M172: 0 | N172: 0 | O172: 0 | P172: 0 | Q172: 0 | R172: 0
A173: Odontotecnico | B173: S07TSG | C173: 3 | D173: 030012 | E173: 0 | F173: 0 | G173: 0 | H173: 0 | I173: 0 | J173: 0 | K173: 0 | L173: 0 | M173: 0 | N173: 0 | O173: 0 | P173: 0 | Q173: 0 | R173: 0
A174: Tecnico ortopedico | B174: S07RIG | C174: 3 | D174: 030012 | E174: 0 | F174: 0 | G174: 0 | H174: 0 | I174: 0 | J174: 0 | K174: 0 | L174: 0 | M174: 0 | N174: 0 | O174: 0 | P174: 0 | Q174: 0 | R174: 0
A175: OPERATORE PROFESSIONALE SANITARIO
A176: Dietista | B176: S06INE | C176: 3 | D176: =CONCATENATE(D$149) -> 030012 | E176: 0 | F176: 0 | G176: 0 | H176: 0 | I176: 0 | J176: 0 | K176: 0 | L176: 0 | M176: 0 | N176: 0 | O176: 0 | P176: 0 | Q176: 0 | R176: 0
A177: Igienista dentale | B177: S06TSE | C177: 3 | D177: 030012 | E177: 0 | F177: 0 | G177: 0 | H177: 0 | I177: 0 | J177: 0 | K177: 0 | L177: 0 | M177: 0 | N177: 0 | O177: 0 | P177: 0 | Q177: 0 | R177: 0
A178: Tecnico audioprotesista | B178: S06RIE | C178: 3 | D178: 030012 | E178: 0 | F178: 0 | G178: 0 | H178: 0 | I178: 0 | J178: 0 | K178: 0 | L178: 0 | M178: 0 | N178: 0 | O178: 0 | P178: 0 | Q178: 0 | R178: 0 | S178: =IF(O178>Q178,"ERRORE",IF(P178>R178,"ERRORE","")) -> 
A179: Tecnico audiometrista | B179: S06RIF | C179: 3 | D179: 030012 | E179: 0 | F179: 0 | G179: 0 | H179: 0 | I179: 0 | J179: 0 | K179: 0 | L179: 0 | M179: 0 | N179: 0 | O179: 0 | P179: 0 | Q179: 0 | R179: 0
A180: Assistente sanitario | B180: S06INB | C180: 3 | D180: 030012 | E180: 0 | F180: 0 | G180: 0 | H180: 0 | I180: 0 | J180: 0 | K180: 0 | L180: 0 | M180: 0 | N180: 0 | O180: 0 | P180: 0 | Q180: 0 | R180: 0
A181: Tecnico della prevenzione nell'ambiente e nei luoghi di lavoro | B181: S06TSH | C181: 3 | D181: 030012 | E181: 0 | F181: 0 | G181: 0 | H181: 0 | I181: 0 | J181: 0 | K181: 0 | L181: 0 | M181: 0 | N181: 0 | O181: 0 | P181: 0 | Q181: 0 | R181: 0
A182: Tecnico di neurofisiopatologia | B182: S06TSA | C182: 3 | D182: 030012 | E182: 0 | F182: 0 | G182: 0 | H182: 0 | I182: 0 | J182: 0 | K182: 0 | L182: 0 | M182: 0 | N182: 0 | O182: 0 | P182: 0 | Q182: 0 | R182: 0
A183: Tecnico sanitario di laboratorio biomedico | B183: S06TSB | C183: 3 | D183: 030012 | E183: 0 | F183: 0 | G183: 0 | H183: 0 | I183: 0 | J183: 0 | K183: 0 | L183: 0 | M183: 0 | N183: 0 | O183: 0 | P183: 0 | Q183: 0 | R183: 0
A184: Tecnico sanitario di radiologia medica | B184: S06TSC | C184: 3 | D184: 030012 | E184: 0 | F184: 0 | G184: 0 | H184: 0 | I184: 0 | J184: 0 | K184: 0 | L184: 0 | M184: 0 | N184: 0 | O184: 0 | P184: 0 | Q184: 0 | R184: 0
A185: Tecnico di fisiopatologia cardiocircol. e profusione cardiovasc. | B185: S06TSD | C185: 3 | D185: 030012 | E185: 0 | F185: 0 | G185: 0 | H185: 0 | I185: 0 | J185: 0 | K185: 0 | L185: 0 | M185: 0 | N185: 0 | O185: 0 | P185: 0 | Q185: 0 | R185: 0
A186: Ottico | B186: S06TSF | C186: 3 | D186: 030012 | E186: 0 | F186: 0 | G186: 0 | H186: 0 | I186: 0 | J186: 0 | K186: 0 | L186: 0 | M186: 0 | N186: 0 | O186: 0 | P186: 0 | Q186: 0 | R186: 0
A187: Odontotecnico | B187: S06TSG | C187: 3 | D187: 030012 | E187: 0 | F187: 0 | G187: 0 | H187: 0 | I187: 0 | J187: 0 | K187: 0 | L187: 0 | M187: 0 | N187: 0 | O187: 0 | P187: 0 | Q187: 0 | R187: 0
A188: Tecnico ortopedico | B188: S06RIG | C188: 3 | D188: 030012 | E188: 0 | F188: 0 | G188: 0 | H188: 0 | I188: 0 | J188: 0 | K188: 0 | L188: 0 | M188: 0 | N188: 0 | O188: 0 | P188: 0 | Q188: 0 | R188: 0
A189: PROFESSIONI SANITARIE RIABILITATIVE
A190: COLLABORATORE PROFESSIONALE SANITARIO
A191: Fisioterapista | B191: S07RIA | C191: 3 | D191: =CONCATENATE(D$149) -> 030012 | E191: 1 | F191: 2 | G191: 0 | H191: 0 | I191: 0 | J191: 0 | K191: 0 | L191: 0 | M191: 0 | N191: 0 | O191: 0 | P191: 0 | Q191: 1 | R191: 2
A192: Logopedista | B192: S07RIB | C192: 3 | D192: 030012 | E192: 0 | F192: 0 | G192: 0 | H192: 0 | I192: 0 | J192: 0 | K192: 0 | L192: 0 | M192: 0 | N192: 0 | O192: 0 | P192: 0 | Q192: 0 | R192: 0
A193: Ortottista - assistente di oftalmologia | B193: S07RIC | C193: 3 | D193: 030012 | E193: 0 | F193: 0 | G193: 0 | H193: 0 | I193: 0 | J193: 0 | K193: 0 | L193: 0 | M193: 0 | N193: 0 | O193: 0 | P193: 0 | Q193: 0 | R193: 0 | S193: =IF(O193>Q193,"ERRORE",IF(P193>R193,"ERRORE","")) -> 
A194: Massaggiatore non vedente | B194: S07RID | C194: 3 | D194: 030012 | E194: 0 | F194: 0 | G194: 0 | H194: 0 | I194: 0 | J194: 0 | K194: 0 | L194: 0 | M194: 0 | N194: 0 | O194: 0 | P194: 0 | Q194: 0 | R194: 0
A195: Podologo | B195: S07INF | C195: 3 | D195: 030012 | E195: 0 | F195: 0 | G195: 0 | H195: 0 | I195: 0 | J195: 0 | K195: 0 | L195: 0 | M195: 0 | N195: 0 | O195: 0 | P195: 0 | Q195: 0 | R195: 0
A196: Educatore professionale | B196: S07RIH | C196: 3 | D196: 030012 | E196: 0 | F196: 0 | G196: 0 | H196: 0 | I196: 0 | J196: 0 | K196: 0 | L196: 0 | M196: 0 | N196: 0 | O196: 0 | P196: 0 | Q196: 0 | R196: 0
A197: Terapista della neuro e psicomotricità dell’età evolutiva | B197: S07RII | C197: 3 | D197: 030012 | E197: 0 | F197: 0 | G197: 0 | H197: 0 | I197: 0 | J197: 0 | K197: 0 | L197: 0 | M197: 0 | N197: 0 | O197: 0 | P197: 0 | Q197: 0 | R197: 0
A198: Tecnico dell’educazione e riabilit. psichiatrica e psicosociale | B198: S07RIJ | C198: 3 | D198: 030012 | E198: 0 | F198: 0 | G198: 0 | H198: 0 | I198: 0 | J198: 0 | K198: 0 | L198: 0 | M198: 0 | N198: 0 | O198: 0 | P198: 0 | Q198: 0 | R198: 0
A199: Terapista occupazionale | B199: S07RIK | C199: 3 | D199: 030012 | E199: 0 | F199: 0 | G199: 0 | H199: 0 | I199: 0 | J199: 0 | K199: 0 | L199: 0 | M199: 0 | N199: 0 | O199: 0 | P199: 0 | Q199: 0 | R199: 0
A200: OPERATORE PROFESSIONALE SANITARIO
A201: Fisioterapista | B201: S06RIA | C201: 3 | D201: =CONCATENATE(D$149) -> 030012 | E201: 0 | F201: 0 | G201: 0 | H201: 0 | I201: 0 | J201: 0 | K201: 0 | L201: 0 | M201: 0 | N201: 0 | O201: 0 | P201: 0 | Q201: 0 | R201: 0
A202: Logopedista | B202: S06RIB | C202: 3 | D202: 030012 | E202: 0 | F202: 0 | G202: 0 | H202: 0 | I202: 0 | J202: 0 | K202: 0 | L202: 0 | M202: 0 | N202: 0 | O202: 0 | P202: 0 | Q202: 0 | R202: 0
A203: Ortottista - assistente di oftalmologia | B203: S06RIC | C203: 3 | D203: 030012 | E203: 0 | F203: 0 | G203: 0 | H203: 0 | I203: 0 | J203: 0 | K203: 0 | L203: 0 | M203: 0 | N203: 0 | O203: 0 | P203: 0 | Q203: 0 | R203: 0 | S203: =IF(O203>Q203,"ERRORE",IF(P203>R203,"ERRORE","")) -> 
... 419 more rows

Sheet IN_1A (hidden)
A1: FIGURA_PROF | B1: COD_fp | C1: Struttura | D1: T_ind_PIENO_U | E1: T_ind_PIENO_D | F1: T_ind_PARZ_U | G1: T_ind_PARZ_D | H1: T_det_PIENO_U | I1: T_det_PIENO_D | J1: T_det_PARZ_U | K1: T_det_PARZ_D | L1: DA_ALTRI_ENTI_U | M1: DA_ALTRI_ENTI_D | N1: AD_ALTRI_ENTI_U | O1: AD_ALTRI_ENTI_D | P1: PERSONALE_AC_U | Q1: PERSONALE_AC_D
A2: Infermiere | B2: S07INA-1 | D2: 0 | E2: 0 | F2: 0 | G2: 0 | H2: 0 | I2: 0 | J2: 0 | K2: 0 | L2: 0 | M2: 0 | N2: 0 | O2: 0 | P2: 0 | Q2: 0
A3: Ostetrica | B3: S07INC-1 | D3: 0 | E3: 0 | F3: 0 | G3: 0 | H3: 0 | I3: 0 | J3: 0 | K3: 0 | L3: 0 | M3: 0 | N3: 0 | O3: 0 | P3: 0 | Q3: 0
A4: Infermiere pediatrico | B4: S07IND-1 | D4: 0 | E4: 0 | F4: 0 | G4: 0 | H4: 0 | I4: 0 | J4: 0 | K4: 0 | L4: 0 | M4: 0 | N4: 0 | O4: 0 | P4: 0 | Q4: 0
A5: Infermiere | B5: S06INA-1 | D5: 0 | E5: 0 | F5: 0 | G5: 0 | H5: 0 | I5: 0 | J5: 0 | K5: 0 | L5: 0 | M5: 0 | N5: 0 | O5: 0 | P5: 0 | Q5: 0
A6: Ostetrica | B6: S06INC-1 | D6: 0 | E6: 0 | F6: 0 | G6: 0 | H6: 0 | I6: 0 | J6: 0 | K6: 0 | L6: 0 | M6: 0 | N6: 0 | O6: 0 | P6: 0 | Q6: 0
A7: Infermiere pediatrico | B7: S06IND-1 | D7: 0 | E7: 0 | F7: 0 | G7: 0 | H7: 0 | I7: 0 | J7: 0 | K7: 0 | L7: 0 | M7: 0 | N7: 0 | O7: 0 | P7: 0 | Q7: 0
A8: Infermiere generico | B8: S05INA-1 | D8: 0 | E8: 0 | F8: 0 | G8: 0 | H8: 0 | I8: 0 | J8: 0 | K8: 0 | L8: 0 | M8: 0 | N8: 0 | O8: 0 | P8: 0 | Q8: 0
A9: Infermiere psichiatrico 1 anno scuola | B9: S05INB-1 | D9: 0 | E9: 0 | F9: 0 | G9: 0 | H9: 0 | I9: 0 | J9: 0 | K9: 0 | L9: 0 | M9: 0 | N9: 0 | O9: 0 | P9: 0 | Q9: 0
A10: Puericultrice | B10: S05INC-1 | D10: 0 | E10: 0 | F10: 0 | G10: 0 | H10: 0 | I10: 0 | J10: 0 | K10: 0 | L10: 0 | M10: 0 | N10: 0 | O10: 0 | P10: 0 | Q10: 0
A11: Dietista | B11: S07INE-1 | D11: 0 | E11: 0 | F11: 0 | G11: 0 | H11: 0 | I11: 0 | J11: 0 | K11: 0 | L11: 0 | M11: 0 | N11: 0 | O11: 0 | P11: 0 | Q11: 0
A12: Igienista dentale | B12: S07TSE-1 | D12: 0 | E12: 0 | F12: 0 | G12: 0 | H12: 0 | I12: 0 | J12: 0 | K12: 0 | L12: 0 | M12: 0 | N12: 0 | O12: 0 | P12: 0 | Q12: 0
A13: Tecnico audioprotesista | B13: S07RIE-1 | D13: 0 | E13: 0 | F13: 0 | G13: 0 | H13: 0 | I13: 0 | J13: 0 | K13: 0 | L13: 0 | M13: 0 | N13: 0 | O13: 0 | P13: 0 | Q13: 0
A14: Tecnico audiometrista | B14: S07RIF-1 | D14: 0 | E14: 0 | F14: 0 | G14: 0 | H14: 0 | I14: 0 | J14: 0 | K14: 0 | L14: 0 | M14: 0 | N14: 0 | O14: 0 | P14: 0 | Q14: 0
A15: Assistente sanitario | B15: S07INB-1 | D15: 0 | E15: 0 | F15: 0 | G15: 0 | H15: 0 | I15: 0 | J15: 0 | K15: 0 | L15: 0 | M15: 0 | N15: 0 | O15: 0 | P15: 0 | Q15: 0
A16: Tecnico della prevenzione nell'ambiente e nei luoghi di lavoro | B16: S07TSH-1 | D16: 0 | E16: 0 | F16: 0 | G16: 0 | H16: 0 | I16: 0 | J16: 0 | K16: 0 | L16: 0 | M16: 0 | N16: 0 | O16: 0 | P16: 0 | Q16: 0
A17: Tecnico di neurofisiopatologia | B17: S07TSA-1 | D17: 0 | E17: 0 | F17: 0 | G17: 0 | H17: 0 | I17: 0 | J17: 0 | K17: 0 | L17: 0 | M17: 0 | N17: 0 | O17: 0 | P17: 0 | Q17: 0
A18: Tecnico sanitario di laboratorio biomedico | B18: S07TSB-1 | D18: 0 | E18: 0 | F18: 0 | G18: 0 | H18: 0 | I18: 0 | J18: 0 | K18: 0 | L18: 0 | M18: 0 | N18: 0 | O18: 0 | P18: 0 | Q18: 0
A19: Tecnico sanitario di radiologia medica | B19: S07TSC-1 | D19: 0 | E19: 0 | F19: 0 | G19: 0 | H19: 0 | I19: 0 | J19: 0 | K19: 0 | L19: 0 | M19: 0 | N19: 0 | O19: 0 | P19: 0 | Q19: 0
A20: Tecnico di fisiopatologia cardiocircol. e profusione cardiovasc. | B20: S07TSD-1 | D20: 0 | E20: 0 | F20: 0 | G20: 0 | H20: 0 | I20: 0 | J20: 0 | K20: 0 | L20: 0 | M20: 0 | N20: 0 | O20: 0 | P20: 0 | Q20: 0
A21: Ottico | B21: S07TSF-1 | D21: 0 | E21: 0 | F21: 0 | G21: 0 | H21: 0 | I21: 0 | J21: 0 | K21: 0 | L21: 0 | M21: 0 | N21: 0 | O21: 0 | P21: 0 | Q21: 0
A22: Odontotecnico | B22: S07TSG-1 | D22: 0 | E22: 0 | F22: 0 | G22: 0 | H22: 0 | I22: 0 | J22: 0 | K22: 0 | L22: 0 | M22: 0 | N22: 0 | O22: 0 | P22: 0 | Q22: 0
A23: Tecnico ortopedico | B23: S07RIG-1 | D23: 0 | E23: 0 | F23: 0 | G23: 0 | H23: 0 | I23: 0 | J23: 0 | K23: 0 | L23: 0 | M23: 0 | N23: 0 | O23: 0 | P23: 0 | Q23: 0
A24: Dietista | B24: S06INE-1 | D24: 0 | E24: 0 | F24: 0 | G24: 0 | H24: 0 | I24: 0 | J24: 0 | K24: 0 | L24: 0 | M24: 0 | N24: 0 | O24: 0 | P24: 0 | Q24: 0
A25: Igienista dentale | B25: S06TSE-1 | D25: 0 | E25: 0 | F25: 0 | G25: 0 | H25: 0 | I25: 0 | J25: 0 | K25: 0 | L25: 0 | M25: 0 | N25: 0 | O25: 0 | P25: 0 | Q25: 0
A26: Tecnico audioprotesista | B26: S06RIE-1 | D26: 0 | E26: 0 | F26: 0 | G26: 0 | H26: 0 | I26: 0 | J26: 0 | K26: 0 | L26: 0 | M26: 0 | N26: 0 | O26: 0 | P26: 0 | Q26: 0
A27: Tecnico audiometrista | B27: S06RIF-1 | D27: 0 | E27: 0 | F27: 0 | G27: 0 | H27: 0 | I27: 0 | J27: 0 | K27: 0 | L27: 0 | M27: 0 | N27: 0 | O27: 0 | P27: 0 | Q27: 0
A28: Assistente sanitario | B28: S06INB-1 | D28: 0 | E28: 0 | F28: 0 | G28: 0 | H28: 0 | I28: 0 | J28: 0 | K28: 0 | L28: 0 | M28: 0 | N28: 0 | O28: 0 | P28: 0 | Q28: 0
A29: Tecnico della prevenzione nell'ambiente e nei luoghi di lavoro | B29: S06TSH-1 | D29: 0 | E29: 0 | F29: 0 | G29: 0 | H29: 0 | I29: 0 | J29: 0 | K29: 0 | L29: 0 | M29: 0 | N29: 0 | O29: 0 | P29: 0 | Q29: 0
A30: Tecnico di neurofisiopatologia | B30: S06TSA-1 | D30: 0 | E30: 0 | F30: 0 | G30: 0 | H30: 0 | I30: 0 | J30: 0 | K30: 0 | L30: 0 | M30: 0 | N30: 0 | O30: 0 | P30: 0 | Q30: 0
A31: Tecnico sanitario di laboratorio biomedico | B31: S06TSB-1 | D31: 0 | E31: 0 | F31: 0 | G31: 0 | H31: 0 | I31: 0 | J31: 0 | K31: 0 | L31: 0 | M31: 0 | N31: 0 | O31: 0 | P31: 0 | Q31: 0
A32: Tecnico sanitario di radiologia medica | B32: S06TSC-1 | D32: 0 | E32: 0 | F32: 0 | G32: 0 | H32: 0 | I32: 0 | J32: 0 | K32: 0 | L32: 0 | M32: 0 | N32: 0 | O32: 0 | P32: 0 | Q32: 0
A33: Tecnico di fisiopatologia cardiocircol. e profusione cardiovasc. | B33: S06TSD-1 | D33: 0 | E33: 0 | F33: 0 | G33: 0 | H33: 0 | I33: 0 | J33: 0 | K33: 0 | L33: 0 | M33: 0 | N33: 0 | O33: 0 | P33: 0 | Q33: 0
A34: Ottico | B34: S06TSF-1 | D34: 0 | E34: 0 | F34: 0 | G34: 0 | H34: 0 | I34: 0 | J34: 0 | K34: 0 | L34: 0 | M34: 0 | N34: 0 | O34: 0 | P34: 0 | Q34: 0
A35: Odontotecnico | B35: S06TSG-1 | D35: 0 | E35: 0 | F35: 0 | G35: 0 | H35: 0 | I35: 0 | J35: 0 | K35: 0 | L35: 0 | M35: 0 | N35: 0 | O35: 0 | P35: 0 | Q35: 0
A36: Tecnico ortopedico | B36: S06RIG-1 | D36: 0 | E36: 0 | F36: 0 | G36: 0 | H36: 0 | I36: 0 | J36: 0 | K36: 0 | L36: 0 | M36: 0 | N36: 0 | O36: 0 | P36: 0 | Q36: 0
A37: Fisioterapista | B37: S07RIA-1 | D37: 0 | E37: 0 | F37: 0 | G37: 0 | H37: 0 | I37: 0 | J37: 0 | K37: 0 | L37: 0 | M37: 0 | N37: 0 | O37: 0 | P37: 0 | Q37: 0
A38: Logopedista | B38: S07RIB-1 | D38: 0 | E38: 0 | F38: 0 | G38: 0 | H38: 0 | I38: 0 | J38: 0 | K38: 0 | L38: 0 | M38: 0 | N38: 0 | O38: 0 | P38: 0 | Q38: 0
A39: Ortottista - assistente di oftalmologia | B39: S07RIC-1 | D39: 0 | E39: 0 | F39: 0 | G39: 0 | H39: 0 | I39: 0 | J39: 0 | K39: 0 | L39: 0 | M39: 0 | N39: 0 | O39: 0 | P39: 0 | Q39: 0
A40: Massaggiatore non vedente | B40: S07RID-1 | D40: 0 | E40: 0 | F40: 0 | G40: 0 | H40: 0 | I40: 0 | J40: 0 | K40: 0 | L40: 0 | M40: 0 | N40: 0 | O40: 0 | P40: 0 | Q40: 0
A41: Podologo | B41: S07INF-1 | D41: 0 | E41: 0 | F41: 0 | G41: 0 | H41: 0 | I41: 0 | J41: 0 | K41: 0 | L41: 0 | M41: 0 | N41: 0 | O41: 0 | P41: 0 | Q41: 0
A42: Educatore professionale | B42: S07RIH-1 | D42: 0 | E42: 0 | F42: 0 | G42: 0 | H42: 0 | I42: 0 | J42: 0 | K42: 0 | L42: 0 | M42: 0 | N42: 0 | O42: 0 | P42: 0 | Q42: 0
A43: Terapista della neuro e psicomotricità dell’età evolutiva | B43: S07RII-1 | D43: 0 | E43: 0 | F43: 0 | G43: 0 | H43: 0 | I43: 0 | J43: 0 | K43: 0 | L43: 0 | M43: 0 | N43: 0 | O43: 0 | P43: 0 | Q43: 0
A44: Tecnico dell’educazione e riabilit. psichiatrica e psicosociale | B44: S07RIJ-1 | D44: 0 | E44: 0 | F44: 0 | G44: 0 | H44: 0 | I44: 0 | J44: 0 | K44: 0 | L44: 0 | M44: 0 | N44: 0 | O44: 0 | P44: 0 | Q44: 0
A45: Terapista occupazionale | B45: S07RIK-1 | D45: 0 | E45: 0 | F45: 0 | G45: 0 | H45: 0 | I45: 0 | J45: 0 | K45: 0 | L45: 0 | M45: 0 | N45: 0 | O45: 0 | P45: 0 | Q45: 0
A46: Fisioterapista | B46: S06RIA-1 | D46: 0 | E46: 0 | F46: 0 | G46: 0 | H46: 0 | I46: 0 | J46: 0 | K46: 0 | L46: 0 | M46: 0 | N46: 0 | O46: 0 | P46: 0 | Q46: 0
A47: Logopedista | B47: S06RIB-1 | D47: 0 | E47: 0 | F47: 0 | G47: 0 | H47: 0 | I47: 0 | J47: 0 | K47: 0 | L47: 0 | M47: 0 | N47: 0 | O47: 0 | P47: 0 | Q47: 0
A48: Ortottista - assistente di oftalmologia | B48: S06RIC-1 | D48: 0 | E48: 0 | F48: 0 | G48: 0 | H48: 0 | I48: 0 | J48: 0 | K48: 0 | L48: 0 | M48: 0 | N48: 0 | O48: 0 | P48: 0 | Q48: 0
A49: Massaggiatore non vedente | B49: S06RID-1 | D49: 0 | E49: 0 | F49: 0 | G49: 0 | H49: 0 | I49: 0 | J49: 0 | K49: 0 | L49: 0 | M49: 0 | N49: 0 | O49: 0 | P49: 0 | Q49: 0
A50: Podologo | B50: S06INF-1 | D50: 0 | E50: 0 | F50: 0 | G50: 0 | H50: 0 | I50: 0 | J50: 0 | K50: 0 | L50: 0 | M50: 0 | N50: 0 | O50: 0 | P50: 0 | Q50: 0
A51: Educatore professionale | B51: S06RIH-1 | D51: 0 | E51: 0 | F51: 0 | G51: 0 | H51: 0 | I51: 0 | J51: 0 | K51: 0 | L51: 0 | M51: 0 | N51: 0 | O51: 0 | P51: 0 | Q51: 0
A52: Terapista della neuro e psicomotricità dell’età evolutiva | B52: S06RII-1 | D52: 0 | E52: 0 | F52: 0 | G52: 0 | H52: 0 | I52: 0 | J52: 0 | K52: 0 | L52: 0 | M52: 0 | N52: 0 | O52: 0 | P52: 0 | Q52: 0
A53: Tecnico dell’educazione e riabilit. psichiatrica e psicosociale | B53: S06RIJ-1 | D53: 0 | E53: 0 | F53: 0 | G53: 0 | H53: 0 | I53: 0 | J53: 0 | K53: 0 | L53: 0 | M53: 0 | N53: 0 | O53: 0 | P53: 0 | Q53: 0
A54: Terapista occupazionale | B54: S06RIK-1 | D54: 0 | E54: 0 | F54: 0 | G54: 0 | H54: 0 | I54: 0 | J54: 0 | K54: 0 | L54: 0 | M54: 0 | N54: 0 | O54: 0 | P54: 0 | Q54: 0
A55: Tecnico della riabilitazione psichiatrica | B55: S06RIL-1 | D55: 0 | E55: 0 | F55: 0 | G55: 0 | H55: 0 | I55: 0 | J55: 0 | K55: 0 | L55: 0 | M55: 0 | N55: 0 | O55: 0 | P55: 0 | Q55: 0
A56: Massaggiatore/massofisioterapista | B56: S05RIN-1 | D56: 0 | E56: 0 | F56: 0 | G56: 0 | H56: 0 | I56: 0 | J56: 0 | K56: 0 | L56: 0 | M56: 0 | N56: 0 | O56: 0 | P56: 0 | Q56: 0
A57: Infermiere | B57: S07INA-2 | D57: 0 | E57: 0 | F57: 0 | G57: 0 | H57: 0 | I57: 0 | J57: 0 | K57: 0 | L57: 0 | M57: 0 | N57: 0 | O57: 0 | P57: 0 | Q57: 0
A58: Ostetrica | B58: S07INC-2 | D58: 0 | E58: 0 | F58: 0 | G58: 0 | H58: 0 | I58: 0 | J58: 0 | K58: 0 | L58: 0 | M58: 0 | N58: 0 | O58: 0 | P58: 0 | Q58: 0
A59: Infermiere pediatrico | B59: S07IND-2 | D59: 0 | E59: 0 | F59: 0 | G59: 0 | H59: 0 | I59: 0 | J59: 0 | K59: 0 | L59: 0 | M59: 0 | N59: 0 | O59: 0 | P59: 0 | Q59: 0
A60: Infermiere | B60: S06INA-2 | D60: 0 | E60: 0 | F60: 0 | G60: 0 | H60: 0 | I60: 0 | J60: 0 | K60: 0 | L60: 0 | M60: 0 | N60: 0 | O60: 0 | P60: 0 | Q60: 0
A61: Ostetrica | B61: S06INC-2 | D61: 0 | E61: 0 | F61: 0 | G61: 0 | H61: 0 | I61: 0 | J61: 0 | K61: 0 | L61: 0 | M61: 0 | N61: 0 | O61: 0 | P61: 0 | Q61: 0
A62: Infermiere pediatrico | B62: S06IND-2 | D62: 0 | E62: 0 | F62: 0 | G62: 0 | H62: 0 | I62: 0 | J62: 0 | K62: 0 | L62: 0 | M62: 0 | N62: 0 | O62: 0 | P62: 0 | Q62: 0
A63: Infermiere generico | B63: S05INA-2 | D63: 0 | E63: 0 | F63: 0 | G63: 0 | H63: 0 | I63: 0 | J63: 0 | K63: 0 | L63: 0 | M63: 0 | N63: 0 | O63: 0 | P63: 0 | Q63: 0
A64: Infermiere psichiatrico 1 anno scuola | B64: S05INB-2 | D64: 0 | E64: 0 | F64: 0 | G64: 0 | H64: 0 | I64: 0 | J64: 0 | K64: 0 | L64: 0 | M64: 0 | N64: 0 | O64: 0 | P64: 0 | Q64: 0
A65: Puericultrice | B65: S05INC-2 | D65: 0 | E65: 0 | F65: 0 | G65: 0 | H65: 0 | I65: 0 | J65: 0 | K65: 0 | L65: 0 | M65: 0 | N65: 0 | O65: 0 | P65: 0 | Q65: 0
A66: Dietista | B66: S07INE-2 | D66: 0 | E66: 0 | F66: 0 | G66: 0 | H66: 0 | I66: 0 | J66: 0 | K66: 0 | L66: 0 | M66: 0 | N66: 0 | O66: 0 | P66: 0 | Q66: 0
A67: Igienista dentale | B67: S07TSE-2 | D67: 0 | E67: 0 | F67: 0 | G67: 0 | H67: 0 | I67: 0 | J67: 0 | K67: 0 | L67: 0 | M67: 0 | N67: 0 | O67: 0 | P67: 0 | Q67: 0
A68: Tecnico audioprotesista | B68: S07RIE-2 | D68: 0 | E68: 0 | F68: 0 | G68: 0 | H68: 0 | I68: 0 | J68: 0 | K68: 0 | L68: 0 | M68: 0 | N68: 0 | O68: 0 | P68: 0 | Q68: 0
A69: Tecnico audiometrista | B69: S07RIF-2 | D69: 0 | E69: 0 | F69: 0 | G69: 0 | H69: 0 | I69: 0 | J69: 0 | K69: 0 | L69: 0 | M69: 0 | N69: 0 | O69: 0 | P69: 0 | Q69: 0
A70: Assistente sanitario | B70: S07INB-2 | D70: 0 | E70: 0 | F70: 0 | G70: 0 | H70: 0 | I70: 0 | J70: 0 | K70: 0 | L70: 0 | M70: 0 | N70: 0 | O70: 0 | P70: 0 | Q70: 0
A71: Tecnico della prevenzione nell'ambiente e nei luoghi di lavoro | B71: S07TSH-2 | D71: 0 | E71: 0 | F71: 0 | G71: 0 | H71: 0 | I71: 0 | J71: 0 | K71: 0 | L71: 0 | M71: 0 | N71: 0 | O71: 0 | P71: 0 | Q71: 0
A72: Tecnico di neurofisiopatologia | B72: S07TSA-2 | D72: 0 | E72: 0 | F72: 0 | G72: 0 | H72: 0 | I72: 0 | J72: 0 | K72: 0 | L72: 0 | M72: 0 | N72: 0 | O72: 0 | P72: 0 | Q72: 0
A73: Tecnico sanitario di laboratorio biomedico | B73: S07TSB-2 | D73: 0 | E73: 0 | F73: 0 | G73: 0 | H73: 0 | I73: 0 | J73: 0 | K73: 0 | L73: 0 | M73: 0 | N73: 0 | O73: 0 | P73: 0 | Q73: 0
A74: Tecnico sanitario di radiologia medica | B74: S07TSC-2 | D74: 0 | E74: 0 | F74: 0 | G74: 0 | H74: 0 | I74: 0 | J74: 0 | K74: 0 | L74: 0 | M74: 0 | N74: 0 | O74: 0 | P74: 0 | Q74: 0
A75: Tecnico di fisiopatologia cardiocircol. e profusione cardiovasc. | B75: S07TSD-2 | D75: 0 | E75: 0 | F75: 0 | G75: 0 | H75: 0 | I75: 0 | J75: 0 | K75: 0 | L75: 0 | M75: 0 | N75: 0 | O75: 0 | P75: 0 | Q75: 0
A76: Ottico | B76: S07TSF-2 | D76: 0 | E76: 0 | F76: 0 | G76: 0 | H76: 0 | I76: 0 | J76: 0 | K76: 0 | L76: 0 | M76: 0 | N76: 0 | O76: 0 | P76: 0 | Q76: 0
A77: Odontotecnico | B77: S07TSG-2 | D77: 0 | E77: 0 | F77: 0 | G77: 0 | H77: 0 | I77: 0 | J77: 0 | K77: 0 | L77: 0 | M77: 0 | N77: 0 | O77: 0 | P77: 0 | Q77: 0
A78: Tecnico ortopedico | B78: S07RIG-2 | D78: 0 | E78: 0 | F78: 0 | G78: 0 | H78: 0 | I78: 0 | J78: 0 | K78: 0 | L78: 0 | M78: 0 | N78: 0 | O78: 0 | P78: 0 | Q78: 0
A79: Dietista | B79: S06INE-2 | D79: 0 | E79: 0 | F79: 0 | G79: 0 | H79: 0 | I79: 0 | J79: 0 | K79: 0 | L79: 0 | M79: 0 | N79: 0 | O79: 0 | P79: 0 | Q79: 0
A80: Igienista dentale | B80: S06TSE-2 | D80: 0 | E80: 0 | F80: 0 | G80: 0 | H80: 0 | I80: 0 | J80: 0 | K80: 0 | L80: 0 | M80: 0 | N80: 0 | O80: 0 | P80: 0 | Q80: 0
A81: Tecnico audioprotesista | B81: S06RIE-2 | D81: 0 | E81: 0 | F81: 0 | G81: 0 | H81: 0 | I81: 0 | J81: 0 | K81: 0 | L81: 0 | M81: 0 | N81: 0 | O81: 0 | P81: 0 | Q81: 0
A82: Tecnico audiometrista | B82: S06RIF-2 | D82: 0 | E82: 0 | F82: 0 | G82: 0 | H82: 0 | I82: 0 | J82: 0 | K82: 0 | L82: 0 | M82: 0 | N82: 0 | O82: 0 | P82: 0 | Q82: 0
A83: Assistente sanitario | B83: S06INB-2 | D83: 0 | E83: 0 | F83: 0 | G83: 0 | H83: 0 | I83: 0 | J83: 0 | K83: 0 | L83: 0 | M83: 0 | N83: 0 | O83: 0 | P83: 0 | Q83: 0
A84: Tecnico della prevenzione nell'ambiente e nei luoghi di lavoro | B84: S06TSH-2 | D84: 0 | E84: 0 | F84: 0 | G84: 0 | H84: 0 | I84: 0 | J84: 0 | K84: 0 | L84: 0 | M84: 0 | N84: 0 | O84: 0 | P84: 0 | Q84: 0
A85: Tecnico di neurofisiopatologia | B85: S06TSA-2 | D85: 0 | E85: 0 | F85: 0 | G85: 0 | H85: 0 | I85: 0 | J85: 0 | K85: 0 | L85: 0 | M85: 0 | N85: 0 | O85: 0 | P85: 0 | Q85: 0
A86: Tecnico sanitario di laboratorio biomedico | B86: S06TSB-2 | D86: 0 | E86: 0 | F86: 0 | G86: 0 | H86: 0 | I86: 0 | J86: 0 | K86: 0 | L86: 0 | M86: 0 | N86: 0 | O86: 0 | P86: 0 | Q86: 0
A87: Tecnico sanitario di radiologia medica | B87: S06TSC-2 | D87: 0 | E87: 0 | F87: 0 | G87: 0 | H87: 0 | I87: 0 | J87: 0 | K87: 0 | L87: 0 | M87: 0 | N87: 0 | O87: 0 | P87: 0 | Q87: 0
A88: Tecnico di fisiopatologia cardiocircol. e profusione cardiovasc. | B88: S06TSD-2 | D88: 0 | E88: 0 | F88: 0 | G88: 0 | H88: 0 | I88: 0 | J88: 0 | K88: 0 | L88: 0 | M88: 0 | N88: 0 | O88: 0 | P88: 0 | Q88: 0
A89: Ottico | B89: S06TSF-2 | D89: 0 | E89: 0 | F89: 0 | G89: 0 | H89: 0 | I89: 0 | J89: 0 | K89: 0 | L89: 0 | M89: 0 | N89: 0 | O89: 0 | P89: 0 | Q89: 0
A90: Odontotecnico | B90: S06TSG-2 | D90: 0 | E90: 0 | F90: 0 | G90: 0 | H90: 0 | I90: 0 | J90: 0 | K90: 0 | L90: 0 | M90: 0 | N90: 0 | O90: 0 | P90: 0 | Q90: 0
A91: Tecnico ortopedico | B91: S06RIG-2 | D91: 0 | E91: 0 | F91: 0 | G91: 0 | H91: 0 | I91: 0 | J91: 0 | K91: 0 | L91: 0 | M91: 0 | N91: 0 | O91: 0 | P91: 0 | Q91: 0
A92: Fisioterapista | B92: S07RIA-2 | D92: 0 | E92: 0 | F92: 0 | G92: 0 | H92: 0 | I92: 0 | J92: 0 | K92: 0 | L92: 0 | M92: 0 | N92: 0 | O92: 0 | P92: 0 | Q92: 0
A93: Logopedista | B93: S07RIB-2 | D93: 0 | E93: 0 | F93: 0 | G93: 0 | H93: 0 | I93: 0 | J93: 0 | K93: 0 | L93: 0 | M93: 0 | N93: 0 | O93: 0 | P93: 0 | Q93: 0
A94: Ortottista - assistente di oftalmologia | B94: S07RIC-2 | D94: 0 | E94: 0 | F94: 0 | G94: 0 | H94: 0 | I94: 0 | J94: 0 | K94: 0 | L94: 0 | M94: 0 | N94: 0 | O94: 0 | P94: 0 | Q94: 0
A95: Massaggiatore non vedente | B95: S07RID-2 | D95: 0 | E95: 0 | F95: 0 | G95: 0 | H95: 0 | I95: 0 | J95: 0 | K95: 0 | L95: 0 | M95: 0 | N95: 0 | O95: 0 | P95: 0 | Q95: 0
A96: Podologo | B96: S07INF-2 | D96: 0 | E96: 0 | F96: 0 | G96: 0 | H96: 0 | I96: 0 | J96: 0 | K96: 0 | L96: 0 | M96: 0 | N96: 0 | O96: 0 | P96: 0 | Q96: 0
A97: Educatore professionale | B97: S07RIH-2 | D97: 0 | E97: 0 | F97: 0 | G97: 0 | H97: 0 | I97: 0 | J97: 0 | K97: 0 | L97: 0 | M97: 0 | N97: 0 | O97: 0 | P97: 0 | Q97: 0
A98: Terapista della neuro e psicomotricità dell’età evolutiva | B98: S07RII-2 | D98: 0 | E98: 0 | F98: 0 | G98: 0 | H98: 0 | I98: 0 | J98: 0 | K98: 0 | L98: 0 | M98: 0 | N98: 0 | O98: 0 | P98: 0 | Q98: 0
A99: Tecnico dell’educazione e riabilit. psichiatrica e psicosociale | B99: S07RIJ-2 | D99: 0 | E99: 0 | F99: 0 | G99: 0 | H99: 0 | I99: 0 | J99: 0 | K99: 0 | L99: 0 | M99: 0 | N99: 0 | O99: 0 | P99: 0 | Q99: 0
A100: Terapista occupazionale | B100: S07RIK-2 | D100: 0 | E100: 0 | F100: 0 | G100: 0 | H100: 0 | I100: 0 | J100: 0 | K100: 0 | L100: 0 | M100: 0 | N100: 0 | O100: 0 | P100: 0 | Q100: 0
A101: Fisioterapista | B101: S06RIA-2 | D101: 0 | E101: 0 | F101: 0 | G101: 0 | H101: 0 | I101: 0 | J101: 0 | K101: 0 | L101: 0 | M101: 0 | N101: 0 | O101: 0 | P101: 0 | Q101: 0
A102: Logopedista | B102: S06RIB-2 | D102: 0 | E102: 0 | F102: 0 | G102: 0 | H102: 0 | I102: 0 | J102: 0 | K102: 0 | L102: 0 | M102: 0 | N102: 0 | O102: 0 | P102: 0 | Q102: 0
A103: Ortottista - assistente di oftalmologia | B103: S06RIC-2 | D103: 0 | E103: 0 | F103: 0 | G103: 0 | H103: 0 | I103: 0 | J103: 0 | K103: 0 | L103: 0 | M103: 0 | N103: 0 | O103: 0 | P103: 0 | Q103: 0
A104: Massaggiatore non vedente | B104: S06RID-2 | D104: 0 | E104: 0 | F104: 0 | G104: 0 | H104: 0 | I104: 0 | J104: 0 | K104: 0 | L104: 0 | M104: 0 | N104: 0 | O104: 0 | P104: 0 | Q104: 0
A105: Podologo | B105: S06INF-2 | D105: 0 | E105: 0 | F105: 0 | G105: 0 | H105: 0 | I105: 0 | J105: 0 | K105: 0 | L105: 0 | M105: 0 | N105: 0 | O105: 0 | P105: 0 | Q105: 0
A106: Educatore professionale | B106: S06RIH-2 | D106: 0 | E106: 0 | F106: 0 | G106: 0 | H106: 0 | I106: 0 | J106: 0 | K106: 0 | L106: 0 | M106: 0 | N106: 0 | O106: 0 | P106: 0 | Q106: 0
A107: Terapista della neuro e psicomotricità dell’età evolutiva | B107: S06RII-2 | D107: 0 | E107: 0 | F107: 0 | G107: 0 | H107: 0 | I107: 0 | J107: 0 | K107: 0 | L107: 0 | M107: 0 | N107: 0 | O107: 0 | P107: 0 | Q107: 0
A108: Tecnico dell’educazione e riabilit. psichiatrica e psicosociale | B108: S06RIJ-2 | D108: 0 | E108: 0 | F108: 0 | G108: 0 | H108: 0 | I108: 0 | J108: 0 | K108: 0 | L108: 0 | M108: 0 | N108: 0 | O108: 0 | P108: 0 | Q108: 0
A109: Terapista occupazionale | B109: S06RIK-2 | D109: 0 | E109: 0 | F109: 0 | G109: 0 | H109: 0 | I109: 0 | J109: 0 | K109: 0 | L109: 0 | M109: 0 | N109: 0 | O109: 0 | P109: 0 | Q109: 0
A110: Tecnico della riabilitazione psichiatrica | B110: S06RIL-2 | D110: 0 | E110: 0 | F110: 0 | G110: 0 | H110: 0 | I110: 0 | J110: 0 | K110: 0 | L110: 0 | M110: 0 | N110: 0 | O110: 0 | P110: 0 | Q110: 0
A111: Massaggiatore/massofisioterapista | B111: S05RIN-2 | D111: 0 | E111: 0 | F111: 0 | G111: 0 | H111: 0 | I111: 0 | J111: 0 | K111: 0 | L111: 0 | M111: 0 | N111: 0 | O111: 0 | P111: 0 | Q111: 0
A112: Infermiere | B112: S07INA-3 | D112: 0 | E112: 0 | F112: 0 | G112: 0 | H112: 0 | I112: 0 | J112: 0 | K112: 0 | L112: 0 | M112: 0 | N112: 0 | O112: 0 | P112: 0 | Q112: 0
A113: Ostetrica | B113: S07INC-3 | D113: 0 | E113: 0 | F113: 0 | G113: 0 | H113: 0 | I113: 0 | J113: 0 | K113: 0 | L113: 0 | M113: 0 | N113: 0 | O113: 0 | P113: 0 | Q113: 0
A114: Infermiere pediatrico | B114: S07IND-3 | D114: 0 | E114: 0 | F114: 0 | G114: 0 | H114: 0 | I114: 0 | J114: 0 | K114: 0 | L114: 0 | M114: 0 | N114: 0 | O114: 0 | P114: 0 | Q114: 0
A115: Infermiere | B115: S06INA-3 | D115: 0 | E115: 0 | F115: 0 | G115: 0 | H115: 0 | I115: 0 | J115: 0 | K115: 0 | L115: 0 | M115: 0 | N115: 0 | O115: 0 | P115: 0 | Q115: 0
A116: Ostetrica | B116: S06INC-3 | D116: 0 | E116: 0 | F116: 0 | G116: 0 | H116: 0 | I116: 0 | J116: 0 | K116: 0 | L116: 0 | M116: 0 | N116: 0 | O116: 0 | P116: 0 | Q116: 0
A117: Infermiere pediatrico | B117: S06IND-3 | D117: 0 | E117: 0 | F117: 0 | G117: 0 | H117: 0 | I117: 0 | J117: 0 | K117: 0 | L117: 0 | M117: 0 | N117: 0 | O117: 0 | P117: 0 | Q117: 0
A118: Infermiere generico | B118: S05INA-3 | D118: 0 | E118: 0 | F118: 0 | G118: 0 | H118: 0 | I118: 0 | J118: 0 | K118: 0 | L118: 0 | M118: 0 | N118: 0 | O118: 0 | P118: 0 | Q118: 0
A119: Infermiere psichiatrico 1 anno scuola | B119: S05INB-3 | D119: 0 | E119: 0 | F119: 0 | G119: 0 | H119: 0 | I119: 0 | J119: 0 | K119: 0 | L119: 0 | M119: 0 | N119: 0 | O119: 0 | P119: 0 | Q119: 0
A120: Puericultrice | B120: S05INC-3 | D120: 0 | E120: 0 | F120: 0 | G120: 0 | H120: 0 | I120: 0 | J120: 0 | K120: 0 | L120: 0 | M120: 0 | N120: 0 | O120: 0 | P120: 0 | Q120: 0
A121: Dietista | B121: S07INE-3 | D121: 0 | E121: 0 | F121: 0 | G121: 0 | H121: 0 | I121: 0 | J121: 0 | K121: 0 | L121: 0 | M121: 0 | N121: 0 | O121: 0 | P121: 0 | Q121: 0
A122: Igienista dentale | B122: S07TSE-3 | D122: 0 | E122: 0 | F122: 0 | G122: 0 | H122: 0 | I122: 0 | J122: 0 | K122: 0 | L122: 0 | M122: 0 | N122: 0 | O122: 0 | P122: 0 | Q122: 0
A123: Tecnico audioprotesista | B123: S07RIE-3 | D123: 0 | E123: 0 | F123: 0 | G123: 0 | H123: 0 | I123: 0 | J123: 0 | K123: 0 | L123: 0 | M123: 0 | N123: 0 | O123: 0 | P123: 0 | Q123: 0
A124: Tecnico audiometrista | B124: S07RIF-3 | D124: 0 | E124: 0 | F124: 0 | G124: 0 | H124: 0 | I124: 0 | J124: 0 | K124: 0 | L124: 0 | M124: 0 | N124: 0 | O124: 0 | P124: 0 | Q124: 0
A125: Assistente sanitario | B125: S07INB-3 | D125: 0 | E125: 0 | F125: 0 | G125: 0 | H125: 0 | I125: 0 | J125: 0 | K125: 0 | L125: 0 | M125: 0 | N125: 0 | O125: 0 | P125: 0 | Q125: 0
A126: Tecnico della prevenzione nell'ambiente e nei luoghi di lavoro | B126: S07TSH-3 | D126: 0 | E126: 0 | F126: 0 | G126: 0 | H126: 0 | I126: 0 | J126: 0 | K126: 0 | L126: 0 | M126: 0 | N126: 0 | O126: 0 | P126: 0 | Q126: 0
A127: Tecnico di neurofisiopatologia | B127: S07TSA-3 | D127: 0 | E127: 0 | F127: 0 | G127: 0 | H127: 0 | I127: 0 | J127: 0 | K127: 0 | L127: 0 | M127: 0 | N127: 0 | O127: 0 | P127: 0 | Q127: 0
A128: Tecnico sanitario di laboratorio biomedico | B128: S07TSB-3 | D128: 0 | E128: 0 | F128: 0 | G128: 0 | H128: 0 | I128: 0 | J128: 0 | K128: 0 | L128: 0 | M128: 0 | N128: 0 | O128: 0 | P128: 0 | Q128: 0
A129: Tecnico sanitario di radiologia medica | B129: S07TSC-3 | D129: 0 | E129: 0 | F129: 0 | G129: 0 | H129: 0 | I129: 0 | J129: 0 | K129: 0 | L129: 0 | M129: 0 | N129: 0 | O129: 0 | P129: 0 | Q129: 0
A130: Tecnico di fisiopatologia cardiocircol. e profusione cardiovasc. | B130: S07TSD-3 | D130: 0 | E130: 0 | F130: 0 | G130: 0 | H130: 0 | I130: 0 | J130: 0 | K130: 0 | L130: 0 | M130: 0 | N130: 0 | O130: 0 | P130: 0 | Q130: 0
A131: Ottico | B131: S07TSF-3 | D131: 0 | E131: 0 | F131: 0 | G131: 0 | H131: 0 | I131: 0 | J131: 0 | K131: 0 | L131: 0 | M131: 0 | N131: 0 | O131: 0 | P131: 0 | Q131: 0
A132: Odontotecnico | B132: S07TSG-3 | D132: 0 | E132: 0 | F132: 0 | G132: 0 | H132: 0 | I132: 0 | J132: 0 | K132: 0 | L132: 0 | M132: 0 | N132: 0 | O132: 0 | P132: 0 | Q132: 0
A133: Tecnico ortopedico | B133: S07RIG-3 | D133: 0 | E133: 0 | F133: 0 | G133: 0 | H133: 0 | I133: 0 | J133: 0 | K133: 0 | L133: 0 | M133: 0 | N133: 0 | O133: 0 | P133: 0 | Q133: 0
A134: Dietista | B134: S06INE-3 | D134: 0 | E134: 0 | F134: 0 | G134: 0 | H134: 0 | I134: 0 | J134: 0 | K134: 0 | L134: 0 | M134: 0 | N134: 0 | O134: 0 | P134: 0 | Q134: 0
A135: Igienista dentale | B135: S06TSE-3 | D135: 0 | E135: 0 | F135: 0 | G135: 0 | H135: 0 | I135: 0 | J135: 0 | K135: 0 | L135: 0 | M135: 0 | N135: 0 | O135: 0 | P135: 0 | Q135: 0
A136: Tecnico audioprotesista | B136: S06RIE-3 | D136: 0 | E136: 0 | F136: 0 | G136: 0 | H136: 0 | I136: 0 | J136: 0 | K136: 0 | L136: 0 | M136: 0 | N136: 0 | O136: 0 | P136: 0 | Q136: 0
A137: Tecnico audiometrista | B137: S06RIF-3 | D137: 0 | E137: 0 | F137: 0 | G137: 0 | H137: 0 | I137: 0 | J137: 0 | K137: 0 | L137: 0 | M137: 0 | N137: 0 | O137: 0 | P137: 0 | Q137: 0
A138: Assistente sanitario | B138: S06INB-3 | D138: 0 | E138: 0 | F138: 0 | G138: 0 | H138: 0 | I138: 0 | J138: 0 | K138: 0 | L138: 0 | M138: 0 | N138: 0 | O138: 0 | P138: 0 | Q138: 0
A139: Tecnico della prevenzione nell'ambiente e nei luoghi di lavoro | B139: S06TSH-3 | D139: 0 | E139: 0 | F139: 0 | G139: 0 | H139: 0 | I139: 0 | J139: 0 | K139: 0 | L139: 0 | M139: 0 | N139: 0 | O139: 0 | P139: 0 | Q139: 0
A140: Tecnico di neurofisiopatologia | B140: S06TSA-3 | D140: 0 | E140: 0 | F140: 0 | G140: 0 | H140: 0 | I140: 0 | J140: 0 | K140: 0 | L140: 0 | M140: 0 | N140: 0 | O140: 0 | P140: 0 | Q140: 0
A141: Tecnico sanitario di laboratorio biomedico | B141: S06TSB-3 | D141: 0 | E141: 0 | F141: 0 | G141: 0 | H141: 0 | I141: 0 | J141: 0 | K141: 0 | L141: 0 | M141: 0 | N141: 0 | O141: 0 | P141: 0 | Q141: 0
A142: Tecnico sanitario di radiologia medica | B142: S06TSC-3 | D142: 0 | E142: 0 | F142: 0 | G142: 0 | H142: 0 | I142: 0 | J142: 0 | K142: 0 | L142: 0 | M142: 0 | N142: 0 | O142: 0 | P142: 0 | Q142: 0
A143: Tecnico di fisiopatologia cardiocircol. e profusione cardiovasc. | B143: S06TSD-3 | D143: 0 | E143: 0 | F143: 0 | G143: 0 | H143: 0 | I143: 0 | J143: 0 | K143: 0 | L143: 0 | M143: 0 | N143: 0 | O143: 0 | P143: 0 | Q143: 0
A144: Ottico | B144: S06TSF-3 | D144: 0 | E144: 0 | F144: 0 | G144: 0 | H144: 0 | I144: 0 | J144: 0 | K144: 0 | L144: 0 | M144: 0 | N144: 0 | O144: 0 | P144: 0 | Q144: 0
A145: Odontotecnico | B145: S06TSG-3 | D145: 0 | E145: 0 | F145: 0 | G145: 0 | H145: 0 | I145: 0 | J145: 0 | K145: 0 | L145: 0 | M145: 0 | N145: 0 | O145: 0 | P145: 0 | Q145: 0
A146: Tecnico ortopedico | B146: S06RIG-3 | D146: 0 | E146: 0 | F146: 0 | G146: 0 | H146: 0 | I146: 0 | J146: 0 | K146: 0 | L146: 0 | M146: 0 | N146: 0 | O146: 0 | P146: 0 | Q146: 0
A147: Fisioterapista | B147: S07RIA-3 | D147: 0 | E147: 0 | F147: 0 | G147: 0 | H147: 0 | I147: 0 | J147: 0 | K147: 0 | L147: 0 | M147: 0 | N147: 0 | O147: 0 | P147: 0 | Q147: 0
A148: Logopedista | B148: S07RIB-3 | D148: 0 | E148: 0 | F148: 0 | G148: 0 | H148: 0 | I148: 0 | J148: 0 | K148: 0 | L148: 0 | M148: 0 | N148: 0 | O148: 0 | P148: 0 | Q148: 0
A149: Ortottista - assistente di oftalmologia | B149: S07RIC-3 | D149: 0 | E149: 0 | F149: 0 | G149: 0 | H149: 0 | I149: 0 | J149: 0 | K149: 0 | L149: 0 | M149: 0 | N149: 0 | O149: 0 | P149: 0 | Q149: 0
A150: Massaggiatore non vedente | B150: S07RID-3 | D150: 0 | E150: 0 | F150: 0 | G150: 0 | H150: 0 | I150: 0 | J150: 0 | K150: 0 | L150: 0 | M150: 0 | N150: 0 | O150: 0 | P150: 0 | Q150: 0
A151: Podologo | B151: S07INF-3 | D151: 0 | E151: 0 | F151: 0 | G151: 0 | H151: 0 | I151: 0 | J151: 0 | K151: 0 | L151: 0 | M151: 0 | N151: 0 | O151: 0 | P151: 0 | Q151: 0
A152: Educatore professionale | B152: S07RIH-3 | D152: 0 | E152: 0 | F152: 0 | G152: 0 | H152: 0 | I152: 0 | J152: 0 | K152: 0 | L152: 0 | M152: 0 | N152: 0 | O152: 0 | P152: 0 | Q152: 0
A153: Terapista della neuro e psicomotricità dell’età evolutiva | B153: S07RII-3 | D153: 0 | E153: 0 | F153: 0 | G153: 0 | H153: 0 | I153: 0 | J153: 0 | K153: 0 | L153: 0 | M153: 0 | N153: 0 | O153: 0 | P153: 0 | Q153: 0
A154: Tecnico dell’educazione e riabilit. psichiatrica e psicosociale | B154: S07RIJ-3 | D154: 0 | E154: 0 | F154: 0 | G154: 0 | H154: 0 | I154: 0 | J154: 0 | K154: 0 | L154: 0 | M154: 0 | N154: 0 | O154: 0 | P154: 0 | Q154: 0
A155: Terapista occupazionale | B155: S07RIK-3 | D155: 0 | E155: 0 | F155: 0 | G155: 0 | H155: 0 | I155: 0 | J155: 0 | K155: 0 | L155: 0 | M155: 0 | N155: 0 | O155: 0 | P155: 0 | Q155: 0
A156: Fisioterapista | B156: S06RIA-3 | D156: 0 | E156: 0 | F156: 0 | G156: 0 | H156: 0 | I156: 0 | J156: 0 | K156: 0 | L156: 0 | M156: 0 | N156: 0 | O156: 0 | P156: 0 | Q156: 0
A157: Logopedista | B157: S06RIB-3 | D157: 0 | E157: 0 | F157: 0 | G157: 0 | H157: 0 | I157: 0 | J157: 0 | K157: 0 | L157: 0 | M157: 0 | N157: 0 | O157: 0 | P157: 0 | Q157: 0
A158: Ortottista - assistente di oftalmologia | B158: S06RIC-3 | D158: 0 | E158: 0 | F158: 0 | G158: 0 | H158: 0 | I158: 0 | J158: 0 | K158: 0 | L158: 0 | M158: 0 | N158: 0 | O158: 0 | P158: 0 | Q158: 0
A159: Massaggiatore non vedente | B159: S06RID-3 | D159: 0 | E159: 0 | F159: 0 | G159: 0 | H159: 0 | I159: 0 | J159: 0 | K159: 0 | L159: 0 | M159: 0 | N159: 0 | O159: 0 | P159: 0 | Q159: 0
A160: Podologo | B160: S06INF-3 | D160: 0 | E160: 0 | F160: 0 | G160: 0 | H160: 0 | I160: 0 | J160: 0 | K160: 0 | L160: 0 | M160: 0 | N160: 0 | O160: 0 | P160: 0 | Q160: 0
A161: Educatore professionale | B161: S06RIH-3 | D161: 0 | E161: 0 | F161: 0 | G161: 0 | H161: 0 | I161: 0 | J161: 0 | K161: 0 | L161: 0 | M161: 0 | N161: 0 | O161: 0 | P161: 0 | Q161: 0
A162: Terapista della neuro e psicomotricità dell’età evolutiva | B162: S06RII-3 | D162: 0 | E162: 0 | F162: 0 | G162: 0 | H162: 0 | I162: 0 | J162: 0 | K162: 0 | L162: 0 | M162: 0 | N162: 0 | O162: 0 | P162: 0 | Q162: 0
A163: Tecnico dell’educazione e riabilit. psichiatrica e psicosociale | B163: S06RIJ-3 | D163: 0 | E163: 0 | F163: 0 | G163: 0 | H163: 0 | I163: 0 | J163: 0 | K163: 0 | L163: 0 | M163: 0 | N163: 0 | O163: 0 | P163: 0 | Q163: 0
A164: Terapista occupazionale | B164: S06RIK-3 | D164: 0 | E164: 0 | F164: 0 | G164: 0 | H164: 0 | I164: 0 | J164: 0 | K164: 0 | L164: 0 | M164: 0 | N164: 0 | O164: 0 | P164: 0 | Q164: 0
A165: Tecnico della riabilitazione psichiatrica | B165: S06RIL-3 | D165: 0 | E165: 0 | F165: 0 | G165: 0 | H165: 0 | I165: 0 | J165: 0 | K165: 0 | L165: 0 | M165: 0 | N165: 0 | O165: 0 | P165: 0 | Q165: 0
A166: Massaggiatore/massofisioterapista | B166: S05RIN-3 | D166: 0 | E166: 0 | F166: 0 | G166: 0 | H166: 0 | I166: 0 | J166: 0 | K166: 0 | L166: 0 | M166: 0 | N166: 0 | O166: 0 | P166: 0 | Q166: 0
A167: Infermiere | B167: S07INA-4 | D167: 0 | E167: 0 | F167: 0 | G167: 0 | H167: 0 | I167: 0 | J167: 0 | K167: 0 | L167: 0 | M167: 0 | N167: 0 | O167: 0 | P167: 0 | Q167: 0
A168: Ostetrica | B168: S07INC-4 | D168: 0 | E168: 0 | F168: 0 | G168: 0 | H168: 0 | I168: 0 | J168: 0 | K168: 0 | L168: 0 | M168: 0 | N168: 0 | O168: 0 | P168: 0 | Q168: 0
A169: Infermiere pediatrico | B169: S07IND-4 | D169: 0 | E169: 0 | F169: 0 | G169: 0 | H169: 0 | I169: 0 | J169: 0 | K169: 0 | L169: 0 | M169: 0 | N169: 0 | O169: 0 | P169: 0 | Q169: 0
A170: Infermiere | B170: S06INA-4 | D170: 0 | E170: 0 | F170: 0 | G170: 0 | H170: 0 | I170: 0 | J170: 0 | K170: 0 | L170: 0 | M170: 0 | N170: 0 | O170: 0 | P170: 0 | Q170: 0
A171: Ostetrica | B171: S06INC-4 | D171: 0 | E171: 0 | F171: 0 | G171: 0 | H171: 0 | I171: 0 | J171: 0 | K171: 0 | L171: 0 | M171: 0 | N171: 0 | O171: 0 | P171: 0 | Q171: 0
A172: Infermiere pediatrico | B172: S06IND-4 | D172: 0 | E172: 0 | F172: 0 | G172: 0 | H172: 0 | I172: 0 | J172: 0 | K172: 0 | L172: 0 | M172: 0 | N172: 0 | O172: 0 | P172: 0 | Q172: 0
A173: Infermiere generico | B173: S05INA-4 | D173: 0 | E173: 0 | F173: 0 | G173: 0 | H173: 0 | I173: 0 | J173: 0 | K173: 0 | L173: 0 | M173: 0 | N173: 0 | O173: 0 | P173: 0 | Q173: 0
A174: Infermiere psichiatrico 1 anno scuola | B174: S05INB-4 | D174: 0 | E174: 0 | F174: 0 | G174: 0 | H174: 0 | I174: 0 | J174: 0 | K174: 0 | L174: 0 | M174: 0 | N174: 0 | O174: 0 | P174: 0 | Q174: 0
A175: Puericultrice | B175: S05INC-4 | D175: 0 | E175: 0 | F175: 0 | G175: 0 | H175: 0 | I175: 0 | J175: 0 | K175: 0 | L175: 0 | M175: 0 | N175: 0 | O175: 0 | P175: 0 | Q175: 0
A176: Dietista | B176: S07INE-4 | D176: 0 | E176: 0 | F176: 0 | G176: 0 | H176: 0 | I176: 0 | J176: 0 | K176: 0 | L176: 0 | M176: 0 | N176: 0 | O176: 0 | P176: 0 | Q176: 0
A177: Igienista dentale | B177: S07TSE-4 | D177: 0 | E177: 0 | F177: 0 | G177: 0 | H177: 0 | I177: 0 | J177: 0 | K177: 0 | L177: 0 | M177: 0 | N177: 0 | O177: 0 | P177: 0 | Q177: 0
A178: Tecnico audioprotesista | B178: S07RIE-4 | D178: 0 | E178: 0 | F178: 0 | G178: 0 | H178: 0 | I178: 0 | J178: 0 | K178: 0 | L178: 0 | M178: 0 | N178: 0 | O178: 0 | P178: 0 | Q178: 0
A179: Tecnico audiometrista | B179: S07RIF-4 | D179: 0 | E179: 0 | F179: 0 | G179: 0 | H179: 0 | I179: 0 | J179: 0 | K179: 0 | L179: 0 | M179: 0 | N179: 0 | O179: 0 | P179: 0 | Q179: 0
A180: Assistente sanitario | B180: S07INB-4 | D180: 0 | E180: 0 | F180: 0 | G180: 0 | H180: 0 | I180: 0 | J180: 0 | K180: 0 | L180: 0 | M180: 0 | N180: 0 | O180: 0 | P180: 0 | Q180: 0
A181: Tecnico della prevenzione nell'ambiente e nei luoghi di lavoro | B181: S07TSH-4 | D181: 0 | E181: 0 | F181: 0 | G181: 0 | H181: 0 | I181: 0 | J181: 0 | K181: 0 | L181: 0 | M181: 0 | N181: 0 | O181: 0 | P181: 0 | Q181: 0
A182: Tecnico di neurofisiopatologia | B182: S07TSA-4 | D182: 0 | E182: 0 | F182: 0 | G182: 0 | H182: 0 | I182: 0 | J182: 0 | K182: 0 | L182: 0 | M182: 0 | N182: 0 | O182: 0 | P182: 0 | Q182: 0
A183: Tecnico sanitario di laboratorio biomedico | B183: S07TSB-4 | D183: 0 | E183: 0 | F183: 0 | G183: 0 | H183: 0 | I183: 0 | J183: 0 | K183: 0 | L183: 0 | M183: 0 | N183: 0 | O183: 0 | P183: 0 | Q183: 0
A184: Tecnico sanitario di radiologia medica | B184: S07TSC-4 | D184: 0 | E184: 0 | F184: 0 | G184: 0 | H184: 0 | I184: 0 | J184: 0 | K184: 0 | L184: 0 | M184: 0 | N184: 0 | O184: 0 | P184: 0 | Q184: 0
A185: Tecnico di fisiopatologia cardiocircol. e profusione cardiovasc. | B185: S07TSD-4 | D185: 0 | E185: 0 | F185: 0 | G185: 0 | H185: 0 | I185: 0 | J185: 0 | K185: 0 | L185: 0 | M185: 0 | N185: 0 | O185: 0 | P185: 0 | Q185: 0
A186: Ottico | B186: S07TSF-4 | D186: 0 | E186: 0 | F186: 0 | G186: 0 | H186: 0 | I186: 0 | J186: 0 | K186: 0 | L186: 0 | M186: 0 | N186: 0 | O186: 0 | P186: 0 | Q186: 0
A187: Odontotecnico | B187: S07TSG-4 | D187: 0 | E187: 0 | F187: 0 | G187: 0 | H187: 0 | I187: 0 | J187: 0 | K187: 0 | L187: 0 | M187: 0 | N187: 0 | O187: 0 | P187: 0 | Q187: 0
A188: Tecnico ortopedico | B188: S07RIG-4 | D188: 0 | E188: 0 | F188: 0 | G188: 0 | H188: 0 | I188: 0 | J188: 0 | K188: 0 | L188: 0 | M188: 0 | N188: 0 | O188: 0 | P188: 0 | Q188: 0
A189: Dietista | B189: S06INE-4 | D189: 0 | E189: 0 | F189: 0 | G189: 0 | H189: 0 | I189: 0 | J189: 0 | K189: 0 | L189: 0 | M189: 0 | N189: 0 | O189: 0 | P189: 0 | Q189: 0
A190: Igienista dentale | B190: S06TSE-4 | D190: 0 | E190: 0 | F190: 0 | G190: 0 | H190: 0 | I190: 0 | J190: 0 | K190: 0 | L190: 0 | M190: 0 | N190: 0 | O190: 0 | P190: 0 | Q190: 0
A191: Tecnico audioprotesista | B191: S06RIE-4 | D191: 0 | E191: 0 | F191: 0 | G191: 0 | H191: 0 | I191: 0 | J191: 0 | K191: 0 | L191: 0 | M191: 0 | N191: 0 | O191: 0 | P191: 0 | Q191: 0
A192: Tecnico audiometrista | B192: S06RIF-4 | D192: 0 | E192: 0 | F192: 0 | G192: 0 | H192: 0 | I192: 0 | J192: 0 | K192: 0 | L192: 0 | M192: 0 | N192: 0 | O192: 0 | P192: 0 | Q192: 0
A193: Assistente sanitario | B193: S06INB-4 | D193: 0 | E193: 0 | F193: 0 | G193: 0 | H193: 0 | I193: 0 | J193: 0 | K193: 0 | L193: 0 | M193: 0 | N193: 0 | O193: 0 | P193: 0 | Q193: 0
A194: Tecnico della prevenzione nell'ambiente e nei luoghi di lavoro | B194: S06TSH-4 | D194: 0 | E194: 0 | F194: 0 | G194: 0 | H194: 0 | I194: 0 | J194: 0 | K194: 0 | L194: 0 | M194: 0 | N194: 0 | O194: 0 | P194: 0 | Q194: 0
A195: Tecnico di neurofisiopatologia | B195: S06TSA-4 | D195: 0 | E195: 0 | F195: 0 | G195: 0 | H195: 0 | I195: 0 | J195: 0 | K195: 0 | L195: 0 | M195: 0 | N195: 0 | O195: 0 | P195: 0 | Q195: 0
A196: Tecnico sanitario di laboratorio biomedico | B196: S06TSB-4 | D196: 0 | E196: 0 | F196: 0 | G196: 0 | H196: 0 | I196: 0 | J196: 0 | K196: 0 | L196: 0 | M196: 0 | N196: 0 | O196: 0 | P196: 0 | Q196: 0
A197: Tecnico sanitario di radiologia medica | B197: S06TSC-4 | D197: 0 | E197: 0 | F197: 0 | G197: 0 | H197: 0 | I197: 0 | J197: 0 | K197: 0 | L197: 0 | M197: 0 | N197: 0 | O197: 0 | P197: 0 | Q197: 0
A198: Tecnico di fisiopatologia cardiocircol. e profusione cardiovasc. | B198: S06TSD-4 | D198: 0 | E198: 0 | F198: 0 | G198: 0 | H198: 0 | I198: 0 | J198: 0 | K198: 0 | L198: 0 | M198: 0 | N198: 0 | O198: 0 | P198: 0 | Q198: 0
A199: Ottico | B199: S06TSF-4 | D199: 0 | E199: 0 | F199: 0 | G199: 0 | H199: 0 | I199: 0 | J199: 0 | K199: 0 | L199: 0 | M199: 0 | N199: 0 | O199: 0 | P199: 0 | Q199: 0
A200: Odontotecnico | B200: S06TSG-4 | D200: 0 | E200: 0 | F200: 0 | G200: 0 | H200: 0 | I200: 0 | J200: 0 | K200: 0 | L200: 0 | M200: 0 | N200: 0 | O200: 0 | P200: 0 | Q200: 0
... 296 more rows

Sheet 1B
A1: ='t1'!A1 -> SERVIZIO SANITARIO NAZIONALE - anno 2022 | F1: =IF(STRUTTURE!A2=0,"",STRUTTURE!A2) ->  | G1: =IF(STRUTTURE!A3=0,"",STRUTTURE!A3) -> 030710 | H1: =IF(STRUTTURE!A4=0,"",STRUTTURE!A4) -> 030010 | I1: =IF(STRUTTURE!A5=0,"",STRUTTURE!A5) -> 030012 | J1: =IF(STRUTTURE!A6=0,"",STRUTTURE!A6) -> 030282 | K1: =IF(STRUTTURE!A7=0,"",STRUTTURE!A7) -> 030901 | L1: =IF(STRUTTURE!A8=0,"",STRUTTURE!A8) ->  | M1: =IF(STRUTTURE!A9=0,"",STRUTTURE!A9) ->  | N1: =IF(STRUTTURE!A10=0,"",STRUTTURE!A10) ->  | O1: =IF(STRUTTURE!A11=0,"",STRUTTURE!A11) ->  | P1: =IF(STRUTTURE!A12=0,"",STRUTTURE!A12) ->  | Q1: =IF(STRUTTURE!A13=0,"",STRUTTURE!A13) -> 
A3: TAB.1B - PERSONALE UNIVERSITARIO DELL'AZIENDA SANITARIA PER TIPOLOGIA DI PERSONALE
A4: TIPOLOGIA | B4: CODICE | D4: STRUTTURA | E4: TEMPO INDETERMINATO | I4: TEMPO DETERMINATO | M4: PERSONALE
E5: TEMPO PIENO | G5: TEMPO PARZ. | I5: T. PIENO | K5: T. PARZ. | M5: ="AL 31/12/"&'t1'!L1 -> AL 31/12/2022
E6: Uomini | F6: Donne | G6: Uomini | H6: Donne | I6: Uomini | J6: Donne | K6: Uomini | L6: Donne | M6: Uomini | N6: Donne
A7: RUOLO SANITARIO(*)
E8: 0 | F8: 0 | G8: 0 | H8: 0 | I8: 0 | J8: 0 | K8: 0 | L8: 0 | M8: 0 | N8: 0
A9: MEDICO | B9: S00MD0 | C9: 1 | D9: 030901 | E9: 49 | F9: 11 | G9: 0 | H9: 0 | I9: 4 | J9: 2 | K9: 0 | L9: 0 | M9: =E9+G9 -> 49 | N9: =F9+H9 -> 11
A10: VETERINARIO | B10: S00VE0 | C10: 1 | D10: =CONCATENATE(D$9) -> 030901 | E10: 0 | F10: 0 | G10: 0 | H10: 0 | I10: 0 | J10: 0 | K10: 0 | L10: 0 | M10: =E10+G10 -> 0 | N10: 0
A11: ODONTOIATRA | B11: S00OD0 | C11: 1 | D11: =CONCATENATE(D$9) -> 030901 | E11: 0 | F11: 0 | G11: 0 | H11: 0 | I11: 0 | J11: 0 | K11: 0 | L11: 0 | M11: 0 | N11: 0
A12: FARMACISTA | B12: S00FM0 | C12: 1 | D12: 030901 | E12: 0 | F12: 0 | G12: 0 | H12: 0 | I12: 0 | J12: 0 | K12: 0 | L12: 0 | M12: 0 | N12: 0
A13: BIOLOGO | B13: S00BI0 | C13: 1 | D13: 030901 | E13: 0 | F13: 1 | G13: 0 | H13: 0 | I13: 0 | J13: 1 | K13: 0 | L13: 0 | M13: 0 | N13: 1
A14: CHIMICO | B14: S00CH0 | C14: 1 | D14: 030901 | E14: 0 | F14: 0 | G14: 0 | H14: 0 | I14: 0 | J14: 0 | K14: 0 | L14: 0 | M14: 0 | N14: 0
A15: FISICO | B15: S00FI0 | C15: 1 | D15: 030901 | E15: 0 | F15: 0 | G15: 0 | H15: 0 | I15: 0 | J15: 0 | K15: 0 | L15: 0 | M15: 0 | N15: 0
A16: PSICOLOGO | B16: S00PS0 | C16: 1 | D16: 030901 | E16: 0 | F16: 0 | G16: 0 | H16: 0 | I16: 0 | J16: 0 | K16: 0 | L16: 0 | M16: 0 | N16: 0
A17: DIRIGENTE DELLE PROFESSIONI SANITARIE | B17: S00DP0 | C17: 1 | D17: 030901 | E17: 0 | F17: 0 | G17: 0 | H17: 0 | I17: 0 | J17: 0 | K17: 0 | L17: 0 | M17: 0 | N17: 0
A18: PERS.INFERMIERISTICO | B18: S00I10 | C18: 1 | D18: 030901 | E18: 0 | F18: 0 | G18: 0 | H18: 0 | I18: 0 | J18: 0 | K18: 0 | L18: 0 | M18: 0 | N18: 0
A19: PERS.TECNICO SANITARIO | B19: S00T10 | C19: 1 | D19: 030901 | E19: 1 | F19: 0 | G19: 0 | H19: 0 | I19: 0 | J19: 0 | K19: 0 | L19: 0 | M19: 1 | N19: 0
A20: PERS. DI VIGILANZA ED ISPEZIONE | B20: S00V10 | C20: 1 | D20: 030901 | E20: 0 | F20: 0 | G20: 0 | H20: 0 | I20: 0 | J20: 0 | K20: 0 | L20: 0 | M20: 0 | N20: 0
A21: PERS. DELLA RIABILITAZIONE | B21: S00R10 | C21: 1 | D21: 030901 | E21: 0 | F21: 0 | G21: 0 | H21: 0 | I21: 0 | J21: 0 | K21: 0 | L21: 0 | M21: 0 | N21: 0
A22: TIPOLOGIA ATIPICA DEL RUOLO SANITARIO | B22: S99AT0 | C22: 1 | D22: 030901 | E22: 0 | F22: 0 | G22: 0 | H22: 0 | I22: 0 | J22: 0 | K22: 0 | L22: 0 | M22: 0 | N22: 0
A23: RUOLO PROFESSIONALE
A24: AVVOCATO /PROCURATORE LEGALE | B24: P00AV0 | C24: 1 | D24: =CONCATENATE(D$9) -> 030901 | E24: 0 | F24: 0 | G24: 0 | H24: 0 | I24: 0 | J24: 0 | K24: 0 | L24: 0 | M24: 0 | N24: 0
A25: INGEGNERE | B25: P00IG0 | C25: 1 | D25: 030901 | E25: 0 | F25: 0 | G25: 0 | H25: 0 | I25: 0 | J25: 0 | K25: 0 | L25: 0 | M25: 0 | N25: 0
A26: ARCHITETTO | B26: P00AH0 | C26: 1 | D26: 030901 | E26: 0 | F26: 0 | G26: 0 | H26: 0 | I26: 0 | J26: 0 | K26: 0 | L26: 0 | M26: 0 | N26: 0
A27: GEOLOGO | B27: P00GE0 | C27: 1 | D27: 030901 | E27: 0 | F27: 0 | G27: 0 | H27: 0 | I27: 0 | J27: 0 | K27: 0 | L27: 0 | M27: 0 | N27: 0
A28: ASSISTENTE RELIGIOSO | B28: P00AR0 | C28: 1 | D28: 030901 | E28: 0 | F28: 0 | G28: 0 | H28: 0 | I28: 0 | J28: 0 | K28: 0 | L28: 0 | M28: 0 | N28: 0
A29: TIPOLOGIA ATIPICA RUOLO PROFESSIONALE | B29: R99AT0 | C29: 1 | D29: 030901 | E29: =IF(ISERROR(VLOOKUP(CONCATENATE($B29,"-",$C29),IN_1B!$B$2:$U$2962,3,FALSE))=TRUE,"",VLOOKUP(CONCATENATE($B29,"-",$C29),IN_1B!$B$2:$U$2962,3,FALSE)) -> 0 | F29: =IF(ISERROR(VLOOKUP(CONCATENATE($B29,"-",$C29),IN_1B!$B$2:$U$2962,4,FALSE))=TRUE,"",VLOOKUP(CONCATENATE($B29,"-",$C29),IN_1B!$B$2:$U$2962,4,FALSE)) -> 0 | G29: =IF(ISERROR(VLOOKUP(CONCATENATE($B29,"-",$C29),IN_1B!$B$2:$U$2962,5,FALSE))=TRUE,"",VLOOKUP(CONCATENATE($B29,"-",$C29),IN_1B!$B$2:$U$2962,5,FALSE)) -> 0 | H29: =IF(ISERROR(VLOOKUP(CONCATENATE($B29,"-",$C29),IN_1B!$B$2:$U$2962,6,FALSE))=TRUE,"",VLOOKUP(CONCATENATE($B29,"-",$C29),IN_1B!$B$2:$U$2962,6,FALSE)) -> 0 | I29: =IF(ISERROR(VLOOKUP(CONCATENATE($B29,"-",$C29),IN_1B!$B$2:$U$2962,7,FALSE))=TRUE,"",VLOOKUP(CONCATENATE($B29,"-",$C29),IN_1B!$B$2:$U$2962,7,FALSE)) -> 0 | J29: =IF(ISERROR(VLOOKUP(CONCATENATE($B29,"-",$C29),IN_1B!$B$2:$U$2962,8,FALSE))=TRUE,"",VLOOKUP(CONCATENATE($B29,"-",$C29),IN_1B!$B$2:$U$2962,8,FALSE)) -> 0 | K29: =IF(ISERROR(VLOOKUP(CONCATENATE($B29,"-",$C29),IN_1B!$B$2:$U$2962,9,FALSE))=TRUE,"",VLOOKUP(CONCATENATE($B29,"-",$C29),IN_1B!$B$2:$U$2962,9,FALSE)) -> 0 | L29: =IF(ISERROR(VLOOKUP(CONCATENATE($B29,"-",$C29),IN_1B!$B$2:$U$2962,10,FALSE))=TRUE,"",VLOOKUP(CONCATENATE($B29,"-",$C29),IN_1B!$B$2:$U$2962,10,FALSE)) -> 0 | M29: 0 | N29: 0
A30: RUOLO TECNICO
A31: ANALISTA | B31: T00AN0 | C31: 1 | D31: =CONCATENATE(D$9) -> 030901 | E31: 0 | F31: 0 | G31: 0 | H31: 0 | I31: 0 | J31: 0 | K31: 0 | L31: 0 | M31: 0 | N31: 0
A32: STATISTICO | B32: T00ST0 | C32: 1 | D32: 030901 | E32: 0 | F32: 0 | G32: 0 | H32: 0 | I32: 0 | J32: 0 | K32: 0 | L32: 0 | M32: 0 | N32: 0
A33: SOCIOLOGO | B33: T00SO0 | C33: 1 | D33: 030901 | E33: 0 | F33: 0 | G33: 0 | H33: 0 | I33: 0 | J33: 0 | K33: 0 | L33: 0 | M33: 0 | N33: 0
A34: ASSISTENTE SOCIALE | B34: T00AS0 | C34: 1 | D34: 030901 | E34: 0 | F34: 0 | G34: 0 | H34: 0 | I34: 0 | J34: 0 | K34: 0 | L34: 0 | M34: 0 | N34: 0
A35: COLLABORATORE TECNICO - PROFESSIONALE | B35: T00CT0 | C35: 1 | D35: 030901 | E35: 0 | F35: 0 | G35: 0 | H35: 0 | I35: 0 | J35: 0 | K35: 0 | L35: 0 | M35: 0 | N35: 0
A36: ASSISTENTE TECNICO | B36: T00AT0 | C36: 1 | D36: 030901 | E36: 0 | F36: 0 | G36: 0 | H36: 0 | I36: 0 | J36: 0 | K36: 0 | L36: 0 | M36: 0 | N36: 0
A37: PROGRAMMATORE | B37: T00PS0 | C37: 1 | D37: 030901 | E37: 0 | F37: 0 | G37: 0 | H37: 0 | I37: 0 | J37: 0 | K37: 0 | L37: 0 | M37: 0 | N37: 0
A38: OPERATORE TECNICO | B38: T00OT0 | C38: 1 | D38: 030901 | E38: 0 | F38: 0 | G38: 0 | H38: 0 | I38: 0 | J38: 0 | K38: 0 | L38: 0 | M38: 0 | N38: 0
A39: OPERATORE TECNICO ADDETTO ALL' ASSISTENZA | B39: T00OA0 | C39: 1 | D39: 030901 | E39: 0 | F39: 0 | G39: 0 | H39: 0 | I39: 0 | J39: 0 | K39: 0 | L39: 0 | M39: 0 | N39: 0
A40: AUSILIARIO SPECIALIZZATO | B40: T00AU0 | C40: 1 | D40: 030901 | E40: 0 | F40: 0 | G40: 0 | H40: 0 | I40: 0 | J40: 0 | K40: 0 | L40: 0 | M40: 0 | N40: 0
A41: TIPOLOGIA ATIPICA RUOLO TECNICO | B41: T99AT0 | C41: 1 | D41: 030901 | E41: 0 | F41: 0 | G41: 0 | H41: 0 | I41: 0 | J41: 0 | K41: 0 | L41: 0 | M41: 0 | N41: 0
A42: RUOLO AMMINISTRATIVO
A43: DIRIGENTE AMMINISTRATIVO | B43: A00DA0 | C43: 1 | D43: =CONCATENATE(D$9) -> 030901 | E43: 0 | F43: 0 | G43: 0 | H43: 0 | I43: 0 | J43: 0 | K43: 0 | L43: 0 | M43: 0 | N43: 0
A44: COLLABORATORE AMMINISTRATIVO - PROFESSIONALE | B44: A00CO0 | C44: 1 | D44: 030901 | E44: 0 | F44: 0 | G44: 0 | H44: 0 | I44: 0 | J44: 0 | K44: 0 | L44: 0 | M44: 0 | N44: 0
A45: ASSISTENTE AMMINISTRATIVO | B45: A00AA0 | C45: 1 | D45: 030901 | E45: 0 | F45: 0 | G45: 0 | H45: 0 | I45: 0 | J45: 0 | K45: 0 | L45: 0 | M45: 0 | N45: 0
A46: COADIUTORE AMMINISTRATIVO | B46: A00CA0 | C46: 1 | D46: 030901 | E46: 0 | F46: 0 | G46: 0 | H46: 0 | I46: 0 | J46: 0 | K46: 0 | L46: 0 | M46: 0 | N46: 0
A47: COMMESSO | B47: A00CM0 | C47: 1 | D47: 030901 | E47: 0 | F47: 0 | G47: 0 | H47: 0 | I47: 0 | J47: 0 | K47: 0 | L47: 0 | M47: 0 | N47: 0
A48: TIPOLOGIA ATIPICA RUOLO AMMINISTRATIVO | B48: A99AT0 | C48: 1 | D48: 030901 | E48: 0 | F48: 0 | G48: 0 | H48: 0 | I48: 0 | J48: 0 | K48: 0 | L48: 0 | M48: 0 | N48: 0
A49: RESTANTE PERSONALE
A50: ALTRO PERSONALE | B50: R99RP0 | C50: 1 | D50: =CONCATENATE(D$9) -> 030901 | E50: 0 | F50: 0 | G50: 0 | H50: 0 | I50: 0 | J50: 0 | K50: 0 | L50: 0 | M50: 0 | N50: 0
A51: TOTALE | D51: =CONCATENATE(D$9) -> 030901 | E51: =SUM(E9:E22,E24:E29,E31:E41,E43:E48,E50) -> 50 | F51: 12 | G51: 0 | H51: 0 | I51: 4 | J51: 3 | K51: 0 | L51: 0 | M51: 50 | N51: 12
A52: (*) il personale con qualifica di collaboratore professionale sanitario esperto “ds”, cod. S00DO0 nelle precedenti rilevazioni, delle quattro aree professionali (infermieri, tecnici sanitari, personale prevenzione e riabilitazione) va considerato insieme al personale infermieristico S00I10, tecnico sanitario S00T10, vigilanza ed ispezione S00V10, riabilitazione S00R10
A54: RUOLO SANITARIO(*)
A55: MEDICO | B55: S00MD0 | C55: 2 | D55: 030012 | E55: 1 | F55: 1 | G55: 0 | H55: 0 | I55: 0 | J55: 0 | K55: 0 | L55: 0 | M55: =E55+G55 -> 1 | N55: 1
A56: VETERINARIO | B56: S00VE0 | C56: 2 | D56: =CONCATENATE(D$55) -> 030012 | E56: 0 | F56: 0 | G56: 0 | H56: 0 | I56: 0 | J56: 0 | K56: 0 | L56: 0 | M56: 0 | N56: 0
A57: ODONTOIATRA | B57: S00OD0 | C57: 2 | D57: =CONCATENATE(D$55) -> 030012 | E57: 0 | F57: 0 | G57: 0 | H57: 0 | I57: 0 | J57: 0 | K57: 0 | L57: 0 | M57: 0 | N57: 0
A58: FARMACISTA | B58: S00FM0 | C58: 2 | D58: 030012 | E58: 0 | F58: 0 | G58: 0 | H58: 0 | I58: 0 | J58: 0 | K58: 0 | L58: 0 | M58: 0 | N58: 0
A59: BIOLOGO | B59: S00BI0 | C59: 2 | D59: 030012 | E59: 0 | F59: 0 | G59: 0 | H59: 0 | I59: 0 | J59: 0 | K59: 0 | L59: 0 | M59: 0 | N59: 0
A60: CHIMICO | B60: S00CH0 | C60: 2 | D60: 030012 | E60: 0 | F60: 0 | G60: 0 | H60: 0 | I60: 0 | J60: 0 | K60: 0 | L60: 0 | M60: 0 | N60: 0
A61: FISICO | B61: S00FI0 | C61: 2 | D61: 030012 | E61: 0 | F61: 0 | G61: 0 | H61: 0 | I61: 0 | J61: 0 | K61: 0 | L61: 0 | M61: 0 | N61: 0
A62: PSICOLOGO | B62: S00PS0 | C62: 2 | D62: 030012 | E62: 0 | F62: 0 | G62: 0 | H62: 0 | I62: 0 | J62: 0 | K62: 0 | L62: 0 | M62: 0 | N62: 0
A63: DIRIGENTE DELLE PROFESSIONI SANITARIE | B63: S00DP0 | C63: 2 | D63: 030012 | E63: 0 | F63: 0 | G63: 0 | H63: 0 | I63: 0 | J63: 0 | K63: 0 | L63: 0 | M63: 0 | N63: 0
A64: PERS.INFERMIERISTICO | B64: S00I10 | C64: 2 | D64: 030012 | E64: 0 | F64: 0 | G64: 0 | H64: 0 | I64: 0 | J64: 0 | K64: 0 | L64: 0 | M64: 0 | N64: 0
A65: PERS.TECNICO SANITARIO | B65: S00T10 | C65: 2 | D65: 030012 | E65: 0 | F65: 0 | G65: 0 | H65: 0 | I65: 0 | J65: 0 | K65: 0 | L65: 0 | M65: 0 | N65: 0
A66: PERS. DI VIGILANZA ED ISPEZIONE | B66: S00V10 | C66: 2 | D66: 030012 | E66: 0 | F66: 0 | G66: 0 | H66: 0 | I66: 0 | J66: 0 | K66: 0 | L66: 0 | M66: 0 | N66: 0
A67: PERS. DELLA RIABILITAZIONE | B67: S00R10 | C67: 2 | D67: 030012 | E67: 0 | F67: 0 | G67: 0 | H67: 0 | I67: 0 | J67: 0 | K67: 0 | L67: 0 | M67: 0 | N67: 0
A68: TIPOLOGIA ATIPICA DEL RUOLO SANITARIO | B68: S99AT0 | C68: 2 | D68: 030012 | E68: 0 | F68: 0 | G68: 0 | H68: 0 | I68: 0 | J68: 0 | K68: 0 | L68: 0 | M68: 0 | N68: 0
A69: RUOLO PROFESSIONALE
A70: AVVOCATO /PROCURATORE LEGALE | B70: P00AV0 | C70: 2 | D70: =CONCATENATE(D$55) -> 030012 | E70: 0 | F70: 0 | G70: 0 | H70: 0 | I70: 0 | J70: 0 | K70: 0 | L70: 0 | M70: =E70+G70 -> 0 | N70: 0
A71: INGEGNERE | B71: P00IG0 | C71: 2 | D71: 030012 | E71: 0 | F71: 0 | G71: 0 | H71: 0 | I71: 0 | J71: 0 | K71: 0 | L71: 0 | M71: 0 | N71: 0
A72: ARCHITETTO | B72: P00AH0 | C72: 2 | D72: 030012 | E72: 0 | F72: 0 | G72: 0 | H72: 0 | I72: 0 | J72: 0 | K72: 0 | L72: 0 | M72: 0 | N72: 0
A73: GEOLOGO | B73: P00GE0 | C73: 2 | D73: 030012 | E73: 0 | F73: 0 | G73: 0 | H73: 0 | I73: 0 | J73: 0 | K73: 0 | L73: 0 | M73: 0 | N73: 0
A74: ASSISTENTE RELIGIOSO | B74: P00AR0 | C74: 2 | D74: 030012 | E74: 0 | F74: 0 | G74: 0 | H74: 0 | I74: 0 | J74: 0 | K74: 0 | L74: 0 | M74: 0 | N74: 0
A75: TIPOLOGIA ATIPICA RUOLO PROFESSIONALE | B75: R99AT0 | C75: 2 | D75: 030012 | E75: =IF(ISERROR(VLOOKUP(CONCATENATE($B75,"-",$C75),IN_1B!$B$2:$U$2962,3,FALSE))=TRUE,"",VLOOKUP(CONCATENATE($B75,"-",$C75),IN_1B!$B$2:$U$2962,3,FALSE)) -> 0 | F75: =IF(ISERROR(VLOOKUP(CONCATENATE($B75,"-",$C75),IN_1B!$B$2:$U$2962,4,FALSE))=TRUE,"",VLOOKUP(CONCATENATE($B75,"-",$C75),IN_1B!$B$2:$U$2962,4,FALSE)) -> 0 | G75: =IF(ISERROR(VLOOKUP(CONCATENATE($B75,"-",$C75),IN_1B!$B$2:$U$2962,5,FALSE))=TRUE,"",VLOOKUP(CONCATENATE($B75,"-",$C75),IN_1B!$B$2:$U$2962,5,FALSE)) -> 0 | H75: =IF(ISERROR(VLOOKUP(CONCATENATE($B75,"-",$C75),IN_1B!$B$2:$U$2962,6,FALSE))=TRUE,"",VLOOKUP(CONCATENATE($B75,"-",$C75),IN_1B!$B$2:$U$2962,6,FALSE)) -> 0 | I75: =IF(ISERROR(VLOOKUP(CONCATENATE($B75,"-",$C75),IN_1B!$B$2:$U$2962,7,FALSE))=TRUE,"",VLOOKUP(CONCATENATE($B75,"-",$C75),IN_1B!$B$2:$U$2962,7,FALSE)) -> 0 | J75: =IF(ISERROR(VLOOKUP(CONCATENATE($B75,"-",$C75),IN_1B!$B$2:$U$2962,8,FALSE))=TRUE,"",VLOOKUP(CONCATENATE($B75,"-",$C75),IN_1B!$B$2:$U$2962,8,FALSE)) -> 0 | K75: =IF(ISERROR(VLOOKUP(CONCATENATE($B75,"-",$C75),IN_1B!$B$2:$U$2962,9,FALSE))=TRUE,"",VLOOKUP(CONCATENATE($B75,"-",$C75),IN_1B!$B$2:$U$2962,9,FALSE)) -> 0 | L75: =IF(ISERROR(VLOOKUP(CONCATENATE($B75,"-",$C75),IN_1B!$B$2:$U$2962,10,FALSE))=TRUE,"",VLOOKUP(CONCATENATE($B75,"-",$C75),IN_1B!$B$2:$U$2962,10,FALSE)) -> 0 | M75: 0 | N75: 0
A76: RUOLO TECNICO
A77: ANALISTA | B77: T00AN0 | C77: 2 | D77: =CONCATENATE(D$55) -> 030012 | E77: 0 | F77: 0 | G77: 0 | H77: 0 | I77: 0 | J77: 0 | K77: 0 | L77: 0 | M77: =E77+G77 -> 0 | N77: 0
A78: STATISTICO | B78: T00ST0 | C78: 2 | D78: 030012 | E78: 0 | F78: 0 | G78: 0 | H78: 0 | I78: 0 | J78: 0 | K78: 0 | L78: 0 | M78: 0 | N78: 0
A79: SOCIOLOGO | B79: T00SO0 | C79: 2 | D79: 030012 | E79: 0 | F79: 0 | G79: 0 | H79: 0 | I79: 0 | J79: 0 | K79: 0 | L79: 0 | M79: 0 | N79: 0
A80: ASSISTENTE SOCIALE | B80: T00AS0 | C80: 2 | D80: 030012 | E80: 0 | F80: 0 | G80: 0 | H80: 0 | I80: 0 | J80: 0 | K80: 0 | L80: 0 | M80: 0 | N80: 0
A81: COLLABORATORE TECNICO - PROFESSIONALE | B81: T00CT0 | C81: 2 | D81: 030012 | E81: 0 | F81: 0 | G81: 0 | H81: 0 | I81: 0 | J81: 0 | K81: 0 | L81: 0 | M81: 0 | N81: 0
A82: ASSISTENTE TECNICO | B82: T00AT0 | C82: 2 | D82: 030012 | E82: 0 | F82: 0 | G82: 0 | H82: 0 | I82: 0 | J82: 0 | K82: 0 | L82: 0 | M82: 0 | N82: 0
A83: PROGRAMMATORE | B83: T00PS0 | C83: 2 | D83: 030012 | E83: 0 | F83: 0 | G83: 0 | H83: 0 | I83: 0 | J83: 0 | K83: 0 | L83: 0 | M83: 0 | N83: 0
A84: OPERATORE TECNICO | B84: T00OT0 | C84: 2 | D84: 030012 | E84: 0 | F84: 0 | G84: 0 | H84: 0 | I84: 0 | J84: 0 | K84: 0 | L84: 0 | M84: 0 | N84: 0
A85: OPERATORE TECNICO ADDETTO ALL' ASSISTENZA | B85: T00OA0 | C85: 2 | D85: 030012 | E85: 0 | F85: 0 | G85: 0 | H85: 0 | I85: 0 | J85: 0 | K85: 0 | L85: 0 | M85: 0 | N85: 0
A86: AUSILIARIO SPECIALIZZATO | B86: T00AU0 | C86: 2 | D86: 030012 | E86: 0 | F86: 0 | G86: 0 | H86: 0 | I86: 0 | J86: 0 | K86: 0 | L86: 0 | M86: 0 | N86: 0
A87: TIPOLOGIA ATIPICA RUOLO TECNICO | B87: T99AT0 | C87: 2 | D87: 030012 | E87: 0 | F87: 0 | G87: 0 | H87: 0 | I87: 0 | J87: 0 | K87: 0 | L87: 0 | M87: 0 | N87: 0
A88: RUOLO AMMINISTRATIVO
A89: DIRIGENTE AMMINISTRATIVO | B89: A00DA0 | C89: 2 | D89: =CONCATENATE(D$55) -> 030012 | E89: 0 | F89: 0 | G89: 0 | H89: 0 | I89: 0 | J89: 0 | K89: 0 | L89: 0 | M89: =E89+G89 -> 0 | N89: 0
A90: COLLABORATORE AMMINISTRATIVO - PROFESSIONALE | B90: A00CO0 | C90: 2 | D90: 030012 | E90: 0 | F90: 0 | G90: 0 | H90: 0 | I90: 0 | J90: 0 | K90: 0 | L90: 0 | M90: 0 | N90: 0
A91: ASSISTENTE AMMINISTRATIVO | B91: A00AA0 | C91: 2 | D91: 030012 | E91: 0 | F91: 0 | G91: 0 | H91: 0 | I91: 0 | J91: 0 | K91: 0 | L91: 0 | M91: 0 | N91: 0
A92: COADIUTORE AMMINISTRATIVO | B92: A00CA0 | C92: 2 | D92: 030012 | E92: 0 | F92: 0 | G92: 0 | H92: 0 | I92: 0 | J92: 0 | K92: 0 | L92: 0 | M92: 0 | N92: 0
A93: COMMESSO | B93: A00CM0 | C93: 2 | D93: 030012 | E93: 0 | F93: 0 | G93: 0 | H93: 0 | I93: 0 | J93: 0 | K93: 0 | L93: 0 | M93: 0 | N93: 0
A94: TIPOLOGIA ATIPICA RUOLO AMMINISTRATIVO | B94: A99AT0 | C94: 2 | D94: 030012 | E94: 0 | F94: 0 | G94: 0 | H94: 0 | I94: 0 | J94: 0 | K94: 0 | L94: 0 | M94: 0 | N94: 0
A95: RESTANTE PERSONALE
A96: ALTRO PERSONALE | B96: R99RP0 | C96: 2 | D96: =CONCATENATE(D$55) -> 030012 | E96: 0 | F96: 0 | G96: 0 | H96: 0 | I96: 0 | J96: 0 | K96: 0 | L96: 0 | M96: =E96+G96 -> 0 | N96: =F96+H96 -> 0
A97: TOTALE | D97: =CONCATENATE(D$55) -> 030012 | E97: =SUM(E55:E68,E70:E75,E77:E87,E89:E94,E96) -> 1 | F97: 1 | G97: 0 | H97: 0 | I97: 0 | J97: 0 | K97: 0 | L97: 0 | M97: 1 | N97: 1
A98: (*) il personale con qualifica di collaboratore professionale sanitario esperto “ds”, cod. S00DO0 nelle precedenti rilevazioni, delle quattro aree professionali (infermieri, tecnici sanitari, personale prevenzione e riabilitazione) va considerato insieme al personale infermieristico S00I10, tecnico sanitario S00T10, vigilanza ed ispezione S00V10, riabilitazione S00R10
A100: RUOLO SANITARIO(*)
A101: MEDICO | B101: S00MD0 | C101: 3 | E101: 0 | F101: 0 | G101: 0 | H101: 0 | I101: 0 | J101: 0 | K101: 0 | L101: 0 | M101: =E101+G101 -> 0 | N101: 0
A102: VETERINARIO | B102: S00VE0 | C102: 3 | D102: =CONCATENATE(D$101) ->  | E102: 0 | F102: 0 | G102: 0 | H102: 0 | I102: 0 | J102: 0 | K102: 0 | L102: 0 | M102: 0 | N102: 0
A103: ODONTOIATRA | B103: S00OD0 | C103: 3 | D103: =CONCATENATE(D$101) ->  | E103: 0 | F103: 0 | G103: 0 | H103: 0 | I103: 0 | J103: 0 | K103: 0 | L103: 0 | M103: 0 | N103: 0
A104: FARMACISTA | B104: S00FM0 | C104: 3 | E104: 0 | F104: 0 | G104: 0 | H104: 0 | I104: 0 | J104: 0 | K104: 0 | L104: 0 | M104: 0 | N104: 0
A105: BIOLOGO | B105: S00BI0 | C105: 3 | E105: 0 | F105: 0 | G105: 0 | H105: 0 | I105: 0 | J105: 0 | K105: 0 | L105: 0 | M105: 0 | N105: 0
A106: CHIMICO | B106: S00CH0 | C106: 3 | E106: 0 | F106: 0 | G106: 0 | H106: 0 | I106: 0 | J106: 0 | K106: 0 | L106: 0 | M106: 0 | N106: 0
A107: FISICO | B107: S00FI0 | C107: 3 | E107: 0 | F107: 0 | G107: 0 | H107: 0 | I107: 0 | J107: 0 | K107: 0 | L107: 0 | M107: 0 | N107: 0
A108: PSICOLOGO | B108: S00PS0 | C108: 3 | E108: 0 | F108: 0 | G108: 0 | H108: 0 | I108: 0 | J108: 0 | K108: 0 | L108: 0 | M108: 0 | N108: 0
A109: DIRIGENTE DELLE PROFESSIONI SANITARIE | B109: S00DP0 | C109: 3 | E109: 0 | F109: 0 | G109: 0 | H109: 0 | I109: 0 | J109: 0 | K109: 0 | L109: 0 | M109: 0 | N109: 0
A110: PERS.INFERMIERISTICO | B110: S00I10 | C110: 3 | E110: 0 | F110: 0 | G110: 0 | H110: 0 | I110: 0 | J110: 0 | K110: 0 | L110: 0 | M110: 0 | N110: 0
A111: PERS.TECNICO SANITARIO | B111: S00T10 | C111: 3 | E111: 0 | F111: 0 | G111: 0 | H111: 0 | I111: 0 | J111: 0 | K111: 0 | L111: 0 | M111: 0 | N111: 0
A112: PERS. DI VIGILANZA ED ISPEZIONE | B112: S00V10 | C112: 3 | E112: 0 | F112: 0 | G112: 0 | H112: 0 | I112: 0 | J112: 0 | K112: 0 | L112: 0 | M112: 0 | N112: 0
A113: PERS. DELLA RIABILITAZIONE | B113: S00R10 | C113: 3 | E113: 0 | F113: 0 | G113: 0 | H113: 0 | I113: 0 | J113: 0 | K113: 0 | L113: 0 | M113: 0 | N113: 0
A114: TIPOLOGIA ATIPICA DEL RUOLO SANITARIO | B114: S99AT0 | C114: 3 | E114: 0 | F114: 0 | G114: 0 | H114: 0 | I114: 0 | J114: 0 | K114: 0 | L114: 0 | M114: 0 | N114: 0
A115: RUOLO PROFESSIONALE
A116: AVVOCATO /PROCURATORE LEGALE | B116: P00AV0 | C116: 3 | D116: =CONCATENATE(D$101) ->  | E116: 0 | F116: 0 | G116: 0 | H116: 0 | I116: 0 | J116: 0 | K116: 0 | L116: 0 | M116: =E116+G116 -> 0 | N116: 0
A117: INGEGNERE | B117: P00IG0 | C117: 3 | E117: 0 | F117: 0 | G117: 0 | H117: 0 | I117: 0 | J117: 0 | K117: 0 | L117: 0 | M117: 0 | N117: 0
A118: ARCHITETTO | B118: P00AH0 | C118: 3 | E118: 0 | F118: 0 | G118: 0 | H118: 0 | I118: 0 | J118: 0 | K118: 0 | L118: 0 | M118: 0 | N118: 0
A119: GEOLOGO | B119: P00GE0 | C119: 3 | E119: 0 | F119: 0 | G119: 0 | H119: 0 | I119: 0 | J119: 0 | K119: 0 | L119: 0 | M119: 0 | N119: 0
A120: ASSISTENTE RELIGIOSO | B120: P00AR0 | C120: 3 | E120: 0 | F120: 0 | G120: 0 | H120: 0 | I120: 0 | J120: 0 | K120: 0 | L120: 0 | M120: 0 | N120: 0
A121: TIPOLOGIA ATIPICA RUOLO PROFESSIONALE | B121: R99AT0 | C121: 3 | E121: =IF(ISERROR(VLOOKUP(CONCATENATE($B121,"-",$C121),IN_1B!$B$2:$U$2962,3,FALSE))=TRUE,"",VLOOKUP(CONCATENATE($B121,"-",$C121),IN_1B!$B$2:$U$2962,3,FALSE)) -> 0 | F121: =IF(ISERROR(VLOOKUP(CONCATENATE($B121,"-",$C121),IN_1B!$B$2:$U$2962,4,FALSE))=TRUE,"",VLOOKUP(CONCATENATE($B121,"-",$C121),IN_1B!$B$2:$U$2962,4,FALSE)) -> 0 | G121: =IF(ISERROR(VLOOKUP(CONCATENATE($B121,"-",$C121),IN_1B!$B$2:$U$2962,5,FALSE))=TRUE,"",VLOOKUP(CONCATENATE($B121,"-",$C121),IN_1B!$B$2:$U$2962,5,FALSE)) -> 0 | H121: =IF(ISERROR(VLOOKUP(CONCATENATE($B121,"-",$C121),IN_1B!$B$2:$U$2962,6,FALSE))=TRUE,"",VLOOKUP(CONCATENATE($B121,"-",$C121),IN_1B!$B$2:$U$2962,6,FALSE)) -> 0 | I121: =IF(ISERROR(VLOOKUP(CONCATENATE($B121,"-",$C121),IN_1B!$B$2:$U$2962,7,FALSE))=TRUE,"",VLOOKUP(CONCATENATE($B121,"-",$C121),IN_1B!$B$2:$U$2962,7,FALSE)) -> 0 | J121: =IF(ISERROR(VLOOKUP(CONCATENATE($B121,"-",$C121),IN_1B!$B$2:$U$2962,8,FALSE))=TRUE,"",VLOOKUP(CONCATENATE($B121,"-",$C121),IN_1B!$B$2:$U$2962,8,FALSE)) -> 0 | K121: =IF(ISERROR(VLOOKUP(CONCATENATE($B121,"-",$C121),IN_1B!$B$2:$U$2962,9,FALSE))=TRUE,"",VLOOKUP(CONCATENATE($B121,"-",$C121),IN_1B!$B$2:$U$2962,9,FALSE)) -> 0 | L121: =IF(ISERROR(VLOOKUP(CONCATENATE($B121,"-",$C121),IN_1B!$B$2:$U$2962,10,FALSE))=TRUE,"",VLOOKUP(CONCATENATE($B121,"-",$C121),IN_1B!$B$2:$U$2962,10,FALSE)) -> 0 | M121: 0 | N121: 0
A122: RUOLO TECNICO
A123: ANALISTA | B123: T00AN0 | C123: 3 | D123: =CONCATENATE(D$101) ->  | E123: 0 | F123: 0 | G123: 0 | H123: 0 | I123: 0 | J123: 0 | K123: 0 | L123: 0 | M123: =E123+G123 -> 0 | N123: 0
A124: STATISTICO | B124: T00ST0 | C124: 3 | E124: 0 | F124: 0 | G124: 0 | H124: 0 | I124: 0 | J124: 0 | K124: 0 | L124: 0 | M124: 0 | N124: 0
A125: SOCIOLOGO | B125: T00SO0 | C125: 3 | E125: 0 | F125: 0 | G125: 0 | H125: 0 | I125: 0 | J125: 0 | K125: 0 | L125: 0 | M125: 0 | N125: 0
A126: ASSISTENTE SOCIALE | B126: T00AS0 | C126: 3 | E126: 0 | F126: 0 | G126: 0 | H126: 0 | I126: 0 | J126: 0 | K126: 0 | L126: 0 | M126: 0 | N126: 0
A127: COLLABORATORE TECNICO - PROFESSIONALE | B127: T00CT0 | C127: 3 | E127: 0 | F127: 0 | G127: 0 | H127: 0 | I127: 0 | J127: 0 | K127: 0 | L127: 0 | M127: 0 | N127: 0
A128: ASSISTENTE TECNICO | B128: T00AT0 | C128: 3 | E128: 0 | F128: 0 | G128: 0 | H128: 0 | I128: 0 | J128: 0 | K128: 0 | L128: 0 | M128: 0 | N128: 0
A129: PROGRAMMATORE | B129: T00PS0 | C129: 3 | E129: 0 | F129: 0 | G129: 0 | H129: 0 | I129: 0 | J129: 0 | K129: 0 | L129: 0 | M129: 0 | N129: 0
A130: OPERATORE TECNICO | B130: T00OT0 | C130: 3 | E130: 0 | F130: 0 | G130: 0 | H130: 0 | I130: 0 | J130: 0 | K130: 0 | L130: 0 | M130: 0 | N130: 0
A131: OPERATORE TECNICO ADDETTO ALL' ASSISTENZA | B131: T00OA0 | C131: 3 | E131: 0 | F131: 0 | G131: 0 | H131: 0 | I131: 0 | J131: 0 | K131: 0 | L131: 0 | M131: =E131+N131+G131 -> 0 | N131: 0
A132: AUSILIARIO SPECIALIZZATO | B132: T00AU0 | C132: 3 | E132: 0 | F132: 0 | G132: 0 | H132: 0 | I132: 0 | J132: 0 | K132: 0 | L132: 0 | M132: 0 | N132: 0
A133: TIPOLOGIA ATIPICA RUOLO TECNICO | B133: T99AT0 | C133: 3 | E133: 0 | F133: 0 | G133: 0 | H133: 0 | I133: 0 | J133: 0 | K133: 0 | L133: 0 | M133: 0 | N133: 0
A134: RUOLO AMMINISTRATIVO
A135: DIRIGENTE AMMINISTRATIVO | B135: A00DA0 | C135: 3 | D135: =CONCATENATE(D$101) ->  | E135: 0 | F135: 0 | G135: 0 | H135: 0 | I135: 0 | J135: 0 | K135: 0 | L135: 0 | M135: =E135+G135 -> 0 | N135: 0
A136: COLLABORATORE AMMINISTRATIVO - PROFESSIONALE | B136: A00CO0 | C136: 3 | E136: 0 | F136: 0 | G136: 0 | H136: 0 | I136: 0 | J136: 0 | K136: 0 | L136: 0 | M136: 0 | N136: 0
A137: ASSISTENTE AMMINISTRATIVO | B137: A00AA0 | C137: 3 | E137: 0 | F137: 0 | G137: 0 | H137: 0 | I137: 0 | J137: 0 | K137: 0 | L137: 0 | M137: 0 | N137: 0
A138: COADIUTORE AMMINISTRATIVO | B138: A00CA0 | C138: 3 | E138: 0 | F138: 0 | G138: 0 | H138: 0 | I138: 0 | J138: 0 | K138: 0 | L138: 0 | M138: 0 | N138: 0
A139: COMMESSO | B139: A00CM0 | C139: 3 | E139: 0 | F139: 0 | G139: 0 | H139: 0 | I139: 0 | J139: 0 | K139: 0 | L139: 0 | M139: 0 | N139: 0
A140: TIPOLOGIA ATIPICA RUOLO AMMINISTRATIVO | B140: A99AT0 | C140: 3 | E140: 0 | F140: 0 | G140: 0 | H140: 0 | I140: 0 | J140: 0 | K140: 0 | L140: 0 | M140: 0 | N140: 0
A141: RESTANTE PERSONALE
A142: ALTRO PERSONALE | B142: R99RP0 | C142: 3 | D142: =CONCATENATE(D$101) ->  | E142: 0 | F142: 0 | G142: 0 | H142: 0 | I142: 0 | J142: 0 | K142: 0 | L142: 0 | M142: =E142+G142 -> 0 | N142: =F142+H142 -> 0
A143: TOTALE | D143: =CONCATENATE(D$101) ->  | E143: =SUM(E101:E114,E116:E121,E123:E133,E135:E140,E142) -> 0 | F143: 0 | G143: 0 | H143: 0 | I143: 0 | J143: 0 | K143: 0 | L143: 0 | M143: 0 | N143: 0
A144: (*) il personale con qualifica di collaboratore professionale sanitario esperto “ds”, cod. S00DO0 nelle precedenti rilevazioni, delle quattro aree professionali (infermieri, tecnici sanitari, personale prevenzione e riabilitazione) va considerato insieme al personale infermieristico S00I10, tecnico sanitario S00T10, vigilanza ed ispezione S00V10, riabilitazione S00R10
A146: RUOLO SANITARIO(*)
A147: MEDICO | B147: S00MD0 | C147: 4 | E147: 0 | F147: 0 | G147: 0 | H147: 0 | I147: 0 | J147: 0 | K147: 0 | L147: 0 | M147: =E147+G147 -> 0 | N147: 0
A148: VETERINARIO | B148: S00VE0 | C148: 4 | D148: =CONCATENATE(D$147) ->  | E148: 0 | F148: 0 | G148: 0 | H148: 0 | I148: 0 | J148: 0 | K148: 0 | L148: 0 | M148: 0 | N148: 0
A149: ODONTOIATRA | B149: S00OD0 | C149: 4 | D149: =CONCATENATE(D$147) ->  | E149: 0 | F149: 0 | G149: 0 | H149: 0 | I149: 0 | J149: 0 | K149: 0 | L149: 0 | M149: 0 | N149: 0
A150: FARMACISTA | B150: S00FM0 | C150: 4 | E150: 0 | F150: 0 | G150: 0 | H150: 0 | I150: 0 | J150: 0 | K150: 0 | L150: 0 | M150: 0 | N150: 0
A151: BIOLOGO | B151: S00BI0 | C151: 4 | E151: 0 | F151: 0 | G151: 0 | H151: 0 | I151: 0 | J151: 0 | K151: 0 | L151: 0 | M151: 0 | N151: 0
A152: CHIMICO | B152: S00CH0 | C152: 4 | E152: 0 | F152: 0 | G152: 0 | H152: 0 | I152: 0 | J152: 0 | K152: 0 | L152: 0 | M152: 0 | N152: 0
A153: FISICO | B153: S00FI0 | C153: 4 | E153: 0 | F153: 0 | G153: 0 | H153: 0 | I153: 0 | J153: 0 | K153: 0 | L153: 0 | M153: 0 | N153: 0
A154: PSICOLOGO | B154: S00PS0 | C154: 4 | E154: 0 | F154: 0 | G154: 0 | H154: 0 | I154: 0 | J154: 0 | K154: 0 | L154: 0 | M154: 0 | N154: 0
A155: DIRIGENTE DELLE PROFESSIONI SANITARIE | B155: S00DP0 | C155: 4 | E155: 0 | F155: 0 | G155: 0 | H155: 0 | I155: 0 | J155: 0 | K155: 0 | L155: 0 | M155: 0 | N155: 0
A156: PERS.INFERMIERISTICO | B156: S00I10 | C156: 4 | E156: 0 | F156: 0 | G156: 0 | H156: 0 | I156: 0 | J156: 0 | K156: 0 | L156: 0 | M156: 0 | N156: 0
A157: PERS.TECNICO SANITARIO | B157: S00T10 | C157: 4 | E157: 0 | F157: 0 | G157: 0 | H157: 0 | I157: 0 | J157: 0 | K157: 0 | L157: 0 | M157: 0 | N157: 0
A158: PERS. DI VIGILANZA ED ISPEZIONE | B158: S00V10 | C158: 4 | E158: 0 | F158: 0 | G158: 0 | H158: 0 | I158: 0 | J158: 0 | K158: 0 | L158: 0 | M158: 0 | N158: 0
A159: PERS. DELLA RIABILITAZIONE | B159: S00R10 | C159: 4 | E159: 0 | F159: 0 | G159: 0 | H159: 0 | I159: 0 | J159: 0 | K159: 0 | L159: 0 | M159: 0 | N159: 0
A160: TIPOLOGIA ATIPICA DEL RUOLO SANITARIO | B160: S99AT0 | C160: 4 | E160: 0 | F160: 0 | G160: 0 | H160: 0 | I160: 0 | J160: 0 | K160: 0 | L160: 0 | M160: 0 | N160: 0
A161: RUOLO PROFESSIONALE
A162: AVVOCATO /PROCURATORE LEGALE | B162: P00AV0 | C162: 4 | D162: =CONCATENATE(D$147) ->  | E162: 0 | F162: 0 | G162: 0 | H162: 0 | I162: 0 | J162: 0 | K162: 0 | L162: 0 | M162: =E162+G162 -> 0 | N162: 0
A163: INGEGNERE | B163: P00IG0 | C163: 4 | E163: 0 | F163: 0 | G163: 0 | H163: 0 | I163: 0 | J163: 0 | K163: 0 | L163: 0 | M163: 0 | N163: 0
A164: ARCHITETTO | B164: P00AH0 | C164: 4 | E164: 0 | F164: 0 | G164: 0 | H164: 0 | I164: 0 | J164: 0 | K164: 0 | L164: 0 | M164: 0 | N164: 0
A165: GEOLOGO | B165: P00GE0 | C165: 4 | E165: 0 | F165: 0 | G165: 0 | H165: 0 | I165: 0 | J165: 0 | K165: 0 | L165: 0 | M165: 0 | N165: 0
A166: ASSISTENTE RELIGIOSO | B166: P00AR0 | C166: 4 | E166: 0 | F166: 0 | G166: 0 | H166: 0 | I166: 0 | J166: 0 | K166: 0 | L166: 0 | M166: 0 | N166: 0
A167: TIPOLOGIA ATIPICA RUOLO PROFESSIONALE | B167: R99AT0 | C167: 4 | E167: =IF(ISERROR(VLOOKUP(CONCATENATE($B167,"-",$C167),IN_1B!$B$2:$U$2962,3,FALSE))=TRUE,"",VLOOKUP(CONCATENATE($B167,"-",$C167),IN_1B!$B$2:$U$2962,3,FALSE)) -> 0 | F167: =IF(ISERROR(VLOOKUP(CONCATENATE($B167,"-",$C167),IN_1B!$B$2:$U$2962,4,FALSE))=TRUE,"",VLOOKUP(CONCATENATE($B167,"-",$C167),IN_1B!$B$2:$U$2962,4,FALSE)) -> 0 | G167: =IF(ISERROR(VLOOKUP(CONCATENATE($B167,"-",$C167),IN_1B!$B$2:$U$2962,5,FALSE))=TRUE,"",VLOOKUP(CONCATENATE($B167,"-",$C167),IN_1B!$B$2:$U$2962,5,FALSE)) -> 0 | H167: =IF(ISERROR(VLOOKUP(CONCATENATE($B167,"-",$C167),IN_1B!$B$2:$U$2962,6,FALSE))=TRUE,"",VLOOKUP(CONCATENATE($B167,"-",$C167),IN_1B!$B$2:$U$2962,6,FALSE)) -> 0 | I167: =IF(ISERROR(VLOOKUP(CONCATENATE($B167,"-",$C167),IN_1B!$B$2:$U$2962,7,FALSE))=TRUE,"",VLOOKUP(CONCATENATE($B167,"-",$C167),IN_1B!$B$2:$U$2962,7,FALSE)) -> 0 | J167: =IF(ISERROR(VLOOKUP(CONCATENATE($B167,"-",$C167),IN_1B!$B$2:$U$2962,8,FALSE))=TRUE,"",VLOOKUP(CONCATENATE($B167,"-",$C167),IN_1B!$B$2:$U$2962,8,FALSE)) -> 0 | K167: =IF(ISERROR(VLOOKUP(CONCATENATE($B167,"-",$C167),IN_1B!$B$2:$U$2962,9,FALSE))=TRUE,"",VLOOKUP(CONCATENATE($B167,"-",$C167),IN_1B!$B$2:$U$2962,9,FALSE)) -> 0 | L167: =IF(ISERROR(VLOOKUP(CONCATENATE($B167,"-",$C167),IN_1B!$B$2:$U$2962,10,FALSE))=TRUE,"",VLOOKUP(CONCATENATE($B167,"-",$C167),IN_1B!$B$2:$U$2962,10,FALSE)) -> 0 | M167: 0 | N167: 0
A168: RUOLO TECNICO
A169: ANALISTA | B169: T00AN0 | C169: 4 | D169: =CONCATENATE(D$147) ->  | E169: 0 | F169: 0 | G169: 0 | H169: 0 | I169: 0 | J169: 0 | K169: 0 | L169: 0 | M169: =E169+G169 -> 0 | N169: 0
A170: STATISTICO | B170: T00ST0 | C170: 4 | E170: 0 | F170: 0 | G170: 0 | H170: 0 | I170: 0 | J170: 0 | K170: 0 | L170: 0 | M170: 0 | N170: 0
A171: SOCIOLOGO | B171: T00SO0 | C171: 4 | E171: 0 | F171: 0 | G171: 0 | H171: 0 | I171: 0 | J171: 0 | K171: 0 | L171: 0 | M171: 0 | N171: 0
A172: ASSISTENTE SOCIALE | B172: T00AS0 | C172: 4 | E172: 0 | F172: 0 | G172: 0 | H172: 0 | I172: 0 | J172: 0 | K172: 0 | L172: 0 | M172: 0 | N172: 0
A173: COLLABORATORE TECNICO - PROFESSIONALE | B173: T00CT0 | C173: 4 | E173: 0 | F173: 0 | G173: 0 | H173: 0 | I173: 0 | J173: 0 | K173: 0 | L173: 0 | M173: 0 | N173: 0
A174: ASSISTENTE TECNICO | B174: T00AT0 | C174: 4 | E174: 0 | F174: 0 | G174: 0 | H174: 0 | I174: 0 | J174: 0 | K174: 0 | L174: 0 | M174: 0 | N174: 0
A175: PROGRAMMATORE | B175: T00PS0 | C175: 4 | E175: 0 | F175: 0 | G175: 0 | H175: 0 | I175: 0 | J175: 0 | K175: 0 | L175: 0 | M175: 0 | N175: 0
A176: OPERATORE TECNICO | B176: T00OT0 | C176: 4 | E176: 0 | F176: 0 | G176: 0 | H176: 0 | I176: 0 | J176: 0 | K176: 0 | L176: 0 | M176: 0 | N176: 0
A177: OPERATORE TECNICO ADDETTO ALL' ASSISTENZA | B177: T00OA0 | C177: 4 | E177: 0 | F177: 0 | G177: 0 | H177: 0 | I177: 0 | J177: 0 | K177: 0 | L177: 0 | M177: 0 | N177: 0
A178: AUSILIARIO SPECIALIZZATO | B178: T00AU0 | C178: 4 | E178: 0 | F178: 0 | G178: 0 | H178: 0 | I178: 0 | J178: 0 | K178: 0 | L178: 0 | M178: 0 | N178: 0
A179: TIPOLOGIA ATIPICA RUOLO TECNICO | B179: T99AT0 | C179: 4 | E179: 0 | F179: 0 | G179: 0 | H179: 0 | I179: 0 | J179: 0 | K179: 0 | L179: 0 | M179: 0 | N179: 0
A180: RUOLO AMMINISTRATIVO
A181: DIRIGENTE AMMINISTRATIVO | B181: A00DA0 | C181: 4 | D181: =CONCATENATE(D$147) ->  | E181: 0 | F181: 0 | G181: 0 | H181: 0 | I181: 0 | J181: 0 | K181: 0 | L181: 0 | M181: =E181+G181 -> 0 | N181: 0
A182: COLLABORATORE AMMINISTRATIVO - PROFESSIONALE | B182: A00CO0 | C182: 4 | E182: 0 | F182: 0 | G182: 0 | H182: 0 | I182: 0 | J182: 0 | K182: 0 | L182: 0 | M182: 0 | N182: 0
A183: ASSISTENTE AMMINISTRATIVO | B183: A00AA0 | C183: 4 | E183: 0 | F183: 0 | G183: 0 | H183: 0 | I183: 0 | J183: 0 | K183: 0 | L183: 0 | M183: 0 | N183: 0
A184: COADIUTORE AMMINISTRATIVO | B184: A00CA0 | C184: 4 | E184: 0 | F184: 0 | G184: 0 | H184: 0 | I184: 0 | J184: 0 | K184: 0 | L184: 0 | M184: 0 | N184: 0
A185: COMMESSO | B185: A00CM0 | C185: 4 | E185: 0 | F185: 0 | G185: 0 | H185: 0 | I185: 0 | J185: 0 | K185: 0 | L185: 0 | M185: 0 | N185: 0
A186: TIPOLOGIA ATIPICA RUOLO AMMINISTRATIVO | B186: A99AT0 | C186: 4 | E186: 0 | F186: 0 | G186: 0 | H186: 0 | I186: 0 | J186: 0 | K186: 0 | L186: 0 | M186: 0 | N186: 0
A187: RESTANTE PERSONALE
A188: ALTRO PERSONALE | B188: R99RP0 | C188: 4 | D188: =CONCATENATE(D$147) ->  | E188: 0 | F188: 0 | G188: 0 | H188: 0 | I188: 0 | J188: 0 | K188: 0 | L188: 0 | M188: =E188+G188 -> 0 | N188: =F188+H188 -> 0
A189: TOTALE | D189: =CONCATENATE(D$147) ->  | E189: =SUM(E147:E160,E162:E167,E169:E179,E181:E186,E188) -> 0 | F189: 0 | G189: 0 | H189: 0 | I189: 0 | J189: 0 | K189: 0 | L189: 0 | M189: 0 | N189: 0
A190: (*) il personale con qualifica di collaboratore professionale sanitario esperto “ds”, cod. S00DO0 nelle precedenti rilevazioni, delle quattro aree professionali (infermieri, tecnici sanitari, personale prevenzione e riabilitazione) va considerato insieme al personale infermieristico S00I10, tecnico sanitario S00T10, vigilanza ed ispezione S00V10, riabilitazione S00R10
A192: RUOLO SANITARIO(*)
A193: MEDICO | B193: S00MD0 | C193: 5 | E193: 0 | F193: 0 | G193: 0 | H193: 0 | I193: 0 | J193: 0 | K193: 0 | L193: 0 | M193: =E193+G193 -> 0 | N193: 0
A194: VETERINARIO | B194: S00VE0 | C194: 5 | D194: =CONCATENATE(D$193) ->  | E194: 0 | F194: 0 | G194: 0 | H194: 0 | I194: 0 | J194: 0 | K194: 0 | L194: 0 | M194: 0 | N194: 0
A195: ODONTOIATRA | B195: S00OD0 | C195: 5 | D195: =CONCATENATE(D$193) ->  | E195: 0 | F195: 0 | G195: 0 | H195: 0 | I195: 0 | J195: 0 | K195: 0 | L195: 0 | M195: 0 | N195: 0
A196: FARMACISTA | B196: S00FM0 | C196: 5 | E196: 0 | F196: 0 | G196: 0 | H196: 0 | I196: 0 | J196: 0 | K196: 0 | L196: 0 | M196: 0 | N196: 0
A197: BIOLOGO | B197: S00BI0 | C197: 5 | E197: 0 | F197: 0 | G197: 0 | H197: 0 | I197: 0 | J197: 0 | K197: 0 | L197: 0 | M197: 0 | N197: 0
A198: CHIMICO | B198: S00CH0 | C198: 5 | E198: 0 | F198: 0 | G198: 0 | H198: 0 | I198: 0 | J198: 0 | K198: 0 | L198: 0 | M198: 0 | N198: 0
A199: FISICO | B199: S00FI0 | C199: 5 | E199: 0 | F199: 0 | G199: 0 | H199: 0 | I199: 0 | J199: 0 | K199: 0 | L199: 0 | M199: 0 | N199: 0
A200: PSICOLOGO | B200: S00PS0 | C200: 5 | E200: 0 | F200: 0 | G200: 0 | H200: 0 | I200: 0 | J200: 0 | K200: 0 | L200: 0 | M200: 0 | N200: 0
A201: DIRIGENTE DELLE PROFESSIONI SANITARIE | B201: S00DP0 | C201: 5 | E201: 0 | F201: 0 | G201: 0 | H201: 0 | I201: 0 | J201: 0 | K201: 0 | L201: 0 | M201: 0 | N201: 0
A202: PERS.INFERMIERISTICO | B202: S00I10 | C202: 5 | E202: 0 | F202: 0 | G202: 0 | H202: 0 | I202: 0 | J202: 0 | K202: 0 | L202: 0 | M202: 0 | N202: 0
A203: PERS.TECNICO SANITARIO | B203: S00T10 | C203: 5 | E203: 0 | F203: 0 | G203: 0 | H203: 0 | I203: 0 | J203: 0 | K203: 0 | L203: 0 | M203: 0 | N203: 0
A204: PERS. DI VIGILANZA ED ISPEZIONE | B204: S00V10 | C204: 5 | E204: 0 | F204: 0 | G204: 0 | H204: 0 | I204: 0 | J204: 0 | K204: 0 | L204: 0 | M204: 0 | N204: 0
A205: PERS. DELLA RIABILITAZIONE | B205: S00R10 | C205: 5 | E205: 0 | F205: 0 | G205: 0 | H205: 0 | I205: 0 | J205: 0 | K205: 0 | L205: 0 | M205: 0 | N205: 0
... 211 more rows

Sheet IN_1B (hidden)
A1: tipologia | B1: COD_tpl | C1: STRUTTURA | D1: T_ind_PIENO_U | E1: T_ind_PIENO_D | F1: T_ind_PARZ_U | G1: T_ind_PARZ_D | H1: T_det_PIENO_U | I1: T_det_PIENO_D | J1: T_det_PARZ_U | K1: T_det_PARZ_D | L1: PERSONALE_ac_U | M1: PERSONALE_ac_D
A2: MEDICO | B2: S00MD0-1 | D2: 0 | E2: 0 | F2: 0 | G2: 0 | H2: 0 | I2: 0 | J2: 0 | K2: 0 | L2: 0 | M2: 0
A3: VETERINARIO | B3: S00VE0-1 | D3: 0 | E3: 0 | F3: 0 | G3: 0 | H3: 0 | I3: 0 | J3: 0 | K3: 0 | L3: 0 | M3: 0
A4: ODONTOIATRA | B4: S00OD0-1 | D4: 0 | E4: 0 | F4: 0 | G4: 0 | H4: 0 | I4: 0 | J4: 0 | K4: 0 | L4: 0 | M4: 0
A5: FARMACISTA | B5: S00FM0-1 | D5: 0 | E5: 0 | F5: 0 | G5: 0 | H5: 0 | I5: 0 | J5: 0 | K5: 0 | L5: 0 | M5: 0
A6: BIOLOGO | B6: S00BI0-1 | D6: 0 | E6: 0 | F6: 0 | G6: 0 | H6: 0 | I6: 0 | J6: 0 | K6: 0 | L6: 0 | M6: 0
A7: CHIMICO | B7: S00CH0-1 | D7: 0 | E7: 0 | F7: 0 | G7: 0 | H7: 0 | I7: 0 | J7: 0 | K7: 0 | L7: 0 | M7: 0
A8: FISICO | B8: S00FI0-1 | D8: 0 | E8: 0 | F8: 0 | G8: 0 | H8: 0 | I8: 0 | J8: 0 | K8: 0 | L8: 0 | M8: 0
A9: PSICOLOGO | B9: S00PS0-1 | D9: 0 | E9: 0 | F9: 0 | G9: 0 | H9: 0 | I9: 0 | J9: 0 | K9: 0 | L9: 0 | M9: 0
A10: DIRIGENTE DELLE PROFESSIONI SANITARIE | B10: S00DP0-1 | D10: 0 | E10: 0 | F10: 0 | G10: 0 | H10: 0 | I10: 0 | J10: 0 | K10: 0 | L10: 0 | M10: 0
A11: PERS.INFERMIERISTICO | B11: S00I10-1 | D11: 0 | E11: 0 | F11: 0 | G11: 0 | H11: 0 | I11: 0 | J11: 0 | K11: 0 | L11: 0 | M11: 0
A12: PERS.TECNICO SANITARIO | B12: S00T10-1 | D12: 0 | E12: 0 | F12: 0 | G12: 0 | H12: 0 | I12: 0 | J12: 0 | K12: 0 | L12: 0 | M12: 0
A13: PERS. DI VIGILANZA ED ISPEZIONE | B13: S00V10-1 | D13: 0 | E13: 0 | F13: 0 | G13: 0 | H13: 0 | I13: 0 | J13: 0 | K13: 0 | L13: 0 | M13: 0
A14: PERS. DELLA RIABILITAZIONE | B14: S00R10-1 | D14: 0 | E14: 0 | F14: 0 | G14: 0 | H14: 0 | I14: 0 | J14: 0 | K14: 0 | L14: 0 | M14: 0
A15: TIPOLOGIA ATIPICA DEL RUOLO SANITARIO | B15: S99AT0-1 | D15: 0 | E15: 0 | F15: 0 | G15: 0 | H15: 0 | I15: 0 | J15: 0 | K15: 0 | L15: 0 | M15: 0
A16: AVVOCATO /PROCURATORE LEGALE | B16: P00AV0-1 | D16: 0 | E16: 0 | F16: 0 | G16: 0 | H16: 0 | I16: 0 | J16: 0 | K16: 0 | L16: 0 | M16: 0
A17: INGEGNERE | B17: P00IG0-1 | D17: 0 | E17: 0 | F17: 0 | G17: 0 | H17: 0 | I17: 0 | J17: 0 | K17: 0 | L17: 0 | M17: 0
A18: ARCHITETTO | B18: P00AH0-1 | D18: 0 | E18: 0 | F18: 0 | G18: 0 | H18: 0 | I18: 0 | J18: 0 | K18: 0 | L18: 0 | M18: 0
A19: GEOLOGO | B19: P00GE0-1 | D19: 0 | E19: 0 | F19: 0 | G19: 0 | H19: 0 | I19: 0 | J19: 0 | K19: 0 | L19: 0 | M19: 0
A20: ASSISTENTE RELIGIOSO | B20: P00AR0-1 | D20: 0 | E20: 0 | F20: 0 | G20: 0 | H20: 0 | I20: 0 | J20: 0 | K20: 0 | L20: 0 | M20: 0
A21: TIPOLOGIA ATIPICA RUOLO PROFESSIONALE | B21: R99AT0-1 | D21: 0 | E21: 0 | F21: 0 | G21: 0 | H21: 0 | I21: 0 | J21: 0 | K21: 0 | L21: 0 | M21: 0
A22: ANALISTA | B22: T00AN0-1 | D22: 0 | E22: 0 | F22: 0 | G22: 0 | H22: 0 | I22: 0 | J22: 0 | K22: 0 | L22: 0 | M22: 0
A23: STATISTICO | B23: T00ST0-1 | D23: 0 | E23: 0 | F23: 0 | G23: 0 | H23: 0 | I23: 0 | J23: 0 | K23: 0 | L23: 0 | M23: 0
A24: SOCIOLOGO | B24: T00SO0-1 | D24: 0 | E24: 0 | F24: 0 | G24: 0 | H24: 0 | I24: 0 | J24: 0 | K24: 0 | L24: 0 | M24: 0
A25: ASSISTENTE SOCIALE | B25: T00AS0-1 | D25: 0 | E25: 0 | F25: 0 | G25: 0 | H25: 0 | I25: 0 | J25: 0 | K25: 0 | L25: 0 | M25: 0
A26: COLLABORATORE TECNICO - PROFESSIONALE | B26: T00CT0-1 | D26: 0 | E26: 0 | F26: 0 | G26: 0 | H26: 0 | I26: 0 | J26: 0 | K26: 0 | L26: 0 | M26: 0
A27: ASSISTENTE TECNICO | B27: T00AT0-1 | D27: 0 | E27: 0 | F27: 0 | G27: 0 | H27: 0 | I27: 0 | J27: 0 | K27: 0 | L27: 0 | M27: 0
A28: PROGRAMMATORE | B28: T00PS0-1 | D28: 0 | E28: 0 | F28: 0 | G28: 0 | H28: 0 | I28: 0 | J28: 0 | K28: 0 | L28: 0 | M28: 0
A29: OPERATORE TECNICO | B29: T00OT0-1 | D29: 0 | E29: 0 | F29: 0 | G29: 0 | H29: 0 | I29: 0 | J29: 0 | K29: 0 | L29: 0 | M29: 0
A30: OPERATORE TECNICO ADDETTO ALL' ASSISTENZA | B30: T00OA0-1 | D30: 0 | E30: 0 | F30: 0 | G30: 0 | H30: 0 | I30: 0 | J30: 0 | K30: 0 | L30: 0 | M30: 0
A31: AUSILIARIO SPECIALIZZATO | B31: T00AU0-1 | D31: 0 | E31: 0 | F31: 0 | G31: 0 | H31: 0 | I31: 0 | J31: 0 | K31: 0 | L31: 0 | M31: 0
A32: TIPOLOGIA ATIPICA RUOLO TECNICO | B32: T99AT0-1 | D32: 0 | E32: 0 | F32: 0 | G32: 0 | H32: 0 | I32: 0 | J32: 0 | K32: 0 | L32: 0 | M32: 0
A33: DIRIGENTE AMMINISTRATIVO | B33: A00DA0-1 | D33: 0 | E33: 0 | F33: 0 | G33: 0 | H33: 0 | I33: 0 | J33: 0 | K33: 0 | L33: 0 | M33: 0
A34: COLLABORATORE AMMINISTRATIVO - PROFESSIONALE | B34: A00CO0-1 | D34: 0 | E34: 0 | F34: 0 | G34: 0 | H34: 0 | I34: 0 | J34: 0 | K34: 0 | L34: 0 | M34: 0
A35: ASSISTENTE AMMINISTRATIVO | B35: A00AA0-1 | D35: 0 | E35: 0 | F35: 0 | G35: 0 | H35: 0 | I35: 0 | J35: 0 | K35: 0 | L35: 0 | M35: 0
A36: COADIUTORE AMMINISTRATIVO | B36: A00CA0-1 | D36: 0 | E36: 0 | F36: 0 | G36: 0 | H36: 0 | I36: 0 | J36: 0 | K36: 0 | L36: 0 | M36: 0
A37: COMMESSO | B37: A00CM0-1 | D37: 0 | E37: 0 | F37: 0 | G37: 0 | H37: 0 | I37: 0 | J37: 0 | K37: 0 | L37: 0 | M37: 0
A38: TIPOLOGIA ATIPICA RUOLO AMMINISTRATIVO | B38: A99AT0-1 | D38: 0 | E38: 0 | F38: 0 | G38: 0 | H38: 0 | I38: 0 | J38: 0 | K38: 0 | L38: 0 | M38: 0
A39: ALTRO PERSONALE | B39: R99RP0-1 | D39: 0 | E39: 0 | F39: 0 | G39: 0 | H39: 0 | I39: 0 | J39: 0 | K39: 0 | L39: 0 | M39: 0
A40: MEDICO | B40: S00MD0-2 | D40: 0 | E40: 0 | F40: 0 | G40: 0 | H40: 0 | I40: 0 | J40: 0 | K40: 0 | L40: 0 | M40: 0
A41: VETERINARIO | B41: S00VE0-2 | D41: 0 | E41: 0 | F41: 0 | G41: 0 | H41: 0 | I41: 0 | J41: 0 | K41: 0 | L41: 0 | M41: 0
A42: ODONTOIATRA | B42: S00OD0-2 | D42: 0 | E42: 0 | F42: 0 | G42: 0 | H42: 0 | I42: 0 | J42: 0 | K42: 0 | L42: 0 | M42: 0
A43: FARMACISTA | B43: S00FM0-2 | D43: 0 | E43: 0 | F43: 0 | G43: 0 | H43: 0 | I43: 0 | J43: 0 | K43: 0 | L43: 0 | M43: 0
A44: BIOLOGO | B44: S00BI0-2 | D44: 0 | E44: 0 | F44: 0 | G44: 0 | H44: 0 | I44: 0 | J44: 0 | K44: 0 | L44: 0 | M44: 0
A45: CHIMICO | B45: S00CH0-2 | D45: 0 | E45: 0 | F45: 0 | G45: 0 | H45: 0 | I45: 0 | J45: 0 | K45: 0 | L45: 0 | M45: 0
A46: FISICO | B46: S00FI0-2 | D46: 0 | E46: 0 | F46: 0 | G46: 0 | H46: 0 | I46: 0 | J46: 0 | K46: 0 | L46: 0 | M46: 0
A47: PSICOLOGO | B47: S00PS0-2 | D47: 0 | E47: 0 | F47: 0 | G47: 0 | H47: 0 | I47: 0 | J47: 0 | K47: 0 | L47: 0 | M47: 0
A48: DIRIGENTE DELLE PROFESSIONI SANITARIE | B48: S00DP0-2 | D48: 0 | E48: 0 | F48: 0 | G48: 0 | H48: 0 | I48: 0 | J48: 0 | K48: 0 | L48: 0 | M48: 0
A49: PERS.INFERMIERISTICO | B49: S00I10-2 | D49: 0 | E49: 0 | F49: 0 | G49: 0 | H49: 0 | I49: 0 | J49: 0 | K49: 0 | L49: 0 | M49: 0
A50: PERS.TECNICO SANITARIO | B50: S00T10-2 | D50: 0 | E50: 0 | F50: 0 | G50: 0 | H50: 0 | I50: 0 | J50: 0 | K50: 0 | L50: 0 | M50: 0
A51: PERS. DI VIGILANZA ED ISPEZIONE | B51: S00V10-2 | D51: 0 | E51: 0 | F51: 0 | G51: 0 | H51: 0 | I51: 0 | J51: 0 | K51: 0 | L51: 0 | M51: 0
A52: PERS. DELLA RIABILITAZIONE | B52: S00R10-2 | D52: 0 | E52: 0 | F52: 0 | G52: 0 | H52: 0 | I52: 0 | J52: 0 | K52: 0 | L52: 0 | M52: 0
A53: TIPOLOGIA ATIPICA DEL RUOLO SANITARIO | B53: S99AT0-2 | D53: 0 | E53: 0 | F53: 0 | G53: 0 | H53: 0 | I53: 0 | J53: 0 | K53: 0 | L53: 0 | M53: 0
A54: AVVOCATO /PROCURATORE LEGALE | B54: P00AV0-2 | D54: 0 | E54: 0 | F54: 0 | G54: 0 | H54: 0 | I54: 0 | J54: 0 | K54: 0 | L54: 0 | M54: 0
A55: INGEGNERE | B55: P00IG0-2 | D55: 0 | E55: 0 | F55: 0 | G55: 0 | H55: 0 | I55: 0 | J55: 0 | K55: 0 | L55: 0 | M55: 0
A56: ARCHITETTO | B56: P00AH0-2 | D56: 0 | E56: 0 | F56: 0 | G56: 0 | H56: 0 | I56: 0 | J56: 0 | K56: 0 | L56: 0 | M56: 0
A57: GEOLOGO | B57: P00GE0-2 | D57: 0 | E57: 0 | F57: 0 | G57: 0 | H57: 0 | I57: 0 | J57: 0 | K57: 0 | L57: 0 | M57: 0
A58: ASSISTENTE RELIGIOSO | B58: P00AR0-2 | D58: 0 | E58: 0 | F58: 0 | G58: 0 | H58: 0 | I58: 0 | J58: 0 | K58: 0 | L58: 0 | M58: 0
A59: TIPOLOGIA ATIPICA RUOLO PROFESSIONALE | B59: R99AT0-2 | D59: 0 | E59: 0 | F59: 0 | G59: 0 | H59: 0 | I59: 0 | J59: 0 | K59: 0 | L59: 0 | M59: 0
A60: ANALISTA | B60: T00AN0-2 | D60: 0 | E60: 0 | F60: 0 | G60: 0 | H60: 0 | I60: 0 | J60: 0 | K60: 0 | L60: 0 | M60: 0
A61: STATISTICO | B61: T00ST0-2 | D61: 0 | E61: 0 | F61: 0 | G61: 0 | H61: 0 | I61: 0 | J61: 0 | K61: 0 | L61: 0 | M61: 0
A62: SOCIOLOGO | B62: T00SO0-2 | D62: 0 | E62: 0 | F62: 0 | G62: 0 | H62: 0 | I62: 0 | J62: 0 | K62: 0 | L62: 0 | M62: 0
A63: ASSISTENTE SOCIALE | B63: T00AS0-2 | D63: 0 | E63: 0 | F63: 0 | G63: 0 | H63: 0 | I63: 0 | J63: 0 | K63: 0 | L63: 0 | M63: 0
A64: COLLABORATORE TECNICO - PROFESSIONALE | B64: T00CT0-2 | D64: 0 | E64: 0 | F64: 0 | G64: 0 | H64: 0 | I64: 0 | J64: 0 | K64: 0 | L64: 0 | M64: 0
A65: ASSISTENTE TECNICO | B65: T00AT0-2 | D65: 0 | E65: 0 | F65: 0 | G65: 0 | H65: 0 | I65: 0 | J65: 0 | K65: 0 | L65: 0 | M65: 0
A66: PROGRAMMATORE | B66: T00PS0-2 | D66: 0 | E66: 0 | F66: 0 | G66: 0 | H66: 0 | I66: 0 | J66: 0 | K66: 0 | L66: 0 | M66: 0
A67: OPERATORE TECNICO | B67: T00OT0-2 | D67: 0 | E67: 0 | F67: 0 | G67: 0 | H67: 0 | I67: 0 | J67: 0 | K67: 0 | L67: 0 | M67: 0
A68: OPERATORE TECNICO ADDETTO ALL' ASSISTENZA | B68: T00OA0-2 | D68: 0 | E68: 0 | F68: 0 | G68: 0 | H68: 0 | I68: 0 | J68: 0 | K68: 0 | L68: 0 | M68: 0
A69: AUSILIARIO SPECIALIZZATO | B69: T00AU0-2 | D69: 0 | E69: 0 | F69: 0 | G69: 0 | H69: 0 | I69: 0 | J69: 0 | K69: 0 | L69: 0 | M69: 0
A70: TIPOLOGIA ATIPICA RUOLO TECNICO | B70: T99AT0-2 | D70: 0 | E70: 0 | F70: 0 | G70: 0 | H70: 0 | I70: 0 | J70: 0 | K70: 0 | L70: 0 | M70: 0
A71: DIRIGENTE AMMINISTRATIVO | B71: A00DA0-2 | D71: 0 | E71: 0 | F71: 0 | G71: 0 | H71: 0 | I71: 0 | J71: 0 | K71: 0 | L71: 0 | M71: 0
A72: COLLABORATORE AMMINISTRATIVO - PROFESSIONALE | B72: A00CO0-2 | D72: 0 | E72: 0 | F72: 0 | G72: 0 | H72: 0 | I72: 0 | J72: 0 | K72: 0 | L72: 0 | M72: 0
A73: ASSISTENTE AMMINISTRATIVO | B73: A00AA0-2 | D73: 0 | E73: 0 | F73: 0 | G73: 0 | H73: 0 | I73: 0 | J73: 0 | K73: 0 | L73: 0 | M73: 0
A74: COADIUTORE AMMINISTRATIVO | B74: A00CA0-2 | D74: 0 | E74: 0 | F74: 0 | G74: 0 | H74: 0 | I74: 0 | J74: 0 | K74: 0 | L74: 0 | M74: 0
A75: COMMESSO | B75: A00CM0-2 | D75: 0 | E75: 0 | F75: 0 | G75: 0 | H75: 0 | I75: 0 | J75: 0 | K75: 0 | L75: 0 | M75: 0
A76: TIPOLOGIA ATIPICA RUOLO AMMINISTRATIVO | B76: A99AT0-2 | D76: 0 | E76: 0 | F76: 0 | G76: 0 | H76: 0 | I76: 0 | J76: 0 | K76: 0 | L76: 0 | M76: 0
A77: ALTRO PERSONALE | B77: R99RP0-2 | D77: 0 | E77: 0 | F77: 0 | G77: 0 | H77: 0 | I77: 0 | J77: 0 | K77: 0 | L77: 0 | M77: 0
A78: MEDICO | B78: S00MD0-3 | D78: 0 | E78: 0 | F78: 0 | G78: 0 | H78: 0 | I78: 0 | J78: 0 | K78: 0 | L78: 0 | M78: 0
A79: VETERINARIO | B79: S00VE0-3 | D79: 0 | E79: 0 | F79: 0 | G79: 0 | H79: 0 | I79: 0 | J79: 0 | K79: 0 | L79: 0 | M79: 0
A80: ODONTOIATRA | B80: S00OD0-3 | D80: 0 | E80: 0 | F80: 0 | G80: 0 | H80: 0 | I80: 0 | J80: 0 | K80: 0 | L80: 0 | M80: 0
A81: FARMACISTA | B81: S00FM0-3 | D81: 0 | E81: 0 | F81: 0 | G81: 0 | H81: 0 | I81: 0 | J81: 0 | K81: 0 | L81: 0 | M81: 0
A82: BIOLOGO | B82: S00BI0-3 | D82: 0 | E82: 0 | F82: 0 | G82: 0 | H82: 0 | I82: 0 | J82: 0 | K82: 0 | L82: 0 | M82: 0
A83: CHIMICO | B83: S00CH0-3 | D83: 0 | E83: 0 | F83: 0 | G83: 0 | H83: 0 | I83: 0 | J83: 0 | K83: 0 | L83: 0 | M83: 0
A84: FISICO | B84: S00FI0-3 | D84: 0 | E84: 0 | F84: 0 | G84: 0 | H84: 0 | I84: 0 | J84: 0 | K84: 0 | L84: 0 | M84: 0
A85: PSICOLOGO | B85: S00PS0-3 | D85: 0 | E85: 0 | F85: 0 | G85: 0 | H85: 0 | I85: 0 | J85: 0 | K85: 0 | L85: 0 | M85: 0
A86: DIRIGENTE DELLE PROFESSIONI SANITARIE | B86: S00DP0-3 | D86: 0 | E86: 0 | F86: 0 | G86: 0 | H86: 0 | I86: 0 | J86: 0 | K86: 0 | L86: 0 | M86: 0
A87: PERS.INFERMIERISTICO | B87: S00I10-3 | D87: 0 | E87: 0 | F87: 0 | G87: 0 | H87: 0 | I87: 0 | J87: 0 | K87: 0 | L87: 0 | M87: 0
A88: PERS.TECNICO SANITARIO | B88: S00T10-3 | D88: 0 | E88: 0 | F88: 0 | G88: 0 | H88: 0 | I88: 0 | J88: 0 | K88: 0 | L88: 0 | M88: 0
A89: PERS. DI VIGILANZA ED ISPEZIONE | B89: S00V10-3 | D89: 0 | E89: 0 | F89: 0 | G89: 0 | H89: 0 | I89: 0 | J89: 0 | K89: 0 | L89: 0 | M89: 0
A90: PERS. DELLA RIABILITAZIONE | B90: S00R10-3 | D90: 0 | E90: 0 | F90: 0 | G90: 0 | H90: 0 | I90: 0 | J90: 0 | K90: 0 | L90: 0 | M90: 0
A91: TIPOLOGIA ATIPICA DEL RUOLO SANITARIO | B91: S99AT0-3 | D91: 0 | E91: 0 | F91: 0 | G91: 0 | H91: 0 | I91: 0 | J91: 0 | K91: 0 | L91: 0 | M91: 0
A92: AVVOCATO /PROCURATORE LEGALE | B92: P00AV0-3 | D92: 0 | E92: 0 | F92: 0 | G92: 0 | H92: 0 | I92: 0 | J92: 0 | K92: 0 | L92: 0 | M92: 0
A93: INGEGNERE | B93: P00IG0-3 | D93: 0 | E93: 0 | F93: 0 | G93: 0 | H93: 0 | I93: 0 | J93: 0 | K93: 0 | L93: 0 | M93: 0
A94: ARCHITETTO | B94: P00AH0-3 | D94: 0 | E94: 0 | F94: 0 | G94: 0 | H94: 0 | I94: 0 | J94: 0 | K94: 0 | L94: 0 | M94: 0
A95: GEOLOGO | B95: P00GE0-3 | D95: 0 | E95: 0 | F95: 0 | G95: 0 | H95: 0 | I95: 0 | J95: 0 | K95: 0 | L95: 0 | M95: 0
A96: ASSISTENTE RELIGIOSO | B96: P00AR0-3 | D96: 0 | E96: 0 | F96: 0 | G96: 0 | H96: 0 | I96: 0 | J96: 0 | K96: 0 | L96: 0 | M96: 0
A97: TIPOLOGIA ATIPICA RUOLO PROFESSIONALE | B97: R99AT0-3 | D97: 0 | E97: 0 | F97: 0 | G97: 0 | H97: 0 | I97: 0 | J97: 0 | K97: 0 | L97: 0 | M97: 0
A98: ANALISTA | B98: T00AN0-3 | D98: 0 | E98: 0 | F98: 0 | G98: 0 | H98: 0 | I98: 0 | J98: 0 | K98: 0 | L98: 0 | M98: 0
A99: STATISTICO | B99: T00ST0-3 | D99: 0 | E99: 0 | F99: 0 | G99: 0 | H99: 0 | I99: 0 | J99: 0 | K99: 0 | L99: 0 | M99: 0
A100: SOCIOLOGO | B100: T00SO0-3 | D100: 0 | E100: 0 | F100: 0 | G100: 0 | H100: 0 | I100: 0 | J100: 0 | K100: 0 | L100: 0 | M100: 0
A101: ASSISTENTE SOCIALE | B101: T00AS0-3 | D101: 0 | E101: 0 | F101: 0 | G101: 0 | H101: 0 | I101: 0 | J101: 0 | K101: 0 | L101: 0 | M101: 0
A102: COLLABORATORE TECNICO - PROFESSIONALE | B102: T00CT0-3 | D102: 0 | E102: 0 | F102: 0 | G102: 0 | H102: 0 | I102: 0 | J102: 0 | K102: 0 | L102: 0 | M102: 0
A103: ASSISTENTE TECNICO | B103: T00AT0-3 | D103: 0 | E103: 0 | F103: 0 | G103: 0 | H103: 0 | I103: 0 | J103: 0 | K103: 0 | L103: 0 | M103: 0
A104: PROGRAMMATORE | B104: T00PS0-3 | D104: 0 | E104: 0 | F104: 0 | G104: 0 | H104: 0 | I104: 0 | J104: 0 | K104: 0 | L104: 0 | M104: 0
A105: OPERATORE TECNICO | B105: T00OT0-3 | D105: 0 | E105: 0 | F105: 0 | G105: 0 | H105: 0 | I105: 0 | J105: 0 | K105: 0 | L105: 0 | M105: 0
A106: OPERATORE TECNICO ADDETTO ALL' ASSISTENZA | B106: T00OA0-3 | D106: 0 | E106: 0 | F106: 0 | G106: 0 | H106: 0 | I106: 0 | J106: 0 | K106: 0 | L106: 0 | M106: 0
A107: AUSILIARIO SPECIALIZZATO | B107: T00AU0-3 | D107: 0 | E107: 0 | F107: 0 | G107: 0 | H107: 0 | I107: 0 | J107: 0 | K107: 0 | L107: 0 | M107: 0
A108: TIPOLOGIA ATIPICA RUOLO TECNICO | B108: T99AT0-3 | D108: 0 | E108: 0 | F108: 0 | G108: 0 | H108: 0 | I108: 0 | J108: 0 | K108: 0 | L108: 0 | M108: 0
A109: DIRIGENTE AMMINISTRATIVO | B109: A00DA0-3 | D109: 0 | E109: 0 | F109: 0 | G109: 0 | H109: 0 | I109: 0 | J109: 0 | K109: 0 | L109: 0 | M109: 0
A110: COLLABORATORE AMMINISTRATIVO - PROFESSIONALE | B110: A00CO0-3 | D110: 0 | E110: 0 | F110: 0 | G110: 0 | H110: 0 | I110: 0 | J110: 0 | K110: 0 | L110: 0 | M110: 0
A111: ASSISTENTE AMMINISTRATIVO | B111: A00AA0-3 | D111: 0 | E111: 0 | F111: 0 | G111: 0 | H111: 0 | I111: 0 | J111: 0 | K111: 0 | L111: 0 | M111: 0
A112: COADIUTORE AMMINISTRATIVO | B112: A00CA0-3 | D112: 0 | E112: 0 | F112: 0 | G112: 0 | H112: 0 | I112: 0 | J112: 0 | K112: 0 | L112: 0 | M112: 0
A113: COMMESSO | B113: A00CM0-3 | D113: 0 | E113: 0 | F113: 0 | G113: 0 | H113: 0 | I113: 0 | J113: 0 | K113: 0 | L113: 0 | M113: 0
A114: TIPOLOGIA ATIPICA RUOLO AMMINISTRATIVO | B114: A99AT0-3 | D114: 0 | E114: 0 | F114: 0 | G114: 0 | H114: 0 | I114: 0 | J114: 0 | K114: 0 | L114: 0 | M114: 0
A115: ALTRO PERSONALE | B115: R99RP0-3 | D115: 0 | E115: 0 | F115: 0 | G115: 0 | H115: 0 | I115: 0 | J115: 0 | K115: 0 | L115: 0 | M115: 0
A116: MEDICO | B116: S00MD0-4 | D116: 0 | E116: 0 | F116: 0 | G116: 0 | H116: 0 | I116: 0 | J116: 0 | K116: 0 | L116: 0 | M116: 0
A117: VETERINARIO | B117: S00VE0-4 | D117: 0 | E117: 0 | F117: 0 | G117: 0 | H117: 0 | I117: 0 | J117: 0 | K117: 0 | L117: 0 | M117: 0
A118: ODONTOIATRA | B118: S00OD0-4 | D118: 0 | E118: 0 | F118: 0 | G118: 0 | H118: 0 | I118: 0 | J118: 0 | K118: 0 | L118: 0 | M118: 0
A119: FARMACISTA | B119: S00FM0-4 | D119: 0 | E119: 0 | F119: 0 | G119: 0 | H119: 0 | I119: 0 | J119: 0 | K119: 0 | L119: 0 | M119: 0
A120: BIOLOGO | B120: S00BI0-4 | D120: 0 | E120: 0 | F120: 0 | G120: 0 | H120: 0 | I120: 0 | J120: 0 | K120: 0 | L120: 0 | M120: 0
A121: CHIMICO | B121: S00CH0-4 | D121: 0 | E121: 0 | F121: 0 | G121: 0 | H121: 0 | I121: 0 | J121: 0 | K121: 0 | L121: 0 | M121: 0
A122: FISICO | B122: S00FI0-4 | D122: 0 | E122: 0 | F122: 0 | G122: 0 | H122: 0 | I122: 0 | J122: 0 | K122: 0 | L122: 0 | M122: 0
A123: PSICOLOGO | B123: S00PS0-4 | D123: 0 | E123: 0 | F123: 0 | G123: 0 | H123: 0 | I123: 0 | J123: 0 | K123: 0 | L123: 0 | M123: 0
A124: DIRIGENTE DELLE PROFESSIONI SANITARIE | B124: S00DP0-4 | D124: 0 | E124: 0 | F124: 0 | G124: 0 | H124: 0 | I124: 0 | J124: 0 | K124: 0 | L124: 0 | M124: 0
A125: PERS.INFERMIERISTICO | B125: S00I10-4 | D125: 0 | E125: 0 | F125: 0 | G125: 0 | H125: 0 | I125: 0 | J125: 0 | K125: 0 | L125: 0 | M125: 0
A126: PERS.TECNICO SANITARIO | B126: S00T10-4 | D126: 0 | E126: 0 | F126: 0 | G126: 0 | H126: 0 | I126: 0 | J126: 0 | K126: 0 | L126: 0 | M126: 0
A127: PERS. DI VIGILANZA ED ISPEZIONE | B127: S00V10-4 | D127: 0 | E127: 0 | F127: 0 | G127: 0 | H127: 0 | I127: 0 | J127: 0 | K127: 0 | L127: 0 | M127: 0
A128: PERS. DELLA RIABILITAZIONE | B128: S00R10-4 | D128: 0 | E128: 0 | F128: 0 | G128: 0 | H128: 0 | I128: 0 | J128: 0 | K128: 0 | L128: 0 | M128: 0
A129: TIPOLOGIA ATIPICA DEL RUOLO SANITARIO | B129: S99AT0-4 | D129: 0 | E129: 0 | F129: 0 | G129: 0 | H129: 0 | I129: 0 | J129: 0 | K129: 0 | L129: 0 | M129: 0
A130: AVVOCATO /PROCURATORE LEGALE | B130: P00AV0-4 | D130: 0 | E130: 0 | F130: 0 | G130: 0 | H130: 0 | I130: 0 | J130: 0 | K130: 0 | L130: 0 | M130: 0
A131: INGEGNERE | B131: P00IG0-4 | D131: 0 | E131: 0 | F131: 0 | G131: 0 | H131: 0 | I131: 0 | J131: 0 | K131: 0 | L131: 0 | M131: 0
A132: ARCHITETTO | B132: P00AH0-4 | D132: 0 | E132: 0 | F132: 0 | G132: 0 | H132: 0 | I132: 0 | J132: 0 | K132: 0 | L132: 0 | M132: 0
A133: GEOLOGO | B133: P00GE0-4 | D133: 0 | E133: 0 | F133: 0 | G133: 0 | H133: 0 | I133: 0 | J133: 0 | K133: 0 | L133: 0 | M133: 0
A134: ASSISTENTE RELIGIOSO | B134: P00AR0-4 | D134: 0 | E134: 0 | F134: 0 | G134: 0 | H134: 0 | I134: 0 | J134: 0 | K134: 0 | L134: 0 | M134: 0
A135: TIPOLOGIA ATIPICA RUOLO PROFESSIONALE | B135: R99AT0-4 | D135: 0 | E135: 0 | F135: 0 | G135: 0 | H135: 0 | I135: 0 | J135: 0 | K135: 0 | L135: 0 | M135: 0
A136: ANALISTA | B136: T00AN0-4 | D136: 0 | E136: 0 | F136: 0 | G136: 0 | H136: 0 | I136: 0 | J136: 0 | K136: 0 | L136: 0 | M136: 0
A137: STATISTICO | B137: T00ST0-4 | D137: 0 | E137: 0 | F137: 0 | G137: 0 | H137: 0 | I137: 0 | J137: 0 | K137: 0 | L137: 0 | M137: 0
A138: SOCIOLOGO | B138: T00SO0-4 | D138: 0 | E138: 0 | F138: 0 | G138: 0 | H138: 0 | I138: 0 | J138: 0 | K138: 0 | L138: 0 | M138: 0
A139: ASSISTENTE SOCIALE | B139: T00AS0-4 | D139: 0 | E139: 0 | F139: 0 | G139: 0 | H139: 0 | I139: 0 | J139: 0 | K139: 0 | L139: 0 | M139: 0
A140: COLLABORATORE TECNICO - PROFESSIONALE | B140: T00CT0-4 | D140: 0 | E140: 0 | F140: 0 | G140: 0 | H140: 0 | I140: 0 | J140: 0 | K140: 0 | L140: 0 | M140: 0
A141: ASSISTENTE TECNICO | B141: T00AT0-4 | D141: 0 | E141: 0 | F141: 0 | G141: 0 | H141: 0 | I141: 0 | J141: 0 | K141: 0 | L141: 0 | M141: 0
A142: PROGRAMMATORE | B142: T00PS0-4 | D142: 0 | E142: 0 | F142: 0 | G142: 0 | H142: 0 | I142: 0 | J142: 0 | K142: 0 | L142: 0 | M142: 0
A143: OPERATORE TECNICO | B143: T00OT0-4 | D143: 0 | E143: 0 | F143: 0 | G143: 0 | H143: 0 | I143: 0 | J143: 0 | K143: 0 | L143: 0 | M143: 0
A144: OPERATORE TECNICO ADDETTO ALL' ASSISTENZA | B144: T00OA0-4 | D144: 0 | E144: 0 | F144: 0 | G144: 0 | H144: 0 | I144: 0 | J144: 0 | K144: 0 | L144: 0 | M144: 0
A145: AUSILIARIO SPECIALIZZATO | B145: T00AU0-4 | D145: 0 | E145: 0 | F145: 0 | G145: 0 | H145: 0 | I145: 0 | J145: 0 | K145: 0 | L145: 0 | M145: 0
A146: TIPOLOGIA ATIPICA RUOLO TECNICO | B146: T99AT0-4 | D146: 0 | E146: 0 | F146: 0 | G146: 0 | H146: 0 | I146: 0 | J146: 0 | K146: 0 | L146: 0 | M146: 0
A147: DIRIGENTE AMMINISTRATIVO | B147: A00DA0-4 | D147: 0 | E147: 0 | F147: 0 | G147: 0 | H147: 0 | I147: 0 | J147: 0 | K147: 0 | L147: 0 | M147: 0
A148: COLLABORATORE AMMINISTRATIVO - PROFESSIONALE | B148: A00CO0-4 | D148: 0 | E148: 0 | F148: 0 | G148: 0 | H148: 0 | I148: 0 | J148: 0 | K148: 0 | L148: 0 | M148: 0
A149: ASSISTENTE AMMINISTRATIVO | B149: A00AA0-4 | D149: 0 | E149: 0 | F149: 0 | G149: 0 | H149: 0 | I149: 0 | J149: 0 | K149: 0 | L149: 0 | M149: 0
A150: COADIUTORE AMMINISTRATIVO | B150: A00CA0-4 | D150: 0 | E150: 0 | F150: 0 | G150: 0 | H150: 0 | I150: 0 | J150: 0 | K150: 0 | L150: 0 | M150: 0
A151: COMMESSO | B151: A00CM0-4 | D151: 0 | E151: 0 | F151: 0 | G151: 0 | H151: 0 | I151: 0 | J151: 0 | K151: 0 | L151: 0 | M151: 0
A152: TIPOLOGIA ATIPICA RUOLO AMMINISTRATIVO | B152: A99AT0-4 | D152: 0 | E152: 0 | F152: 0 | G152: 0 | H152: 0 | I152: 0 | J152: 0 | K152: 0 | L152: 0 | M152: 0
A153: ALTRO PERSONALE | B153: R99RP0-4 | D153: 0 | E153: 0 | F153: 0 | G153: 0 | H153: 0 | I153: 0 | J153: 0 | K153: 0 | L153: 0 | M153: 0
A154: MEDICO | B154: S00MD0-5 | D154: 0 | E154: 0 | F154: 0 | G154: 0 | H154: 0 | I154: 0 | J154: 0 | K154: 0 | L154: 0 | M154: 0
A155: VETERINARIO | B155: S00VE0-5 | D155: 0 | E155: 0 | F155: 0 | G155: 0 | H155: 0 | I155: 0 | J155: 0 | K155: 0 | L155: 0 | M155: 0
A156: ODONTOIATRA | B156: S00OD0-5 | D156: 0 | E156: 0 | F156: 0 | G156: 0 | H156: 0 | I156: 0 | J156: 0 | K156: 0 | L156: 0 | M156: 0
A157: FARMACISTA | B157: S00FM0-5 | D157: 0 | E157: 0 | F157: 0 | G157: 0 | H157: 0 | I157: 0 | J157: 0 | K157: 0 | L157: 0 | M157: 0
A158: BIOLOGO | B158: S00BI0-5 | D158: 0 | E158: 0 | F158: 0 | G158: 0 | H158: 0 | I158: 0 | J158: 0 | K158: 0 | L158: 0 | M158: 0
A159: CHIMICO | B159: S00CH0-5 | D159: 0 | E159: 0 | F159: 0 | G159: 0 | H159: 0 | I159: 0 | J159: 0 | K159: 0 | L159: 0 | M159: 0
A160: FISICO | B160: S00FI0-5 | D160: 0 | E160: 0 | F160: 0 | G160: 0 | H160: 0 | I160: 0 | J160: 0 | K160: 0 | L160: 0 | M160: 0
A161: PSICOLOGO | B161: S00PS0-5 | D161: 0 | E161: 0 | F161: 0 | G161: 0 | H161: 0 | I161: 0 | J161: 0 | K161: 0 | L161: 0 | M161: 0
A162: DIRIGENTE DELLE PROFESSIONI SANITARIE | B162: S00DP0-5 | D162: 0 | E162: 0 | F162: 0 | G162: 0 | H162: 0 | I162: 0 | J162: 0 | K162: 0 | L162: 0 | M162: 0
A163: PERS.INFERMIERISTICO | B163: S00I10-5 | D163: 0 | E163: 0 | F163: 0 | G163: 0 | H163: 0 | I163: 0 | J163: 0 | K163: 0 | L163: 0 | M163: 0
A164: PERS.TECNICO SANITARIO | B164: S00T10-5 | D164: 0 | E164: 0 | F164: 0 | G164: 0 | H164: 0 | I164: 0 | J164: 0 | K164: 0 | L164: 0 | M164: 0
A165: PERS. DI VIGILANZA ED ISPEZIONE | B165: S00V10-5 | D165: 0 | E165: 0 | F165: 0 | G165: 0 | H165: 0 | I165: 0 | J165: 0 | K165: 0 | L165: 0 | M165: 0
A166: PERS. DELLA RIABILITAZIONE | B166: S00R10-5 | D166: 0 | E166: 0 | F166: 0 | G166: 0 | H166: 0 | I166: 0 | J166: 0 | K166: 0 | L166: 0 | M166: 0
A167: TIPOLOGIA ATIPICA DEL RUOLO SANITARIO | B167: S99AT0-5 | D167: 0 | E167: 0 | F167: 0 | G167: 0 | H167: 0 | I167: 0 | J167: 0 | K167: 0 | L167: 0 | M167: 0
A168: AVVOCATO /PROCURATORE LEGALE | B168: P00AV0-5 | D168: 0 | E168: 0 | F168: 0 | G168: 0 | H168: 0 | I168: 0 | J168: 0 | K168: 0 | L168: 0 | M168: 0
A169: INGEGNERE | B169: P00IG0-5 | D169: 0 | E169: 0 | F169: 0 | G169: 0 | H169: 0 | I169: 0 | J169: 0 | K169: 0 | L169: 0 | M169: 0
A170: ARCHITETTO | B170: P00AH0-5 | D170: 0 | E170: 0 | F170: 0 | G170: 0 | H170: 0 | I170: 0 | J170: 0 | K170: 0 | L170: 0 | M170: 0
A171: GEOLOGO | B171: P00GE0-5 | D171: 0 | E171: 0 | F171: 0 | G171: 0 | H171: 0 | I171: 0 | J171: 0 | K171: 0 | L171: 0 | M171: 0
A172: ASSISTENTE RELIGIOSO | B172: P00AR0-5 | D172: 0 | E172: 0 | F172: 0 | G172: 0 | H172: 0 | I172: 0 | J172: 0 | K172: 0 | L172: 0 | M172: 0
A173: TIPOLOGIA ATIPICA RUOLO PROFESSIONALE | B173: R99AT0-5 | D173: 0 | E173: 0 | F173: 0 | G173: 0 | H173: 0 | I173: 0 | J173: 0 | K173: 0 | L173: 0 | M173: 0
A174: ANALISTA | B174: T00AN0-5 | D174: 0 | E174: 0 | F174: 0 | G174: 0 | H174: 0 | I174: 0 | J174: 0 | K174: 0 | L174: 0 | M174: 0
A175: STATISTICO | B175: T00ST0-5 | D175: 0 | E175: 0 | F175: 0 | G175: 0 | H175: 0 | I175: 0 | J175: 0 | K175: 0 | L175: 0 | M175: 0
A176: SOCIOLOGO | B176: T00SO0-5 | D176: 0 | E176: 0 | F176: 0 | G176: 0 | H176: 0 | I176: 0 | J176: 0 | K176: 0 | L176: 0 | M176: 0
A177: ASSISTENTE SOCIALE | B177: T00AS0-5 | D177: 0 | E177: 0 | F177: 0 | G177: 0 | H177: 0 | I177: 0 | J177: 0 | K177: 0 | L177: 0 | M177: 0
A178: COLLABORATORE TECNICO - PROFESSIONALE | B178: T00CT0-5 | D178: 0 | E178: 0 | F178: 0 | G178: 0 | H178: 0 | I178: 0 | J178: 0 | K178: 0 | L178: 0 | M178: 0
A179: ASSISTENTE TECNICO | B179: T00AT0-5 | D179: 0 | E179: 0 | F179: 0 | G179: 0 | H179: 0 | I179: 0 | J179: 0 | K179: 0 | L179: 0 | M179: 0
A180: PROGRAMMATORE | B180: T00PS0-5 | D180: 0 | E180: 0 | F180: 0 | G180: 0 | H180: 0 | I180: 0 | J180: 0 | K180: 0 | L180: 0 | M180: 0
A181: OPERATORE TECNICO | B181: T00OT0-5 | D181: 0 | E181: 0 | F181: 0 | G181: 0 | H181: 0 | I181: 0 | J181: 0 | K181: 0 | L181: 0 | M181: 0
A182: OPERATORE TECNICO ADDETTO ALL' ASSISTENZA | B182: T00OA0-5 | D182: 0 | E182: 0 | F182: 0 | G182: 0 | H182: 0 | I182: 0 | J182: 0 | K182: 0 | L182: 0 | M182: 0
A183: AUSILIARIO SPECIALIZZATO | B183: T00AU0-5 | D183: 0 | E183: 0 | F183: 0 | G183: 0 | H183: 0 | I183: 0 | J183: 0 | K183: 0 | L183: 0 | M183: 0
A184: TIPOLOGIA ATIPICA RUOLO TECNICO | B184: T99AT0-5 | D184: 0 | E184: 0 | F184: 0 | G184: 0 | H184: 0 | I184: 0 | J184: 0 | K184: 0 | L184: 0 | M184: 0
A185: DIRIGENTE AMMINISTRATIVO | B185: A00DA0-5 | D185: 0 | E185: 0 | F185: 0 | G185: 0 | H185: 0 | I185: 0 | J185: 0 | K185: 0 | L185: 0 | M185: 0
A186: COLLABORATORE AMMINISTRATIVO - PROFESSIONALE | B186: A00CO0-5 | D186: 0 | E186: 0 | F186: 0 | G186: 0 | H186: 0 | I186: 0 | J186: 0 | K186: 0 | L186: 0 | M186: 0
A187: ASSISTENTE AMMINISTRATIVO | B187: A00AA0-5 | D187: 0 | E187: 0 | F187: 0 | G187: 0 | H187: 0 | I187: 0 | J187: 0 | K187: 0 | L187: 0 | M187: 0
A188: COADIUTORE AMMINISTRATIVO | B188: A00CA0-5 | D188: 0 | E188: 0 | F188: 0 | G188: 0 | H188: 0 | I188: 0 | J188: 0 | K188: 0 | L188: 0 | M188: 0
A189: COMMESSO | B189: A00CM0-5 | D189: 0 | E189: 0 | F189: 0 | G189: 0 | H189: 0 | I189: 0 | J189: 0 | K189: 0 | L189: 0 | M189: 0
A190: TIPOLOGIA ATIPICA RUOLO AMMINISTRATIVO | B190: A99AT0-5 | D190: 0 | E190: 0 | F190: 0 | G190: 0 | H190: 0 | I190: 0 | J190: 0 | K190: 0 | L190: 0 | M190: 0
A191: ALTRO PERSONALE | B191: R99RP0-5 | D191: 0 | E191: 0 | F191: 0 | G191: 0 | H191: 0 | I191: 0 | J191: 0 | K191: 0 | L191: 0 | M191: 0
A192: MEDICO | B192: S00MD0-6 | D192: 0 | E192: 0 | F192: 0 | G192: 0 | H192: 0 | I192: 0 | J192: 0 | K192: 0 | L192: 0 | M192: 0
A193: VETERINARIO | B193: S00VE0-6 | D193: 0 | E193: 0 | F193: 0 | G193: 0 | H193: 0 | I193: 0 | J193: 0 | K193: 0 | L193: 0 | M193: 0
A194: ODONTOIATRA | B194: S00OD0-6 | D194: 0 | E194: 0 | F194: 0 | G194: 0 | H194: 0 | I194: 0 | J194: 0 | K194: 0 | L194: 0 | M194: 0
A195: FARMACISTA | B195: S00FM0-6 | D195: 0 | E195: 0 | F195: 0 | G195: 0 | H195: 0 | I195: 0 | J195: 0 | K195: 0 | L195: 0 | M195: 0
A196: BIOLOGO | B196: S00BI0-6 | D196: 0 | E196: 0 | F196: 0 | G196: 0 | H196: 0 | I196: 0 | J196: 0 | K196: 0 | L196: 0 | M196: 0
A197: CHIMICO | B197: S00CH0-6 | D197: 0 | E197: 0 | F197: 0 | G197: 0 | H197: 0 | I197: 0 | J197: 0 | K197: 0 | L197: 0 | M197: 0
A198: FISICO | B198: S00FI0-6 | D198: 0 | E198: 0 | F198: 0 | G198: 0 | H198: 0 | I198: 0 | J198: 0 | K198: 0 | L198: 0 | M198: 0
A199: PSICOLOGO | B199: S00PS0-6 | D199: 0 | E199: 0 | F199: 0 | G199: 0 | H199: 0 | I199: 0 | J199: 0 | K199: 0 | L199: 0 | M199: 0
A200: DIRIGENTE DELLE PROFESSIONI SANITARIE | B200: S00DP0-6 | D200: 0 | E200: 0 | F200: 0 | G200: 0 | H200: 0 | I200: 0 | J200: 0 | K200: 0 | L200: 0 | M200: 0
... 143 more rows

Sheet 1C
A1: ='t1'!A1 -> SERVIZIO SANITARIO NAZIONALE - anno 2022 | F1: =IF(STRUTTURE!B2=0,"",STRUTTURE!B2) ->  | G1: =IF(STRUTTURE!B3=0,"",STRUTTURE!B3) -> 030010 | H1: =IF(STRUTTURE!B4=0,"",STRUTTURE!B4) -> 030012 | I1: =IF(STRUTTURE!B5=0,"",STRUTTURE!B5) -> 030282 | J1: =IF(STRUTTURE!B6=0,"",STRUTTURE!B6) -> 030901 | K1: =IF(STRUTTURE!B7=0,"",STRUTTURE!B7) ->  | L1: =IF(STRUTTURE!B8=0,"",STRUTTURE!B8) ->  | M1: =IF(STRUTTURE!B9=0,"",STRUTTURE!B9) ->  | N1: =IF(STRUTTURE!B10=0,"",STRUTTURE!B10) ->  | O1: =IF(STRUTTURE!B11=0,"",STRUTTURE!B11) ->  | P1: =IF(STRUTTURE!B12=0,"",STRUTTURE!B12) ->  | Q1: =IF(STRUTTURE!B13=0,"",STRUTTURE!B13) -> 
A2: STRUTTURA RILEVATA | J2: =IF(COUNTIF(S13:S56,"ERRORE")=0,"","ATTENZIONE! Il numero delle unità di personale 'comandato ad altri Enti', per ciascuna tipologia di personale, non può essere superiore al 'Personale al 31/12' ") -> 
A3: STRUTTURA DI RICOVERO USL/AZ.OSP. ANNO
A7: TAB.1C - PERSONALE DELLE STRUTTURE DI RICOVERO PUBBLICHE PER TIPOLOGIA DI PERSONALE
A8: TIPOLOGIA | B8: CODICE | D8: STRUTTURA | E8: TEMPO INDETERMINATO | I8: TEMPO DETERMINATO | M8: COM. DA | O8: COM. AD | Q8: PERSONALE
E9: TEMPO PIENO | G9: TEMPO PARZ. | I9: TEMPO PIENO | K9: TEMPO PARZ. | M9: ALTRI ENTI | O9: ALTRI ENTI | Q9: ="AL 31/12/"&'t1'!L1 -> AL 31/12/2022
E10: Uomini | F10: Donne | G10: Uomini | H10: Donne | I10: Uomini | J10: Donne | K10: Uomini | L10: Donne | M10: Uomini | N10: Donne | O10: Uomini | P10: Donne | Q10: Uomini | R10: Donne
A11: RUOLO SANITARIO(*)
E12: 0 | F12: 0 | G12: 0 | H12: 0 | I12: 0 | J12: 0 | K12: 0 | L12: 0 | M12: 0 | N12: 0 | O12: 0 | P12: 0 | Q12: 0 | R12: 0
A13: MEDICO | B13: S00MD0 | C13: 1 | D13: 030010 | E13: 35 | F13: 39 | G13: 0 | H13: 0 | I13: 0 | J13: 0 | K13: 1 | L13: 1 | M13: 0 | N13: 0 | O13: 0 | P13: 0 | Q13: =E13+G13 -> 35 | R13: =F13+H13 -> 39 | S13: =IF(O13>Q13,"ERRORE",IF(P13>R13,"ERRORE","")) -> 
A14: ODONTOIATRA | B14: S00OD0 | C14: 1 | D14: =CONCATENATE($D$13) -> 030010 | E14: 0 | F14: 0 | G14: 0 | H14: 0 | I14: 0 | J14: 0 | K14: 0 | L14: 0 | M14: 0 | N14: 0 | O14: 0 | P14: 0 | Q14: =E14+G14 -> 0 | R14: 0
A15: FARMACISTA | B15: S00FM0 | C15: 1 | D15: =CONCATENATE($D$13) -> 030010 | E15: 0 | F15: 0 | G15: 0 | H15: 0 | I15: 0 | J15: 0 | K15: 0 | L15: 0 | M15: 0 | N15: 0 | O15: 0 | P15: 0 | Q15: 0 | R15: 0
A16: BIOLOGO | B16: S00BI0 | C16: 1 | D16: 030010 | E16: 0 | F16: 0 | G16: 0 | H16: 0 | I16: 0 | J16: 0 | K16: 0 | L16: 0 | M16: 0 | N16: 0 | O16: 0 | P16: 0 | Q16: =E16+G16 -> 0 | R16: 0
A17: CHIMICO | B17: S00CH0 | C17: 1 | D17: 030010 | E17: 0 | F17: 0 | G17: 0 | H17: 0 | I17: 0 | J17: 0 | K17: 0 | L17: 0 | M17: 0 | N17: 0 | O17: 0 | P17: 0 | Q17: 0 | R17: 0
A18: FISICO | B18: S00FI0 | C18: 1 | D18: 030010 | E18: 0 | F18: 0 | G18: 0 | H18: 0 | I18: 0 | J18: 0 | K18: 0 | L18: 0 | M18: 0 | N18: 0 | O18: 0 | P18: 0 | Q18: 0 | R18: 0
A19: PSICOLOGO | B19: S00PS0 | C19: 1 | D19: 030010 | E19: 0 | F19: 0 | G19: 0 | H19: 0 | I19: 0 | J19: 0 | K19: 0 | L19: 0 | M19: 0 | N19: 0 | O19: 0 | P19: 0 | Q19: 0 | R19: 0
A20: DIRIGENTE DELLE PROFESSIONI SANITARIE | B20: S00DP0 | C20: 1 | D20: 030010 | E20: 0 | F20: 0 | G20: 0 | H20: 0 | I20: 0 | J20: 0 | K20: 0 | L20: 0 | M20: 0 | N20: 0 | O20: 0 | P20: 0 | Q20: 0 | R20: 0
A21: PERS.INFERMIERISTICO | B21: S00I10 | C21: 1 | D21: 030010 | E21: 30 | F21: 161 | G21: 0 | H21: 52 | I21: 0 | J21: 0 | K21: 0 | L21: 0 | M21: 0 | N21: 0 | O21: 0 | P21: 0 | Q21: 30 | R21: 213
A22: PERS.TECNICO SANITARIO | B22: S00T10 | C22: 1 | D22: 030010 | E22: 7 | F22: 12 | G22: 0 | H22: 3 | I22: 0 | J22: 1 | K22: 0 | L22: 0 | M22: 0 | N22: 0 | O22: 0 | P22: 0 | Q22: 7 | R22: 15
A23: PERS. DI VIGILANZA ED ISPEZIONE | B23: S00V10 | C23: 1 | D23: 030010 | E23: 0 | F23: 0 | G23: 0 | H23: 0 | I23: 0 | J23: 0 | K23: 0 | L23: 0 | M23: 0 | N23: 0 | O23: 0 | P23: 0 | Q23: 0 | R23: 0
A24: PERS. DELLA RIABILITAZIONE | B24: S00R10 | C24: 1 | D24: 030010 | E24: 2 | F24: 7 | G24: 0 | H24: 3 | I24: 0 | J24: 0 | K24: 0 | L24: 0 | M24: 0 | N24: 0 | O24: 0 | P24: 0 | Q24: 2 | R24: 10
A25: TIPOLOGIA ATIPICA DEL RUOLO SANITARIO | B25: S99AT0 | C25: 1 | D25: 030010 | E25: 0 | F25: 0 | G25: 0 | H25: 0 | I25: 0 | J25: 0 | K25: 0 | L25: 0 | M25: 0 | N25: 0 | O25: 0 | P25: 0 | Q25: 0 | R25: 0
A26: RUOLO PROFESSIONALE | E26: =IF(ISERROR(VLOOKUP(CONCATENATE($B26,"-",$C26),IN_1C!$B$2:$T$3018,3,FALSE))=TRUE,"",VLOOKUP(CONCATENATE($B26,"-",$C26),IN_1C!$B$2:$T$3018,3,FALSE)) -> 
A27: AVVOCATO /PROCURATORE LEGALE | B27: P00AV0 | C27: 1 | D27: 030010 | E27: 0 | F27: 0 | G27: 0 | H27: 0 | I27: 0 | J27: 0 | K27: 0 | L27: 0 | M27: 0 | N27: 0 | O27: 0 | P27: 0 | Q27: =E27+G27 -> 0 | R27: 0 | S27: =IF(O27>Q27,"ERRORE",IF(P27>R27,"ERRORE","")) -> 
A28: INGEGNERE | B28: P00IG0 | C28: 1 | D28: 030010 | E28: 0 | F28: 0 | G28: 0 | H28: 0 | I28: 0 | J28: 0 | K28: 0 | L28: 0 | M28: 0 | N28: 0 | O28: 0 | P28: 0 | Q28: 0 | R28: 0
A29: ARCHITETTO | B29: P00AH0 | C29: 1 | D29: 030010 | E29: 0 | F29: 0 | G29: 0 | H29: 0 | I29: 0 | J29: 0 | K29: 0 | L29: 0 | M29: 0 | N29: 0 | O29: 0 | P29: 0 | Q29: 0 | R29: 0
A30: GEOLOGO | B30: P00GE0 | C30: 1 | D30: 030010 | E30: 0 | F30: 0 | G30: 0 | H30: 0 | I30: 0 | J30: 0 | K30: 0 | L30: 0 | M30: 0 | N30: 0 | O30: 0 | P30: 0 | Q30: 0 | R30: 0
A31: ASSISTENTE RELIGIOSO | B31: P00AR0 | C31: 1 | D31: 030010 | E31: 0 | F31: 0 | G31: 0 | H31: 0 | I31: 0 | J31: 0 | K31: 0 | L31: 0 | M31: 0 | N31: 0 | O31: 0 | P31: 0 | Q31: 0 | R31: 0
A32: SPECIALISTA DELLA COMUNICAZIONE ISTITUZIONALE | B32: PSP871 | C32: 1 | D32: 030010 | E32: 0 | F32: 0 | G32: 0 | H32: 0 | I32: 0 | J32: 0 | K32: 0 | L32: 0 | M32: 0 | N32: 0 | O32: 0 | P32: 0 | Q32: =E32+G32 -> 0 | R32: =F32+H32 -> 0
A33: SPECIALISTA NEI RAPPORTI CON I MEDIA, GIORNALISTA PUBBLICO | B33: PSP872 | C33: 1 | D33: 030010 | E33: 0 | F33: 0 | G33: 0 | H33: 0 | I33: 0 | J33: 0 | K33: 0 | L33: 0 | M33: 0 | N33: 0 | O33: 0 | P33: 0 | Q33: =E33+G33 -> 0 | R33: =F33+H33 -> 0
A34: TIPOLOGIA ATIPICA RUOLO PROFESSIONALE | B34: R99AT0 | C34: 1 | D34: 030010 | E34: =IF(ISERROR(VLOOKUP(CONCATENATE($B34,"-",$C34),IN_1C!$B$2:$T$3018,3,FALSE))=TRUE,"",VLOOKUP(CONCATENATE($B34,"-",$C34),IN_1C!$B$2:$T$3018,3,FALSE)) -> 0 | F34: =IF(ISERROR(VLOOKUP(CONCATENATE($B34,"-",$C34),IN_1C!$B$2:$T$3018,4,FALSE))=TRUE,"",VLOOKUP(CONCATENATE($B34,"-",$C34),IN_1C!$B$2:$T$3018,4,FALSE)) -> 0 | G34: =IF(ISERROR(VLOOKUP(CONCATENATE($B34,"-",$C34),IN_1C!$B$2:$T$3018,5,FALSE))=TRUE,"",VLOOKUP(CONCATENATE($B34,"-",$C34),IN_1C!$B$2:$T$3018,5,FALSE)) -> 0 | H34: =IF(ISERROR(VLOOKUP(CONCATENATE($B34,"-",$C34),IN_1C!$B$2:$T$3018,6,FALSE))=TRUE,"",VLOOKUP(CONCATENATE($B34,"-",$C34),IN_1C!$B$2:$T$3018,6,FALSE)) -> 0 | I34: =IF(ISERROR(VLOOKUP(CONCATENATE($B34,"-",$C34),IN_1C!$B$2:$T$3018,7,FALSE))=TRUE,"",VLOOKUP(CONCATENATE($B34,"-",$C34),IN_1C!$B$2:$T$3018,7,FALSE)) -> 0 | J34: =IF(ISERROR(VLOOKUP(CONCATENATE($B34,"-",$C34),IN_1C!$B$2:$T$3018,8,FALSE))=TRUE,"",VLOOKUP(CONCATENATE($B34,"-",$C34),IN_1C!$B$2:$T$3018,8,FALSE)) -> 0 | K34: =IF(ISERROR(VLOOKUP(CONCATENATE($B34,"-",$C34),IN_1C!$B$2:$T$3018,9,FALSE))=TRUE,"",VLOOKUP(CONCATENATE($B34,"-",$C34),IN_1C!$B$2:$T$3018,9,FALSE)) -> 0 | L34: =IF(ISERROR(VLOOKUP(CONCATENATE($B34,"-",$C34),IN_1C!$B$2:$T$3018,10,FALSE))=TRUE,"",VLOOKUP(CONCATENATE($B34,"-",$C34),IN_1C!$B$2:$T$3018,10,FALSE)) -> 0 | M34: =IF(ISERROR(VLOOKUP(CONCATENATE($B34,"-",$C34),IN_1C!$B$2:$T$3018,11,FALSE))=TRUE,"",VLOOKUP(CONCATENATE($B34,"-",$C34),IN_1C!$B$2:$T$3018,11,FALSE)) -> 0 | N34: =IF(ISERROR(VLOOKUP(CONCATENATE($B34,"-",$C34),IN_1C!$B$2:$T$3018,12,FALSE))=TRUE,"",VLOOKUP(CONCATENATE($B34,"-",$C34),IN_1C!$B$2:$T$3018,12,FALSE)) -> 0 | O34: =IF(ISERROR(VLOOKUP(CONCATENATE($B34,"-",$C34),IN_1C!$B$2:$T$3018,13,FALSE))=TRUE,"",VLOOKUP(CONCATENATE($B34,"-",$C34),IN_1C!$B$2:$T$3018,13,FALSE)) -> 0 | P34: =IF(ISERROR(VLOOKUP(CONCATENATE($B34,"-",$C34),IN_1C!$B$2:$T$3018,14,FALSE))=TRUE,"",VLOOKUP(CONCATENATE($B34,"-",$C34),IN_1C!$B$2:$T$3018,14,FALSE)) -> 0 | Q34: 0 | R34: 0
A35: RUOLO TECNICO | E35: =IF(ISERROR(VLOOKUP(CONCATENATE($B35,"-",$C35),IN_1C!$B$2:$T$3018,3,FALSE))=TRUE,"",VLOOKUP(CONCATENATE($B35,"-",$C35),IN_1C!$B$2:$T$3018,3,FALSE)) ->  | F35: =IF(ISERROR(VLOOKUP(CONCATENATE($B35,"-",$C35),IN_1C!$B$2:$T$3018,4,FALSE))=TRUE,"",VLOOKUP(CONCATENATE($B35,"-",$C35),IN_1C!$B$2:$T$3018,4,FALSE)) ->  | G35: =IF(ISERROR(VLOOKUP(CONCATENATE($B35,"-",$C35),IN_1C!$B$2:$T$3018,5,FALSE))=TRUE,"",VLOOKUP(CONCATENATE($B35,"-",$C35),IN_1C!$B$2:$T$3018,5,FALSE)) ->  | H35: =IF(ISERROR(VLOOKUP(CONCATENATE($B35,"-",$C35),IN_1C!$B$2:$T$3018,6,FALSE))=TRUE,"",VLOOKUP(CONCATENATE($B35,"-",$C35),IN_1C!$B$2:$T$3018,6,FALSE)) ->  | I35: =IF(ISERROR(VLOOKUP(CONCATENATE($B35,"-",$C35),IN_1C!$B$2:$T$3018,7,FALSE))=TRUE,"",VLOOKUP(CONCATENATE($B35,"-",$C35),IN_1C!$B$2:$T$3018,7,FALSE)) ->  | J35: =IF(ISERROR(VLOOKUP(CONCATENATE($B35,"-",$C35),IN_1C!$B$2:$T$3018,8,FALSE))=TRUE,"",VLOOKUP(CONCATENATE($B35,"-",$C35),IN_1C!$B$2:$T$3018,8,FALSE)) ->  | K35: =IF(ISERROR(VLOOKUP(CONCATENATE($B35,"-",$C35),IN_1C!$B$2:$T$3018,9,FALSE))=TRUE,"",VLOOKUP(CONCATENATE($B35,"-",$C35),IN_1C!$B$2:$T$3018,9,FALSE)) ->  | L35: =IF(ISERROR(VLOOKUP(CONCATENATE($B35,"-",$C35),IN_1C!$B$2:$T$3018,10,FALSE))=TRUE,"",VLOOKUP(CONCATENATE($B35,"-",$C35),IN_1C!$B$2:$T$3018,10,FALSE)) ->  | M35: =IF(ISERROR(VLOOKUP(CONCATENATE($B35,"-",$C35),IN_1C!$B$2:$T$3018,11,FALSE))=TRUE,"",VLOOKUP(CONCATENATE($B35,"-",$C35),IN_1C!$B$2:$T$3018,11,FALSE)) ->  | N35: =IF(ISERROR(VLOOKUP(CONCATENATE($B35,"-",$C35),IN_1C!$B$2:$T$3018,12,FALSE))=TRUE,"",VLOOKUP(CONCATENATE($B35,"-",$C35),IN_1C!$B$2:$T$3018,12,FALSE)) ->  | O35: =IF(ISERROR(VLOOKUP(CONCATENATE($B35,"-",$C35),IN_1C!$B$2:$T$3018,13,FALSE))=TRUE,"",VLOOKUP(CONCATENATE($B35,"-",$C35),IN_1C!$B$2:$T$3018,13,FALSE)) ->  | P35: =IF(ISERROR(VLOOKUP(CONCATENATE($B35,"-",$C35),IN_1C!$B$2:$T$3018,14,FALSE))=TRUE,"",VLOOKUP(CONCATENATE($B35,"-",$C35),IN_1C!$B$2:$T$3018,14,FALSE)) -> 
A36: ANALISTA | B36: T00AN0 | C36: 1 | D36: 030010 | E36: 0 | F36: 0 | G36: 0 | H36: 0 | I36: 0 | J36: 0 | K36: 0 | L36: 0 | M36: 0 | N36: 0 | O36: 0 | P36: 0 | Q36: =E36+G36 -> 0 | R36: 0 | S36: =IF(O36>Q36,"ERRORE",IF(P36>R36,"ERRORE","")) -> 
A37: STATISTICO | B37: T00ST0 | C37: 1 | D37: 030010 | E37: 0 | F37: 0 | G37: 0 | H37: 0 | I37: 0 | J37: 0 | K37: 0 | L37: 0 | M37: 0 | N37: 0 | O37: 0 | P37: 0 | Q37: 0 | R37: 0
A38: SOCIOLOGO | B38: T00SO0 | C38: 1 | D38: 030010 | E38: 0 | F38: 0 | G38: 0 | H38: 0 | I38: 0 | J38: 0 | K38: 0 | L38: 0 | M38: 0 | N38: 0 | O38: 0 | P38: 0 | Q38: 0 | R38: 0
A39: ASSISTENTE SOCIALE | B39: T00AS0 | C39: 1 | D39: 030010 | E39: 0 | F39: 0 | G39: 0 | H39: 0 | I39: 0 | J39: 0 | K39: 0 | L39: 0 | M39: 0 | N39: 0 | O39: 0 | P39: 0 | Q39: 0 | R39: 0
A40: COLLABORATORE TECNICO - PROFESSIONALE | B40: T00CT0 | C40: 1 | D40: 030010 | E40: 1 | F40: 0 | G40: 0 | H40: 0 | I40: 0 | J40: 0 | K40: 0 | L40: 0 | M40: 0 | N40: 0 | O40: 0 | P40: 0 | Q40: 1 | R40: 0
A41: ASSISTENTE TECNICO | B41: T00AT0 | C41: 1 | D41: 030010 | E41: 1 | F41: 0 | G41: 0 | H41: 0 | I41: 0 | J41: 0 | K41: 0 | L41: 0 | M41: 0 | N41: 0 | O41: 0 | P41: 0 | Q41: 1 | R41: 0
A42: PROGRAMMATORE | B42: T00PS0 | C42: 1 | D42: 030010 | E42: 0 | F42: 0 | G42: 0 | H42: 0 | I42: 0 | J42: 0 | K42: 0 | L42: 0 | M42: 0 | N42: 0 | O42: 0 | P42: 0 | Q42: 0 | R42: 0
A43: OPERATORE TECNICO | B43: T00OT0 | C43: 1 | D43: 030010 | E43: 10 | F43: 9 | G43: 1 | H43: 0 | I43: 1 | J43: 1 | K43: 0 | L43: 0 | M43: 0 | N43: 0 | O43: 0 | P43: 0 | Q43: 11 | R43: 9
A44: OPERATORE TECNICO ADDETTO ALL' ASSISTENZA | B44: T00OA0 | C44: 1 | D44: 030010 | E44: 6 | F44: 55 | G44: 0 | H44: 7 | I44: 0 | J44: 5 | K44: 0 | L44: 0 | M44: 0 | N44: 0 | O44: 0 | P44: 0 | Q44: 6 | R44: 62
A45: AUSILIARIO SPECIALIZZATO | B45: T00AU0 | C45: 1 | D45: 030010 | E45: 3 | F45: 9 | G45: 0 | H45: 3 | I45: 0 | J45: 0 | K45: 0 | L45: 0 | M45: 0 | N45: 0 | O45: 0 | P45: 0 | Q45: 3 | R45: 12
A46: TIPOLOGIA ATIPICA RUOLO TECNICO | B46: T99AT0 | C46: 1 | D46: 030010 | E46: 0 | F46: 0 | G46: 0 | H46: 0 | I46: 0 | J46: 0 | K46: 0 | L46: 0 | M46: 0 | N46: 0 | O46: 0 | P46: 0 | Q46: 0 | R46: 0
A47: RUOLO AMMINISTRATIVO | E47: =IF(ISERROR(VLOOKUP(CONCATENATE($B47,"-",$C47),IN_1C!$B$2:$T$3018,3,FALSE))=TRUE,"",VLOOKUP(CONCATENATE($B47,"-",$C47),IN_1C!$B$2:$T$3018,3,FALSE)) -> 
A48: DIRIGENTE AMMINISTRATIVO | B48: A00DA0 | C48: 1 | D48: 030010 | E48: 0 | F48: 0 | G48: 0 | H48: 0 | I48: 0 | J48: 0 | K48: 0 | L48: 0 | M48: 0 | N48: 0 | O48: 0 | P48: 0 | Q48: =E48+G48 -> 0 | R48: 0 | S48: =IF(O48>Q48,"ERRORE",IF(P48>R48,"ERRORE","")) -> 
A49: COLLABORATORE AMMINISTRATIVO - PROFESSIONALE | B49: A00CO0 | C49: 1 | D49: 030010 | E49: 0 | F49: 0 | G49: 0 | H49: 1 | I49: 0 | J49: 0 | K49: 0 | L49: 0 | M49: 0 | N49: 0 | O49: 0 | P49: 0 | Q49: 0 | R49: 1
A50: ASSISTENTE AMMINISTRATIVO | B50: A00AA0 | C50: 1 | D50: 030010 | E50: 0 | F50: 4 | G50: 0 | H50: 4 | I50: 0 | J50: 0 | K50: 0 | L50: 0 | M50: 0 | N50: 0 | O50: 0 | P50: 0 | Q50: 0 | R50: 8
A51: COADIUTORE AMMINISTRATIVO | B51: A00CA0 | C51: 1 | D51: 030010 | E51: 0 | F51: 9 | G51: 0 | H51: 5 | I51: 0 | J51: 0 | K51: 0 | L51: 0 | M51: 0 | N51: 0 | O51: 0 | P51: 0 | Q51: 0 | R51: 14
A52: COMMESSO | B52: A00CM0 | C52: 1 | D52: 030010 | E52: 0 | F52: 0 | G52: 0 | H52: 0 | I52: 0 | J52: 0 | K52: 0 | L52: 0 | M52: 0 | N52: 0 | O52: 0 | P52: 0 | Q52: 0 | R52: 0
A53: TIPOLOGIA ATIPICA RUOLO AMMINISTRATIVO | B53: A99AT0 | C53: 1 | D53: 030010 | E53: 0 | F53: 0 | G53: 0 | H53: 0 | I53: 0 | J53: 0 | K53: 0 | L53: 0 | M53: 0 | N53: 0 | O53: 0 | P53: 0 | Q53: 0 | R53: 0
A54: RESTANTE PERSONALE | E54: =IF(ISERROR(VLOOKUP(CONCATENATE($B54,"-",$C54),IN_1C!$B$2:$T$3018,3,FALSE))=TRUE,"",VLOOKUP(CONCATENATE($B54,"-",$C54),IN_1C!$B$2:$T$3018,3,FALSE)) -> 
A55: ALTRO PERSONALE | B55: R99RP0 | C55: 1 | D55: 030010 | E55: 0 | F55: 0 | G55: 0 | H55: 0 | I55: 0 | J55: 0 | K55: 0 | L55: 0 | M55: 0 | N55: 0 | O55: 0 | P55: 0 | Q55: =E55+G55 -> 0 | R55: =F55+H55 -> 0 | S55: =IF(O55>Q55,"ERRORE",IF(P55>R55,"ERRORE","")) -> 
A56: TOTALE | D56: 030010 | E56: =SUM(E13:E25,E27:E34,E36:E46,E48:E53,E55) -> 95 | F56: 305 | G56: 1 | H56: 78 | I56: 1 | J56: 7 | K56: 1 | L56: 1 | M56: 0 | N56: 0 | O56: 0 | P56: 0 | Q56: 96 | R56: 383 | S56: =IF(P56>R56,"ERRORE","") -> 
A57: (*) il personale con qualifica di collaboratore professionale sanitario senior “ds” delle quattro aree professionali (infermieri, tecnici sanitari, personale prevenzione e riabilitazione) va considerato insieme al personale infermieristico S00I10, tecnico sanitario S00T10, vigilanza ed ispezione S00V10, riabilitazione S00R10; il personale con qualifica di dirigente prof. sanit. delle quattro aree professionali (infermieri, tecnici sanitari, personale prevenzione e riabilitazione) va considerato nel personale del dirigente delle professioni sanitarie S00DP0
A59: RUOLO SANITARIO(*)
A60: MEDICO | B60: S00MD0 | C60: 2 | D60: 030012 | E60: 8 | F60: 12 | G60: 0 | H60: 0 | I60: 0 | J60: 0 | K60: 0 | L60: 1 | M60: 0 | N60: 0 | O60: 0 | P60: 0 | Q60: =E60+G60 -> 8 | R60: 12
A61: ODONTOIATRA | B61: S00OD0 | C61: 2 | D61: =CONCATENATE(D$60) -> 030012 | E61: 0 | F61: 0 | G61: 0 | H61: 0 | I61: 0 | J61: 0 | K61: 0 | L61: 0 | M61: 0 | N61: 0 | O61: 0 | P61: 0 | Q61: 0 | R61: 0
A62: FARMACISTA | B62: S00FM0 | C62: 2 | D62: =CONCATENATE(D$60) -> 030012 | E62: 0 | F62: 0 | G62: 0 | H62: 0 | I62: 0 | J62: 0 | K62: 0 | L62: 0 | M62: 0 | N62: 0 | O62: 0 | P62: 0 | Q62: 0 | R62: 0
A63: BIOLOGO | B63: S00BI0 | C63: 2 | D63: 030012 | E63: 0 | F63: 0 | G63: 0 | H63: 0 | I63: 0 | J63: 0 | K63: 0 | L63: 0 | M63: 0 | N63: 0 | O63: 0 | P63: 0 | Q63: 0 | R63: 0
A64: CHIMICO | B64: S00CH0 | C64: 2 | D64: 030012 | E64: 0 | F64: 0 | G64: 0 | H64: 0 | I64: 0 | J64: 0 | K64: 0 | L64: 0 | M64: 0 | N64: 0 | O64: 0 | P64: 0 | Q64: 0 | R64: 0
A65: FISICO | B65: S00FI0 | C65: 2 | D65: 030012 | E65: 0 | F65: 0 | G65: 0 | H65: 0 | I65: 0 | J65: 0 | K65: 0 | L65: 0 | M65: 0 | N65: 0 | O65: 0 | P65: 0 | Q65: 0 | R65: 0
A66: PSICOLOGO | B66: S00PS0 | C66: 2 | D66: 030012 | E66: 0 | F66: 0 | G66: 0 | H66: 0 | I66: 0 | J66: 0 | K66: 0 | L66: 0 | M66: 0 | N66: 0 | O66: 0 | P66: 0 | Q66: 0 | R66: 0
A67: DIRIGENTE DELLE PROFESSIONI SANITARIE | B67: S00DP0 | C67: 2 | D67: 030012 | E67: 0 | F67: 0 | G67: 0 | H67: 0 | I67: 0 | J67: 0 | K67: 0 | L67: 0 | M67: 0 | N67: 0 | O67: 0 | P67: 0 | Q67: 0 | R67: 0
A68: PERS.INFERMIERISTICO | B68: S00I10 | C68: 2 | D68: 030012 | E68: 8 | F68: 47 | G68: 0 | H68: 19 | I68: 0 | J68: 0 | K68: 0 | L68: 0 | M68: 0 | N68: 0 | O68: 0 | P68: 0 | Q68: 8 | R68: 66
A69: PERS.TECNICO SANITARIO | B69: S00T10 | C69: 2 | D69: 030012 | E69: 3 | F69: 5 | G69: 1 | H69: 1 | I69: 1 | J69: 0 | K69: 0 | L69: 0 | M69: 0 | N69: 0 | O69: 0 | P69: 0 | Q69: 4 | R69: 6
A70: PERS. DI VIGILANZA ED ISPEZIONE | B70: S00V10 | C70: 2 | D70: 030012 | E70: 0 | F70: 0 | G70: 0 | H70: 0 | I70: 0 | J70: 0 | K70: 0 | L70: 0 | M70: 0 | N70: 0 | O70: 0 | P70: 0 | Q70: 0 | R70: 0
A71: PERS. DELLA RIABILITAZIONE | B71: S00R10 | C71: 2 | D71: 030012 | E71: 1 | F71: 2 | G71: 0 | H71: 0 | I71: 0 | J71: 0 | K71: 0 | L71: 0 | M71: 0 | N71: 0 | O71: 0 | P71: 0 | Q71: 1 | R71: 2
A72: TIPOLOGIA ATIPICA DEL RUOLO SANITARIO | B72: S99AT0 | C72: 2 | D72: 030012 | E72: 0 | F72: 0 | G72: 0 | H72: 0 | I72: 0 | J72: 0 | K72: 0 | L72: 0 | M72: 0 | N72: 0 | O72: 0 | P72: 0 | Q72: 0 | R72: 0
A73: RUOLO PROFESSIONALE | E73: =IF(ISERROR(VLOOKUP(CONCATENATE($B73,"-",$C73),IN_1C!$B$2:$T$3018,3,FALSE))=TRUE,"",VLOOKUP(CONCATENATE($B73,"-",$C73),IN_1C!$B$2:$T$3018,3,FALSE)) -> 
A74: AVVOCATO /PROCURATORE LEGALE | B74: P00AV0 | C74: 2 | D74: 030012 | E74: 0 | F74: 0 | G74: 0 | H74: 0 | I74: 0 | J74: 0 | K74: 0 | L74: 0 | M74: 0 | N74: 0 | O74: 0 | P74: 0 | Q74: =E74+G74 -> 0 | R74: 0
A75: INGEGNERE | B75: P00IG0 | C75: 2 | D75: 030012 | E75: 0 | F75: 0 | G75: 0 | H75: 0 | I75: 0 | J75: 0 | K75: 0 | L75: 0 | M75: 0 | N75: 0 | O75: 0 | P75: 0 | Q75: 0 | R75: 0
A76: ARCHITETTO | B76: P00AH0 | C76: 2 | D76: 030012 | E76: 0 | F76: 0 | G76: 0 | H76: 0 | I76: 0 | J76: 0 | K76: 0 | L76: 0 | M76: 0 | N76: 0 | O76: 0 | P76: 0 | Q76: 0 | R76: 0
A77: GEOLOGO | B77: P00GE0 | C77: 2 | D77: 030012 | E77: 0 | F77: 0 | G77: 0 | H77: 0 | I77: 0 | J77: 0 | K77: 0 | L77: 0 | M77: 0 | N77: 0 | O77: 0 | P77: 0 | Q77: 0 | R77: 0
A78: ASSISTENTE RELIGIOSO | B78: P00AR0 | C78: 2 | D78: 030012 | E78: 0 | F78: 0 | G78: 0 | H78: 0 | I78: 0 | J78: 0 | K78: 0 | L78: 0 | M78: 0 | N78: 0 | O78: 0 | P78: 0 | Q78: 0 | R78: 0
A79: SPECIALISTA DELLA COMUNICAZIONE ISTITUZIONALE | B79: PSP871 | C79: 2 | D79: 030012 | E79: 0 | F79: 0 | G79: 0 | H79: 0 | I79: 0 | J79: 0 | K79: 0 | L79: 0 | M79: 0 | N79: 0 | O79: 0 | P79: 0 | Q79: 0 | R79: 0
A80: SPECIALISTA NEI RAPPORTI CON I MEDIA, GIORNALISTA PUBBLICO | B80: PSP872 | C80: 2 | D80: 030012 | E80: 0 | F80: 0 | G80: 0 | H80: 0 | I80: 0 | J80: 0 | K80: 0 | L80: 0 | M80: 0 | N80: 0 | O80: 0 | P80: 0 | Q80: 0 | R80: 0
A81: TIPOLOGIA ATIPICA RUOLO PROFESSIONALE | B81: R99AT0 | C81: 2 | D81: 030012 | E81: =IF(ISERROR(VLOOKUP(CONCATENATE($B81,"-",$C81),IN_1C!$B$2:$T$3018,3,FALSE))=TRUE,"",VLOOKUP(CONCATENATE($B81,"-",$C81),IN_1C!$B$2:$T$3018,3,FALSE)) -> 0 | F81: =IF(ISERROR(VLOOKUP(CONCATENATE($B81,"-",$C81),IN_1C!$B$2:$T$3018,4,FALSE))=TRUE,"",VLOOKUP(CONCATENATE($B81,"-",$C81),IN_1C!$B$2:$T$3018,4,FALSE)) -> 0 | G81: =IF(ISERROR(VLOOKUP(CONCATENATE($B81,"-",$C81),IN_1C!$B$2:$T$3018,5,FALSE))=TRUE,"",VLOOKUP(CONCATENATE($B81,"-",$C81),IN_1C!$B$2:$T$3018,5,FALSE)) -> 0 | H81: =IF(ISERROR(VLOOKUP(CONCATENATE($B81,"-",$C81),IN_1C!$B$2:$T$3018,6,FALSE))=TRUE,"",VLOOKUP(CONCATENATE($B81,"-",$C81),IN_1C!$B$2:$T$3018,6,FALSE)) -> 0 | I81: =IF(ISERROR(VLOOKUP(CONCATENATE($B81,"-",$C81),IN_1C!$B$2:$T$3018,7,FALSE))=TRUE,"",VLOOKUP(CONCATENATE($B81,"-",$C81),IN_1C!$B$2:$T$3018,7,FALSE)) -> 0 | J81: =IF(ISERROR(VLOOKUP(CONCATENATE($B81,"-",$C81),IN_1C!$B$2:$T$3018,8,FALSE))=TRUE,"",VLOOKUP(CONCATENATE($B81,"-",$C81),IN_1C!$B$2:$T$3018,8,FALSE)) -> 0 | K81: =IF(ISERROR(VLOOKUP(CONCATENATE($B81,"-",$C81),IN_1C!$B$2:$T$3018,9,FALSE))=TRUE,"",VLOOKUP(CONCATENATE($B81,"-",$C81),IN_1C!$B$2:$T$3018,9,FALSE)) -> 0 | L81: =IF(ISERROR(VLOOKUP(CONCATENATE($B81,"-",$C81),IN_1C!$B$2:$T$3018,10,FALSE))=TRUE,"",VLOOKUP(CONCATENATE($B81,"-",$C81),IN_1C!$B$2:$T$3018,10,FALSE)) -> 0 | M81: =IF(ISERROR(VLOOKUP(CONCATENATE($B81,"-",$C81),IN_1C!$B$2:$T$3018,11,FALSE))=TRUE,"",VLOOKUP(CONCATENATE($B81,"-",$C81),IN_1C!$B$2:$T$3018,11,FALSE)) -> 0 | N81: =IF(ISERROR(VLOOKUP(CONCATENATE($B81,"-",$C81),IN_1C!$B$2:$T$3018,12,FALSE))=TRUE,"",VLOOKUP(CONCATENATE($B81,"-",$C81),IN_1C!$B$2:$T$3018,12,FALSE)) -> 0 | O81: =IF(ISERROR(VLOOKUP(CONCATENATE($B81,"-",$C81),IN_1C!$B$2:$T$3018,13,FALSE))=TRUE,"",VLOOKUP(CONCATENATE($B81,"-",$C81),IN_1C!$B$2:$T$3018,13,FALSE)) -> 0 | P81: =IF(ISERROR(VLOOKUP(CONCATENATE($B81,"-",$C81),IN_1C!$B$2:$T$3018,14,FALSE))=TRUE,"",VLOOKUP(CONCATENATE($B81,"-",$C81),IN_1C!$B$2:$T$3018,14,FALSE)) -> 0 | Q81: 0 | R81: 0
A82: RUOLO TECNICO | E82: =IF(ISERROR(VLOOKUP(CONCATENATE($B82,"-",$C82),IN_1C!$B$2:$T$3018,3,FALSE))=TRUE,"",VLOOKUP(CONCATENATE($B82,"-",$C82),IN_1C!$B$2:$T$3018,3,FALSE)) ->  | F82: =IF(ISERROR(VLOOKUP(CONCATENATE($B82,"-",$C82),IN_1C!$B$2:$T$3018,4,FALSE))=TRUE,"",VLOOKUP(CONCATENATE($B82,"-",$C82),IN_1C!$B$2:$T$3018,4,FALSE)) ->  | G82: =IF(ISERROR(VLOOKUP(CONCATENATE($B82,"-",$C82),IN_1C!$B$2:$T$3018,5,FALSE))=TRUE,"",VLOOKUP(CONCATENATE($B82,"-",$C82),IN_1C!$B$2:$T$3018,5,FALSE)) ->  | H82: =IF(ISERROR(VLOOKUP(CONCATENATE($B82,"-",$C82),IN_1C!$B$2:$T$3018,6,FALSE))=TRUE,"",VLOOKUP(CONCATENATE($B82,"-",$C82),IN_1C!$B$2:$T$3018,6,FALSE)) ->  | I82: =IF(ISERROR(VLOOKUP(CONCATENATE($B82,"-",$C82),IN_1C!$B$2:$T$3018,7,FALSE))=TRUE,"",VLOOKUP(CONCATENATE($B82,"-",$C82),IN_1C!$B$2:$T$3018,7,FALSE)) ->  | J82: =IF(ISERROR(VLOOKUP(CONCATENATE($B82,"-",$C82),IN_1C!$B$2:$T$3018,8,FALSE))=TRUE,"",VLOOKUP(CONCATENATE($B82,"-",$C82),IN_1C!$B$2:$T$3018,8,FALSE)) ->  | K82: =IF(ISERROR(VLOOKUP(CONCATENATE($B82,"-",$C82),IN_1C!$B$2:$T$3018,9,FALSE))=TRUE,"",VLOOKUP(CONCATENATE($B82,"-",$C82),IN_1C!$B$2:$T$3018,9,FALSE)) ->  | L82: =IF(ISERROR(VLOOKUP(CONCATENATE($B82,"-",$C82),IN_1C!$B$2:$T$3018,10,FALSE))=TRUE,"",VLOOKUP(CONCATENATE($B82,"-",$C82),IN_1C!$B$2:$T$3018,10,FALSE)) ->  | M82: =IF(ISERROR(VLOOKUP(CONCATENATE($B82,"-",$C82),IN_1C!$B$2:$T$3018,11,FALSE))=TRUE,"",VLOOKUP(CONCATENATE($B82,"-",$C82),IN_1C!$B$2:$T$3018,11,FALSE)) ->  | N82: =IF(ISERROR(VLOOKUP(CONCATENATE($B82,"-",$C82),IN_1C!$B$2:$T$3018,12,FALSE))=TRUE,"",VLOOKUP(CONCATENATE($B82,"-",$C82),IN_1C!$B$2:$T$3018,12,FALSE)) ->  | O82: =IF(ISERROR(VLOOKUP(CONCATENATE($B82,"-",$C82),IN_1C!$B$2:$T$3018,13,FALSE))=TRUE,"",VLOOKUP(CONCATENATE($B82,"-",$C82),IN_1C!$B$2:$T$3018,13,FALSE)) ->  | P82: =IF(ISERROR(VLOOKUP(CONCATENATE($B82,"-",$C82),IN_1C!$B$2:$T$3018,14,FALSE))=TRUE,"",VLOOKUP(CONCATENATE($B82,"-",$C82),IN_1C!$B$2:$T$3018,14,FALSE)) -> 
A83: ANALISTA | B83: T00AN0 | C83: 2 | D83: 030012 | E83: 0 | F83: 0 | G83: 0 | H83: 0 | I83: 0 | J83: 0 | K83: 0 | L83: 0 | M83: 0 | N83: 0 | O83: 0 | P83: 0 | Q83: =E83+G83 -> 0 | R83: 0
A84: STATISTICO | B84: T00ST0 | C84: 2 | D84: 030012 | E84: 0 | F84: 0 | G84: 0 | H84: 0 | I84: 0 | J84: 0 | K84: 0 | L84: 0 | M84: 0 | N84: 0 | O84: 0 | P84: 0 | Q84: 0 | R84: 0
A85: SOCIOLOGO | B85: T00SO0 | C85: 2 | D85: 030012 | E85: 0 | F85: 0 | G85: 0 | H85: 0 | I85: 0 | J85: 0 | K85: 0 | L85: 0 | M85: 0 | N85: 0 | O85: 0 | P85: 0 | Q85: 0 | R85: 0
A86: ASSISTENTE SOCIALE | B86: T00AS0 | C86: 2 | D86: 030012 | E86: 0 | F86: 0 | G86: 0 | H86: 0 | I86: 0 | J86: 0 | K86: 0 | L86: 0 | M86: 0 | N86: 0 | O86: 0 | P86: 0 | Q86: 0 | R86: 0
A87: COLLABORATORE TECNICO - PROFESSIONALE | B87: T00CT0 | C87: 2 | D87: 030012 | E87: 0 | F87: 0 | G87: 0 | H87: 0 | I87: 0 | J87: 0 | K87: 0 | L87: 0 | M87: 0 | N87: 0 | O87: 0 | P87: 0 | Q87: 0 | R87: 0
A88: ASSISTENTE TECNICO | B88: T00AT0 | C88: 2 | D88: 030012 | E88: 0 | F88: 0 | G88: 0 | H88: 0 | I88: 0 | J88: 0 | K88: 0 | L88: 0 | M88: 0 | N88: 0 | O88: 0 | P88: 0 | Q88: 0 | R88: 0
A89: PROGRAMMATORE | B89: T00PS0 | C89: 2 | D89: 030012 | E89: 0 | F89: 0 | G89: 0 | H89: 0 | I89: 0 | J89: 0 | K89: 0 | L89: 0 | M89: 0 | N89: 0 | O89: 0 | P89: 0 | Q89: 0 | R89: 0
A90: OPERATORE TECNICO | B90: T00OT0 | C90: 2 | D90: 030012 | E90: 7 | F90: 1 | G90: 0 | H90: 0 | I90: 1 | J90: 0 | K90: 0 | L90: 0 | M90: 0 | N90: 0 | O90: 0 | P90: 0 | Q90: 7 | R90: 1
A91: OPERATORE TECNICO ADDETTO ALL' ASSISTENZA | B91: T00OA0 | C91: 2 | D91: 030012 | E91: 2 | F91: 22 | G91: 0 | H91: 2 | I91: 0 | J91: 1 | K91: 0 | L91: 0 | M91: 0 | N91: 0 | O91: 0 | P91: 0 | Q91: 2 | R91: 24
A92: AUSILIARIO SPECIALIZZATO | B92: T00AU0 | C92: 2 | D92: 030012 | E92: 1 | F92: 3 | G92: 1 | H92: 1 | I92: 0 | J92: 0 | K92: 0 | L92: 0 | M92: 0 | N92: 0 | O92: 0 | P92: 0 | Q92: 2 | R92: 4
A93: TIPOLOGIA ATIPICA RUOLO TECNICO | B93: T99AT0 | C93: 2 | D93: 030012 | E93: 0 | F93: 0 | G93: 0 | H93: 0 | I93: 0 | J93: 0 | K93: 0 | L93: 0 | M93: 0 | N93: 0 | O93: 0 | P93: 0 | Q93: 0 | R93: 0
A94: RUOLO AMMINISTRATIVO | E94: =IF(ISERROR(VLOOKUP(CONCATENATE($B94,"-",$C94),IN_1C!$B$2:$T$3018,3,FALSE))=TRUE,"",VLOOKUP(CONCATENATE($B94,"-",$C94),IN_1C!$B$2:$T$3018,3,FALSE)) -> 
A95: DIRIGENTE AMMINISTRATIVO | B95: A00DA0 | C95: 2 | D95: 030012 | E95: 0 | F95: 0 | G95: 0 | H95: 0 | I95: 0 | J95: 0 | K95: 0 | L95: 0 | M95: 0 | N95: 0 | O95: 0 | P95: 0 | Q95: =E95+G95 -> 0 | R95: 0
A96: COLLABORATORE AMMINISTRATIVO - PROFESSIONALE | B96: A00CO0 | C96: 2 | D96: 030012 | E96: 0 | F96: 0 | G96: 0 | H96: 0 | I96: 0 | J96: 0 | K96: 0 | L96: 0 | M96: 0 | N96: 0 | O96: 0 | P96: 0 | Q96: 0 | R96: 0
A97: ASSISTENTE AMMINISTRATIVO | B97: A00AA0 | C97: 2 | D97: 030012 | E97: 0 | F97: 5 | G97: 0 | H97: 2 | I97: 0 | J97: 0 | K97: 0 | L97: 0 | M97: 0 | N97: 0 | O97: 0 | P97: 0 | Q97: 0 | R97: 7
A98: COADIUTORE AMMINISTRATIVO | B98: A00CA0 | C98: 2 | D98: 030012 | E98: 1 | F98: 3 | G98: 0 | H98: 1 | I98: 0 | J98: 0 | K98: 0 | L98: 0 | M98: 0 | N98: 0 | O98: 0 | P98: 0 | Q98: 1 | R98: 4
A99: COMMESSO | B99: A00CM0 | C99: 2 | D99: 030012 | E99: 0 | F99: 0 | G99: 0 | H99: 0 | I99: 0 | J99: 0 | K99: 0 | L99: 0 | M99: 0 | N99: 0 | O99: 0 | P99: 0 | Q99: 0 | R99: 0
A100: TIPOLOGIA ATIPICA RUOLO AMMINISTRATIVO | B100: A99AT0 | C100: 2 | D100: 030012 | E100: 0 | F100: 0 | G100: 0 | H100: 0 | I100: 0 | J100: 0 | K100: 0 | L100: 0 | M100: 0 | N100: 0 | O100: 0 | P100: 0 | Q100: 0 | R100: 0
A101: RESTANTE PERSONALE | E101: =IF(ISERROR(VLOOKUP(CONCATENATE($B101,"-",$C101),IN_1C!$B$2:$T$3018,3,FALSE))=TRUE,"",VLOOKUP(CONCATENATE($B101,"-",$C101),IN_1C!$B$2:$T$3018,3,FALSE)) -> 
A102: ALTRO PERSONALE | B102: R99RP0 | C102: 2 | D102: 030012 | E102: 0 | F102: 0 | G102: 0 | H102: 0 | I102: 0 | J102: 0 | K102: 0 | L102: 0 | M102: 0 | N102: 0 | O102: 0 | P102: 0 | Q102: =E102+G102 -> 0 | R102: =F102+H102 -> 0
A103: TOTALE | D103: =CONCATENATE(D$60) -> 030012 | E103: =SUM(E60:E72,E74:E81,E83:E93,E95:E100,E102) -> 31 | F103: 100 | G103: 2 | H103: 26 | I103: 2 | J103: 1 | K103: 0 | L103: 1 | M103: 0 | N103: 0 | O103: 0 | P103: 0 | Q103: 33 | R103: 126
A104: (*) il personale con qualifica di collaboratore professionale sanitario senior “ds” delle quattro aree professionali (infermieri, tecnici sanitari, personale prevenzione e riabilitazione) va considerato insieme al personale infermieristico S00I10, tecnico sanitario S00T10, vigilanza ed ispezione S00V10, riabilitazione S00R10; il personale con qualifica di dirigente prof. sanit. delle quattro aree professionali (infermieri, tecnici sanitari, personale prevenzione e riabilitazione) va considerato nel personale del dirigente delle professioni sanitarie S00DP0
A106: RUOLO SANITARIO(*)
A107: MEDICO | B107: S00MD0 | C107: 3 | D107: 030282 | E107: 44 | F107: 44 | G107: 0 | H107: 1 | I107: 0 | J107: 0 | K107: 1 | L107: 5 | M107: 0 | N107: 0 | O107: 0 | P107: 0 | Q107: =E107+G107 -> 44 | R107: 45
A108: ODONTOIATRA | B108: S00OD0 | C108: 3 | D108: =CONCATENATE(D$107) -> 030282 | E108: 0 | F108: 0 | G108: 0 | H108: 0 | I108: 0 | J108: 0 | K108: 0 | L108: 0 | M108: 0 | N108: 0 | O108: 0 | P108: 0 | Q108: 0 | R108: 0
A109: FARMACISTA | B109: S00FM0 | C109: 3 | D109: =CONCATENATE(D$107) -> 030282 | E109: 0 | F109: 1 | G109: 0 | H109: 0 | I109: 0 | J109: 0 | K109: 0 | L109: 0 | M109: 0 | N109: 0 | O109: 0 | P109: 0 | Q109: 0 | R109: 1
A110: BIOLOGO | B110: S00BI0 | C110: 3 | D110: 030282 | E110: 0 | F110: 0 | G110: 0 | H110: 0 | I110: 0 | J110: 0 | K110: 0 | L110: 0 | M110: 0 | N110: 0 | O110: 0 | P110: 0 | Q110: 0 | R110: 0
A111: CHIMICO | B111: S00CH0 | C111: 3 | D111: 030282 | E111: 0 | F111: 0 | G111: 0 | H111: 0 | I111: 0 | J111: 0 | K111: 0 | L111: 0 | M111: 0 | N111: 0 | O111: 0 | P111: 0 | Q111: 0 | R111: 0
A112: FISICO | B112: S00FI0 | C112: 3 | D112: 030282 | E112: 0 | F112: 0 | G112: 0 | H112: 0 | I112: 0 | J112: 0 | K112: 0 | L112: 0 | M112: 0 | N112: 0 | O112: 0 | P112: 0 | Q112: 0 | R112: 0
A113: PSICOLOGO | B113: S00PS0 | C113: 3 | D113: 030282 | E113: 0 | F113: 4 | G113: 0 | H113: 0 | I113: 0 | J113: 0 | K113: 0 | L113: 0 | M113: 0 | N113: 0 | O113: 0 | P113: 0 | Q113: 0 | R113: 4
A114: DIRIGENTE DELLE PROFESSIONI SANITARIE | B114: S00DP0 | C114: 3 | D114: 030282 | E114: 0 | F114: 0 | G114: 0 | H114: 0 | I114: 0 | J114: 0 | K114: 0 | L114: 0 | M114: 0 | N114: 0 | O114: 0 | P114: 0 | Q114: 0 | R114: 0
A115: PERS.INFERMIERISTICO | B115: S00I10 | C115: 3 | D115: 030282 | E115: 48 | F115: 200 | G115: 0 | H115: 86 | I115: 0 | J115: 0 | K115: 0 | L115: 0 | M115: 0 | N115: 0 | O115: 0 | P115: 0 | Q115: 48 | R115: 286
A116: PERS.TECNICO SANITARIO | B116: S00T10 | C116: 3 | D116: 030282 | E116: 11 | F116: 22 | G116: 1 | H116: 1 | I116: 0 | J116: 0 | K116: 0 | L116: 0 | M116: 0 | N116: 0 | O116: 0 | P116: 0 | Q116: 12 | R116: 23
A117: PERS. DI VIGILANZA ED ISPEZIONE | B117: S00V10 | C117: 3 | D117: 030282 | E117: 0 | F117: 0 | G117: 0 | H117: 0 | I117: 0 | J117: 0 | K117: 0 | L117: 0 | M117: 0 | N117: 0 | O117: 0 | P117: 0 | Q117: 0 | R117: 0
A118: PERS. DELLA RIABILITAZIONE | B118: S00R10 | C118: 3 | D118: 030282 | E118: 2 | F118: 27 | G118: 0 | H118: 4 | I118: 0 | J118: 1 | K118: 0 | L118: 0 | M118: 0 | N118: 0 | O118: 0 | P118: 0 | Q118: 2 | R118: 31
A119: TIPOLOGIA ATIPICA DEL RUOLO SANITARIO | B119: S99AT0 | C119: 3 | D119: 030282 | E119: 0 | F119: 0 | G119: 0 | H119: 0 | I119: 0 | J119: 0 | K119: 0 | L119: 0 | M119: 0 | N119: 0 | O119: 0 | P119: 0 | Q119: 0 | R119: 0
A120: RUOLO PROFESSIONALE | E120: =IF(ISERROR(VLOOKUP(CONCATENATE($B120,"-",$C120),IN_1C!$B$2:$T$3018,3,FALSE))=TRUE,"",VLOOKUP(CONCATENATE($B120,"-",$C120),IN_1C!$B$2:$T$3018,3,FALSE)) -> 
A121: AVVOCATO /PROCURATORE LEGALE | B121: P00AV0 | C121: 3 | D121: =CONCATENATE(D$107) -> 030282 | E121: 0 | F121: 0 | G121: 0 | H121: 0 | I121: 0 | J121: 0 | K121: 0 | L121: 0 | M121: 0 | N121: 0 | O121: 0 | P121: 0 | Q121: =E121+G121 -> 0 | R121: 0
A122: INGEGNERE | B122: P00IG0 | C122: 3 | D122: 030282 | E122: 0 | F122: 0 | G122: 0 | H122: 0 | I122: 0 | J122: 0 | K122: 0 | L122: 0 | M122: 0 | N122: 0 | O122: 0 | P122: 0 | Q122: 0 | R122: 0
A123: ARCHITETTO | B123: P00AH0 | C123: 3 | D123: 030282 | E123: 0 | F123: 0 | G123: 0 | H123: 0 | I123: 0 | J123: 0 | K123: 0 | L123: 0 | M123: 0 | N123: 0 | O123: 0 | P123: 0 | Q123: 0 | R123: 0
A124: GEOLOGO | B124: P00GE0 | C124: 3 | D124: 030282 | E124: 0 | F124: 0 | G124: 0 | H124: 0 | I124: 0 | J124: 0 | K124: 0 | L124: 0 | M124: 0 | N124: 0 | O124: 0 | P124: 0 | Q124: 0 | R124: 0
A125: ASSISTENTE RELIGIOSO | B125: P00AR0 | C125: 3 | D125: 030282 | E125: 0 | F125: 0 | G125: 0 | H125: 0 | I125: 0 | J125: 0 | K125: 0 | L125: 0 | M125: 0 | N125: 0 | O125: 0 | P125: 0 | Q125: 0 | R125: 0
A126: SPECIALISTA DELLA COMUNICAZIONE ISTITUZIONALE | B126: PSP871 | C126: 3 | D126: 030282 | E126: 0 | F126: 0 | G126: 0 | H126: 0 | I126: 0 | J126: 0 | K126: 0 | L126: 0 | M126: 0 | N126: 0 | O126: 0 | P126: 0 | Q126: 0 | R126: 0
A127: SPECIALISTA NEI RAPPORTI CON I MEDIA, GIORNALISTA PUBBLICO | B127: PSP872 | C127: 3 | D127: 030282 | E127: 0 | F127: 0 | G127: 0 | H127: 0 | I127: 0 | J127: 0 | K127: 0 | L127: 0 | M127: 0 | N127: 0 | O127: 0 | P127: 0 | Q127: 0 | R127: 0
A128: TIPOLOGIA ATIPICA RUOLO PROFESSIONALE | B128: R99AT0 | C128: 3 | D128: 030282 | E128: =IF(ISERROR(VLOOKUP(CONCATENATE($B128,"-",$C128),IN_1C!$B$2:$T$3018,3,FALSE))=TRUE,"",VLOOKUP(CONCATENATE($B128,"-",$C128),IN_1C!$B$2:$T$3018,3,FALSE)) -> 0 | F128: =IF(ISERROR(VLOOKUP(CONCATENATE($B128,"-",$C128),IN_1C!$B$2:$T$3018,4,FALSE))=TRUE,"",VLOOKUP(CONCATENATE($B128,"-",$C128),IN_1C!$B$2:$T$3018,4,FALSE)) -> 0 | G128: =IF(ISERROR(VLOOKUP(CONCATENATE($B128,"-",$C128),IN_1C!$B$2:$T$3018,5,FALSE))=TRUE,"",VLOOKUP(CONCATENATE($B128,"-",$C128),IN_1C!$B$2:$T$3018,5,FALSE)) -> 0 | H128: =IF(ISERROR(VLOOKUP(CONCATENATE($B128,"-",$C128),IN_1C!$B$2:$T$3018,6,FALSE))=TRUE,"",VLOOKUP(CONCATENATE($B128,"-",$C128),IN_1C!$B$2:$T$3018,6,FALSE)) -> 0 | I128: =IF(ISERROR(VLOOKUP(CONCATENATE($B128,"-",$C128),IN_1C!$B$2:$T$3018,7,FALSE))=TRUE,"",VLOOKUP(CONCATENATE($B128,"-",$C128),IN_1C!$B$2:$T$3018,7,FALSE)) -> 0 | J128: =IF(ISERROR(VLOOKUP(CONCATENATE($B128,"-",$C128),IN_1C!$B$2:$T$3018,8,FALSE))=TRUE,"",VLOOKUP(CONCATENATE($B128,"-",$C128),IN_1C!$B$2:$T$3018,8,FALSE)) -> 0 | K128: =IF(ISERROR(VLOOKUP(CONCATENATE($B128,"-",$C128),IN_1C!$B$2:$T$3018,9,FALSE))=TRUE,"",VLOOKUP(CONCATENATE($B128,"-",$C128),IN_1C!$B$2:$T$3018,9,FALSE)) -> 0 | L128: =IF(ISERROR(VLOOKUP(CONCATENATE($B128,"-",$C128),IN_1C!$B$2:$T$3018,10,FALSE))=TRUE,"",VLOOKUP(CONCATENATE($B128,"-",$C128),IN_1C!$B$2:$T$3018,10,FALSE)) -> 0 | M128: =IF(ISERROR(VLOOKUP(CONCATENATE($B128,"-",$C128),IN_1C!$B$2:$T$3018,11,FALSE))=TRUE,"",VLOOKUP(CONCATENATE($B128,"-",$C128),IN_1C!$B$2:$T$3018,11,FALSE)) -> 0 | N128: =IF(ISERROR(VLOOKUP(CONCATENATE($B128,"-",$C128),IN_1C!$B$2:$T$3018,12,FALSE))=TRUE,"",VLOOKUP(CONCATENATE($B128,"-",$C128),IN_1C!$B$2:$T$3018,12,FALSE)) -> 0 | O128: =IF(ISERROR(VLOOKUP(CONCATENATE($B128,"-",$C128),IN_1C!$B$2:$T$3018,13,FALSE))=TRUE,"",VLOOKUP(CONCATENATE($B128,"-",$C128),IN_1C!$B$2:$T$3018,13,FALSE)) -> 0 | P128: =IF(ISERROR(VLOOKUP(CONCATENATE($B128,"-",$C128),IN_1C!$B$2:$T$3018,14,FALSE))=TRUE,"",VLOOKUP(CONCATENATE($B128,"-",$C128),IN_1C!$B$2:$T$3018,14,FALSE)) -> 0 | Q128: 0 | R128: 0
A129: RUOLO TECNICO | E129: =IF(ISERROR(VLOOKUP(CONCATENATE($B129,"-",$C129),IN_1C!$B$2:$T$3018,3,FALSE))=TRUE,"",VLOOKUP(CONCATENATE($B129,"-",$C129),IN_1C!$B$2:$T$3018,3,FALSE)) ->  | F129: =IF(ISERROR(VLOOKUP(CONCATENATE($B129,"-",$C129),IN_1C!$B$2:$T$3018,4,FALSE))=TRUE,"",VLOOKUP(CONCATENATE($B129,"-",$C129),IN_1C!$B$2:$T$3018,4,FALSE)) ->  | G129: =IF(ISERROR(VLOOKUP(CONCATENATE($B129,"-",$C129),IN_1C!$B$2:$T$3018,5,FALSE))=TRUE,"",VLOOKUP(CONCATENATE($B129,"-",$C129),IN_1C!$B$2:$T$3018,5,FALSE)) ->  | H129: =IF(ISERROR(VLOOKUP(CONCATENATE($B129,"-",$C129),IN_1C!$B$2:$T$3018,6,FALSE))=TRUE,"",VLOOKUP(CONCATENATE($B129,"-",$C129),IN_1C!$B$2:$T$3018,6,FALSE)) ->  | I129: =IF(ISERROR(VLOOKUP(CONCATENATE($B129,"-",$C129),IN_1C!$B$2:$T$3018,7,FALSE))=TRUE,"",VLOOKUP(CONCATENATE($B129,"-",$C129),IN_1C!$B$2:$T$3018,7,FALSE)) ->  | J129: =IF(ISERROR(VLOOKUP(CONCATENATE($B129,"-",$C129),IN_1C!$B$2:$T$3018,8,FALSE))=TRUE,"",VLOOKUP(CONCATENATE($B129,"-",$C129),IN_1C!$B$2:$T$3018,8,FALSE)) ->  | K129: =IF(ISERROR(VLOOKUP(CONCATENATE($B129,"-",$C129),IN_1C!$B$2:$T$3018,9,FALSE))=TRUE,"",VLOOKUP(CONCATENATE($B129,"-",$C129),IN_1C!$B$2:$T$3018,9,FALSE)) ->  | L129: =IF(ISERROR(VLOOKUP(CONCATENATE($B129,"-",$C129),IN_1C!$B$2:$T$3018,10,FALSE))=TRUE,"",VLOOKUP(CONCATENATE($B129,"-",$C129),IN_1C!$B$2:$T$3018,10,FALSE)) ->  | M129: =IF(ISERROR(VLOOKUP(CONCATENATE($B129,"-",$C129),IN_1C!$B$2:$T$3018,11,FALSE))=TRUE,"",VLOOKUP(CONCATENATE($B129,"-",$C129),IN_1C!$B$2:$T$3018,11,FALSE)) ->  | N129: =IF(ISERROR(VLOOKUP(CONCATENATE($B129,"-",$C129),IN_1C!$B$2:$T$3018,12,FALSE))=TRUE,"",VLOOKUP(CONCATENATE($B129,"-",$C129),IN_1C!$B$2:$T$3018,12,FALSE)) ->  | O129: =IF(ISERROR(VLOOKUP(CONCATENATE($B129,"-",$C129),IN_1C!$B$2:$T$3018,13,FALSE))=TRUE,"",VLOOKUP(CONCATENATE($B129,"-",$C129),IN_1C!$B$2:$T$3018,13,FALSE)) ->  | P129: =IF(ISERROR(VLOOKUP(CONCATENATE($B129,"-",$C129),IN_1C!$B$2:$T$3018,14,FALSE))=TRUE,"",VLOOKUP(CONCATENATE($B129,"-",$C129),IN_1C!$B$2:$T$3018,14,FALSE)) -> 
A130: ANALISTA | B130: T00AN0 | C130: 3 | D130: =CONCATENATE(D$107) -> 030282 | E130: 0 | F130: 0 | G130: 0 | H130: 0 | I130: 0 | J130: 0 | K130: 0 | L130: 0 | M130: 0 | N130: 0 | O130: 0 | P130: 0 | Q130: =E130+G130 -> 0 | R130: 0
A131: STATISTICO | B131: T00ST0 | C131: 3 | D131: 030282 | E131: 0 | F131: 0 | G131: 0 | H131: 0 | I131: 0 | J131: 0 | K131: 0 | L131: 0 | M131: 0 | N131: 0 | O131: 0 | P131: 0 | Q131: 0 | R131: 0
